Workbook

Sheet Start
B21: Rekenhulp personele bekostiging 2021-2022

Sheet Data (hidden)
A1: Scherm 1 | B1: Scherm 2 | D1: Scherm 3_1 | F1: niet meer in gebruik | H1: Scherm 3_2 | L1: Scherm 3_3 | P1: Scherm 4_1 | Q1: 0 | Z1: Scherm 4_2 | AA1: 0 | AJ1: Scherm 4_3 | AK1: 0 | AT1: Scherm 4_4 | AU1: 1
A2: Geen data | D2: =(YEAR(Peildatum)-1)&"/"&YEAR(Peildatum) -> 2021/2022 | E2: =YEAR(Peildatum)&"/"&(YEAR(Peildatum)+1) -> 2022/2023 | F2: Resp. '13-'14-'15 | H2: Omschrijving (cursief zijn vaste waarden) | I2: =D2 -> 2021/2022 | J2: =E2 -> 2022/2023 | L2: Omschrijving (cursief zijn vaste waarden) | M2: =D2 -> 2021/2022 | N2: =E2 -> 2022/2023 | P2: Naam persoon | Q2: Beeindigingsdatum | R2: Loonkosten | S2: Schaal | T2: Trede | U2: Uitloopschaal | V2: Werktijdfactor | W2: Toelage directeuren | X2: Persoon Aan/Uit | Z2: Naam persoon | AA2: Beeindigingsdatum | AB2: Loonkosten | AC2: Schaal | AD2: Trede | AE2: Uitloopschaal | AF2: Werktijdfactor | AG2: Toelage directeuren | AH2: Persoon Aan/Uit | AJ2: Naam persoon | AK2: Beeindigingsdatum | AL2: Loonkosten | AM2: Schaal | AN2: Trede | AO2: Uitloopschaal | AP2: Werktijdfactor | AQ2: Toelage directeuren | AR2: Persoon Aan/Uit | AT2: Naam persoon | AU2: Beeindigingsdatum | AV2: Loonkosten | AW2: Schaal | AX2: Trede | AY2: Uitloopschaal | AZ2: Werktijdfactor | BA2: Toelage directeuren | BB2: Persoon Aan/Uit | BH2: Vinkjes laten staan!! | BI2: Vinkjes Aan/Uit | BK2: Ranges met data
B3: 10925 | H3: Gemeentelijke subsidies | L3: Formatie vanuit ondersteuningsplan | AT3: x | AU3: 2021-01-01 | AV3: 63539.51 | AW3: AC | AX3: 5 | AZ3: 1 | BB3: -1 | BD3: Ontslagruimte: | BE3: =Personeel!N15 -> 0 | BG3: Scherm 1 | BH3: ѵ | BI3: FALSE | BK3: B3:B7
B4: Gemeente Westerwolde | H4: Contractactiviteiten | BD4: Ontslagruimte verschil: | BE4: =Personeel!N16 -> 63539.51 | BG4: Scherm 2 | BH4: ѵ | BK4: D3:E27
H5: ESF-subsidies | BG5: Scherm 3 | BH5: ѵ | BI5: FALSE | BK5: D38:D39
B6: Option_WerkgeverValtOnderWPO | H6: Loonkostensubsidie OOP | BD6: Schaal | BE6: AC | BG6: Scherm 3_1 | BH6: ѵ | BK6: I3:J27
BD7: Trede | BE7: 5 | BG7: Scherm 3_2 | BH7: ѵ | BK7: I29:J38
B8: 0 | BD8: Uitloopschaal | BG8: Scherm 3_3 | BH8: ѵ | BI8: FALSE | BK8: M3:N12
B9: =LeerlingAantalCalc -> 610 | BD9: Werktijdfactor | BE9: 1 | BG9: Scherm 4 | BH9: ѵ | BI9: FALSE | BK9: P3:BB502
BD10: Toelage directeuren | BG10: Scherm 4_1 | BH10: ѵ | BK10: BI3:BI14
BD11: Loonkosten | BE11: =IF(ISERROR(Salaris_berekening!R105),"",Salaris_berekening!R105) -> 63539.505 | BG11: Scherm 4_2 | BH11: ѵ
BG12: Scherm 4_3 | BH12: ѵ
E13: 0 | BG13: Scherm 4_4 | BH13: ѵ
BG14: Scherm 5 | BH14: ѵ
D18: 158996.72 | E18: 158996.72
D28: Performancebox (popup) | H28: Gemeentelijke subsidies (popup) | I28: =I2 -> 2021/2022 | J28: =J2 -> 2022/2023
D29: Leerlingaantal 01-10-2012
D30: Aantal BRIN-nummers 01-10-2012
D31: Prestatiebox 2013-2014 | E31: =PrestatieBox1213 -> 0
D32: Leerlingaantal 01-10-2013
D33: Aantal BRIN-nummers 01-10-2013
D34: Prestatiebox 2014-2015 | E34: =PrestatieBox1314 -> 0

Sheet Leerlingaantallen (hidden)
A1: BRIN | B1: Soort onderwijs | C1: Werkgevernummer | D1: Aantal leerlingen | E1: Bedrag
A2: 00AV | B2: Bo | C2: 41646 | D2: 73 | E2: =D2*IF(B2=$G$9,WerkdrukbedragPerLeerlingBo,IF(B2=$G$10,WerkdrukbedragPerLeerlingSbo,IF(B2=$G$11,WerkdrukbedragPerLeerlingSo,IF(B2=$G$12,WerkdrukbedragPerLeerlingVso,0)))) -> 18882.91
A3: 00AW | B3: So | C3: 62077 | D3: 78 | E3: =D3*IF(B3=$G$9,WerkdrukbedragPerLeerlingBo,IF(B3=$G$10,WerkdrukbedragPerLeerlingSbo,IF(B3=$G$11,WerkdrukbedragPerLeerlingSo,IF(B3=$G$12,WerkdrukbedragPerLeerlingVso,0)))) -> 40352.52 | G3: WerkgeverNummer | H3: =Data_WerkgeverNummer -> 10925
A4: 00AW | B4: So | C4: 62077 | D4: 24 | E4: 12416.16 | G4: WerkgeverNaam | H4: =_xlfn.IFNA(VLOOKUP(Data_WerkgeverNummer,BevoegdGezag[],2,FALSE),"") -> Gemeente Westerwolde
A5: 00AZ | B5: Bo | C5: 41638 | D5: 91 | E5: 23538.97 | G5: Leerlingaantal | H5: =SUMIF(C2:C7252,Data_WerkgeverNummer,D2:D7252) -> 610
A6: 00BB | B6: Bo | C6: 41613 | D6: 75 | E6: 19400.25 | G6: Werkdrukbedrag totaal | H6: =_xlfn.IFNA(VLOOKUP($H$3,BevoegdGezag[],4,FALSE),0) -> 157788.7
A7: 00BS | B7: Bo | C7: 41632 | D7: 110 | E7: 28453.7
A8: 00BW | B8: Bo | C8: 41516 | D8: 116 | E8: 30005.72 | G8: Werkdrukbedrag per onderwijssoort
A9: 00BZ | B9: Sbo | C9: 41632 | D9: 72 | E9: 27936.72 | G9: Bo | H9: 258.67
A10: 00CD | B10: Bo | C10: 41228 | D10: 175 | E10: 45267.25 | G10: Sbo | H10: 388.01
A11: 00CG | B11: Bo | C11: 41516 | D11: 426 | E11: 110193.42 | G11: So | H11: 517.34
A12: 00CS | B12: Bo | C12: 42607 | D12: 65 | E12: 16813.55 | G12: Vso | H12: 517.34
A13: 00CU | B13: Bo | C13: 41246 | D13: 90 | E13: 23280.3
A14: 00CV | B14: Bo | C14: 20210 | D14: 57 | E14: 14744.19
A15: 00DA | B15: Bo | C15: 30051 | D15: 45 | E15: 11640.15
A16: 00DD | B16: Bo | C16: 40581 | D16: 225 | E16: 58200.75
A17: 00DM | B17: Bo | C17: 75388 | D17: 120 | E17: 31040.4
A18: 00DN | B18: Bo | C18: 42669 | D18: 169 | E18: 43715.23
A19: 00DO | B19: Bo | C19: 41775 | D19: 93 | E19: 24056.31
A20: 00DW | B20: Bo | C20: 77235 | D20: 138 | E20: 35696.46
A21: 00DX | B21: Bo | C21: 77456 | D21: 192 | E21: 49664.64
A22: 00DY | B22: Bo | C22: 41632 | D22: 121 | E22: 31299.07
A23: 00DZ | B23: Bo | C23: 40950 | D23: 169 | E23: 43715.23
A24: 00EB | B24: Bo | C24: 48348 | D24: 186 | E24: 48112.62
A25: 00EH | B25: Sbo | C25: 41646 | D25: 57 | E25: 22116.57
A26: 00EI | B26: Bo | C26: 30133 | D26: 144 | E26: 37248.48
A27: 00EM | B27: Sbo | C27: 42790 | D27: 159 | E27: 61693.59
A28: 00FE | B28: Bo | C28: 41646 | D28: 97 | E28: 25090.99
A29: 00FG | B29: Bo | C29: 41624 | D29: 78 | E29: 20176.26
A30: 00FI | B30: Bo | C30: 45000 | D30: 167 | E30: 43197.89
A31: 00FQ | B31: Bo | C31: 30124 | D31: 71 | E31: 18365.57
A32: 00GQ | B32: Bo | C32: 20183 | D32: 115 | E32: 29747.05
A33: 00GR | B33: Bo | C33: 41632 | D33: 109 | E33: 28195.03
A34: 00GV | B34: Bo | C34: 50949 | D34: 140 | E34: 36213.8
A35: 00GX | B35: Bo | C35: 41530 | D35: 114 | E35: 29488.38
A36: 00HA | B36: Bo | C36: 30128 | D36: 228 | E36: 58976.76
A37: 00HH | B37: Bo | C37: 41582 | D37: 82 | E37: 21210.94
A38: 00HZ | B38: Bo | C38: 20252 | D38: 194 | E38: 50181.98
A39: 00IF | B39: Bo | C39: 50949 | D39: 59 | E39: 15261.53
A40: 00IH | B40: Sbo | C40: 40812 | D40: 150 | E40: 58201.5
A41: 00IJ | B41: Bo | C41: 85600 | D41: 177 | E41: 45784.59
A42: 00IM | B42: Bo | C42: 30145 | D42: 121 | E42: 31299.07
A43: 00JH | B43: Sbo | C43: 41414 | D43: 44 | E43: 17072.44
A44: 00JL | B44: Sbo | C44: 41514 | D44: 102 | E44: 39577.02
A45: 00JY | B45: Sbo | C45: 30742 | D45: 153 | E45: 59365.53
A46: 00KK | B46: So | C46: 41417 | D46: 242 | E46: 125196.28
A47: 00KK | B47: Vso | C47: 41417 | D47: 13 | E47: 6725.42
A48: 00KM | B48: Vso | C48: 25859 | D48: 63 | E48: 32592.42
A49: 00KM | B49: Vso | C49: 25859 | D49: 74 | E49: 38283.16
A50: 00KM | B50: So | C50: 25859 | D50: 81 | E50: 41904.54
A51: 00KM | B51: Vso | C51: 25859 | D51: 99 | E51: 51216.66
A52: 00KM | B52: So | C52: 25859 | D52: 32 | E52: 16554.88
A53: 00KM | B53: Vso | C53: 25859 | D53: 75 | E53: 38800.5
A54: 00KM | B54: Vso | C54: 25859 | D54: 58 | E54: 30005.72
A55: 00KM | B55: Vso | C55: 25859 | D55: 15 | E55: 7760.1
A56: 00KM | B56: Vso | C56: 25859 | D56: 46 | E56: 23797.64
A57: 00KM | B57: So | C57: 25859 | D57: 172 | E57: 88982.48
A58: 00KM | B58: Vso | C58: 25859 | D58: 106 | E58: 54838.04
A59: 00KM | B59: Vso | C59: 25859 | D59: 103 | E59: 53286.02
A60: 00KM | B60: So | C60: 25859 | D60: 57 | E60: 29488.38
A61: 00KU | B61: Sbo | C61: 29810 | D61: 193 | E61: 74885.93
A62: 00KX | B62: So | C62: 26132 | D62: 101 | E62: 52251.34
A63: 00KX | B63: Vso | C63: 26132 | D63: 98 | E63: 50699.32
A64: 00KZ | B64: Sbo | C64: 71008 | D64: 155 | E64: 60141.55
A65: 00LD | B65: So | C65: 42665 | D65: 132 | E65: 68288.88
A66: 00LD | B66: Vso | C66: 42665 | D66: 72 | E66: =D66*IF(B66=$G$9,WerkdrukbedragPerLeerlingBo,IF(B66=$G$10,WerkdrukbedragPerLeerlingSbo,IF(B66=$G$11,WerkdrukbedragPerLeerlingSo,IF(B66=$G$12,WerkdrukbedragPerLeerlingVso,0)))) -> 37248.48
A67: 00LH | B67: So | C67: 77338 | D67: 90 | E67: 46560.6
A68: 00LH | B68: Vso | C68: 77338 | D68: 139 | E68: 71910.26
A69: 00LS | B69: Sbo | C69: 50819 | D69: 122 | E69: 47337.22
A70: 00MI | B70: Sbo | C70: 44201 | D70: 130 | E70: 50441.3
A71: 00MN | B71: Sbo | C71: 80433 | D71: 122 | E71: 47337.22
A72: 00MS | B72: Sbo | C72: 40946 | D72: 138 | E72: 53545.38
A73: 00MU | B73: So | C73: 41414 | D73: 56 | E73: 28971.04
A74: 00MU | B74: So | C74: 41414 | D74: 11 | E74: 5690.74
A75: 00MY | B75: Sbo | C75: 40876 | D75: 117 | E75: 45397.17
A76: 00NT | B76: So | C76: 30968 | D76: 153 | E76: 79153.02
A77: 00NT | B77: Vso | C77: 30968 | D77: 2 | E77: 1034.68
A78: 00NT | B78: So | C78: 30968 | D78: 94 | E78: 48629.96
A79: 00NT | B79: Vso | C79: 30968 | D79: 149 | E79: 77083.66
A80: 00NT | B80: Vso | C80: 30968 | D80: 300 | E80: 155202
A81: 00NT | B81: Vso | C81: 30968 | D81: 282 | E81: 145889.88
A82: 00NT | B82: So | C82: 30968 | D82: 28 | E82: 14485.52
A83: 00NT | B83: Vso | C83: 30968 | D83: 36 | E83: 18624.24
A84: 00NY | B84: Sbo | C84: 40876 | D84: 49 | E84: 19012.49
A85: 00OJ | B85: So | C85: 41312 | D85: 69 | E85: 35696.46
A86: 00OJ | B86: Vso | C86: 41312 | D86: 75 | E86: 38800.5
A87: 00ON | B87: So | C87: 32216 | D87: 97 | E87: 50181.98
A88: 00ON | B88: So | C88: 32216 | D88: 44 | E88: 22762.96
A89: 00ON | B89: So | C89: 32216 | D89: 69 | E89: 35696.46
A90: 00OQ | B90: So | C90: 41805 | D90: 93 | E90: 48112.62
A91: 00OQ | B91: Vso | C91: 41805 | D91: 149 | E91: 77083.66
A92: 00OS | B92: So | C92: 41531 | D92: 190 | E92: 98294.6
A93: 00OS | B93: So | C93: 41531 | D93: 3 | E93: 1552.02
A94: 00PQ | B94: So | C94: 41400 | D94: 133 | E94: 68806.22
A95: 00PQ | B95: Vso | C95: 41400 | D95: 203 | E95: 105020.02
A96: 00PZ | B96: So | C96: 38209 | D96: 16 | E96: 8277.44
A97: 00PZ | B97: Vso | C97: 38209 | D97: 73 | E97: 37765.82
A98: 00PZ | B98: So | C98: 38209 | D98: 47 | E98: 24314.98
A99: 00PZ | B99: Vso | C99: 38209 | D99: 61 | E99: 31557.74
A100: 00PZ | B100: So | C100: 38209 | D100: 49 | E100: 25349.66
A101: 00PZ | B101: Vso | C101: 38209 | D101: 23 | E101: 11898.82
A102: 00RK | B102: Vso | C102: 41417 | D102: 77 | E102: 39835.18
A103: 00RL | B103: So | C103: 41008 | D103: 84 | E103: 43456.56
A104: 00RL | B104: So | C104: 41008 | D104: 15 | E104: 7760.1
A105: 00RL | B105: So | C105: 41008 | D105: 92 | E105: 47595.28
A106: 00RL | B106: So | C106: 41008 | D106: 50 | E106: 25867
A107: 00RL | B107: So | C107: 41008 | D107: 62 | E107: 32075.08
A108: 00RL | B108: So | C108: 41008 | D108: 46 | E108: 23797.64
A109: 00RL | B109: So | C109: 41008 | D109: 75 | E109: 38800.5
A110: 00RS | B110: Vso | C110: 42665 | D110: 195 | E110: 100881.3
A111: 00RT | B111: Vso | C111: 42572 | D111: 223 | E111: 115366.82
A112: 00RT | B112: Vso | C112: 42572 | D112: 124 | E112: 64150.16
A113: 00RT | B113: So | C113: 42572 | D113: 86 | E113: 44491.24
A114: 00RT | B114: Vso | C114: 42572 | D114: 85 | E114: 43973.9
A115: 00RT | B115: So | C115: 42572 | D115: 75 | E115: 38800.5
A116: 00RT | B116: Vso | C116: 42572 | D116: 25 | E116: 12933.5
A117: 00RX | B117: Sbo | C117: 41516 | D117: 135 | E117: 52381.35
A118: 00SH | B118: Vso | C118: 41373 | D118: 38 | E118: 19658.92
A119: 00SH | B119: Vso | C119: 41373 | D119: 136 | E119: 70358.24
A120: 00SH | B120: So | C120: 41373 | D120: 94 | E120: 48629.96
A121: 00SI | B121: So | C121: 42504 | D121: 59 | E121: 30523.06
A122: 00SL | B122: So | C122: 41290 | D122: 97 | E122: 50181.98
A123: 00SL | B123: Vso | C123: 41290 | D123: 106 | E123: 54838.04
A124: 00SO | B124: So | C124: 40631 | D124: 26 | E124: 13450.84
A125: 00SQ | B125: Sbo | C125: 44397 | D125: 72 | E125: 27936.72
A126: 00SU | B126: So | C126: 10249 | D126: 64 | E126: 33109.76
A127: 00SU | B127: Vso | C127: 10249 | D127: 95 | E127: 49147.3
A128: 00TN | B128: Sbo | C128: 23961 | D128: 122 | E128: 47337.22
A129: 00TO | B129: So | C129: 41531 | D129: 89 | E129: 46043.26
A130: 00TO | B130: Vso | C130: 41531 | D130: 93 | E130: =D130*IF(B130=$G$9,WerkdrukbedragPerLeerlingBo,IF(B130=$G$10,WerkdrukbedragPerLeerlingSbo,IF(B130=$G$11,WerkdrukbedragPerLeerlingSo,IF(B130=$G$12,WerkdrukbedragPerLeerlingVso,0)))) -> 48112.62
A131: 00UE | B131: Sbo | C131: 41417 | D131: 176 | E131: 68289.76
A132: 00UI | B132: Sbo | C132: 71488 | D132: 129 | E132: 50053.29
A133: 00UN | B133: Sbo | C133: 41251 | D133: 120 | E133: 46561.2
A134: 00UT | B134: So | C134: 41008 | D134: 134 | E134: 69323.56
A135: 00UY | B135: Sbo | C135: 41396 | D135: 108 | E135: 41905.08
A136: 00VD | B136: Sbo | C136: 55303 | D136: 184 | E136: 71393.84
A137: 00VV | B137: So | C137: 48856 | D137: 34 | E137: 17589.56
A138: 00VV | B138: Vso | C138: 48856 | D138: 28 | E138: 14485.52
A139: 00VW | B139: Sbo | C139: 41417 | D139: 163 | E139: 63245.63
A140: 00WK | B140: Sbo | C140: 41443 | D140: 101 | E140: 39189.01
A141: 00WO | B141: Sbo | C141: 95694 | D141: 100 | E141: 38801
A142: 00YG | B142: Sbo | C142: 47920 | D142: 81 | E142: 31428.81
A143: 00ZF | B143: Vso | C143: 41414 | D143: 107 | E143: 55355.38
A144: 00ZF | B144: Vso | C144: 41414 | D144: 118 | E144: 61046.12
A145: 00ZF | B145: Vso | C145: 41414 | D145: 112 | E145: 57942.08
A146: 00ZF | B146: Vso | C146: 41414 | D146: 91 | E146: 47077.94
A147: 00ZF | B147: Vso | C147: 41414 | D147: 65 | E147: 33627.1
A148: 00ZN | B148: So | C148: 25859 | D148: 169 | E148: 87430.46
A149: 00ZR | B149: Sbo | C149: 40901 | D149: 238 | E149: 92346.38
A150: 00ZS | B150: Sbo | C150: 77196 | D150: 105 | E150: 40741.05
A151: 01AC | B151: Sbo | C151: 61778 | D151: 107 | E151: 41517.07
A152: 01AI | B152: So | C152: 62077 | D152: 139 | E152: 71910.26
A153: 01AI | B153: So | C153: 62077 | D153: 115 | E153: 59494.1
A154: 01AI | B154: So | C154: 62077 | D154: 8 | E154: 4138.72
A155: 01AJ | B155: So | C155: 62129 | D155: 224 | E155: 115884.16
A156: 01AJ | B156: Vso | C156: 62129 | D156: 20 | E156: 10346.8
A157: 01AJ | B157: So | C157: 62129 | D157: 23 | E157: 11898.82
A158: 01AK | B158: Sbo | C158: 62181 | D158: 166 | E158: 64409.66
A159: 01BO | B159: Sbo | C159: 45000 | D159: 83 | E159: 32204.83
A160: 01BS | B160: Vso | C160: 62077 | D160: 117 | E160: 60528.78
A161: 01BS | B161: Vso | C161: 62077 | D161: 64 | E161: 33109.76
A162: 01BS | B162: Vso | C162: 62077 | D162: 123 | E162: 63632.82
A163: 01BS | B163: Vso | C163: 62077 | D163: 106 | E163: 54838.04
A164: 01BS | B164: Vso | C164: 62077 | D164: 37 | E164: 19141.58
A165: 01CE | B165: Sbo | C165: 40788 | D165: 219 | E165: 84974.19
A166: 01CN | B166: So | C166: 83189 | D166: 100 | E166: 51734
A167: 01CN | B167: Vso | C167: 83189 | D167: 138 | E167: 71392.92
A168: 01CX | B168: Sbo | C168: 40888 | D168: 76 | E168: 29488.76
A169: 01DM | B169: Sbo | C169: 83280 | D169: 156 | E169: 60529.56
A170: 01FJ | B170: Sbo | C170: 72464 | D170: 91 | E170: 35308.91
A171: 01FN | B171: Sbo | C171: 40631 | D171: 100 | E171: 38801
A172: 01FX | B172: So | C172: 73114 | D172: 145 | E172: 75014.3
A173: 01FX | B173: Vso | C173: 73114 | D173: 180 | E173: 93121.2
A174: 01GE | B174: Sbo | C174: 83280 | D174: 123 | E174: 47725.23
A175: 01GF | B175: So | C175: 29810 | D175: 70 | E175: 36213.8
A176: 01GQ | B176: Sbo | C176: 42486 | D176: 65 | E176: 25220.65
A177: 01JE | B177: So | C177: 40631 | D177: 136 | E177: 70358.24
A178: 01JE | B178: So | C178: 40631 | D178: 157 | E178: 81222.38
A179: 01JH | B179: Vso | C179: 40631 | D179: 27 | E179: 13968.18
A180: 01JH | B180: So | C180: 40631 | D180: 72 | E180: 37248.48
A181: 01JH | B181: Vso | C181: 40631 | D181: 92 | E181: 47595.28
A182: 01JH | B182: Vso | C182: 40631 | D182: 133 | E182: 68806.22
A183: 01JO | B183: So | C183: 41314 | D183: 211 | E183: 109158.74
A184: 01JO | B184: So | C184: 41314 | D184: 154 | E184: 79670.36
A185: 01JO | B185: Vso | C185: 41314 | D185: 86 | E185: 44491.24
A186: 01JO | B186: So | C186: 41314 | D186: 127 | E186: 65702.18
A187: 01JO | B187: So | C187: 41314 | D187: 92 | E187: 47595.28
A188: 01JO | B188: So | C188: 41314 | D188: 182 | E188: 94155.88
A189: 01JO | B189: So | C189: 41314 | D189: 181 | E189: 93638.54
A190: 01JO | B190: So | C190: 41314 | D190: 116 | E190: 60011.44
A191: 01JO | B191: Vso | C191: 41314 | D191: 88 | E191: 45525.92
A192: 01JO | B192: So | C192: 41314 | D192: 180 | E192: 93121.2
A193: 01JO | B193: So | C193: 41314 | D193: 90 | E193: 46560.6
A194: 01JO | B194: So | C194: 41314 | D194: 167 | E194: =D194*IF(B194=$G$9,WerkdrukbedragPerLeerlingBo,IF(B194=$G$10,WerkdrukbedragPerLeerlingSbo,IF(B194=$G$11,WerkdrukbedragPerLeerlingSo,IF(B194=$G$12,WerkdrukbedragPerLeerlingVso,0)))) -> 86395.78
A195: 01JO | B195: So | C195: 41314 | D195: 120 | E195: 62080.8
A196: 01JO | B196: So | C196: 41314 | D196: 105 | E196: 54320.7
A197: 01JO | B197: So | C197: 41314 | D197: 150 | E197: 77601
A198: 01JO | B198: So | C198: 41314 | D198: 117 | E198: 60528.78
A199: 01JO | B199: So | C199: 41314 | D199: 35 | E199: 18106.9
A200: 01JO | B200: So | C200: 41314 | D200: 32 | E200: 16554.88
... 7052 more rows

Sheet BevoegdGezag (hidden)
A1: BEVOEGD GEZAG NUMMER | B1: BEVOEGD GEZAG NAAM | C1: DENOMINATIE | D1: Bedrag
A2: 10249 | B2: Gemeente Emmen | C2: Openbaar | D2: =SUMIF(Leerlingaantallen[Werkgevernummer],BevoegdGezag!A2,Leerlingaantallen[Bedrag]) -> 1205144.53
A3: 10867 | B3: Gemeente Terschelling | C3: Openbaar | D3: =SUMIF(Leerlingaantallen[Werkgevernummer],BevoegdGezag!A3,Leerlingaantallen[Bedrag]) -> 42939.22
A4: 10925 | B4: Gemeente Westerwolde | C4: Openbaar | D4: =SUMIF(Leerlingaantallen[Werkgevernummer],BevoegdGezag!A4,Leerlingaantallen[Bedrag]) -> 157788.7
A5: 11711 | B5: Gemeente Noordenveld | C5: Openbaar | D5: =SUMIF(Leerlingaantallen[Werkgevernummer],BevoegdGezag!A5,Leerlingaantallen[Bedrag]) -> 528075.65
A6: 11764 | B6: Gemeente Eijsden-Margraten | C6: Openbaar | D6: =SUMIF(Leerlingaantallen[Werkgevernummer],BevoegdGezag!A6,Leerlingaantallen[Bedrag]) -> 19141.58
A7: 13622 | B7: Stichting Openbaar Primair Onderwijs Haarlemmermeer | C7: Openbaar | D7: =SUMIF(Leerlingaantallen[Werkgevernummer],BevoegdGezag!A7,Leerlingaantallen[Bedrag]) -> 1153280.71
A8: 13662 | B8: Stichting Openbaar Onderwijs Present | C8: Openbaar | D8: =SUMIF(Leerlingaantallen[Werkgevernummer],BevoegdGezag!A8,Leerlingaantallen[Bedrag]) -> 388005
A9: 13682 | B9: Openbaar Primair Onderwijs Oegstgeest | C9: Openbaar | D9: =SUMIF(Leerlingaantallen[Werkgevernummer],BevoegdGezag!A9,Leerlingaantallen[Bedrag]) -> 350497.85
A10: 13683 | B10: Schoolbestuur voor primair en voortgezet onderwijs tussen Lauwers en Eems-stg | C10: Openbaar | D10: =SUMIF(Leerlingaantallen[Werkgevernummer],BevoegdGezag!A10,Leerlingaantallen[Bedrag]) -> 350497.85
A11: 13839 | B11: Bestuurscommissie Master Frankeskoalle voor Basisonderwijs te Eernewoude | C11: Openbaar | D11: =SUMIF(Leerlingaantallen[Werkgevernummer],BevoegdGezag!A11,Leerlingaantallen[Bedrag]) -> 14226.85
A12: 13878 | B12: Bestuurscommissie Openbaar Basisonderwijs Ameland | C12: Openbaar | D12: =SUMIF(Leerlingaantallen[Werkgevernummer],BevoegdGezag!A12,Leerlingaantallen[Bedrag]) -> 19917.59
A13: 20183 | B13: Verenig. voor Chr. Onderwijs op Reformatorische Grondslag | C13: Reformatorisch | D13: =SUMIF(Leerlingaantallen[Werkgevernummer],BevoegdGezag!A13,Leerlingaantallen[Bedrag]) -> 45525.92
A14: 20210 | B14: Stichting Matthijsje | C14: Algemeen bijzonder | D14: =SUMIF(Leerlingaantallen[Werkgevernummer],BevoegdGezag!A14,Leerlingaantallen[Bedrag]) -> 14744.19
A15: 20243 | B15: Ver. Stg. Ned.-Herv. Chr. Scholen te Waddinxveen | C15: Protestants-Christelijk | D15: =SUMIF(Leerlingaantallen[Werkgevernummer],BevoegdGezag!A15,Leerlingaantallen[Bedrag]) -> 142268.5
A16: 20252 | B16: Vereniging Jenaplanonderwijs Oudewater | C16: Algemeen bijzonder | D16: =SUMIF(Leerlingaantallen[Werkgevernummer],BevoegdGezag!A16,Leerlingaantallen[Bedrag]) -> 50181.98
A17: 20281 | B17: Stichting Lucas Onderwijs | C17: Samenwerking PC, RK | D17: =SUMIF(Leerlingaantallen[Werkgevernummer],BevoegdGezag!A17,Leerlingaantallen[Bedrag]) -> 4719566.58
A18: 20671 | B18: Westlandse Stichting Katholiek Onderwijs (WSKO) | C18: Rooms-Katholiek | D18: =SUMIF(Leerlingaantallen[Werkgevernummer],BevoegdGezag!A18,Leerlingaantallen[Bedrag]) -> 1246789.4
A19: 20970 | B19: Amsterdamse Schoolver. v. Opv. en Onderwijs 'A.S.V.O.' | C19: Algemeen bijzonder | D19: =SUMIF(Leerlingaantallen[Werkgevernummer],BevoegdGezag!A19,Leerlingaantallen[Bedrag]) -> 83550.41
A20: 21464 | B20: Stichting Joodse Scholengem.sch. J.B.O. | C20: Joods | D20: =SUMIF(Leerlingaantallen[Werkgevernummer],BevoegdGezag!A20,Leerlingaantallen[Bedrag]) -> 67254.2
A21: 21478 | B21: Ver. tot Verstr. van Onderwijs op Gereformeerde Grondslag | C21: Protestants-Christelijk | D21: =SUMIF(Leerlingaantallen[Werkgevernummer],BevoegdGezag!A21,Leerlingaantallen[Bedrag]) -> 122609.58
A22: 22622 | B22: Ver voor Christ. Basisonderw. Laat de kinderen tot Mij komen | C22: Protestants-Christelijk | D22: =SUMIF(Leerlingaantallen[Werkgevernummer],BevoegdGezag!A22,Leerlingaantallen[Bedrag]) -> 107865.39
A23: 22725 | B23: Stichting voor Interconfess. (rk/pc) en Katholiek Onderwijs | C23: Samenwerking PC, RK | D23: =SUMIF(Leerlingaantallen[Werkgevernummer],BevoegdGezag!A23,Leerlingaantallen[Bedrag]) -> 1008813
A24: 22765 | B24: Ver. Verstrekken Onderwijs op Gereformeerde Grondslag Lisse | C24: Protestants-Christelijk | D24: =SUMIF(Leerlingaantallen[Werkgevernummer],BevoegdGezag!A24,Leerlingaantallen[Bedrag]) -> 67771.54
A25: 23128 | B25: Stichting Varietas | C25: Interconfessioneel | D25: =SUMIF(Leerlingaantallen[Werkgevernummer],BevoegdGezag!A25,Leerlingaantallen[Bedrag]) -> 1222215.75
A26: 23337 | B26: Vereniging voor Prot. Chr. Onderw. Rhenen | C26: Protestants-Christelijk | D26: =SUMIF(Leerlingaantallen[Werkgevernummer],BevoegdGezag!A26,Leerlingaantallen[Bedrag]) -> 129335
A27: 23440 | B27: Schoolvereniging 'Willemspark' | C27: Algemeen bijzonder | D27: =SUMIF(Leerlingaantallen[Werkgevernummer],BevoegdGezag!A27,Leerlingaantallen[Bedrag]) -> 61304.79
A28: 23545 | B28: Ver. tot het verstr. van b.o. op ref. grondsl. te Oosterland | C28: Reformatorisch | D28: =SUMIF(Leerlingaantallen[Werkgevernummer],BevoegdGezag!A28,Leerlingaantallen[Bedrag]) -> 42163.21
A29: 23674 | B29: Vereniging 'een School met de Bijbel' | C29: Protestants-Christelijk | D29: =SUMIF(Leerlingaantallen[Werkgevernummer],BevoegdGezag!A29,Leerlingaantallen[Bedrag]) -> 95966.57
A30: 23883 | B30: Ver. Verstr. Kleuter/Bo op GGs te Nunspeet | C30: Protestants-Christelijk | D30: =SUMIF(Leerlingaantallen[Werkgevernummer],BevoegdGezag!A30,Leerlingaantallen[Bedrag]) -> 127782.98
A31: 23948 | B31: Ver t Stg Insth Sch op Geref Grondsl | C31: Protestants-Christelijk | D31: =SUMIF(Leerlingaantallen[Werkgevernummer],BevoegdGezag!A31,Leerlingaantallen[Bedrag]) -> 59752.77
A32: 23961 | B32: Stichting Primair Onderwijs Leudal en Thornerkwartier | C32: Rooms-Katholiek | D32: =SUMIF(Leerlingaantallen[Werkgevernummer],BevoegdGezag!A32,Leerlingaantallen[Bedrag]) -> 591061.56
A33: 24065 | B33: Ver. Herv. Chr. Schoolonderw. te Waspik | C33: Protestants-Christelijk | D33: =SUMIF(Leerlingaantallen[Werkgevernummer],BevoegdGezag!A33,Leerlingaantallen[Bedrag]) -> 27677.69
A34: 24195 | B34: Ver. verstr. bo op Ger. Gr.sl. te Genemuiden | C34: Reformatorisch | D34: =SUMIF(Leerlingaantallen[Werkgevernummer],BevoegdGezag!A34,Leerlingaantallen[Bedrag]) -> 112262.78
A35: 24207 | B35: Stg. St. Martinus v. Onderwijs op Katholieke Grondslag | C35: Rooms-Katholiek | D35: =SUMIF(Leerlingaantallen[Werkgevernummer],BevoegdGezag!A35,Leerlingaantallen[Bedrag]) -> 51475.33
A36: 24481 | B36: Ver. Basisond. op Reform. Grondsl. te Kootwijkerbroek | C36: Reformatorisch | D36: =SUMIF(Leerlingaantallen[Werkgevernummer],BevoegdGezag!A36,Leerlingaantallen[Bedrag]) -> 162444.76
A37: 24533 | B37: Ver. Chr. Nat. Schoolonderwijs te Nunspeet | C37: Protestants-Christelijk | D37: =SUMIF(Leerlingaantallen[Werkgevernummer],BevoegdGezag!A37,Leerlingaantallen[Bedrag]) -> 348169.82
A38: 24597 | B38: Stichting Rotterdamse Vereniging voor Katholiek Onderwijs | C38: Rooms-Katholiek | D38: =SUMIF(Leerlingaantallen[Werkgevernummer],BevoegdGezag!A38,Leerlingaantallen[Bedrag]) -> 5468802.69
A39: 24715 | B39: Ver. tot het verstrekken van Chr. basisonderwijs op Gereformeerde Grondslag | C39: Reformatorisch | D39: =SUMIF(Leerlingaantallen[Werkgevernummer],BevoegdGezag!A39,Leerlingaantallen[Bedrag]) -> 278587.59
A40: 24844 | B40: Stichting VCO Oost Nederland | C40: Protestants-Christelijk | D40: =SUMIF(Leerlingaantallen[Werkgevernummer],BevoegdGezag!A40,Leerlingaantallen[Bedrag]) -> 645640.32
A41: 25156 | B41: Amersfoortse Schoolvereniging | C41: Algemeen bijzonder | D41: =SUMIF(Leerlingaantallen[Werkgevernummer],BevoegdGezag!A41,Leerlingaantallen[Bedrag]) -> 84326.42
A42: 25196 | B42: Vereniging tot het Verstrekken van Onderwijs op Gereformeerde Grondslag | C42: Reformatorisch | D42: =SUMIF(Leerlingaantallen[Werkgevernummer],BevoegdGezag!A42,Leerlingaantallen[Bedrag]) -> 176930.28
A43: 25351 | B43: Stichting Keender | C43: Samenwerking Opb., RK | D43: =SUMIF(Leerlingaantallen[Werkgevernummer],BevoegdGezag!A43,Leerlingaantallen[Bedrag]) -> 681854.12
A44: 25664 | B44: Stichting Katholiek Montessori Onderwijs Bussum | C44: Rooms-Katholiek | D44: =SUMIF(Leerlingaantallen[Werkgevernummer],BevoegdGezag!A44,Leerlingaantallen[Bedrag]) -> 84326.42
A45: 25833 | B45: Vereniging voor Basisonderwijs Gereform. Grondslag te Tholen | C45: Protestants-Christelijk | D45: =SUMIF(Leerlingaantallen[Werkgevernummer],BevoegdGezag!A45,Leerlingaantallen[Bedrag]) -> 94931.89
A46: 26158 | B46: Stichting Fedra | C46: Samenwerking PC, RK | D46: =SUMIF(Leerlingaantallen[Werkgevernummer],BevoegdGezag!A46,Leerlingaantallen[Bedrag]) -> 821277.25
A47: 26613 | B47: Stichting Reformatorisch Onderwijs | C47: Reformatorisch | D47: =SUMIF(Leerlingaantallen[Werkgevernummer],BevoegdGezag!A47,Leerlingaantallen[Bedrag]) -> 94673.22
A48: 26626 | B48: Stg. tot het Verstr. van BO op Gereformeerde Grondslag | C48: Protestants-Christelijk | D48: =SUMIF(Leerlingaantallen[Werkgevernummer],BevoegdGezag!A48,Leerlingaantallen[Bedrag]) -> 87430.46
A49: 26977 | B49: Stichting Best Onderwijs | C49: Samenwerking PC, RK, Alg. Bijz | D49: =SUMIF(Leerlingaantallen[Werkgevernummer],BevoegdGezag!A49,Leerlingaantallen[Bedrag]) -> 555364.49
A50: 27067 | B50: Stichting Christ. B.s. Lochem Laren | C50: Protestants-Christelijk | D50: =SUMIF(Leerlingaantallen[Werkgevernummer],BevoegdGezag!A50,Leerlingaantallen[Bedrag]) -> 95190.56
A51: 27237 | B51: Ver. voor basisonderwijs op Gereformeerde grondslag Speuld | C51: Protestants-Christelijk | D51: =SUMIF(Leerlingaantallen[Werkgevernummer],BevoegdGezag!A51,Leerlingaantallen[Bedrag]) -> 15261.53
A52: 27340 | B52: Ver. Bev. vh Chr. Nat. onderw. te Hollum | C52: Protestants-Christelijk | D52: =SUMIF(Leerlingaantallen[Werkgevernummer],BevoegdGezag!A52,Leerlingaantallen[Bedrag]) -> 15520.2
A53: 27770 | B53: Stichting KBA NW West | C53: Samenwerking PC, RK | D53: =SUMIF(Leerlingaantallen[Werkgevernummer],BevoegdGezag!A53,Leerlingaantallen[Bedrag]) -> 459656.59
A54: 27910 | B54: Stichting Brigantijn | C54: Protestants-Christelijk | D54: =SUMIF(Leerlingaantallen[Werkgevernummer],BevoegdGezag!A54,Leerlingaantallen[Bedrag]) -> 1006484.97
A55: 28212 | B55: de Vrije School Noord en Oost Nederland | C55: Antroposofisch | D55: =SUMIF(Leerlingaantallen[Werkgevernummer],BevoegdGezag!A55,Leerlingaantallen[Bedrag]) -> 139940.47
A56: 28563 | B56: Stichting Katholiek Onderwijs De Streek | C56: Rooms-Katholiek | D56: =SUMIF(Leerlingaantallen[Werkgevernummer],BevoegdGezag!A56,Leerlingaantallen[Bedrag]) -> 595458.34
A57: 28601 | B57: Stichting Morgenwijzer | C57: Rooms-Katholiek | D57: =SUMIF(Leerlingaantallen[Werkgevernummer],BevoegdGezag!A57,Leerlingaantallen[Bedrag]) -> 1077360.55
A58: 28614 | B58: Stichting Openluchtscholen voor het Gezonde kind | C58: Algemeen bijzonder | D58: =SUMIF(Leerlingaantallen[Werkgevernummer],BevoegdGezag!A58,Leerlingaantallen[Bedrag]) -> 124420.27
A59: 28849 | B59: Stichting voor Katholiek Onderwijs Aalsmeer | C59: Rooms-Katholiek | D59: =SUMIF(Leerlingaantallen[Werkgevernummer],BevoegdGezag!A59,Leerlingaantallen[Bedrag]) -> 399127.81
A60: 29056 | B60: Vereniging Stichting Instandhouding School met de Bijbel Staphorst | C60: Protestants-Christelijk | D60: =SUMIF(Leerlingaantallen[Werkgevernummer],BevoegdGezag!A60,Leerlingaantallen[Bedrag]) -> 289710.4
A61: 29473 | B61: Ver. Verstr. v. BO op R.G.s. te Kruiningen | C61: Reformatorisch | D61: =SUMIF(Leerlingaantallen[Werkgevernummer],BevoegdGezag!A61,Leerlingaantallen[Bedrag]) -> 77859.67
A62: 29577 | B62: Ver. Scholen der Evangelische Broedergemeente | C62: Protestants-Christelijk | D62: =SUMIF(Leerlingaantallen[Werkgevernummer],BevoegdGezag!A62,Leerlingaantallen[Bedrag]) -> 93638.54
A63: 29785 | B63: Stichting Katholiek Onderwijs Hulst | C63: Rooms-Katholiek | D63: =SUMIF(Leerlingaantallen[Werkgevernummer],BevoegdGezag!A63,Leerlingaantallen[Bedrag]) -> 130369.68
A64: 29810 | B64: Stichting Conexus | C64: Rooms-Katholiek | D64: =SUMIF(Leerlingaantallen[Werkgevernummer],BevoegdGezag!A64,Leerlingaantallen[Bedrag]) -> 2180073.26
A65: 29823 | B65: Ver. verstrekken van onderwijs Geref. Grondslag Krabbendijke | C65: Protestants-Christelijk | D65: =SUMIF(Leerlingaantallen[Werkgevernummer],BevoegdGezag!A65,Leerlingaantallen[Bedrag]) -> 73462.28
A66: 30010 | B66: Sticht. v. Prot. Christ. B.o. Amersfoort | C66: Protestants-Christelijk | D66: =SUMIF(Leerlingaantallen[Werkgevernummer],BevoegdGezag!A66,Leerlingaantallen[Bedrag]) -> 898619.84
A67: 30013 | B67: Stichting Scholen van het Rozenkruis | C67: Algemeen bijzonder | D67: =SUMIF(Leerlingaantallen[Werkgevernummer],BevoegdGezag!A67,Leerlingaantallen[Bedrag]) -> 23280.3
A68: 30015 | B68: Ver. Oecumenisch Onderwijs in Maarn | C68: Algemeen bijzonder | D68: =SUMIF(Leerlingaantallen[Werkgevernummer],BevoegdGezag!A68,Leerlingaantallen[Bedrag]) -> 48888.63
A69: 30027 | B69: Stichting de Vrije School Eindhoven-Zuid | C69: Antroposofisch | D69: =SUMIF(Leerlingaantallen[Werkgevernummer],BevoegdGezag!A69,Leerlingaantallen[Bedrag]) -> 116401.5
A70: 30124 | B70: Montessori-Vereniging Tholen | C70: Algemeen bijzonder | D70: =SUMIF(Leerlingaantallen[Werkgevernummer],BevoegdGezag!A70,Leerlingaantallen[Bedrag]) -> 18365.57
A71: 30128 | B71: Ver. tot het verstrekken van basisonderw. Geref. grondslag | C71: Protestants-Christelijk | D71: =SUMIF(Leerlingaantallen[Werkgevernummer],BevoegdGezag!A71,Leerlingaantallen[Bedrag]) -> 58976.76
A72: 30133 | B72: Vereniging voor Chr. Onderwijs op Reformatorische Grondslag in de Hoeksche Waard | C72: Reformatorisch | D72: =SUMIF(Leerlingaantallen[Werkgevernummer],BevoegdGezag!A72,Leerlingaantallen[Bedrag]) -> 198141.22
A73: 30145 | B73: Stichting tot het verstrekken Onderwijs Gereform. Grondslag | C73: Algemeen bijzonder | D73: =SUMIF(Leerlingaantallen[Werkgevernummer],BevoegdGezag!A73,Leerlingaantallen[Bedrag]) -> 31299.07
A74: 30235 | B74: Stichting Prot.-Chr. Onderwijs Boxmeer | C74: Protestants-Christelijk | D74: =SUMIF(Leerlingaantallen[Werkgevernummer],BevoegdGezag!A74,Leerlingaantallen[Bedrag]) -> 91827.85
A75: 30240 | B75: Stichting QliQ Primair Onderwijs | C75: Rooms-Katholiek | D75: =SUMIF(Leerlingaantallen[Werkgevernummer],BevoegdGezag!A75,Leerlingaantallen[Bedrag]) -> 1002864.61
A76: 30263 | B76: Stichting tot het verstrekken onderw. op Gereform. grondslag | C76: Algemeen bijzonder | D76: =SUMIF(Leerlingaantallen[Werkgevernummer],BevoegdGezag!A76,Leerlingaantallen[Bedrag]) -> 28971.04
A77: 30320 | B77: Stichting De Buitenveldertse Montessorischool | C77: Algemeen bijzonder | D77: =SUMIF(Leerlingaantallen[Werkgevernummer],BevoegdGezag!A77,Leerlingaantallen[Bedrag]) -> 51992.67
A78: 30330 | B78: Vereniging voor Protestants- Chr. B.o. te Morra-Lioessens | C78: Protestants-Christelijk | D78: =SUMIF(Leerlingaantallen[Werkgevernummer],BevoegdGezag!A78,Leerlingaantallen[Bedrag]) -> 19141.58
A79: 30357 | B79: Stichting Katholiek Onderwijs Zeewolde | C79: Rooms-Katholiek | D79: =SUMIF(Leerlingaantallen[Werkgevernummer],BevoegdGezag!A79,Leerlingaantallen[Bedrag]) -> 88982.48
A80: 30582 | B80: Stg H3O v christ. peuterwerk kinderopv., prim./voortg. ond. | C80: Protestants-Christelijk | D80: =SUMIF(Leerlingaantallen[Werkgevernummer],BevoegdGezag!A80,Leerlingaantallen[Bedrag]) -> 777821.55
A81: 30673 | B81: Stichting Hervormde Scholen te Voorthuizen | C81: Protestants-Christelijk | D81: =SUMIF(Leerlingaantallen[Werkgevernummer],BevoegdGezag!A81,Leerlingaantallen[Bedrag]) -> 135543.08
A82: 30700 | B82: Ver. voor Chr. Primair Onderw. op Reform. Gr. Doetinchem eo | C82: Reformatorisch | D82: =SUMIF(Leerlingaantallen[Werkgevernummer],BevoegdGezag!A82,Leerlingaantallen[Bedrag]) -> 21469.61
A83: 30701 | B83: Stg. Alg. Bijzonder Onderwijs in Heemstede | C83: Algemeen bijzonder | D83: =SUMIF(Leerlingaantallen[Werkgevernummer],BevoegdGezag!A83,Leerlingaantallen[Bedrag]) -> 49147.3
A84: 30709 | B84: Stichting Hindoe Onderwijs Nederland | C84: Hindoeïstisch | D84: =SUMIF(Leerlingaantallen[Werkgevernummer],BevoegdGezag!A84,Leerlingaantallen[Bedrag]) -> 281691.63
A85: 30715 | B85: Stichting voor Basisonderwijs Algem. Grondslag Middelburg | C85: Algemeen bijzonder | D85: =SUMIF(Leerlingaantallen[Werkgevernummer],BevoegdGezag!A85,Leerlingaantallen[Bedrag]) -> 138388.45
A86: 30725 | B86: Stg. Islamitische Educatie Zuid-Oost Nederland | C86: Islamitisch | D86: =SUMIF(Leerlingaantallen[Werkgevernummer],BevoegdGezag!A86,Leerlingaantallen[Bedrag]) -> 136577.76
A87: 30731 | B87: Stichting Islamitisch Primair Onderwijs Rijnmond (SIPOR) | C87: Islamitisch | D87: =SUMIF(Leerlingaantallen[Werkgevernummer],BevoegdGezag!A87,Leerlingaantallen[Bedrag]) -> 522254.73
A88: 30824 | B88: Stg. Algemeen Basisonderwijs Rijnwaarden | C88: Algemeen bijzonder | D88: =SUMIF(Leerlingaantallen[Werkgevernummer],BevoegdGezag!A88,Leerlingaantallen[Bedrag]) -> 69840.9
A89: 30835 | B89: Ver. v. Montessori-Onderwijs Westland | C89: Algemeen bijzonder | D89: =SUMIF(Leerlingaantallen[Werkgevernummer],BevoegdGezag!A89,Leerlingaantallen[Bedrag]) -> 96742.58
A90: 30847 | B90: Stg. Montessori-/Tradit. B.O. Doesburg/Ellecom | C90: Algemeen bijzonder | D90: =SUMIF(Leerlingaantallen[Werkgevernummer],BevoegdGezag!A90,Leerlingaantallen[Bedrag]) -> 69840.9
A91: 30849 | B91: Stg. v. Chr. Bas.onderw. op Ref. Grondslag voor Katwijk eo | C91: Reformatorisch | D91: =SUMIF(Leerlingaantallen[Werkgevernummer],BevoegdGezag!A91,Leerlingaantallen[Bedrag]) -> 44232.57
A92: 30883 | B92: Stichting Islamitische School Amsterdam | C92: Islamitisch | D92: =SUMIF(Leerlingaantallen[Werkgevernummer],BevoegdGezag!A92,Leerlingaantallen[Bedrag]) -> 289193.06
A93: 30889 | B93: Ver. Protestants-Christelijk Basisonderwijs te Beesd | C93: Protestants-Christelijk | D93: =SUMIF(Leerlingaantallen[Werkgevernummer],BevoegdGezag!A93,Leerlingaantallen[Bedrag]) -> 20952.27
A94: 30967 | B94: Vereniging een School met de Bijbel | C94: Protestants-Christelijk | D94: =SUMIF(Leerlingaantallen[Werkgevernummer],BevoegdGezag!A94,Leerlingaantallen[Bedrag]) -> 16296.21
A95: 31017 | B95: Borgesiusstichting | C95: Rooms-Katholiek | D95: =SUMIF(Leerlingaantallen[Werkgevernummer],BevoegdGezag!A95,Leerlingaantallen[Bedrag]) -> 890859.48
A96: 31019 | B96: Stichting Kievietschool | C96: Algemeen bijzonder | D96: =SUMIF(Leerlingaantallen[Werkgevernummer],BevoegdGezag!A96,Leerlingaantallen[Bedrag]) -> 50181.98
A97: 31032 | B97: Ver. t. st. en instandhouding v.e. schl m.d. Bijbel Hoornaar | C97: Protestants-Christelijk | D97: =SUMIF(Leerlingaantallen[Werkgevernummer],BevoegdGezag!A97,Leerlingaantallen[Bedrag]) -> 37248.48
A98: 31075 | B98: Stichting Van Brienenoordschool | C98: Algemeen bijzonder | D98: =SUMIF(Leerlingaantallen[Werkgevernummer],BevoegdGezag!A98,Leerlingaantallen[Bedrag]) -> 101398.64
A99: 31076 | B99: Stg. O.w. op Islam. grondsl.in Midden&Oost-Nederland (SIMON) | C99: Islamitisch | D99: =SUMIF(Leerlingaantallen[Werkgevernummer],BevoegdGezag!A99,Leerlingaantallen[Bedrag]) -> 512166.6
A100: 31077 | B100: Stg. Verstr. Christ. Onderwijs op Gereformeerde Grondslag | C100: Protestants-Christelijk | D100: =SUMIF(Leerlingaantallen[Werkgevernummer],BevoegdGezag!A100,Leerlingaantallen[Bedrag]) -> 191157.13
A101: 31080 | B101: Stichting Islamitisch College | C101: Islamitisch | D101: =SUMIF(Leerlingaantallen[Werkgevernummer],BevoegdGezag!A101,Leerlingaantallen[Bedrag]) -> 240821.77
A102: 31088 | B102: Stichting Islamitische Scholen Helmond en omgeving | C102: Islamitisch | D102: =SUMIF(Leerlingaantallen[Werkgevernummer],BevoegdGezag!A102,Leerlingaantallen[Bedrag]) -> 48371.29
A103: 31118 | B103: Stichting Islamitische Scholen Rijn en Gouwe | C103: Islamitisch | D103: =SUMIF(Leerlingaantallen[Werkgevernummer],BevoegdGezag!A103,Leerlingaantallen[Bedrag]) -> 196071.86
A104: 31162 | B104: Delftse Vereniging voor Montessori-Onderwijs | C104: Algemeen bijzonder | D104: =SUMIF(Leerlingaantallen[Werkgevernummer],BevoegdGezag!A104,Leerlingaantallen[Bedrag]) -> 55614.05
A105: 31189 | B105: Ver. Verstrekken Basisonderw. op Gereformeerde Grondslag | C105: Protestants-Christelijk | D105: =SUMIF(Leerlingaantallen[Werkgevernummer],BevoegdGezag!A105,Leerlingaantallen[Bedrag]) -> 214178.76
A106: 31204 | B106: Vereniging v. C.N. Schoolond. te Lunteren | C106: Protestants-Christelijk | D106: =SUMIF(Leerlingaantallen[Werkgevernummer],BevoegdGezag!A106,Leerlingaantallen[Bedrag]) -> 75790.31
A107: 31227 | B107: Ver. Prot. Chr. Basisonderwijs 'Duinoordschool' | C107: Protestants-Christelijk | D107: =SUMIF(Leerlingaantallen[Werkgevernummer],BevoegdGezag!A107,Leerlingaantallen[Bedrag]) -> 64150.16
A108: 31237 | B108: Stichting Katholiek Onderwijs Veluwe-Vallei | C108: Rooms-Katholiek | D108: =SUMIF(Leerlingaantallen[Werkgevernummer],BevoegdGezag!A108,Leerlingaantallen[Bedrag]) -> 662712.54
A109: 31267 | B109: Stichting Edu-Ley | C109: Rooms-Katholiek | D109: =SUMIF(Leerlingaantallen[Werkgevernummer],BevoegdGezag!A109,Leerlingaantallen[Bedrag]) -> 506475.86
A110: 31280 | B110: Ver. verstr. onderwijs op Geref. grondslag te Leerdam | C110: Protestants-Christelijk | D110: =SUMIF(Leerlingaantallen[Werkgevernummer],BevoegdGezag!A110,Leerlingaantallen[Bedrag]) -> 84585.09
A111: 31384 | B111: 'Stichting SKOzoK', Samen Koersen op zichtbare ok | C111: Rooms-Katholiek | D111: =SUMIF(Leerlingaantallen[Werkgevernummer],BevoegdGezag!A111,Leerlingaantallen[Bedrag]) -> 1382591.67
A112: 31552 | B112: Vereniging De Gooische School | C112: Algemeen bijzonder | D112: =SUMIF(Leerlingaantallen[Werkgevernummer],BevoegdGezag!A112,Leerlingaantallen[Bedrag]) -> 55096.71
A113: 31657 | B113: Stg. Penta, St. RK, Prot. Chr. & Interconfessioneel Onderwij | C113: Samenwerking PC, RK | D113: =SUMIF(Leerlingaantallen[Werkgevernummer],BevoegdGezag!A113,Leerlingaantallen[Bedrag]) -> 811189.12
A114: 31890 | B114: Ver. tot het verstr. Onderwijs op Ger. grondslag te Borssele | C114: Protestants-Christelijk | D114: =SUMIF(Leerlingaantallen[Werkgevernummer],BevoegdGezag!A114,Leerlingaantallen[Bedrag]) -> 42163.21
A115: 32060 | B115: Stichting Katholiek Onderwijs Het Groene Lint | C115: Rooms-Katholiek | D115: =SUMIF(Leerlingaantallen[Werkgevernummer],BevoegdGezag!A115,Leerlingaantallen[Bedrag]) -> 452672.5
A116: 32072 | B116: Ver. tot Stg. en Instandh. v. Scholen met de Bijbel | C116: Reformatorisch | D116: =SUMIF(Leerlingaantallen[Werkgevernummer],BevoegdGezag!A116,Leerlingaantallen[Bedrag]) -> 121057.56
A117: 32073 | B117: Stichting Christelijke Kindcentra Drenthe | C117: Protestants-Christelijk | D117: =SUMIF(Leerlingaantallen[Werkgevernummer],BevoegdGezag!A117,Leerlingaantallen[Bedrag]) -> 1328400.24
A118: 32099 | B118: Stichting R.K. Basisscholen Vleuten, De Meern, Haarzuilens | C118: Rooms-Katholiek | D118: =SUMIF(Leerlingaantallen[Werkgevernummer],BevoegdGezag!A118,Leerlingaantallen[Bedrag]) -> 794116.9
A119: 32177 | B119: Stichting Kiem Onderwijs | C119: Rooms-Katholiek | D119: =SUMIF(Leerlingaantallen[Werkgevernummer],BevoegdGezag!A119,Leerlingaantallen[Bedrag]) -> 718585.7
A120: 32202 | B120: Ver. Stg. Schol. met de Bijb. te Giessen-Nieuwkerk e.o. | C120: Protestants-Christelijk | D120: =SUMIF(Leerlingaantallen[Werkgevernummer],BevoegdGezag!A120,Leerlingaantallen[Bedrag]) -> 72427.6
A121: 32203 | B121: Stichting Katholiek Onderwijs Ginneken | C121: Rooms-Katholiek | D121: =SUMIF(Leerlingaantallen[Werkgevernummer],BevoegdGezag!A121,Leerlingaantallen[Bedrag]) -> 200986.59
A122: 32515 | B122: Ver. tot Instandh. en Best. vd Joris de Witteschool | C122: Protestants-Christelijk | D122: =SUMIF(Leerlingaantallen[Werkgevernummer],BevoegdGezag!A122,Leerlingaantallen[Bedrag]) -> 56390.06
A123: 32580 | B123: Stichting GOO Onderwijs en Opvang | C123: Rooms-Katholiek | D123: =SUMIF(Leerlingaantallen[Werkgevernummer],BevoegdGezag!A123,Leerlingaantallen[Bedrag]) -> 745358.35
A124: 32631 | B124: Karakter, V. Scholen md Bijbel Alblasserwaard | C124: Protestants-Christelijk | D124: =SUMIF(Leerlingaantallen[Werkgevernummer],BevoegdGezag!A124,Leerlingaantallen[Bedrag]) -> 308593.31
A125: 32813 | B125: Christelijke Schoolvereniging 'Obadja' | C125: Protestants-Christelijk | D125: =SUMIF(Leerlingaantallen[Werkgevernummer],BevoegdGezag!A125,Leerlingaantallen[Bedrag]) -> 38800.5
A126: 33151 | B126: Edese Schoolvereniging | C126: Algemeen bijzonder | D126: =SUMIF(Leerlingaantallen[Werkgevernummer],BevoegdGezag!A126,Leerlingaantallen[Bedrag]) -> 60011.44
A127: 33268 | B127: Schoolvereniging 'Agatha Snellen' | C127: Algemeen bijzonder | D127: =SUMIF(Leerlingaantallen[Werkgevernummer],BevoegdGezag!A127,Leerlingaantallen[Bedrag]) -> 55096.71
A128: 33424 | B128: Stichting Muziekinstituut van de Kathedraal Sint Bavo | C128: Rooms-Katholiek | D128: =SUMIF(Leerlingaantallen[Werkgevernummer],BevoegdGezag!A128,Leerlingaantallen[Bedrag]) -> 15261.53
A129: 33645 | B129: Ver. tot Stg. & Instandhouding Scholen met Bijbel te Benneko | C129: Protestants-Christelijk | D129: =SUMIF(Leerlingaantallen[Werkgevernummer],BevoegdGezag!A129,Leerlingaantallen[Bedrag]) -> 71392.92
A130: 33853 | B130: Vereniging voor Christ. Nat. Bas.onderw. | C130: Protestants-Christelijk | D130: =SUMIF(Leerlingaantallen[Werkgevernummer],BevoegdGezag!A130,Leerlingaantallen[Bedrag]) -> 37507.15
A131: 33957 | B131: Hallsche Schoolvereniging | C131: Algemeen bijzonder | D131: =SUMIF(Leerlingaantallen[Werkgevernummer],BevoegdGezag!A131,Leerlingaantallen[Bedrag]) -> 30264.39
A132: 34139 | B132: Ver. tot Stg. & Inst.houd. van Sch. md Bijbel E'veen en H'su | C132: Reformatorisch | D132: =SUMIF(Leerlingaantallen[Werkgevernummer],BevoegdGezag!A132,Leerlingaantallen[Bedrag]) -> 141751.16
A133: 34230 | B133: Vereniging voor Buitengewoon Speciaal Onderwijs School Vereniging Gooiland | C133: Algemeen bijzonder | D133: =SUMIF(Leerlingaantallen[Werkgevernummer],BevoegdGezag!A133,Leerlingaantallen[Bedrag]) -> 109676.08
A134: 34646 | B134: Stichting Reformatorisch basisonderwijs Elspeet | C134: Gereformeerd | D134: =SUMIF(Leerlingaantallen[Werkgevernummer],BevoegdGezag!A134,Leerlingaantallen[Bedrag]) -> 51734
A135: 34893 | B135: Ver. 'Scholen met de Bijbel', Buurtsch. Horst & Telgt Ermelo | C135: Protestants-Christelijk | D135: =SUMIF(Leerlingaantallen[Werkgevernummer],BevoegdGezag!A135,Leerlingaantallen[Bedrag]) -> 54579.37
A136: 34919 | B136: Sticht. Verstr. Basisonderwijs op Gereformeerde Grondslag | C136: Protestants-Christelijk | D136: =SUMIF(Leerlingaantallen[Werkgevernummer],BevoegdGezag!A136,Leerlingaantallen[Bedrag]) -> 105796.03
A137: 34932 | B137: Stichting School met de Bijbel | C137: Protestants-Christelijk | D137: =SUMIF(Leerlingaantallen[Werkgevernummer],BevoegdGezag!A137,Leerlingaantallen[Bedrag]) -> 173050.23
A138: 35218 | B138: Christelijk Instituut 'Groen van Prinsterer' | C138: Protestants-Christelijk | D138: =SUMIF(Leerlingaantallen[Werkgevernummer],BevoegdGezag!A138,Leerlingaantallen[Bedrag]) -> 56907.4
A139: 35297 | B139: Stichting Rehobothschool Uddel | C139: Reformatorisch | D139: =SUMIF(Leerlingaantallen[Werkgevernummer],BevoegdGezag!A139,Leerlingaantallen[Bedrag]) -> 69323.56
A140: 35466 | B140: Stg Scholen voor Christelijk Basisonderwijs Zeist e.o. | C140: Protestants-Christelijk | D140: =SUMIF(Leerlingaantallen[Werkgevernummer],BevoegdGezag!A140,Leerlingaantallen[Bedrag]) -> 506993.2
A141: 35504 | B141: Leeuwarder Schoolvereniging | C141: Algemeen bijzonder | D141: =SUMIF(Leerlingaantallen[Werkgevernummer],BevoegdGezag!A141,Leerlingaantallen[Bedrag]) -> 69840.9
A142: 36063 | B142: De ver. tot st. & instandh. v. Scholen m.d. Bijbel Ommerk. e | C142: Protestants-Christelijk | D142: =SUMIF(Leerlingaantallen[Werkgevernummer],BevoegdGezag!A142,Leerlingaantallen[Bedrag]) -> 21986.95
A143: 36336 | B143: Ver. tot St. instandhouding scholen Bijbel Geref. grondsl. | C143: Protestants-Christelijk | D143: =SUMIF(Leerlingaantallen[Werkgevernummer],BevoegdGezag!A143,Leerlingaantallen[Bedrag]) -> 41128.53
A144: 36349 | B144: Ver. Prot. Christ. Onderwijs Wilhelminascholen Doetinchem | C144: Protestants-Christelijk | D144: =SUMIF(Leerlingaantallen[Werkgevernummer],BevoegdGezag!A144,Leerlingaantallen[Bedrag]) -> 73203.61
A145: 36440 | B145: Stichting Algemeen Basisonderw. Comenius | C145: Algemeen bijzonder | D145: =SUMIF(Leerlingaantallen[Werkgevernummer],BevoegdGezag!A145,Leerlingaantallen[Bedrag]) -> 46301.93
A146: 36479 | B146: Ver. tot Stg. en Instandh. van Chr. Nation. Scholen te Gouda | C146: Protestants-Christelijk | D146: =SUMIF(Leerlingaantallen[Werkgevernummer],BevoegdGezag!A146,Leerlingaantallen[Bedrag]) -> 292038.43
A147: 36739 | B147: Vereniging voor Voorbereidend Onderwijs | C147: Algemeen bijzonder | D147: =SUMIF(Leerlingaantallen[Werkgevernummer],BevoegdGezag!A147,Leerlingaantallen[Bedrag]) -> 61304.79
A148: 36778 | B148: Ver. tot Stg. & Inst.houding ener Christel School te Oene | C148: Protestants-Christelijk | D148: =SUMIF(Leerlingaantallen[Werkgevernummer],BevoegdGezag!A148,Leerlingaantallen[Bedrag]) -> 24314.98
A149: 36817 | B149: Vereniging Montessorischool Bilthoven | C149: Algemeen bijzonder | D149: =SUMIF(Leerlingaantallen[Werkgevernummer],BevoegdGezag!A149,Leerlingaantallen[Bedrag]) -> 50181.98
A150: 36831 | B150: Ver. voor Chr. Nat. Schoolond. te Staphorst | C150: Protestants-Christelijk | D150: =SUMIF(Leerlingaantallen[Werkgevernummer],BevoegdGezag!A150,Leerlingaantallen[Bedrag]) -> 85102.43
A151: 37038 | B151: Gereformeerde Schoolvereniging Westernieland en omstreken | C151: Protestants-Christelijk | D151: =SUMIF(Leerlingaantallen[Werkgevernummer],BevoegdGezag!A151,Leerlingaantallen[Bedrag]) -> 46560.6
A152: 37233 | B152: Ver. Inst.houd. & Best. School voor CBO, gen. Hofdijckschool | C152: Protestants-Christelijk | D152: =SUMIF(Leerlingaantallen[Werkgevernummer],BevoegdGezag!A152,Leerlingaantallen[Bedrag]) -> 58200.75
A153: 37299 | B153: Sticht. Confess. Basisonderw. West Zeeuws-Vlaanderen | C153: Samenwerking PC, RK | D153: =SUMIF(Leerlingaantallen[Werkgevernummer],BevoegdGezag!A153,Leerlingaantallen[Bedrag]) -> 173826.24
A154: 37428 | B154: Sticht. Christel. Basisonderw. te Helmond | C154: Protestants-Christelijk | D154: =SUMIF(Leerlingaantallen[Werkgevernummer],BevoegdGezag!A154,Leerlingaantallen[Bedrag]) -> 98035.93
A155: 37545 | B155: Vereniging Nieuwe Baarnsche School | C155: Algemeen bijzonder | D155: =SUMIF(Leerlingaantallen[Werkgevernummer],BevoegdGezag!A155,Leerlingaantallen[Bedrag]) -> 122092.24
A156: 37663 | B156: Stichting Lijn 83 primair onderwijs | C156: Rooms-Katholiek | D156: =SUMIF(Leerlingaantallen[Werkgevernummer],BevoegdGezag!A156,Leerlingaantallen[Bedrag]) -> 585241.46
A157: 37857 | B157: Ver. Stichting Instandhouding School met de Bijbel | C157: Reformatorisch | D157: =SUMIF(Leerlingaantallen[Werkgevernummer],BevoegdGezag!A157,Leerlingaantallen[Bedrag]) -> 78894.35
A158: 37949 | B158: Stg. vr Prot. Christ. Primair Onderw. Barendr. en Ridderkerk | C158: Protestants-Christelijk | D158: =SUMIF(Leerlingaantallen[Werkgevernummer],BevoegdGezag!A158,Leerlingaantallen[Bedrag]) -> 1061840.35
A159: 38001 | B159: Samenwerkingsstichting Kans & Kleur | C159: Samenwerking Opb., RK, Alg. Bi | D159: =SUMIF(Leerlingaantallen[Werkgevernummer],BevoegdGezag!A159,Leerlingaantallen[Bedrag]) -> 844428.94
A160: 38169 | B160: Stichting Neutraal Onderwijs Wilhelmina | C160: Algemeen bijzonder | D160: =SUMIF(Leerlingaantallen[Werkgevernummer],BevoegdGezag!A160,Leerlingaantallen[Bedrag]) -> 110969.43
A161: 38222 | B161: Stichting Belang. 'Schol. Bijb.' Achterberg, Gem. Rhenen | C161: Reformatorisch | D161: =SUMIF(Leerlingaantallen[Werkgevernummer],BevoegdGezag!A161,Leerlingaantallen[Bedrag]) -> 43197.89
A162: 38235 | B162: Sticht. schoolbestuur Laetare Schoolbestuur voor R.K.O. | C162: Rooms-Katholiek | D162: =SUMIF(Leerlingaantallen[Werkgevernummer],BevoegdGezag!A162,Leerlingaantallen[Bedrag]) -> 26384.34
A163: 38351 | B163: Ver. Stg./school met de Bijbel te Oud-Alblas | C163: Protestants-Christelijk | D163: =SUMIF(Leerlingaantallen[Werkgevernummer],BevoegdGezag!A163,Leerlingaantallen[Bedrag]) -> 44749.91
A164: 38650 | B164: Ver. Stg. Instandh. van Schol. met de Bijb.te Hark. e.o. | C164: Protestants-Christelijk | D164: =SUMIF(Leerlingaantallen[Werkgevernummer],BevoegdGezag!A164,Leerlingaantallen[Bedrag]) -> 65960.85
A165: 38819 | B165: De Ver. Stg. en Instandhouding Christ. Scholen te Doornspijk | C165: Protestants-Christelijk | D165: =SUMIF(Leerlingaantallen[Werkgevernummer],BevoegdGezag!A165,Leerlingaantallen[Bedrag]) -> 83809.08
A166: 38910 | B166: Vereniging tot het Verstrekken van Onderw. op Ger. Grondslag | C166: Protestants-Christelijk | D166: =SUMIF(Leerlingaantallen[Werkgevernummer],BevoegdGezag!A166,Leerlingaantallen[Bedrag]) -> 162444.76
A167: 39001 | B167: Ver. Verstr. v. Basisond. op Geref.Grondsl. BS 'De Bornput' | C167: Protestants-Christelijk | D167: =SUMIF(Leerlingaantallen[Werkgevernummer],BevoegdGezag!A167,Leerlingaantallen[Bedrag]) -> 29229.71
A168: 39275 | B168: Vereniging tot het Verstrekken Basisond. Gereform. Grondslag | C168: Protestants-Christelijk | D168: =SUMIF(Leerlingaantallen[Werkgevernummer],BevoegdGezag!A168,Leerlingaantallen[Bedrag]) -> 129593.67
A169: 39352 | B169: Stichting Nutsscholen Geldrop | C169: Algemeen bijzonder | D169: =SUMIF(Leerlingaantallen[Werkgevernummer],BevoegdGezag!A169,Leerlingaantallen[Bedrag]) -> 170980.87
A170: 39534 | B170: Stichting Onderwijs Kruisland | C170: Rooms-Katholiek | D170: =SUMIF(Leerlingaantallen[Werkgevernummer],BevoegdGezag!A170,Leerlingaantallen[Bedrag]) -> 46043.26
A171: 39859 | B171: Vereniging Nutsschool Wassenaar | C171: Algemeen bijzonder | D171: =SUMIF(Leerlingaantallen[Werkgevernummer],BevoegdGezag!A171,Leerlingaantallen[Bedrag]) -> 62080.8
A172: 39912 | B172: Stichting onderwijsgemeenschap 'De Hoeve' | C172: Rooms-Katholiek | D172: =SUMIF(Leerlingaantallen[Werkgevernummer],BevoegdGezag!A172,Leerlingaantallen[Bedrag]) -> 88465.14
A173: 40020 | B173: Stg. Onderwijsgr. Amstelland, stg. voor RK/PC basisonderwijs | C173: Samenwerking PC, RK | D173: =SUMIF(Leerlingaantallen[Werkgevernummer],BevoegdGezag!A173,Leerlingaantallen[Bedrag]) -> 1137630.66
A174: 40077 | B174: Stichting Noor | C174: Islamitisch | D174: =SUMIF(Leerlingaantallen[Werkgevernummer],BevoegdGezag!A174,Leerlingaantallen[Bedrag]) -> 253755.27
A175: 40114 | B175: Stg. Prisma, stg. prot. chr. & oecumen. onderwijs in Almere | C175: Algemeen bijzonder | D175: =SUMIF(Leerlingaantallen[Werkgevernummer],BevoegdGezag!A175,Leerlingaantallen[Bedrag]) -> 1393326.96
A176: 40144 | B176: Stichting Montessorischool Montijn | C176: Algemeen bijzonder | D176: =SUMIF(Leerlingaantallen[Werkgevernummer],BevoegdGezag!A176,Leerlingaantallen[Bedrag]) -> 64926.17
A177: 40189 | B177: Verenig. Schol. der Evangel. Broedergemeenten in Amsterdam | C177: Evangelische broedergemeenscha | D177: =SUMIF(Leerlingaantallen[Werkgevernummer],BevoegdGezag!A177,Leerlingaantallen[Bedrag]) -> 66219.52
A178: 40207 | B178: Stichting Montessorischool Veenendaal | C178: Algemeen bijzonder | D178: =SUMIF(Leerlingaantallen[Werkgevernummer],BevoegdGezag!A178,Leerlingaantallen[Bedrag]) -> 68547.55
A179: 40257 | B179: Stichting Atlant Basisonderwijs | C179: Samenwerking PC, RK | D179: =SUMIF(Leerlingaantallen[Werkgevernummer],BevoegdGezag!A179,Leerlingaantallen[Bedrag]) -> 744193.59
A180: 40269 | B180: Stichting Interconfessioneel Basisonderwijs te Rotterdam eo | C180: Algemeen bijzonder | D180: =SUMIF(Leerlingaantallen[Werkgevernummer],BevoegdGezag!A180,Leerlingaantallen[Bedrag]) -> 102691.99
A181: 40272 | B181: Islam. Stg. Ned. Ond. en Opv.- ISNO, Yunus Emre Den Haag | C181: Islamitisch | D181: =SUMIF(Leerlingaantallen[Werkgevernummer],BevoegdGezag!A181,Leerlingaantallen[Bedrag]) -> 315060.06
A182: 40278 | B182: Stichting Delta Onderwijs | C182: Rooms-Katholiek | D182: =SUMIF(Leerlingaantallen[Werkgevernummer],BevoegdGezag!A182,Leerlingaantallen[Bedrag]) -> 1055374.76
A183: 40281 | B183: Stichting Jenapl. Basisschool Vlinderbos | C183: Algemeen bijzonder | D183: =SUMIF(Leerlingaantallen[Werkgevernummer],BevoegdGezag!A183,Leerlingaantallen[Bedrag]) -> 60011.44
A184: 40284 | B184: Stichting Basisschool Icarus Heemstede | C184: Algemeen bijzonder | D184: =SUMIF(Leerlingaantallen[Werkgevernummer],BevoegdGezag!A184,Leerlingaantallen[Bedrag]) -> 61563.46
A185: 40294 | B185: Stichting Nederl. Islamitische Scholen | C185: Islamitisch | D185: =SUMIF(Leerlingaantallen[Werkgevernummer],BevoegdGezag!A185,Leerlingaantallen[Bedrag]) -> 178740.97
A186: 40301 | B186: Vereniging voor Christelijk Onderwijs te Valkenburg Z.H. | C186: Protestants-Christelijk | D186: =SUMIF(Leerlingaantallen[Werkgevernummer],BevoegdGezag!A186,Leerlingaantallen[Bedrag]) -> 102433.32
A187: 40307 | B187: Stichting IBPL | C187: Islamitisch | D187: =SUMIF(Leerlingaantallen[Werkgevernummer],BevoegdGezag!A187,Leerlingaantallen[Bedrag]) -> 54320.7
A188: 40327 | B188: Ver. Onderw. op Gereformeerde Grondslag te Ridderkerk | C188: Protestants-Christelijk | D188: =SUMIF(Leerlingaantallen[Werkgevernummer],BevoegdGezag!A188,Leerlingaantallen[Bedrag]) -> 69064.89
A189: 40329 | B189: Vereniging Ibogo | C189: Algemeen bijzonder | D189: =SUMIF(Leerlingaantallen[Werkgevernummer],BevoegdGezag!A189,Leerlingaantallen[Bedrag]) -> 46301.93
A190: 40340 | B190: De Vlissingse Schoolvereniging | C190: Algemeen bijzonder | D190: =SUMIF(Leerlingaantallen[Werkgevernummer],BevoegdGezag!A190,Leerlingaantallen[Bedrag]) -> 56390.06
A191: 40342 | B191: Stg. Prot.-Chr. Basis Onderw. Smallingerland en omstreken | C191: Protestants-Christelijk | D191: =SUMIF(Leerlingaantallen[Werkgevernummer],BevoegdGezag!A191,Leerlingaantallen[Bedrag]) -> 533637.08
A192: 40350 | B192: Stichting Montessori Onderwijs Houten | C192: Algemeen bijzonder | D192: =SUMIF(Leerlingaantallen[Werkgevernummer],BevoegdGezag!A192,Leerlingaantallen[Bedrag]) -> 83809.08
A193: 40355 | B193: SAB Montessoriond. Haaksbergen | C193: Algemeen bijzonder | D193: =SUMIF(Leerlingaantallen[Werkgevernummer],BevoegdGezag!A193,Leerlingaantallen[Bedrag]) -> 18365.57
A194: 40363 | B194: Stg. Alg. Bijzonder Onderwijs Hoorn | C194: Algemeen bijzonder | D194: =SUMIF(Leerlingaantallen[Werkgevernummer],BevoegdGezag!A194,Leerlingaantallen[Bedrag]) -> 78894.35
A195: 40377 | B195: Stichting Unicoz onderwijsgroep | C195: Protestants-Christelijk | D195: =SUMIF(Leerlingaantallen[Werkgevernummer],BevoegdGezag!A195,Leerlingaantallen[Bedrag]) -> 1606212.05
A196: 40378 | B196: Stg. Kath. en Prot.-Chr. Onderw. Eindhov. e.o. | C196: Algemeen bijzonder | D196: =SUMIF(Leerlingaantallen[Werkgevernummer],BevoegdGezag!A196,Leerlingaantallen[Bedrag]) -> 2712932.26
A197: 40389 | B197: Stichting Islamitisch Onderwijs Iqra | C197: Islamitisch | D197: =SUMIF(Leerlingaantallen[Werkgevernummer],BevoegdGezag!A197,Leerlingaantallen[Bedrag]) -> 136319.09
A198: 40390 | B198: Stichting Islamitisch Onderwijs Utrecht | C198: Islamitisch | D198: =SUMIF(Leerlingaantallen[Werkgevernummer],BevoegdGezag!A198,Leerlingaantallen[Bedrag]) -> 142785.84
A199: 40400 | B199: Stichting Islamitische Scholen El-Amal | C199: Islamitisch | D199: =SUMIF(Leerlingaantallen[Werkgevernummer],BevoegdGezag!A199,Leerlingaantallen[Bedrag]) -> 377658.2
A200: 40419 | B200: Stg. tot het verstr. ond. GG, uitg. Geref. in Ned. Barneveld | C200: Algemeen bijzonder | D200: =SUMIF(Leerlingaantallen[Werkgevernummer],BevoegdGezag!A200,Leerlingaantallen[Bedrag]) -> 186501.07
... 629 more rows

Sheet Schalen_ineengeschoven (hidden)
A1: VfPf
A2: Organisatie: | E2: Participatiefonds | K2: Uitleg:
A3: Project: | E3: VUIST | K3: Schaalcodes (kolom A) bevat een lijst met alle codes die gekozen kunnen worden
A4: Deelproject: | E4: Reglement
A5: Onderdeel: | E5: Bekostigingstool
A6: Onderwerp: | E6: Salarisschalen PO ineengeschoven (Uitloop niet weergegeven)
A10: Schaalcodes | C10: (Adjunct-) Directeuren / Meerhoofdige schoolleiding | N10: Leraren | S10: Leraren | X10: Onderwijs Ondersteunend Personeel / ID banen
A11: =E11 -> AB | C11: nr | D11: id | E11: AB | F11: AC | G11: AD | H11: AE | I11: DA | J11: DB | K11: DC | L11: DD | M11: DE | N11: L10 | O11: L11 | P11: L12 | Q11: L13 | R11: L14 | S11: LA | T11: LB | U11: LC | V11: LD | W11: LE | X11: 1 | Y11: 2 | Z11: 3 | AA11: 4 | AB11: 5 | AC11: 6 | AD11: 7 | AE11: 8 | AF11: 9 | AG11: 10 | AH11: 11 | AI11: 12 | AJ11: 13 | AK11: 14 | AL11: 15 | AM11: 16
A12: =F11 -> AC | C12: a1 | D12: 1 | E12: 0 | F12: 0 | G12: 0 | H12: 0 | I12: 0 | J12: 0 | K12: 0 | L12: 0 | M12: 0 | N12: 0 | O12: 0 | P12: 0 | Q12: 0 | R12: 0 | S12: 0 | T12: 0 | U12: 0 | V12: 0 | W12: 0 | X12: 0 | Y12: 0 | Z12: 0 | AA12: 0 | AB12: 0 | AC12: 0 | AD12: 0 | AE12: 0 | AF12: 0 | AG12: 0 | AH12: 0 | AI12: 0 | AJ12: 0 | AK12: 0 | AL12: 0 | AM12: 0
A13: =G11 -> AD | C13: a2 | D13: 2 | E13: 0 | F13: 0 | G13: 0 | H13: 0 | I13: 0 | J13: 0 | K13: 0 | L13: 0 | M13: 0 | N13: 0 | O13: 0 | P13: 0 | Q13: 0 | R13: 0 | S13: 0 | T13: 0 | U13: 0 | V13: 0 | W13: 0 | X13: 0 | Y13: 0 | Z13: 0 | AA13: 0 | AB13: 0 | AC13: 0 | AD13: 0 | AE13: 0 | AF13: 0 | AG13: 0 | AH13: 0 | AI13: 0 | AJ13: 0 | AK13: 0 | AL13: 0 | AM13: 0
A14: =H11 -> AE | C14: 1 | D14: 3 | E14: 2768 | F14: 2826 | G14: 2962 | H14: 3107 | I14: 3018 | J14: 3134 | K14: 3253 | L14: 3302 | M14: 3424 | N14: 2678 | O14: 2758 | P14: 2812 | Q14: 2812 | R14: 3544 | S14: 2346 | T14: 2432 | U14: 2446 | V14: 2455 | W14: 3159 | X14: 1733 | Y14: 1733 | Z14: 1733 | AA14: 1733 | AB14: 1750 | AC14: 1816 | AD14: 1939 | AE14: 2192 | AF14: 2534 | AG14: 2516 | AH14: 2643 | AI14: 3549 | AJ14: 4302 | AK14: 4925 | AL14: 5169 | AM14: 5604
A15: =I11 -> DA | C15: 2 | D15: 4 | E15: 2891 | F15: 2962 | G15: 3107 | H15: 3365 | I15: 3134 | J15: 3368 | K15: 3603 | L15: 3545 | M15: 3676 | N15: 2761 | O15: 2851 | P15: 2933 | Q15: 2933 | R15: 3677 | S15: 2394 | T15: 2491 | U15: 2565 | V15: 2602 | W15: 3278 | X15: 1733 | Y15: 1750 | Z15: 1816 | AA15: 1784 | AB15: 1784 | AC15: 1890 | AD15: 1995 | AE15: 2254 | AF15: 2661 | AG15: 2766 | AH15: 2766 | AI15: 3682 | AJ15: 4431 | AK15: 5050 | AL15: 5294 | AM15: 5760
A16: =J11 -> DB | C16: 3 | D16: 5 | E16: 3025 | F16: 3107 | G16: 3365 | H16: 3608 | I16: 3253 | J16: 3603 | K16: 3836 | L16: 3793 | M16: 3912 | N16: 2846 | O16: 2948 | P16: 3059 | Q16: 3094 | R16: 3796 | S16: 2446 | T16: 2558 | U16: 2685 | V16: 2754 | W16: 3386 | X16: 1784 | Y16: 1816 | Z16: 1890 | AA16: 1853 | AB16: 1890 | AC16: 2128 | AD16: 2128 | AE16: 2374 | AF16: 2919 | AG16: 2901 | AH16: 2901 | AI16: 3798 | AJ16: 4553 | AK16: 5294 | AL16: 5448 | AM16: 5914
A17: =K11 -> DC | C17: 4 | D17: 6 | E17: 3173 | F17: 3237 | G17: 3608 | H17: 3860 | I17: 3368 | J17: 3719 | K17: 4069 | L17: 4031 | M17: 4162 | N17: 2935 | O17: 3047 | P17: 3190 | Q17: 3265 | R17: 4035 | S17: 2498 | T17: 2622 | U17: 2809 | V17: 2908 | W17: 3600 | X17: 1816 | Y17: 1890 | Z17: 1995 | AA17: 1939 | AB17: 1995 | AC17: 2254 | AD17: 2374 | AE17: 2618 | AF17: 3066 | AG17: 3048 | AH17: 3048 | AI17: 3920 | AJ17: 4678 | AK17: 5448 | AL17: 5760 | AM17: 6237
A18: =L11 -> DD | C18: 5 | D18: 7 | E18: 3300 | F18: 3365 | G18: 3742 | H18: 4099 | I18: 3484 | J18: 3836 | K18: 4303 | L18: 4294 | M18: 4422 | N18: 3026 | O18: 3150 | P18: 3327 | Q18: 3436 | R18: 4299 | S18: 2550 | T18: 2686 | U18: 2929 | V18: 3062 | W18: 3838 | X18: 1853 | Y18: 1939 | Z18: 2063 | AA18: 2063 | AB18: 2128 | AC18: 2315 | AD18: 2491 | AE18: 2739 | AF18: 3193 | AG18: 3175 | AH18: 3175 | AI18: 4038 | AJ18: 4796 | AK18: 5604 | AL18: 5914 | AM18: 6404
A19: =M11 -> DE | C19: 6 | D19: 8 | E19: 3429 | F19: 3489 | G19: 3860 | H19: 4364 | I19: 2603 | J19: 3951 | K19: 4422 | L19: 4422 | M19: 4668 | N19: 3119 | O19: 3257 | P19: 3470 | Q19: 3615 | R19: 4466 | S19: 2611 | T19: 2760 | U19: 3055 | V19: 3223 | W19: 3988 | X19: 1890 | Y19: 1995 | Z19: 2128 | AA19: 2128 | AB19: 2192 | AC19: 2374 | AD19: 2557 | AE19: 2873 | AF19: 3323 | AG19: 3305 | AH19: 3305 | AI19: 4171 | AJ19: 5050 | AK19: 5760 | AL19: 6071 | AM19: 6578
A20: =N11 -> L10 | C20: 7 | D20: 9 | E20: 3550 | F20: 3608 | G20: 3980 | H20: 4490 | I20: 3719 | J20: 4069 | K20: 4539 | L20: 4544 | M20: 4914 | N20: 3217 | O20: 3367 | P20: 3619 | Q20: 3800 | R20: 4635 | S20: 2674 | T20: 2839 | U20: 3182 | V20: 3390 | W20: 4139 | X20: 1939 | Y20: 2063 | Z20: 2192 | AA20: 2192 | AB20: 2254 | AC20: 2434 | AD20: 2618 | AE20: 2949 | AF20: 3445 | AG20: 3427 | AH20: 3427 | AI20: 4431 | AJ20: 5169 | AK20: 5914 | AL20: 6237 | AM20: 6785
A21: =O11 -> L11 | C21: 8 | D21: 10 | E21: 3672 | F21: 3742 | G21: 4099 | H21: 4614 | I21: 3836 | J21: 4187 | K21: 4654 | L21: 4668 | M21: 5037 | N21: 3316 | O21: 3481 | P21: 3776 | Q21: 3989 | R21: 4803 | S21: 2743 | T21: 2925 | U21: 3314 | V21: 3559 | W21: 4291 | X21: 0 | Y21: 2128 | Z21: 2254 | AA21: 2254 | AB21: 2315 | AC21: 2491 | AD21: 2677 | AE21: 3018 | AF21: 3567 | AG21: 3549 | AH21: 3682 | AI21: 4553 | AJ21: 5294 | AK21: 6071 | AL21: 6404 | AM21: 7003
A22: =P11 -> L12 | C22: 9 | D22: 11 | E22: 3803 | F22: 3860 | G22: 4230 | H22: 4737 | I22: 3951 | J22: 4303 | K22: 4771 | L22: 4786 | M22: 5157 | N22: 3419 | O22: 3598 | P22: 3937 | Q22: 4187 | R22: 4872 | S22: 2820 | T22: 3025 | U22: 3451 | V22: 3737 | W22: 4443 | X22: 0 | Y22: 0 | Z22: 2315 | AA22: 2315 | AB22: 2374 | AC22: 2557 | AD22: 2739 | AE22: 3080 | AF22: 3700 | AG22: 3682 | AH22: 3798 | AI22: 4678 | AJ22: 5448 | AK22: 6237 | AL22: 6578 | AM22: 7225
A23: =Q11 -> L13 | C23: 10 | D23: 12 | E23: 3924 | F23: 3980 | G23: 4364 | H23: 4858 | I23: 4069 | J23: 4422 | K23: 4887 | L23: 4914 | M23: 5280 | N23: 3525 | O23: 3720 | P23: 4107 | Q23: 4393 | R23: 5139 | S23: 2899 | T23: 3128 | U23: 3591 | V23: 3922 | W23: 4594 | X23: 0 | Y23: 0 | Z23: 0 | AA23: 2374 | AB23: 2434 | AC23: 2618 | AD23: 2805 | AE23: 3146 | AF23: 3817 | AG23: 3798 | AH23: 3920 | AI23: 4796 | AJ23: 5604 | AK23: 6404 | AL23: 6785 | AM23: 7455
A24: =R11 -> L14 | C24: 11 | D24: 13 | E24: 4041 | F24: 4099 | G24: 4490 | H24: 4985 | I24: 4187 | J24: 4539 | K24: 5006 | L24: 5037 | M24: 5435 | N24: 3634 | O24: 3845 | P24: 4283 | Q24: 4605 | R24: 5310 | S24: 2986 | T24: 3237 | U24: 3732 | V24: 4113 | W24: 4747 | X24: 0 | Y24: 0 | Z24: 0 | AA24: 2434 | AB24: 2491 | AC24: 2677 | AD24: 2873 | AE24: 3212 | AF24: 0 | AG24: 3920 | AH24: 4038 | AI24: 4925 | AJ24: 5760 | AK24: 6578 | AL24: 7003 | AM24: 7689
A25: =S11 -> LA | C25: 12 | D25: 14 | E25: 4161 | F25: 4230 | G25: 4614 | H25: 5110 | I25: 4303 | J25: 4654 | K25: 5122 | L25: 5157 | M25: 5589 | N25: 3747 | O25: 3976 | P25: 4468 | Q25: 4823 | R25: 5479 | S25: 3077 | T25: 3349 | U25: 3879 | V25: 4309 | W25: 4898 | X25: 0 | Y25: 0 | Z25: 0 | AA25: 0 | AB25: 2557 | AC25: 0 | AD25: 2949 | AE25: 3273 | AF25: 0 | AG25: 4038 | AH25: 4171 | AI25: 5050 | AJ25: 5914 | AK25: 0 | AL25: 7225 | AM25: 7934
A26: =T11 -> LB | C26: 13 | D26: 15 | E26: 4364 | F26: 4364 | G26: 4737 | H26: 5228 | I26: 4422 | J26: 4771 | K26: 5240 | L26: 5280 | M26: 5743 | N26: 3862 | O26: 4110 | P26: 4660 | Q26: 5050 | R26: 5648 | S26: 3175 | T26: 3468 | U26: 4030 | V26: 4514 | W26: 5051 | X26: 0 | Y26: 0 | Z26: 0 | AA26: 0 | AB26: 0 | AC26: 0 | AD26: 0 | AE26: 3331 | AF26: 0 | AG26: 4171 | AH26: 4302 | AI26: 5169 | AJ26: 6578 | AK26: 0 | AL26: 0 | AM26: 0
A27: =U11 -> LC | C27: 14 | D27: 16 | E27: 0 | F27: 4490 | G27: 4858 | H27: 5354 | I27: 0 | J27: 4887 | K27: 5355 | L27: 5435 | M27: 5898 | N27: 3982 | O27: 4249 | P27: 4861 | Q27: 5283 | R27: 5816 | S27: 3276 | T27: 3590 | U27: 4183 | V27: 4722 | W27: 5202 | X27: 0 | Y27: 0 | Z27: 0 | AA27: 0 | AB27: 0 | AC27: 0 | AD27: 0 | AE27: 0 | AF27: 0 | AG27: 0 | AH27: 4431 | AI27: 5294 | AJ27: 0 | AK27: 0 | AL27: 0 | AM27: 0
A28: =V11 -> LD | C28: 15 | D28: 17 | E28: 0 | F28: 4614 | G28: 4985 | H28: 5510 | I28: 0 | J28: 5006 | K28: 5472 | L28: 5589 | M28: 6054 | N28: 4113 | O28: 4434 | P28: 5070 | Q28: 5532 | R28: 5990 | S28: 3354 | T28: 3686 | U28: 4300 | V28: 4892 | W28: 5306 | X28: 0 | Y28: 0 | Z28: 0 | AA28: 0 | AB28: 0 | AC28: 0 | AD28: 0 | AE28: 0 | AF28: 0 | AG28: 0 | AH28: 4553 | AI28: 5448 | AJ28: 0 | AK28: 0 | AL28: 0 | AM28: 0
A29: =W11 -> LE | C29: 16 | D29: 18 | E29: 0 | F29: 4737 | G29: 5110 | H29: 5663 | I29: 0 | J29: 0 | K29: 5591 | L29: 5743 | M29: 6218 | N29: 0 | O29: 0 | P29: 0 | Q29: 0 | R29: 0 | S29: 0 | T29: 0 | U29: 0 | V29: 0 | W29: 0 | X29: 0 | Y29: 0 | Z29: 0 | AA29: 0 | AB29: 0 | AC29: 0 | AD29: 0 | AE29: 0 | AF29: 0 | AG29: 0 | AH29: 4678 | AI29: 5527 | AJ29: 0 | AK29: 0 | AL29: 0 | AM29: 0
A30: =X11 -> 1 | C30: 17 | D30: 19 | E30: 0 | F30: 4858 | G30: 5228 | H30: 5820 | I30: 0 | J30: 0 | K30: 0 | L30: 5898 | M30: 6386 | N30: 0 | O30: 0 | P30: 0 | Q30: 0 | R30: 0 | S30: 0 | T30: 0 | U30: 0 | V30: 0 | W30: 0 | X30: 0 | Y30: 0 | Z30: 0 | AA30: 0 | AB30: 0 | AC30: 0 | AD30: 0 | AE30: 0 | AF30: 0 | AG30: 0 | AH30: 4796 | AI30: 0 | AJ30: 0 | AK30: 0 | AL30: 0 | AM30: 0
A31: =Y11 -> 2 | C31: 18 | D31: 20 | E31: 0 | F31: 4921 | G31: 5354 | H31: 5976 | I31: 0 | J31: 0 | K31: 0 | L31: 5972 | M31: 6559 | N31: 0 | O31: 0 | P31: 0 | Q31: 0 | R31: 0 | S31: 0 | T31: 0 | U31: 0 | V31: 0 | W31: 0 | X31: 0 | Y31: 0 | Z31: 0 | AA31: 0 | AB31: 0 | AC31: 0 | AD31: 0 | AE31: 0 | AF31: 0 | AG31: 0 | AH31: 4861 | AI31: 0 | AJ31: 0 | AK31: 0 | AL31: 0 | AM31: 0
A32: =Z11 -> 3 | C32: 19 | D32: 21 | E32: 0 | F32: 0 | G32: 5510 | H32: 6050 | I32: 0 | J32: 0 | K32: 0 | L32: 0 | M32: 0 | N32: 0 | O32: 0 | P32: 0 | Q32: 0 | R32: 0 | S32: 0 | T32: 0 | U32: 0 | V32: 0 | W32: 0 | X32: 0 | Y32: 0 | Z32: 0 | AA32: 0 | AB32: 0 | AC32: 0 | AD32: 0 | AE32: 0 | AF32: 0 | AG32: 0 | AH32: 0 | AI32: 0 | AJ32: 0 | AK32: 0 | AL32: 0 | AM32: 0
A33: =AA11 -> 4 | C33: 20 | D33: 22 | E33: 0 | F33: 0 | G33: 5586 | H33: 0 | I33: 0 | J33: 0 | K33: 0 | L33: 0 | M33: 0 | N33: 0 | O33: 0 | P33: 0 | Q33: 0 | R33: 0 | S33: 0 | T33: 0 | U33: 0 | V33: 0 | W33: 0 | X33: 0 | Y33: 0 | Z33: 0 | AA33: 0 | AB33: 0 | AC33: 0 | AD33: 0 | AE33: 0 | AF33: 0 | AG33: 0 | AH33: 0 | AI33: 0 | AJ33: 0 | AK33: 0 | AL33: 0 | AM33: 0
A34: =AB11 -> 5
A35: =AC11 -> 6
A36: =AD11 -> 7
A37: =AE11 -> 8
A38: =AF11 -> 9
A39: =AG11 -> 10
A40: =AH11 -> 11
A41: =AI11 -> 12
A42: =AJ11 -> 13
A43: =AK11 -> 14
A44: =AL11 -> 15
A45: =AM11 -> 16
B80: Artikel
B83: 6.1, 6.8, 6.9, 6.31
B85: 6.13
B90: 6.14
B94: 6.14a
B96: 6.14b
B99: 6.15
B101: 6.33
B104: 6.29a
B108: 6.14c

Sheet RekentoolUitleg (hidden)
A1: Participatiefonds
A2: Project: | F2: VUIST
A3: Deelproject: | F3: Reglementen
A4: Onderdeel: | F4: Rekentool Bekostiging
A5: Onderwerp: | F5: Uitleg Concepttool
F7: Dit is een concept Rekentool t.b.v. ontslagaanvragen o.b.v. de oude artikelen 7 (vast en tijdelijk) en 7a (tijdelijk)
F9: Dit tool omvat de volgende werkbladen die door de schoolbesturen kunnen worden ingevuld (de velden in blauw moeten worden ingevuld):
F11: - | G11: DUO_CFI | K11: In dit werkblad worden door het schoolbestuur een aantal bedragen ingevuld die kunnen worden overgenomen van de website DUO-CFI.nl
L12: Deze bedragen worden ingevuld in de kolommen N tm V
F14: - | G14: Bijlage 1 | K14: In dit werkblad worden door het schoolbestuur de relevante overige bekostingen opgevoerd.
L15: Hiervoor worden de kolommen K (naamgeving bekostiging), Q en S (bedragen) gebruikt
F17: - | G17: Bijlage 2 | K17: In dit werkblad worden door het schoolbestuur de ontslaggegevens ingevuld.
L18: In de kolom H wordt de naam, onder K de datum beëindiging, in M de soort ontslag en in kolom N de Netto loonkosten op jaarbasis ingevuld.
L19: Door in de kolom M een "v" in te vullen, wordt het betreffende ontslag meegerekend in de ontslagruimte.
L20: De Netto ontslagvergoedingen v.w.b. de typen (T - tijdelijk, W - beëindiging met wederzijds goedvinden en V - ontslag uit vaste dienst) zijn zichtbaar binnen de omlijsting in kolom N (regels 10 tem 12)
L21: In het werkblad "Consolidatie" komt het resultaat van de aangevinkte ontslagen tot uiting en wordt meegenomen in het tonen van de validiteit van de aangevinkte ontslagen
F23: - | G23: Consolidatie | K23: Dit werkblad consolideert alle gegevens uit voorgaande werkbladen in één overzicht, waarbij alle benodigde berekeningen
K24: (zoals toepassing van het deelpercentage van 65% voor Personeels- en arbeidsmarktbeleid) worden doorgevoerd.
L25: Het verschil (Bekostiging - Ontslagen) tenslotte laat zien in hoeverre de ontslagen volgens opgave rechtmatig zijn (bedrag moet <= 0 zijn)
L26: In bijlage 2 kan het resultaat van deze berekening worden beïnvloed door het al dan niet aanvinken van opgegegevn ontslagen.
F29: T.b.v. DUO-Upf zijn aan de verschillende werkbladen een aantal controle en correctiekolommen toegevoegd en er is een extra werkblad toegevoegd waarin het eindresultaat te zien is
F31: NB:
F32: Zeer waarschijnlijk is het gebruik onderstaande functionaliteit niet toegestaan omdat het waarschijnlijk om juridische redenen niet is toegestaan nog wijzingen aan te brengen op een ingevuld en ingediend document.
F33: Het definitieve tool mag deze functionaliteit waarschijnlijk niet bevatten; reden om deze in eerste instantie ook gewoon weg te laten
F35: NB: | H35: Om deze controle- en correctiekolommen te kunnen openen moeten de beveiliging van de betreffende werkbladen worden verwijderd (Menu > Controleren > Beveiligen blad opheffen)
F37: - | G37: DUO_CFI | K37: In dit werkblad worden door het schoolbestuur een aantal bedragen ingevuld die allen kunnen worden overgenomen van de website DUO-CFI.nl
L38: Door te drukken op het plusje (+) boven in het werkblad worden een aantal extra kolommen zichtbaar voor controle en correctie
L39: Door in kolom S een "v" in te voeren worden de door het schoolbestuur ingevulde waarden geaccordeerd.
L40: Indien de ingevulde waarden niet correct zijn kunnen de correcte waarden in de kolommen V, X en Z worden ingevoerd.
L41: De kolommen AB, AD en AF tenslotte worden gebruikt voor de eindberekening (hierin zijn de geaccordeerde dan wel gecorrigeerde bedragen weergegeven).
F43: - | G43: Bijlage 1 | K43: In dit werkblad wordendoor het schoolbestuur de relevante overige bekostingen opgevoerd.
L44: Door te drukken op het plusje (+) boven in het werkblad worden een aantal extra kolommen zichtbaar voor controle en correctie
L45: Door in kolom U een "v" in te voeren worden de door het schoolbestuur ingevulde waarden geaccordeerd.
L46: Indien de ingevulde waarden niet correct zijn kunnen de correcte waarden in de kolommen W en Y worden ingevoerd.
L47: De kolommen AA en AC tenslotte worden gebruikt voor de eindberekening (hierin zijn de geaccordeerde dan wel gecorrigeerde bedragen weergegeven).
F49: - | G49: Bijlage 2 | K49: In dit werkblad worden door het schoolbestuur de ontslaggegevens ingevuld.
L50: Door te drukken op het plusje (+) boven in het werkblad worden een aantal extra kolommen zichtbaar voor controle en correctie
L51: Door in kolom R een "v" in te voeren worden de door het schoolbestuur ingevulde waarden geaccordeerd.
L52: Indien de ingevulde waarden niet correct zijn kunnen de correcte waarden in de kolommen T en U worden ingevoerd.
L53: De Netto ontslagvergoedingen v.w.b. de typen (T - tijdelijk, W - beëindiging met wederzijds goedvinden en V - ontslag uit vaste dienst) zijn zichtbaar binnen de omlijsting in kolom X (regels 10 tem 12)
F55: Tenslotte is er nog een aantal werkblad in deze map:
F57: - | G57: Vragen | K57: Waarin een aantal openstaande en beantwoorde vragen zijn verwoord (vervalt in het definitieve tool).(op dit moment geen courante vragen)

Sheet Algoritmes (hidden)
A1: Participatiefonds
A2: Project: | F2: VUIST
A3: Deelproject: | F3: Reglementen
A4: Onderdeel: | F4: Rekentool Bekostiging - personeel
A5: Onderwerp: | F5: Algoritmes
D8: 1. | F8: a. | G8: Op tabblad DUO-CFI worden bedragen overgenomen die betrekking hebben op het betreffende schoolbestuurd en die op website van DUO-CFI zijn gepubliceerd.
F9: b. | G9: Op tabblad Bijlage 1: moeten onder 1. de Bijdragen van derden en onder 2. de inkomsten Zorgformatie volgens opgave Bestuur worden opgegegeven.
F10: c. | G10: Op het tabblad Consolidatie worden alle relevante bedragen, met eventueel onderliggende berekeningen, verzameld
F11: d. | G11: Hierbij wordt de som van alle bedragen (DUO-CFI en Bijlage 1) van het huidige schooljaar vergeleken met de som van die bedragen van het vorige schooljaar
F12: e. | G12: Het verschil SOM (huidig schooljaar) - SOM (vorig schooljaar) wordt berekend en indien dit getal negatief is, is er sprake van ontslagruimte
F13: f. | G13: Die ontslagruimte mag worden gevuld door de ontslagen die op bijlage 2 worden aangemeld op basis van loonkosten.
F14: g. | G14: De som van de loonkosten voor de ontslagen worden daartoe opgeteld bij het negatieve saldo van de ontslagruimte
F15: h. | G15: Het uiteindelijke saldo moet daarbij negatief blijven, anders zijn er teveel mensen ontslagen.
F16: i. | G16: Dit bekostigingstool wordt éénmalig per schooljaar door het schoolbestuur ingevuld en meegezonden met het vergoedingsverzoek voor het ontslag (binnen de ontslagruimte)
D18: 2. | F18: De bedragen op werkblad DUO-CFI worden overgezet naar werkblad Consolidatie met de onderliggende bewerkingen:
F19: a. | G19: Alleen de bedragen waarvan kolom L (werkblad DUO-CFI) leeg is tellen mee; als er in deze kolom 'niet relevant' staat dan wordt de waarde in de consolidatie 0,00
F20: b. | G20: Bedragen van kalenderjaren worden toegewezen aan schooljaren als volgt:
G21: - | H21: Voor schooljaar m / n geldt: (5/12 x m) + (7/12 x n)
F22: c. | G22: Soms is er sprake dat slechts 65% van de bekostiging meetelt; in kolom K (werkblad DUO-CFI) staat dan dit percentage vermeld
D24: 3. | F24: Op werkblad Bijlage_1 vinden de volgende bewerkingen plaats:
F25: a. | G25: Handmatig ingeven van:
G26: - | H26: Financiële bijdragen van derden
G27: - | H27: Zorgformatie opgave bestuur (niet van toepassing voor instellingen onder de WEC)
F28: b. | G28: Deze bedragen worden 1:1 overgezet naar het werkblad Consolidatie (zonder aanvullende berekeningen)
D30: 4. | F30: Op werkblad Bijlage_2 worden de voorgenomen ontslagen ingevuld op basis van jaarsalaris volgens de loonkostenberekening
F31: a. | G31: Onderscheid wordt gemaakt tussen 3 categoriën:
G32: - | H32: Beëindigingen - Tijdelijke dienstverbanden
G33: - | H33: Beëindigingen - Vaste dienstverbanden met wederzijds goedvinden
G34: - | H34: Ontslagen - Vaste dienstverbanden
F35: b. | G35: In kolom P (Vink) heeft de werkgever de mogelijkheid om aan te geven welke ontslagen meedoen in de vergelijking
D37: 5. | F37: Op werkblad Consolidatie worden bepaald:
F38: a. | G38: De totalen Bekostiging voor 2 opeenvolgende schooljaren op basis van hetgeen verwoord is onder 2. en 3.
F39: b. | G39: Het verschil tussen Bekostingen (Huidig - voorgaand) wordt bepaald
F40: c. | G40: Indien dit resultaat een negatief bedrag is, vormt dat de ontslagruimte voor het huidige schooljaar
F41: d. | G41: Het totaal van de aangevinkte ontslagen van Bijlage_2 wordt opgeteld bij het resultaat van b.
F42: e. | G42: Zolang het resultaat van d. negatief blijft, is er sprake van ontslag binnen ontslagruimte en komt een vergoedingsverzoek op grond van dit tool voor vergoeding in aanmerking
F43: f. | G43: Werkgevers kunnen zelf d.m.v. vinkjes (kolom P van Bijlage_2) ervoor zorgen dat zij binnen de ontslagruimte blijven.
F44: g. | G44: De volgorde van aanvinken is als volgt:
G45: a. | H45: Eerst alle Beëindigingen - Tijdelijke dienstverbanden | P45: - deze mogen random worden aangevinkt
G46: b. | H46: Daarna alle Beëindigingen - Vaste dienstverbanden met wederzijds goedvinden | P46: - deze moeten in volgorde boven naar beneden worden aangevinkt als a. vol is
G47: c. | H47: Daarna alle Beëindigingen - Ontslagen - Vaste dienstverbanden | P47: - deze moeten in volgorde boven naar beneden worden aangevinkt als a. en b. vol zijn

Sheet DUO-CFI (hidden)
A1: Participatiefonds
A2: Project: | F2: VUIST
A3: Deelproject: | F3: Reglementen
A4: Onderdeel: | F4: Rekentool - personele bekostiging
A5: Behorend bij: | F5: Reglement 2013 - 2014
A6: Onderwerp: | F6: Opgave DUO-CFI
B8: Opgave van: | H8: Stichting BOOR
B10: Werkgeversnummer: | H10: 41775
L12: Kolommen: | N12: N | P12: P | R12: R | T12: T | V12: V | X12: X | Z12: Z | AB12: AB | AD12: AD | AF12: AF | AH12: AH | AJ12: AJ | AL12: AL | AN12: AN | AP12: AP | AR12: AR
A14: Opgave DUO-CFI via website | R14: Overzicht DUO - CFI | AD14: Uitsluitend voor gebruik DUO-CFI | AN14: Voor gebruik Rekentool
R16: Opgave | AD16: Correctie | AN16: Definitief
B18: Bekostigingsonderwerp | K18: Percentage | N18: =YEAR(Peildatum)-1 -> 2021 | P18: =$N$18&" - "&$R$18 -> 2021 - 2022 | R18: =YEAR(Peildatum) -> 2022 | T18: =$R$18&" - "&$V$18 -> 2022 - 2023 | V18: =YEAR(Peildatum)+1 -> 2023 | Z18: =N18 -> 2021 | AB18: =P18 -> 2021 - 2022 | AD18: =R18 -> 2022 | AF18: =T18 -> 2022 - 2023 | AH18: =V18 -> 2023 | AJ18: =N18 -> 2021 | AL18: =P18 -> 2021 - 2022 | AN18: =R18 -> 2022 | AP18: =T18 -> 2022 - 2023 | AR18: =V18 -> 2023
B20: 1 | C20: Bekostiging impulsgebieden | P20: =Data_1213RijksBekost01 -> 0 | T20: =Data_1314RijksBekost01 -> 0 | X20: v | AJ20: =IF($X20="v",N20,Z20) -> 0 | AL20: =IF($X20="v",P20,AB20) -> 0 | AN20: =IF($X20="v",R20,AD20) -> 0 | AP20: =IF($X20="v",T20,AF20) -> 0 | AR20: =IF($X20="v",V20,AH20) -> 0
B22: 2 | C22: Bijzondere bekostiging aanwezigheid visueel gehandicapte kinderen | P22: =Data_1213RijksBekost02 -> 0 | T22: =Data_1314RijksBekost02 -> 0 | X22: v | AJ22: =IF($X22="v",N22,Z22) -> 0 | AL22: =IF($X22="v",P22,AB22) -> 0 | AN22: =IF($X22="v",R22,AD22) -> 0 | AP22: =IF($X22="v",T22,AF22) -> 0 | AR22: =IF($X22="v",V22,AH22) -> 0
B24: 3 | C24: Bijzondere bekostiging aanwezigheid schipperskinderen | P24: =Data_1213RijksBekost03 -> 0 | T24: =Data_1314RijksBekost03 -> 0 | X24: v | AJ24: =IF($X24="v",N24,Z24) -> 0 | AL24: =IF($X24="v",P24,AB24) -> 0 | AN24: =IF($X24="v",R24,AD24) -> 0 | AP24: =IF($X24="v",T24,AF24) -> 0 | AR24: =IF($X24="v",V24,AH24) -> 0
B26: 4 | C26: Bijzondere bekostiging aanwezigheid zigeunerkinderen | P26: =Data_1213RijksBekost04 -> 0 | T26: =Data_1314RijksBekost04 -> 0 | X26: v | AJ26: =IF($X26="v",N26,Z26) -> 0 | AL26: =IF($X26="v",P26,AB26) -> 0 | AN26: =IF($X26="v",R26,AD26) -> 0 | AP26: =IF($X26="v",T26,AF26) -> 0 | AR26: =IF($X26="v",V26,AH26) -> 0
B28: 5 | C28: Bijzondere bekostiging eerste opvang vreemdelingen | P28: =Data_1213RijksBekost05 -> 0 | T28: =Data_1314RijksBekost05 -> 0 | X28: v | AJ28: =IF($X28="v",N28,Z28) -> 0 | AL28: =IF($X28="v",P28,AB28) -> 0 | AN28: =IF($X28="v",R28,AD28) -> 0 | AP28: =IF($X28="v",T28,AF28) -> 0 | AR28: =IF($X28="v",V28,AH28) -> 0
B30: 6 | C30: Bijzondere bekostiging groei scholen voor (V)SO | P30: =Data_1213RijksBekost06 -> 0 | T30: =Data_1314RijksBekost06 -> 0 | X30: v | AJ30: =IF($X30="v",N30,Z30) -> 0 | AL30: =IF($X30="v",P30,AB30) -> 0 | AN30: =IF($X30="v",R30,AD30) -> 0 | AP30: =IF($X30="v",T30,AF30) -> 0 | AR30: =IF($X30="v",V30,AH30) -> 0
B32: 7 | C32: Bijzondere bekostiging justitiele jeugdinrichtingen (V)SO ZMOK | P32: =Data_1213RijksBekost07 -> 0 | T32: =Data_1314RijksBekost07 -> 0 | X32: v | AJ32: =IF($X32="v",N32,Z32) -> 0 | AL32: =IF($X32="v",P32,AB32) -> 0 | AN32: =IF($X32="v",R32,AD32) -> 0 | AP32: =IF($X32="v",T32,AF32) -> 0 | AR32: =IF($X32="v",V32,AH32) -> 0
B34: 8 | C34: Bijzondere bekostiging leerlingen uit blijf van mijn lijf huizen | P34: =Data_1213RijksBekost08 -> 0 | T34: =Data_1314RijksBekost08 -> 0 | X34: v | AJ34: =IF($X34="v",N34,Z34) -> 0 | AL34: =IF($X34="v",P34,AB34) -> 0 | AN34: =IF($X34="v",R34,AD34) -> 0 | AP34: =IF($X34="v",T34,AF34) -> 0 | AR34: =IF($X34="v",V34,AH34) -> 0
B36: 9 | C36: Bijzondere bekostiging leerlingen van wie de ouders een trekkend bestaan leiden | P36: =Data_1213RijksBekost09 -> 0 | T36: =Data_1314RijksBekost09 -> 0 | X36: v | AJ36: =IF($X36="v",N36,Z36) -> 0 | AL36: =IF($X36="v",P36,AB36) -> 0 | AN36: =IF($X36="v",R36,AD36) -> 0 | AP36: =IF($X36="v",T36,AF36) -> 0 | AR36: =IF($X36="v",V36,AH36) -> 0
B38: 10 | C38: Bijzondere bekostiging opvang en begeleiding van leerlingen met autisme | P38: =Data_1213RijksBekost10 -> 0 | T38: =Data_1314RijksBekost10 -> 0 | X38: v | AJ38: =IF($X38="v",N38,Z38) -> 0 | AL38: =IF($X38="v",P38,AB38) -> 0 | AN38: =IF($X38="v",R38,AD38) -> 0 | AP38: =IF($X38="v",T38,AF38) -> 0 | AR38: =IF($X38="v",V38,AH38) -> 0
B40: 11 | C40: Bijzondere bekostiging toename aantal asielzoekerskinderen | P40: =Data_1213RijksBekost11 -> 0 | T40: =Data_1314RijksBekost11 -> 0 | X40: v | AJ40: =IF($X40="v",N40,Z40) -> 0 | AL40: =IF($X40="v",P40,AB40) -> 0 | AN40: =IF($X40="v",R40,AD40) -> 0 | AP40: =IF($X40="v",T40,AF40) -> 0 | AR40: =IF($X40="v",V40,AH40) -> 0
B42: 10a | C42: Bijzondere bekostiging Professionalisering schoolleiding | K42: =12/7 -> 1.714285714 | P42: NVT 16-5-14 | T42: NVT 16-5-14 | X42: v | AJ42: =IF($X42="v",N42,Z42) -> 0 | AL42: =IF($X42="v",P42,AB42) -> NVT 16-5-14 | AN42: =IF($X42="v",R42,AD42) -> 0 | AP42: =IF($X42="v",T42,AF42) -> NVT 16-5-14 | AR42: =IF($X42="v",V42,AH42) -> 0
B44: 12 | C44: Bijzondere bekostiging wegens samenvoeging | P44: =Data_1213RijksBekost12 -> 0 | T44: =Data_1314RijksBekost12 -> 0 | X44: v | AJ44: =IF($X44="v",N44,Z44) -> 0 | AL44: =IF($X44="v",P44,AB44) -> 0 | AN44: =IF($X44="v",R44,AD44) -> 0 | AP44: =IF($X44="v",T44,AF44) -> 0 | AR44: =IF($X44="v",V44,AH44) -> 0
B46: 13 | C46: Bijzondere bekostiging ZMLK-leerlingen in de groepen 3 tm 8 | P46: =Data_1213RijksBekost13 -> 0 | T46: =Data_1314RijksBekost13 -> 0 | X46: v | AJ46: =IF($X46="v",N46,Z46) -> 0 | AL46: =IF($X46="v",P46,AB46) -> 0 | AN46: =IF($X46="v",R46,AD46) -> 0 | AP46: =IF($X46="v",T46,AF46) -> 0 | AR46: =IF($X46="v",V46,AH46) -> 0
B48: 14 | C48: Internationaal georiënteerd basisonderwijs | P48: =Data_1213RijksBekost14 -> 0 | T48: =Data_1314RijksBekost14 -> 0 | X48: v | AJ48: =IF($X48="v",N48,Z48) -> 0 | AL48: =IF($X48="v",P48,AB48) -> 0 | AN48: =IF($X48="v",R48,AD48) -> 0 | AP48: =IF($X48="v",T48,AF48) -> 0 | AR48: =IF($X48="v",V48,AH48) -> 0
B50: 15 | C50: Personeels- en arbeidsmarktbeleid | K50: 0.65 | P50: =Data_1213RijksBekost15 -> 0 | T50: =Data_1314RijksBekost15 -> 0 | X50: v | AJ50: =IF($X50="v",N50,Z50) -> 0 | AL50: =IF($X50="v",P50,AB50) -> 0 | AN50: =IF($X50="v",R50,AD50) -> 0 | AP50: =IF($X50="v",T50,AF50) -> 0 | AR50: =IF($X50="v",V50,AH50) -> 0
B52: 16 | C52: Correctie werkdrukgelden | P52: =Data_1213RijksBekost16 -> 158996.72 | T52: =Data_1314RijksBekost16 -> 158996.72 | X52: v | AJ52: =IF($X52="v",N52,Z52) -> 0 | AL52: =IF($X52="v",P52,AB52) -> 158996.72 | AN52: =IF($X52="v",R52,AD52) -> 0 | AP52: =IF($X52="v",T52,AF52) -> 158996.72 | AR52: =IF($X52="v",V52,AH52) -> 0
B54: 17 | C54: Personele bekostiging groei 1-10 | P54: =Data_1213RijksBekost17 -> 0 | T54: =Data_1314RijksBekost17 -> 0 | X54: v | AJ54: =IF($X54="v",N54,Z54) -> 0 | AL54: =IF($X54="v",P54,AB54) -> 0 | AN54: =IF($X54="v",R54,AD54) -> 0 | AP54: =IF($X54="v",T54,AF54) -> 0 | AR54: =IF($X54="v",V54,AH54) -> 0
B56: 18 | C56: Personele bekostiging groei 16-1 | P56: =Data_1213RijksBekost18 -> 0 | T56: =Data_1314RijksBekost18 -> 0 | X56: v | AJ56: =IF($X56="v",N56,Z56) -> 0 | AL56: =IF($X56="v",P56,AB56) -> 0 | AN56: =IF($X56="v",R56,AD56) -> 0 | AP56: =IF($X56="v",T56,AF56) -> 0 | AR56: =IF($X56="v",V56,AH56) -> 0
B58: 19 | C58: Personele bekostiging regulier | P58: =Data_1213RijksBekost19 -> 0 | T58: =Data_1314RijksBekost19 -> 0 | X58: v | AJ58: =IF($X58="v",N58,Z58) -> 0 | AL58: =IF($X58="v",P58,AB58) -> 0 | AN58: =IF($X58="v",R58,AD58) -> 0 | AP58: =IF($X58="v",T58,AF58) -> 0 | AR58: =IF($X58="v",V58,AH58) -> 0
B60: 20 | C60: Middelen fusiecompensatieregeling | P60: =Data_1213RijksBekost20 -> 0 | T60: =Data_1314RijksBekost20 -> 0 | X60: v | AJ60: =IF($X60="v",N60,Z60) -> 0 | AL60: =IF($X60="v",P60,AB60) -> 0 | AN60: =IF($X60="v",R60,AD60) -> 0 | AP60: =IF($X60="v",T60,AF60) -> 0 | AR60: =IF($X60="v",V60,AH60) -> 0
B62: 21 | C62: Prestatiebox Primair Onderwijs | K62: 0.65 | P62: =Data_1213RijksBekost21 -> 0 | T62: =Data_1314RijksBekost21 -> 0 | X62: v | AJ62: =IF($X62="v",N62,Z62) -> 0 | AL62: =IF($X62="v",P62,AB62) -> 0 | AN62: =IF($X62="v",R62,AD62) -> 0 | AP62: =IF($X62="v",T62,AF62) -> 0 | AR62: =IF($X62="v",V62,AH62) -> 0
B64: 22 | C64: Aanvullende bekostiging onderwijsachterstandenbeleid | P64: =Data_1213RijksBekost22 -> 0 | T64: =Data_1314RijksBekost22 -> 0 | X64: v | AJ64: =IF($X64="v",N64,Z64) -> 0 | AL64: =IF($X64="v",P64,AB64) -> 0 | AN64: =IF($X64="v",R64,AD64) -> 0 | AP64: =IF($X64="v",T64,AF64) -> 0 | AR64: =IF($X64="v",V64,AH64) -> 0
B66: 23 | C66: =IF(ISBLANK(Data_RijksBekost23),"",Data_RijksBekost23) ->  | P66: =IF(ISBLANK(Data_1213RijksBekost23),"",Data_1213RijksBekost23) ->  | T66: =IF(ISBLANK(Data_1314RijksBekost23),"",Data_1314RijksBekost23) ->  | X66: v | AJ66: =IF($X66="v",N66,Z66) -> 0 | AL66: =IF($X66="v",P66,AB66) ->  | AN66: =IF($X66="v",R66,AD66) -> 0 | AP66: =IF($X66="v",T66,AF66) ->  | AR66: =IF($X66="v",V66,AH66) -> 0
B68: 24 | C68: =IF(ISBLANK(Data_RijksBekost24),"",Data_RijksBekost24) ->  | K68: 0.65 | P68: =IF(ISBLANK(Data_1213RijksBekost24),"",Data_1213RijksBekost24) ->  | T68: =IF(ISBLANK(Data_1314RijksBekost24),"",Data_1314RijksBekost24) ->  | X68: v | AJ68: =IF($X68="v",N68,Z68) -> 0 | AL68: =IF($X68="v",P68,AB68) ->  | AN68: =IF($X68="v",R68,AD68) -> 0 | AP68: =IF($X68="v",T68,AF68) ->  | AR68: =IF($X68="v",V68,AH68) -> 0
H70: Aanvullen | K70: Percentage
C73: Totaal | N73: =SUM(N20:N69) -> 0 | P73: =SUM(P20:P69) -> 158996.72 | R73: =SUM(R20:R69) -> 0 | T73: =SUM(T20:T69) -> 158996.72 | V73: =SUM(V20:V69) -> 0 | AJ73: =SUM(AJ20:AJ69) -> 0 | AL73: =SUM(AL20:AL69) -> 158996.72 | AN73: =SUM(AN20:AN69) -> 0 | AP73: =SUM(AP20:AP69) -> 158996.72 | AR73: =SUM(AR20:AR69) -> 0
H89: – Justitiële jeugdinrichtingen en instellingen voor gesloten jeugdzorg verbonden aan scholen voor Cluster 4 (artikel 35)

Sheet DerdenEnZorg (hidden)
A1: Participatiefonds
A2: Project: | F2: VUIST
A3: Deelproject: | F3: Reglementen
A4: Onderdeel: | F4: Rekentool
A5: Onderwerp: | F5: Bijlage 1: Financiële bijdragen van derden en zorgformatie
F7: Kolommen: | K7: K | Q7: Q | S7: S | U7: U | W7: W | Y7: Y | AA7: AA | AC7: AC
F10: Bijlage 1 -Financiële bijdragen van derden en zorgformatie | Q10: ='DUO-CFI'!P18 -> 2021 - 2022 | S10: ='DUO-CFI'!T18 -> 2022 - 2023 | W10: =Q10 -> 2021 - 2022 | Y10: =S10 -> 2022 - 2023 | AA10: =W10 -> 2021 - 2022 | AC10: =Y10 -> 2022 - 2023
Q12: Opgave | W12: Correctie | AA12: Definitief
H15: 1. | J15: Financiële bijdragen van derden
J17: 1 | K17: =IF(Data_BekostDerdenLabel01="","",Data_BekostDerdenLabel01) -> Gemeentelijke subsidies | Q17: =Data_1213BekostDerden01 -> 0 | S17: =Data_1314BekostDerden01 -> 0 | U17: v | AA17: =IF($U17="v",Q17,W17) -> 0 | AC17: =IF($U17="v",S17,Y17) -> 0
J18: 2 | K18: =IF(Data_BekostDerdenLabel02="","",Data_BekostDerdenLabel02) -> Contractactiviteiten | Q18: =Data_1213BekostDerden02 -> 0 | S18: =Data_1314BekostDerden02 -> 0 | U18: v | AA18: 0 | AC18: 0
J19: 3 | K19: =IF(Data_BekostDerdenLabel03="","",Data_BekostDerdenLabel03) -> ESF-subsidies | Q19: =Data_1213BekostDerden03 -> 0 | S19: =Data_1314BekostDerden03 -> 0 | U19: v | AA19: 0 | AC19: 0
J20: 4 | K20: =IF(Data_BekostDerdenLabel04="","",Data_BekostDerdenLabel04) -> Loonkostensubsidie OOP | Q20: =Data_1213BekostDerden04 -> 0 | S20: =Data_1314BekostDerden04 -> 0 | U20: v | AA20: 0 | AC20: 0
J21: 5 | K21: =IF(Data_BekostDerdenLabel05="","",Data_BekostDerdenLabel05) ->  | Q21: =Data_1213BekostDerden05 -> 0 | S21: =Data_1314BekostDerden05 -> 0 | U21: v | AA21: 0 | AC21: 0
J22: 6 | K22: =IF(Data_BekostDerdenLabel06="","",Data_BekostDerdenLabel06) ->  | Q22: =Data_1213BekostDerden06 -> 0 | S22: =Data_1314BekostDerden06 -> 0 | U22: v | AA22: 0 | AC22: 0
J23: 7 | K23: =IF(Data_BekostDerdenLabel07="","",Data_BekostDerdenLabel07) ->  | Q23: =Data_1213BekostDerden07 -> 0 | S23: =Data_1314BekostDerden07 -> 0 | U23: v | AA23: 0 | AC23: 0
J24: 8 | K24: =IF(Data_BekostDerdenLabel08="","",Data_BekostDerdenLabel08) ->  | Q24: =Data_1213BekostDerden08 -> 0 | S24: =Data_1314BekostDerden08 -> 0 | U24: v | AA24: 0 | AC24: 0
J25: 9 | K25: =IF(Data_BekostDerdenLabel09="","",Data_BekostDerdenLabel09) ->  | Q25: =Data_1213BekostDerden09 -> 0 | S25: =Data_1314BekostDerden09 -> 0 | U25: v | AA25: 0 | AC25: 0
J26: 10 | K26: =IF(Data_BekostDerdenLabel10="","",Data_BekostDerdenLabel10) ->  | Q26: =Data_1213BekostDerden10 -> 0 | S26: =Data_1314BekostDerden10 -> 0 | U26: v | AA26: 0 | AC26: 0
K28: Totaal | Q28: =SUM(Q17:Q27) -> 0 | S28: =SUM(S17:S26) -> 0 | U28: v | AA28: =IF($U28="v",Q28,SUM(AA17:AA26)) -> 0 | AC28: =IF($U28="v",S28,SUM(AC17:AC26)) -> 0
H30: 2. | J30: Zorgformatie opgave bestuur (niet van toepassing voor instellingen onder de WEC)
J32: 1 | K32: =IF(Data_BekostZorginfLabel01="","",Data_BekostZorginfLabel01) -> Formatie vanuit ondersteuningsplan | Q32: =Data_1213BekostZorginf01 -> 0 | S32: =Data_1314BekostZorginf01 -> 0 | U32: v | AA32: =IF($U32="v",Q32,W32) -> 0 | AC32: =IF($U32="v",S32,Y32) -> 0
J33: 2 | K33: =IF(Data_BekostZorginfLabel02="","",Data_BekostZorginfLabel02) ->  | Q33: =Data_1213BekostZorginf02 -> 0 | S33: =Data_1314BekostZorginf02 -> 0 | U33: v | AA33: =IF($U33="v",Q33,W33) -> 0 | AC33: =IF($U33="v",S33,Y33) -> 0
J34: 3 | K34: =IF(Data_BekostZorginfLabel03="","",Data_BekostZorginfLabel03) ->  | Q34: =Data_1213BekostZorginf03 -> 0 | S34: =Data_1314BekostZorginf03 -> 0 | U34: v | AA34: =IF($U34="v",Q34,W34) -> 0 | AC34: =IF($U34="v",S34,Y34) -> 0
J35: 4 | K35: =IF(Data_BekostZorginfLabel04="","",Data_BekostZorginfLabel04) ->  | Q35: =Data_1213BekostZorginf04 -> 0 | S35: =Data_1314BekostZorginf04 -> 0 | U35: v | AA35: =IF($U35="v",Q35,W35) -> 0 | AC35: =IF($U35="v",S35,Y35) -> 0
J36: 5 | K36: =IF(Data_BekostZorginfLabel05="","",Data_BekostZorginfLabel05) ->  | Q36: =Data_1213BekostZorginf05 -> 0 | S36: =Data_1314BekostZorginf05 -> 0 | U36: v | AA36: =IF($U36="v",Q36,W36) -> 0 | AC36: =IF($U36="v",S36,Y36) -> 0
J37: 6 | K37: =IF(Data_BekostZorginfLabel06="","",Data_BekostZorginfLabel06) ->  | Q37: =Data_1213BekostZorginf06 -> 0 | S37: =Data_1314BekostZorginf06 -> 0 | U37: v | AA37: 0 | AC37: 0
J38: 7 | K38: =IF(Data_BekostZorginfLabel07="","",Data_BekostZorginfLabel07) ->  | Q38: =Data_1213BekostZorginf07 -> 0 | S38: =Data_1314BekostZorginf07 -> 0 | U38: v | AA38: 0 | AC38: 0
J39: 8 | K39: =IF(Data_BekostZorginfLabel08="","",Data_BekostZorginfLabel08) ->  | Q39: =Data_1213BekostZorginf08 -> 0 | S39: =Data_1314BekostZorginf08 -> 0 | U39: v | AA39: 0 | AC39: 0
J40: 9 | K40: =IF(Data_BekostZorginfLabel09="","",Data_BekostZorginfLabel09) ->  | Q40: =Data_1213BekostZorginf09 -> 0 | S40: =Data_1314BekostZorginf09 -> 0 | U40: v | AA40: 0 | AC40: 0
J41: 10 | K41: =IF(Data_BekostZorginfLabel10="","",Data_BekostZorginfLabel10) ->  | Q41: =Data_1213BekostZorginf10 -> 0 | S41: =Data_1314BekostZorginf10 -> 0 | U41: v | AA41: 0 | AC41: 0
K43: Totaal | Q43: =SUM(Q32:Q41) -> 0 | S43: =SUM(S32:S41) -> 0 | U43: v | AA43: =IF($U43="v",Q43,SUM(AA32:AA35)) -> 0 | AC43: =IF($U43="v",S43,SUM(AC32:AC35)) -> 0

Sheet Personeel (hidden)
A1: Participatiefonds
A2: Project: | F2: VUIST
A3: Deelproject: | F3: Reglementen
A4: Onderdeel: | F4: Rekentool
A5: Onderwerp: | F5: Bijlage 2: Beëindigingen / ontslagen
B8: Kolommen: | H8: H | K8: K | M8: M | N8: N | P8: P | R8: R | T8: T | U8: U | W8: W | X8: X
B10: Bijlage 2 - beëindigingen / ontslagen | L10: Natuurlijk verloop e.d. | M10: N | N10: =SUM(N24:N524) -> 63539.51 | T10: N | W10: N | X10: =SUM(X24:X524) -> 63539.51
L11: Tijdelijken | M11: T | N11: =SUM(AM24:AM524) -> 0 | T11: T | W11: T | X11: =SUM(AW24:AW524) -> 0
L12: Vast - wederzijds goedvinden | M12: W | N12: =SUM(BG24:BG524) -> 0 | T12: W | W12: W | X12: =SUM(BQ24:BQ524) -> 0
L13: Vast - ontslag | M13: V | N13: =SUM(BY24:BY524) -> 0 | T13: V | W13: V | X13: =SUM(CI24:CI524) -> 0
H15: Ontslagruimte (uitsluitend als negatief) | N15: =Consolidatie!Q43 -> 0
H16: Verschil ontslagruimte - aangevinkt (moet negatief blijven) | N16: =Consolidatie!Q53 -> 63539.51
N17: =Consolidatie!Q44 -> 0
H18: Naam | K18: Beëindigings | N18: Netto loonkosten | P18: Vink | T18: Correctie | W18: Resultaat
K19: datum | N19: op jaarbasis
B20: 1 | C20: Beëindigingen - Natuurlijk verloop en andere… | AA20: 2 | AB20: Beëindigingen - Tijdelijke dienstverbanden | AZ20: 3 | BA20: Beëindigingen - Vaste dienstverbanden met wederzijds goedvinden | BR20: 4 | BS20: Ontslagen - Vaste dienstverbanden
D21: (deze moeten zijn aangevinkt) | AC21: (deze mogen in willekeurige volgorde worden aangevinkt) | BB21: (deze moeten in volgorde beëindigingsdatum worden aangevinkt) | BT21: (moeten in volgorde ontslag volgens CAO worden aangevinkt)
H23: naam | K23: datum beeidiging | N23: loonkosten | AG23: naam | AJ23: datum beeidiging | AM23: loonkosten | BA23: naam | BD23: datum beeidiging | BG23: loonkosten | BS23: naam | BV23: datum beeidiging | BY23: loonkosten
H24: =IF(Data_NaamPersoonNatVerloop001="","",Data_NaamPersoonNatVerloop001) -> x | K24: =IF(Data_BeeindigingsdatumNatVerloop001="","",Data_BeeindigingsdatumNatVerloop001) -> 2021-01-01 | N24: =IF(Data_LoonkostenNatVerloop001="","",Data_LoonkostenNatVerloop001) -> 63539.51 | P24: v | R24: v | W24: =IF($P24="v",M24,T24) -> 0 | X24: =IF(AND($P24="v",$R24="v"),N24,IF(AND($P24="v",$R24<>"v"),U24,0)) -> 63539.51 | AG24: =IF(Data_NaamPersoonTijd001="","",Data_NaamPersoonTijd001) ->  | AJ24: =IF(Data_BeeindigingsdatumTijd001="","",Data_BeeindigingsdatumTijd001) ->  | AM24: =IF(Data_LoonkostenTijd001="","",Data_LoonkostenTijd001) ->  | AO24: =IF(Data_PersoonAanUitTijd001=-1,"v","") ->  | AQ24: v | AV24: =IF($AO24="v",AL24,AS24) -> 0 | AW24: =IF(AND($AO24="v",$AQ24="v"),AM24,IF(AND($AO24="v",$AQ24<>"v"),AT24,0)) -> 0 | BA24: =IF(Data_NaamPersoonVastVrij001="","",Data_NaamPersoonVastVrij001) ->  | BD24: =IF(Data_BeeindigingsdatumVastVrij001="","",Data_BeeindigingsdatumVastVrij001) ->  | BG24: =IF(Data_LoonkostenVastVrij001="","",Data_LoonkostenVastVrij001) ->  | BI24: =IF(Data_PersoonAanUitVastVrij001=-1,"v","") ->  | BK24: v | BP24: =IF($BI24="v",BF24,BM24) -> 0 | BQ24: =IF(AND($BI24="v",$BK24="v"),BG24,IF(AND($BI24="v",$BK24<>"v"),BN24,0)) -> 0 | BS24: =IF(Data_NaamPersoonVastOntslag001="","",Data_NaamPersoonVastOntslag001) ->  | BV24: =IF(Data_BeeindigingsdatumVastOntslag001="","",Data_BeeindigingsdatumVastOntslag001) ->  | BY24: =IF(Data_LoonkostenVastOntslag001="","",Data_LoonkostenVastOntslag001) ->  | CA24: =IF(Data_PersoonAanUitVastOntslag001=-1,"v","") ->  | CC24: v | CH24: =IF($CA24="v",BX24,CE24) -> 0 | CI24: =IF(AND($CA24="v",$CC24="v"),BY24,IF(AND($CA24="v",$CC24<>"v"),CF23,0)) -> 0
H25: =IF(Data_NaamPersoonNatVerloop002="","",Data_NaamPersoonNatVerloop002) ->  | K25: =IF(Data_BeeindigingsdatumNatVerloop002="","",Data_BeeindigingsdatumNatVerloop002) ->  | N25: =IF(Data_LoonkostenNatVerloop002="","",Data_LoonkostenNatVerloop002) ->  | P25: v | R25: v | W25: =IF($AO25="v",M25,T25) -> 0 | AG25: =IF(Data_NaamPersoonTijd002="","",Data_NaamPersoonTijd002) ->  | AJ25: =IF(Data_BeeindigingsdatumTijd002="","",Data_BeeindigingsdatumTijd002) ->  | AM25: =IF(Data_LoonkostenTijd002="","",Data_LoonkostenTijd002) ->  | AO25: =IF(Data_PersoonAanUitTijd002=-1,"v","") ->  | AQ25: v | AV25: =IF($AO25="v",AL25,AS25) -> 0 | AW25: =IF(AND($AO25="v",$AQ25="v"),AM25,IF(AND($AO25="v",$AQ25<>"v"),AT25,0)) -> 0 | BA25: =IF(Data_NaamPersoonVastVrij002="","",Data_NaamPersoonVastVrij002) ->  | BD25: =IF(Data_BeeindigingsdatumVastVrij002="","",Data_BeeindigingsdatumVastVrij002) ->  | BG25: =IF(Data_LoonkostenVastVrij002="","",Data_LoonkostenVastVrij002) ->  | BI25: =IF(Data_PersoonAanUitVastVrij002=-1,"v","") ->  | BK25: v | BP25: =IF($BI25="v",BF25,BM25) -> 0 | BQ25: 0 | BS25: =IF(Data_NaamPersoonVastOntslag002="","",Data_NaamPersoonVastOntslag002) ->  | BV25: =IF(Data_BeeindigingsdatumVastOntslag002="","",Data_BeeindigingsdatumVastOntslag002) ->  | BY25: =IF(Data_LoonkostenVastOntslag002="","",Data_LoonkostenVastOntslag002) ->  | CA25: =IF(Data_PersoonAanUitVastOntslag002=-1,"v","") ->  | CC25: v | CH25: =IF($CA25="v",BX25,CE25) -> 0 | CI25: 0
H26: =IF(Data_NaamPersoonNatVerloop003="","",Data_NaamPersoonNatVerloop003) ->  | K26: =IF(Data_BeeindigingsdatumNatVerloop003="","",Data_BeeindigingsdatumNatVerloop003) ->  | N26: =IF(Data_LoonkostenNatVerloop003="","",Data_LoonkostenNatVerloop003) ->  | P26: v | R26: v | W26: 0 | AG26: =IF(Data_NaamPersoonTijd003="","",Data_NaamPersoonTijd003) ->  | AJ26: =IF(Data_BeeindigingsdatumTijd003="","",Data_BeeindigingsdatumTijd003) ->  | AM26: =IF(Data_LoonkostenTijd003="","",Data_LoonkostenTijd003) ->  | AO26: =IF(Data_PersoonAanUitTijd003=-1,"v","") ->  | AQ26: v | AV26: 0 | AW26: 0 | BA26: =IF(Data_NaamPersoonVastVrij003="","",Data_NaamPersoonVastVrij003) ->  | BD26: =IF(Data_BeeindigingsdatumVastVrij003="","",Data_BeeindigingsdatumVastVrij003) ->  | BG26: =IF(Data_LoonkostenVastVrij003="","",Data_LoonkostenVastVrij003) ->  | BI26: =IF(Data_PersoonAanUitVastVrij003=-1,"v","") ->  | BK26: v | BP26: 0 | BQ26: 0 | BS26: =IF(Data_NaamPersoonVastOntslag003="","",Data_NaamPersoonVastOntslag003) ->  | BV26: =IF(Data_BeeindigingsdatumVastOntslag003="","",Data_BeeindigingsdatumVastOntslag003) ->  | BY26: =IF(Data_LoonkostenVastOntslag003="","",Data_LoonkostenVastOntslag003) ->  | CA26: =IF(Data_PersoonAanUitVastOntslag003=-1,"v","") ->  | CC26: v | CH26: 0 | CI26: 0
H27: =IF(Data_NaamPersoonNatVerloop004="","",Data_NaamPersoonNatVerloop004) ->  | K27: =IF(Data_BeeindigingsdatumNatVerloop004="","",Data_BeeindigingsdatumNatVerloop004) ->  | N27: =IF(Data_LoonkostenNatVerloop004="","",Data_LoonkostenNatVerloop004) ->  | P27: v | R27: v | W27: 0 | AG27: =IF(Data_NaamPersoonTijd004="","",Data_NaamPersoonTijd004) ->  | AJ27: =IF(Data_BeeindigingsdatumTijd004="","",Data_BeeindigingsdatumTijd004) ->  | AM27: =IF(Data_LoonkostenTijd004="","",Data_LoonkostenTijd004) ->  | AO27: =IF(Data_PersoonAanUitTijd004=-1,"v","") ->  | AQ27: v | AV27: 0 | AW27: 0 | BA27: =IF(Data_NaamPersoonVastVrij004="","",Data_NaamPersoonVastVrij004) ->  | BD27: =IF(Data_BeeindigingsdatumVastVrij004="","",Data_BeeindigingsdatumVastVrij004) ->  | BG27: =IF(Data_LoonkostenVastVrij004="","",Data_LoonkostenVastVrij004) ->  | BI27: =IF(Data_PersoonAanUitVastVrij004=-1,"v","") ->  | BK27: v | BP27: 0 | BQ27: 0 | BS27: =IF(Data_NaamPersoonVastOntslag004="","",Data_NaamPersoonVastOntslag004) ->  | BV27: =IF(Data_BeeindigingsdatumVastOntslag004="","",Data_BeeindigingsdatumVastOntslag004) ->  | BY27: =IF(Data_LoonkostenVastOntslag004="","",Data_LoonkostenVastOntslag004) ->  | CA27: =IF(Data_PersoonAanUitVastOntslag004=-1,"v","") ->  | CC27: v | CH27: 0 | CI27: 0
H28: =IF(Data_NaamPersoonNatVerloop005="","",Data_NaamPersoonNatVerloop005) ->  | K28: =IF(Data_BeeindigingsdatumNatVerloop005="","",Data_BeeindigingsdatumNatVerloop005) ->  | N28: =IF(Data_LoonkostenNatVerloop005="","",Data_LoonkostenNatVerloop005) ->  | P28: v | R28: v | W28: 0 | AG28: =IF(Data_NaamPersoonTijd005="","",Data_NaamPersoonTijd005) ->  | AJ28: =IF(Data_BeeindigingsdatumTijd005="","",Data_BeeindigingsdatumTijd005) ->  | AM28: =IF(Data_LoonkostenTijd005="","",Data_LoonkostenTijd005) ->  | AO28: =IF(Data_PersoonAanUitTijd005=-1,"v","") ->  | AQ28: v | AV28: 0 | AW28: 0 | BA28: =IF(Data_NaamPersoonVastVrij005="","",Data_NaamPersoonVastVrij005) ->  | BD28: =IF(Data_BeeindigingsdatumVastVrij005="","",Data_BeeindigingsdatumVastVrij005) ->  | BG28: =IF(Data_LoonkostenVastVrij005="","",Data_LoonkostenVastVrij005) ->  | BI28: =IF(Data_PersoonAanUitVastVrij005=-1,"v","") ->  | BK28: v | BP28: 0 | BQ28: 0 | BS28: =IF(Data_NaamPersoonVastOntslag005="","",Data_NaamPersoonVastOntslag005) ->  | BV28: =IF(Data_BeeindigingsdatumVastOntslag005="","",Data_BeeindigingsdatumVastOntslag005) ->  | BY28: =IF(Data_LoonkostenVastOntslag005="","",Data_LoonkostenVastOntslag005) ->  | CA28: =IF(Data_PersoonAanUitVastOntslag005=-1,"v","") ->  | CC28: v | CH28: 0 | CI28: 0
H29: =IF(Data_NaamPersoonNatVerloop006="","",Data_NaamPersoonNatVerloop006) ->  | K29: =IF(Data_BeeindigingsdatumNatVerloop006="","",Data_BeeindigingsdatumNatVerloop006) ->  | N29: =IF(Data_LoonkostenNatVerloop006="","",Data_LoonkostenNatVerloop006) ->  | P29: v | R29: v | W29: 0 | AG29: =IF(Data_NaamPersoonTijd006="","",Data_NaamPersoonTijd006) ->  | AJ29: =IF(Data_BeeindigingsdatumTijd006="","",Data_BeeindigingsdatumTijd006) ->  | AM29: =IF(Data_LoonkostenTijd006="","",Data_LoonkostenTijd006) ->  | AO29: =IF(Data_PersoonAanUitTijd006=-1,"v","") ->  | AQ29: v | AV29: 0 | AW29: 0 | BA29: =IF(Data_NaamPersoonVastVrij006="","",Data_NaamPersoonVastVrij006) ->  | BD29: =IF(Data_BeeindigingsdatumVastVrij006="","",Data_BeeindigingsdatumVastVrij006) ->  | BG29: =IF(Data_LoonkostenVastVrij006="","",Data_LoonkostenVastVrij006) ->  | BI29: =IF(Data_PersoonAanUitVastVrij006=-1,"v","") ->  | BK29: v | BP29: 0 | BQ29: 0 | BS29: =IF(Data_NaamPersoonVastOntslag006="","",Data_NaamPersoonVastOntslag006) ->  | BV29: =IF(Data_BeeindigingsdatumVastOntslag006="","",Data_BeeindigingsdatumVastOntslag006) ->  | BY29: =IF(Data_LoonkostenVastOntslag006="","",Data_LoonkostenVastOntslag006) ->  | CA29: =IF(Data_PersoonAanUitVastOntslag006=-1,"v","") ->  | CC29: v | CH29: 0 | CI29: 0
H30: =IF(Data_NaamPersoonNatVerloop007="","",Data_NaamPersoonNatVerloop007) ->  | K30: =IF(Data_BeeindigingsdatumNatVerloop007="","",Data_BeeindigingsdatumNatVerloop007) ->  | N30: =IF(Data_LoonkostenNatVerloop007="","",Data_LoonkostenNatVerloop007) ->  | P30: v | R30: v | W30: 0 | AG30: =IF(Data_NaamPersoonTijd007="","",Data_NaamPersoonTijd007) ->  | AJ30: =IF(Data_BeeindigingsdatumTijd007="","",Data_BeeindigingsdatumTijd007) ->  | AM30: =IF(Data_LoonkostenTijd007="","",Data_LoonkostenTijd007) ->  | AO30: =IF(Data_PersoonAanUitTijd007=-1,"v","") ->  | AQ30: v | AV30: 0 | AW30: 0 | BA30: =IF(Data_NaamPersoonVastVrij007="","",Data_NaamPersoonVastVrij007) ->  | BD30: =IF(Data_BeeindigingsdatumVastVrij007="","",Data_BeeindigingsdatumVastVrij007) ->  | BG30: =IF(Data_LoonkostenVastVrij007="","",Data_LoonkostenVastVrij007) ->  | BI30: =IF(Data_PersoonAanUitVastVrij007=-1,"v","") ->  | BK30: v | BP30: 0 | BQ30: 0 | BS30: =IF(Data_NaamPersoonVastOntslag007="","",Data_NaamPersoonVastOntslag007) ->  | BV30: =IF(Data_BeeindigingsdatumVastOntslag007="","",Data_BeeindigingsdatumVastOntslag007) ->  | BY30: =IF(Data_LoonkostenVastOntslag007="","",Data_LoonkostenVastOntslag007) ->  | CA30: =IF(Data_PersoonAanUitVastOntslag007=-1,"v","") ->  | CC30: v | CH30: 0 | CI30: 0
H31: =IF(Data_NaamPersoonNatVerloop008="","",Data_NaamPersoonNatVerloop008) ->  | K31: =IF(Data_BeeindigingsdatumNatVerloop008="","",Data_BeeindigingsdatumNatVerloop008) ->  | N31: =IF(Data_LoonkostenNatVerloop008="","",Data_LoonkostenNatVerloop008) ->  | P31: v | R31: v | W31: 0 | AG31: =IF(Data_NaamPersoonTijd008="","",Data_NaamPersoonTijd008) ->  | AJ31: =IF(Data_BeeindigingsdatumTijd008="","",Data_BeeindigingsdatumTijd008) ->  | AM31: =IF(Data_LoonkostenTijd008="","",Data_LoonkostenTijd008) ->  | AO31: =IF(Data_PersoonAanUitTijd008=-1,"v","") ->  | AQ31: v | AV31: 0 | AW31: 0 | BA31: =IF(Data_NaamPersoonVastVrij008="","",Data_NaamPersoonVastVrij008) ->  | BD31: =IF(Data_BeeindigingsdatumVastVrij008="","",Data_BeeindigingsdatumVastVrij008) ->  | BG31: =IF(Data_LoonkostenVastVrij008="","",Data_LoonkostenVastVrij008) ->  | BI31: =IF(Data_PersoonAanUitVastVrij008=-1,"v","") ->  | BK31: v | BP31: 0 | BQ31: 0 | BS31: =IF(Data_NaamPersoonVastOntslag008="","",Data_NaamPersoonVastOntslag008) ->  | BV31: =IF(Data_BeeindigingsdatumVastOntslag008="","",Data_BeeindigingsdatumVastOntslag008) ->  | BY31: =IF(Data_LoonkostenVastOntslag008="","",Data_LoonkostenVastOntslag008) ->  | CA31: =IF(Data_PersoonAanUitVastOntslag008=-1,"v","") ->  | CC31: v | CH31: 0 | CI31: 0
H32: =IF(Data_NaamPersoonNatVerloop009="","",Data_NaamPersoonNatVerloop009) ->  | K32: =IF(Data_BeeindigingsdatumNatVerloop009="","",Data_BeeindigingsdatumNatVerloop009) ->  | N32: =IF(Data_LoonkostenNatVerloop009="","",Data_LoonkostenNatVerloop009) ->  | P32: v | R32: v | W32: 0 | AG32: =IF(Data_NaamPersoonTijd009="","",Data_NaamPersoonTijd009) ->  | AJ32: =IF(Data_BeeindigingsdatumTijd009="","",Data_BeeindigingsdatumTijd009) ->  | AM32: =IF(Data_LoonkostenTijd009="","",Data_LoonkostenTijd009) ->  | AO32: =IF(Data_PersoonAanUitTijd009=-1,"v","") ->  | AQ32: v | AV32: 0 | AW32: 0 | BA32: =IF(Data_NaamPersoonVastVrij009="","",Data_NaamPersoonVastVrij009) ->  | BD32: =IF(Data_BeeindigingsdatumVastVrij009="","",Data_BeeindigingsdatumVastVrij009) ->  | BG32: =IF(Data_LoonkostenVastVrij009="","",Data_LoonkostenVastVrij009) ->  | BI32: =IF(Data_PersoonAanUitVastVrij009=-1,"v","") ->  | BK32: v | BP32: 0 | BQ32: 0 | BS32: =IF(Data_NaamPersoonVastOntslag009="","",Data_NaamPersoonVastOntslag009) ->  | BV32: =IF(Data_BeeindigingsdatumVastOntslag009="","",Data_BeeindigingsdatumVastOntslag009) ->  | BY32: =IF(Data_LoonkostenVastOntslag009="","",Data_LoonkostenVastOntslag009) ->  | CA32: =IF(Data_PersoonAanUitVastOntslag009=-1,"v","") ->  | CC32: v | CH32: 0 | CI32: 0
H33: =IF(Data_NaamPersoonNatVerloop010="","",Data_NaamPersoonNatVerloop010) ->  | K33: =IF(Data_BeeindigingsdatumNatVerloop010="","",Data_BeeindigingsdatumNatVerloop010) ->  | N33: =IF(Data_LoonkostenNatVerloop010="","",Data_LoonkostenNatVerloop010) ->  | P33: v | R33: v | W33: 0 | AG33: =IF(Data_NaamPersoonTijd010="","",Data_NaamPersoonTijd010) ->  | AJ33: =IF(Data_BeeindigingsdatumTijd010="","",Data_BeeindigingsdatumTijd010) ->  | AM33: =IF(Data_LoonkostenTijd010="","",Data_LoonkostenTijd010) ->  | AO33: =IF(Data_PersoonAanUitTijd010=-1,"v","") ->  | AQ33: v | AV33: 0 | AW33: 0 | BA33: =IF(Data_NaamPersoonVastVrij010="","",Data_NaamPersoonVastVrij010) ->  | BD33: =IF(Data_BeeindigingsdatumVastVrij010="","",Data_BeeindigingsdatumVastVrij010) ->  | BG33: =IF(Data_LoonkostenVastVrij010="","",Data_LoonkostenVastVrij010) ->  | BI33: =IF(Data_PersoonAanUitVastVrij010=-1,"v","") ->  | BK33: v | BP33: 0 | BQ33: 0 | BS33: =IF(Data_NaamPersoonVastOntslag010="","",Data_NaamPersoonVastOntslag010) ->  | BV33: =IF(Data_BeeindigingsdatumVastOntslag010="","",Data_BeeindigingsdatumVastOntslag010) ->  | BY33: =IF(Data_LoonkostenVastOntslag010="","",Data_LoonkostenVastOntslag010) ->  | CA33: =IF(Data_PersoonAanUitVastOntslag010=-1,"v","") ->  | CC33: v | CH33: 0 | CI33: 0
H34: =IF(Data_NaamPersoonNatVerloop011="","",Data_NaamPersoonNatVerloop011) ->  | K34: =IF(Data_BeeindigingsdatumNatVerloop011="","",Data_BeeindigingsdatumNatVerloop011) ->  | N34: =IF(Data_LoonkostenNatVerloop011="","",Data_LoonkostenNatVerloop011) ->  | P34: v | R34: v | W34: 0 | AG34: =IF(Data_NaamPersoonTijd011="","",Data_NaamPersoonTijd011) ->  | AJ34: =IF(Data_BeeindigingsdatumTijd011="","",Data_BeeindigingsdatumTijd011) ->  | AM34: =IF(Data_LoonkostenTijd011="","",Data_LoonkostenTijd011) ->  | AO34: =IF(Data_PersoonAanUitTijd011=-1,"v","") ->  | AQ34: v | AV34: 0 | AW34: 0 | BA34: =IF(Data_NaamPersoonVastVrij011="","",Data_NaamPersoonVastVrij011) ->  | BD34: =IF(Data_BeeindigingsdatumVastVrij011="","",Data_BeeindigingsdatumVastVrij011) ->  | BG34: =IF(Data_LoonkostenVastVrij011="","",Data_LoonkostenVastVrij011) ->  | BI34: =IF(Data_PersoonAanUitVastVrij011=-1,"v","") ->  | BK34: v | BP34: 0 | BQ34: 0 | BS34: =IF(Data_NaamPersoonVastOntslag011="","",Data_NaamPersoonVastOntslag011) ->  | BV34: =IF(Data_BeeindigingsdatumVastOntslag011="","",Data_BeeindigingsdatumVastOntslag011) ->  | BY34: =IF(Data_LoonkostenVastOntslag011="","",Data_LoonkostenVastOntslag011) ->  | CA34: =IF(Data_PersoonAanUitVastOntslag011=-1,"v","") ->  | CC34: v | CH34: 0 | CI34: 0
H35: =IF(Data_NaamPersoonNatVerloop012="","",Data_NaamPersoonNatVerloop012) ->  | K35: =IF(Data_BeeindigingsdatumNatVerloop012="","",Data_BeeindigingsdatumNatVerloop012) ->  | N35: =IF(Data_LoonkostenNatVerloop012="","",Data_LoonkostenNatVerloop012) ->  | P35: v | R35: v | W35: 0 | AG35: =IF(Data_NaamPersoonTijd012="","",Data_NaamPersoonTijd012) ->  | AJ35: =IF(Data_BeeindigingsdatumTijd012="","",Data_BeeindigingsdatumTijd012) ->  | AM35: =IF(Data_LoonkostenTijd012="","",Data_LoonkostenTijd012) ->  | AO35: =IF(Data_PersoonAanUitTijd012=-1,"v","") ->  | AQ35: v | AV35: 0 | AW35: 0 | BA35: =IF(Data_NaamPersoonVastVrij012="","",Data_NaamPersoonVastVrij012) ->  | BD35: =IF(Data_BeeindigingsdatumVastVrij012="","",Data_BeeindigingsdatumVastVrij012) ->  | BG35: =IF(Data_LoonkostenVastVrij012="","",Data_LoonkostenVastVrij012) ->  | BI35: =IF(Data_PersoonAanUitVastVrij012=-1,"v","") ->  | BK35: v | BP35: 0 | BQ35: 0 | BS35: =IF(Data_NaamPersoonVastOntslag012="","",Data_NaamPersoonVastOntslag012) ->  | BV35: =IF(Data_BeeindigingsdatumVastOntslag012="","",Data_BeeindigingsdatumVastOntslag012) ->  | BY35: =IF(Data_LoonkostenVastOntslag012="","",Data_LoonkostenVastOntslag012) ->  | CA35: =IF(Data_PersoonAanUitVastOntslag012=-1,"v","") ->  | CC35: v | CH35: 0 | CI35: 0
H36: =IF(Data_NaamPersoonNatVerloop013="","",Data_NaamPersoonNatVerloop013) ->  | K36: =IF(Data_BeeindigingsdatumNatVerloop013="","",Data_BeeindigingsdatumNatVerloop013) ->  | N36: =IF(Data_LoonkostenNatVerloop013="","",Data_LoonkostenNatVerloop013) ->  | P36: v | R36: v | W36: 0 | AG36: =IF(Data_NaamPersoonTijd013="","",Data_NaamPersoonTijd013) ->  | AJ36: =IF(Data_BeeindigingsdatumTijd013="","",Data_BeeindigingsdatumTijd013) ->  | AM36: =IF(Data_LoonkostenTijd013="","",Data_LoonkostenTijd013) ->  | AO36: =IF(Data_PersoonAanUitTijd013=-1,"v","") ->  | AQ36: v | AV36: 0 | AW36: 0 | BA36: =IF(Data_NaamPersoonVastVrij013="","",Data_NaamPersoonVastVrij013) ->  | BD36: =IF(Data_BeeindigingsdatumVastVrij013="","",Data_BeeindigingsdatumVastVrij013) ->  | BG36: =IF(Data_LoonkostenVastVrij013="","",Data_LoonkostenVastVrij013) ->  | BI36: =IF(Data_PersoonAanUitVastVrij013=-1,"v","") ->  | BK36: v | BP36: 0 | BQ36: 0 | BS36: =IF(Data_NaamPersoonVastOntslag013="","",Data_NaamPersoonVastOntslag013) ->  | BV36: =IF(Data_BeeindigingsdatumVastOntslag013="","",Data_BeeindigingsdatumVastOntslag013) ->  | BY36: =IF(Data_LoonkostenVastOntslag013="","",Data_LoonkostenVastOntslag013) ->  | CA36: =IF(Data_PersoonAanUitVastOntslag013=-1,"v","") ->  | CC36: v | CH36: 0 | CI36: 0
H37: =IF(Data_NaamPersoonNatVerloop014="","",Data_NaamPersoonNatVerloop014) ->  | K37: =IF(Data_BeeindigingsdatumNatVerloop014="","",Data_BeeindigingsdatumNatVerloop014) ->  | N37: =IF(Data_LoonkostenNatVerloop014="","",Data_LoonkostenNatVerloop014) ->  | P37: v | R37: v | W37: 0 | AG37: =IF(Data_NaamPersoonTijd014="","",Data_NaamPersoonTijd014) ->  | AJ37: =IF(Data_BeeindigingsdatumTijd014="","",Data_BeeindigingsdatumTijd014) ->  | AM37: =IF(Data_LoonkostenTijd014="","",Data_LoonkostenTijd014) ->  | AO37: =IF(Data_PersoonAanUitTijd014=-1,"v","") ->  | AQ37: v | AV37: 0 | AW37: 0 | BA37: =IF(Data_NaamPersoonVastVrij014="","",Data_NaamPersoonVastVrij014) ->  | BD37: =IF(Data_BeeindigingsdatumVastVrij014="","",Data_BeeindigingsdatumVastVrij014) ->  | BG37: =IF(Data_LoonkostenVastVrij014="","",Data_LoonkostenVastVrij014) ->  | BI37: =IF(Data_PersoonAanUitVastVrij014=-1,"v","") ->  | BK37: v | BP37: 0 | BQ37: 0 | BS37: =IF(Data_NaamPersoonVastOntslag014="","",Data_NaamPersoonVastOntslag014) ->  | BV37: =IF(Data_BeeindigingsdatumVastOntslag014="","",Data_BeeindigingsdatumVastOntslag014) ->  | BY37: =IF(Data_LoonkostenVastOntslag014="","",Data_LoonkostenVastOntslag014) ->  | CA37: =IF(Data_PersoonAanUitVastOntslag014=-1,"v","") ->  | CC37: v | CH37: =IF($CA37="v",BX37,CE37) -> 0 | CI37: 0
H38: =IF(Data_NaamPersoonNatVerloop015="","",Data_NaamPersoonNatVerloop015) ->  | K38: =IF(Data_BeeindigingsdatumNatVerloop015="","",Data_BeeindigingsdatumNatVerloop015) ->  | N38: =IF(Data_LoonkostenNatVerloop015="","",Data_LoonkostenNatVerloop015) ->  | P38: v | R38: v | W38: 0 | AG38: =IF(Data_NaamPersoonTijd015="","",Data_NaamPersoonTijd015) ->  | AJ38: =IF(Data_BeeindigingsdatumTijd015="","",Data_BeeindigingsdatumTijd015) ->  | AM38: =IF(Data_LoonkostenTijd015="","",Data_LoonkostenTijd015) ->  | AO38: =IF(Data_PersoonAanUitTijd015=-1,"v","") ->  | AQ38: v | AV38: 0 | AW38: 0 | BA38: =IF(Data_NaamPersoonVastVrij015="","",Data_NaamPersoonVastVrij015) ->  | BD38: =IF(Data_BeeindigingsdatumVastVrij015="","",Data_BeeindigingsdatumVastVrij015) ->  | BG38: =IF(Data_LoonkostenVastVrij015="","",Data_LoonkostenVastVrij015) ->  | BI38: =IF(Data_PersoonAanUitVastVrij015=-1,"v","") ->  | BK38: v | BP38: 0 | BQ38: 0 | BS38: =IF(Data_NaamPersoonVastOntslag015="","",Data_NaamPersoonVastOntslag015) ->  | BV38: =IF(Data_BeeindigingsdatumVastOntslag015="","",Data_BeeindigingsdatumVastOntslag015) ->  | BY38: =IF(Data_LoonkostenVastOntslag015="","",Data_LoonkostenVastOntslag015) ->  | CA38: =IF(Data_PersoonAanUitVastOntslag015=-1,"v","") ->  | CC38: v | CH38: 0 | CI38: 0
H39: =IF(Data_NaamPersoonNatVerloop016="","",Data_NaamPersoonNatVerloop016) ->  | K39: =IF(Data_BeeindigingsdatumNatVerloop016="","",Data_BeeindigingsdatumNatVerloop016) ->  | N39: =IF(Data_LoonkostenNatVerloop016="","",Data_LoonkostenNatVerloop016) ->  | P39: v | R39: v | W39: 0 | AG39: =IF(Data_NaamPersoonTijd016="","",Data_NaamPersoonTijd016) ->  | AJ39: =IF(Data_BeeindigingsdatumTijd016="","",Data_BeeindigingsdatumTijd016) ->  | AM39: =IF(Data_LoonkostenTijd016="","",Data_LoonkostenTijd016) ->  | AO39: =IF(Data_PersoonAanUitTijd016=-1,"v","") ->  | AQ39: v | AV39: 0 | AW39: 0 | BA39: =IF(Data_NaamPersoonVastVrij016="","",Data_NaamPersoonVastVrij016) ->  | BD39: =IF(Data_BeeindigingsdatumVastVrij016="","",Data_BeeindigingsdatumVastVrij016) ->  | BG39: =IF(Data_LoonkostenVastVrij016="","",Data_LoonkostenVastVrij016) ->  | BI39: =IF(Data_PersoonAanUitVastVrij016=-1,"v","") ->  | BK39: v | BP39: 0 | BQ39: 0 | BS39: =IF(Data_NaamPersoonVastOntslag016="","",Data_NaamPersoonVastOntslag016) ->  | BV39: =IF(Data_BeeindigingsdatumVastOntslag016="","",Data_BeeindigingsdatumVastOntslag016) ->  | BY39: =IF(Data_LoonkostenVastOntslag016="","",Data_LoonkostenVastOntslag016) ->  | CA39: =IF(Data_PersoonAanUitVastOntslag016=-1,"v","") ->  | CC39: v | CH39: 0 | CI39: 0
H40: =IF(Data_NaamPersoonNatVerloop017="","",Data_NaamPersoonNatVerloop017) ->  | K40: =IF(Data_BeeindigingsdatumNatVerloop017="","",Data_BeeindigingsdatumNatVerloop017) ->  | N40: =IF(Data_LoonkostenNatVerloop017="","",Data_LoonkostenNatVerloop017) ->  | P40: v | R40: v | W40: 0 | AG40: =IF(Data_NaamPersoonTijd017="","",Data_NaamPersoonTijd017) ->  | AJ40: =IF(Data_BeeindigingsdatumTijd017="","",Data_BeeindigingsdatumTijd017) ->  | AM40: =IF(Data_LoonkostenTijd017="","",Data_LoonkostenTijd017) ->  | AO40: =IF(Data_PersoonAanUitTijd017=-1,"v","") ->  | AQ40: v | AV40: 0 | AW40: 0 | BA40: =IF(Data_NaamPersoonVastVrij017="","",Data_NaamPersoonVastVrij017) ->  | BD40: =IF(Data_BeeindigingsdatumVastVrij017="","",Data_BeeindigingsdatumVastVrij017) ->  | BG40: =IF(Data_LoonkostenVastVrij017="","",Data_LoonkostenVastVrij017) ->  | BI40: =IF(Data_PersoonAanUitVastVrij017=-1,"v","") ->  | BK40: v | BP40: 0 | BQ40: 0 | BS40: =IF(Data_NaamPersoonVastOntslag017="","",Data_NaamPersoonVastOntslag017) ->  | BV40: =IF(Data_BeeindigingsdatumVastOntslag017="","",Data_BeeindigingsdatumVastOntslag017) ->  | BY40: =IF(Data_LoonkostenVastOntslag017="","",Data_LoonkostenVastOntslag017) ->  | CA40: =IF(Data_PersoonAanUitVastOntslag017=-1,"v","") ->  | CC40: v | CH40: 0 | CI40: 0
H41: =IF(Data_NaamPersoonNatVerloop018="","",Data_NaamPersoonNatVerloop018) ->  | K41: =IF(Data_BeeindigingsdatumNatVerloop018="","",Data_BeeindigingsdatumNatVerloop018) ->  | N41: =IF(Data_LoonkostenNatVerloop018="","",Data_LoonkostenNatVerloop018) ->  | P41: v | R41: v | W41: 0 | AG41: =IF(Data_NaamPersoonTijd018="","",Data_NaamPersoonTijd018) ->  | AJ41: =IF(Data_BeeindigingsdatumTijd018="","",Data_BeeindigingsdatumTijd018) ->  | AM41: =IF(Data_LoonkostenTijd018="","",Data_LoonkostenTijd018) ->  | AO41: =IF(Data_PersoonAanUitTijd018=-1,"v","") ->  | AQ41: v | AV41: 0 | AW41: 0 | BA41: =IF(Data_NaamPersoonVastVrij018="","",Data_NaamPersoonVastVrij018) ->  | BD41: =IF(Data_BeeindigingsdatumVastVrij018="","",Data_BeeindigingsdatumVastVrij018) ->  | BG41: =IF(Data_LoonkostenVastVrij018="","",Data_LoonkostenVastVrij018) ->  | BI41: =IF(Data_PersoonAanUitVastVrij018=-1,"v","") ->  | BK41: v | BP41: 0 | BQ41: 0 | BS41: =IF(Data_NaamPersoonVastOntslag018="","",Data_NaamPersoonVastOntslag018) ->  | BV41: =IF(Data_BeeindigingsdatumVastOntslag018="","",Data_BeeindigingsdatumVastOntslag018) ->  | BY41: =IF(Data_LoonkostenVastOntslag018="","",Data_LoonkostenVastOntslag018) ->  | CA41: =IF(Data_PersoonAanUitVastOntslag018=-1,"v","") ->  | CC41: v | CH41: 0 | CI41: 0
H42: =IF(Data_NaamPersoonNatVerloop019="","",Data_NaamPersoonNatVerloop019) ->  | K42: =IF(Data_BeeindigingsdatumNatVerloop019="","",Data_BeeindigingsdatumNatVerloop019) ->  | N42: =IF(Data_LoonkostenNatVerloop019="","",Data_LoonkostenNatVerloop019) ->  | P42: v | R42: v | W42: 0 | AG42: =IF(Data_NaamPersoonTijd019="","",Data_NaamPersoonTijd019) ->  | AJ42: =IF(Data_BeeindigingsdatumTijd019="","",Data_BeeindigingsdatumTijd019) ->  | AM42: =IF(Data_LoonkostenTijd019="","",Data_LoonkostenTijd019) ->  | AO42: =IF(Data_PersoonAanUitTijd019=-1,"v","") ->  | AQ42: v | AV42: 0 | AW42: 0 | BA42: =IF(Data_NaamPersoonVastVrij019="","",Data_NaamPersoonVastVrij019) ->  | BD42: =IF(Data_BeeindigingsdatumVastVrij019="","",Data_BeeindigingsdatumVastVrij019) ->  | BG42: =IF(Data_LoonkostenVastVrij019="","",Data_LoonkostenVastVrij019) ->  | BI42: =IF(Data_PersoonAanUitVastVrij019=-1,"v","") ->  | BK42: v | BP42: 0 | BQ42: 0 | BS42: =IF(Data_NaamPersoonVastOntslag019="","",Data_NaamPersoonVastOntslag019) ->  | BV42: =IF(Data_BeeindigingsdatumVastOntslag019="","",Data_BeeindigingsdatumVastOntslag019) ->  | BY42: =IF(Data_LoonkostenVastOntslag019="","",Data_LoonkostenVastOntslag019) ->  | CA42: =IF(Data_PersoonAanUitVastOntslag019=-1,"v","") ->  | CC42: v | CH42: 0 | CI42: 0
H43: =IF(Data_NaamPersoonNatVerloop020="","",Data_NaamPersoonNatVerloop020) ->  | K43: =IF(Data_BeeindigingsdatumNatVerloop020="","",Data_BeeindigingsdatumNatVerloop020) ->  | N43: =IF(Data_LoonkostenNatVerloop020="","",Data_LoonkostenNatVerloop020) ->  | P43: v | R43: v | W43: 0 | AG43: =IF(Data_NaamPersoonTijd020="","",Data_NaamPersoonTijd020) ->  | AJ43: =IF(Data_BeeindigingsdatumTijd020="","",Data_BeeindigingsdatumTijd020) ->  | AM43: =IF(Data_LoonkostenTijd020="","",Data_LoonkostenTijd020) ->  | AO43: =IF(Data_PersoonAanUitTijd020=-1,"v","") ->  | AQ43: v | AV43: 0 | AW43: 0 | BA43: =IF(Data_NaamPersoonVastVrij020="","",Data_NaamPersoonVastVrij020) ->  | BD43: =IF(Data_BeeindigingsdatumVastVrij020="","",Data_BeeindigingsdatumVastVrij020) ->  | BG43: =IF(Data_LoonkostenVastVrij020="","",Data_LoonkostenVastVrij020) ->  | BI43: =IF(Data_PersoonAanUitVastVrij020=-1,"v","") ->  | BK43: v | BP43: 0 | BQ43: 0 | BS43: =IF(Data_NaamPersoonVastOntslag020="","",Data_NaamPersoonVastOntslag020) ->  | BV43: =IF(Data_BeeindigingsdatumVastOntslag020="","",Data_BeeindigingsdatumVastOntslag020) ->  | BY43: =IF(Data_LoonkostenVastOntslag020="","",Data_LoonkostenVastOntslag020) ->  | CA43: =IF(Data_PersoonAanUitVastOntslag020=-1,"v","") ->  | CC43: v | CH43: 0 | CI43: 0
H44: =IF(Data_NaamPersoonNatVerloop021="","",Data_NaamPersoonNatVerloop021) ->  | K44: =IF(Data_BeeindigingsdatumNatVerloop021="","",Data_BeeindigingsdatumNatVerloop021) ->  | N44: =IF(Data_LoonkostenNatVerloop021="","",Data_LoonkostenNatVerloop021) ->  | P44: v | R44: v | W44: 0 | AG44: =IF(Data_NaamPersoonTijd021="","",Data_NaamPersoonTijd021) ->  | AJ44: =IF(Data_BeeindigingsdatumTijd021="","",Data_BeeindigingsdatumTijd021) ->  | AM44: =IF(Data_LoonkostenTijd021="","",Data_LoonkostenTijd021) ->  | AO44: =IF(Data_PersoonAanUitTijd021=-1,"v","") ->  | AQ44: v | AV44: 0 | AW44: 0 | BA44: =IF(Data_NaamPersoonVastVrij021="","",Data_NaamPersoonVastVrij021) ->  | BD44: =IF(Data_BeeindigingsdatumVastVrij021="","",Data_BeeindigingsdatumVastVrij021) ->  | BG44: =IF(Data_LoonkostenVastVrij021="","",Data_LoonkostenVastVrij021) ->  | BI44: =IF(Data_PersoonAanUitVastVrij021=-1,"v","") ->  | BK44: v | BP44: 0 | BQ44: 0 | BS44: =IF(Data_NaamPersoonVastOntslag021="","",Data_NaamPersoonVastOntslag021) ->  | BV44: =IF(Data_BeeindigingsdatumVastOntslag021="","",Data_BeeindigingsdatumVastOntslag021) ->  | BY44: =IF(Data_LoonkostenVastOntslag021="","",Data_LoonkostenVastOntslag021) ->  | CA44: =IF(Data_PersoonAanUitVastOntslag021=-1,"v","") ->  | CC44: v | CH44: 0 | CI44: 0
H45: =IF(Data_NaamPersoonNatVerloop022="","",Data_NaamPersoonNatVerloop022) ->  | K45: =IF(Data_BeeindigingsdatumNatVerloop022="","",Data_BeeindigingsdatumNatVerloop022) ->  | N45: =IF(Data_LoonkostenNatVerloop022="","",Data_LoonkostenNatVerloop022) ->  | P45: v | R45: v | W45: 0 | AG45: =IF(Data_NaamPersoonTijd022="","",Data_NaamPersoonTijd022) ->  | AJ45: =IF(Data_BeeindigingsdatumTijd022="","",Data_BeeindigingsdatumTijd022) ->  | AM45: =IF(Data_LoonkostenTijd022="","",Data_LoonkostenTijd022) ->  | AO45: =IF(Data_PersoonAanUitTijd022=-1,"v","") ->  | AQ45: v | AV45: 0 | AW45: 0 | BA45: =IF(Data_NaamPersoonVastVrij022="","",Data_NaamPersoonVastVrij022) ->  | BD45: =IF(Data_BeeindigingsdatumVastVrij022="","",Data_BeeindigingsdatumVastVrij022) ->  | BG45: =IF(Data_LoonkostenVastVrij022="","",Data_LoonkostenVastVrij022) ->  | BI45: =IF(Data_PersoonAanUitVastVrij022=-1,"v","") ->  | BK45: v | BP45: 0 | BQ45: 0 | BS45: =IF(Data_NaamPersoonVastOntslag022="","",Data_NaamPersoonVastOntslag022) ->  | BV45: =IF(Data_BeeindigingsdatumVastOntslag022="","",Data_BeeindigingsdatumVastOntslag022) ->  | BY45: =IF(Data_LoonkostenVastOntslag022="","",Data_LoonkostenVastOntslag022) ->  | CA45: =IF(Data_PersoonAanUitVastOntslag022=-1,"v","") ->  | CC45: v | CH45: 0 | CI45: 0
H46: =IF(Data_NaamPersoonNatVerloop023="","",Data_NaamPersoonNatVerloop023) ->  | K46: =IF(Data_BeeindigingsdatumNatVerloop023="","",Data_BeeindigingsdatumNatVerloop023) ->  | N46: =IF(Data_LoonkostenNatVerloop023="","",Data_LoonkostenNatVerloop023) ->  | P46: v | R46: v | W46: 0 | AG46: =IF(Data_NaamPersoonTijd023="","",Data_NaamPersoonTijd023) ->  | AJ46: =IF(Data_BeeindigingsdatumTijd023="","",Data_BeeindigingsdatumTijd023) ->  | AM46: =IF(Data_LoonkostenTijd023="","",Data_LoonkostenTijd023) ->  | AO46: =IF(Data_PersoonAanUitTijd023=-1,"v","") ->  | AQ46: v | AV46: 0 | AW46: 0 | BA46: =IF(Data_NaamPersoonVastVrij023="","",Data_NaamPersoonVastVrij023) ->  | BD46: =IF(Data_BeeindigingsdatumVastVrij023="","",Data_BeeindigingsdatumVastVrij023) ->  | BG46: =IF(Data_LoonkostenVastVrij023="","",Data_LoonkostenVastVrij023) ->  | BI46: =IF(Data_PersoonAanUitVastVrij023=-1,"v","") ->  | BK46: v | BP46: 0 | BQ46: 0 | BS46: =IF(Data_NaamPersoonVastOntslag023="","",Data_NaamPersoonVastOntslag023) ->  | BV46: =IF(Data_BeeindigingsdatumVastOntslag023="","",Data_BeeindigingsdatumVastOntslag023) ->  | BY46: =IF(Data_LoonkostenVastOntslag023="","",Data_LoonkostenVastOntslag023) ->  | CA46: =IF(Data_PersoonAanUitVastOntslag023=-1,"v","") ->  | CC46: v | CH46: 0 | CI46: 0
H47: =IF(Data_NaamPersoonNatVerloop024="","",Data_NaamPersoonNatVerloop024) ->  | K47: =IF(Data_BeeindigingsdatumNatVerloop024="","",Data_BeeindigingsdatumNatVerloop024) ->  | N47: =IF(Data_LoonkostenNatVerloop024="","",Data_LoonkostenNatVerloop024) ->  | P47: v | R47: v | W47: 0 | AG47: =IF(Data_NaamPersoonTijd024="","",Data_NaamPersoonTijd024) ->  | AJ47: =IF(Data_BeeindigingsdatumTijd024="","",Data_BeeindigingsdatumTijd024) ->  | AM47: =IF(Data_LoonkostenTijd024="","",Data_LoonkostenTijd024) ->  | AO47: =IF(Data_PersoonAanUitTijd024=-1,"v","") ->  | AQ47: v | AV47: 0 | AW47: 0 | BA47: =IF(Data_NaamPersoonVastVrij024="","",Data_NaamPersoonVastVrij024) ->  | BD47: =IF(Data_BeeindigingsdatumVastVrij024="","",Data_BeeindigingsdatumVastVrij024) ->  | BG47: =IF(Data_LoonkostenVastVrij024="","",Data_LoonkostenVastVrij024) ->  | BI47: =IF(Data_PersoonAanUitVastVrij024=-1,"v","") ->  | BK47: v | BP47: 0 | BQ47: 0 | BS47: =IF(Data_NaamPersoonVastOntslag024="","",Data_NaamPersoonVastOntslag024) ->  | BV47: =IF(Data_BeeindigingsdatumVastOntslag024="","",Data_BeeindigingsdatumVastOntslag024) ->  | BY47: =IF(Data_LoonkostenVastOntslag024="","",Data_LoonkostenVastOntslag024) ->  | CA47: =IF(Data_PersoonAanUitVastOntslag024=-1,"v","") ->  | CC47: v | CH47: 0 | CI47: 0
H48: =IF(Data_NaamPersoonNatVerloop025="","",Data_NaamPersoonNatVerloop025) ->  | K48: =IF(Data_BeeindigingsdatumNatVerloop025="","",Data_BeeindigingsdatumNatVerloop025) ->  | N48: =IF(Data_LoonkostenNatVerloop025="","",Data_LoonkostenNatVerloop025) ->  | P48: v | R48: v | W48: 0 | AG48: =IF(Data_NaamPersoonTijd025="","",Data_NaamPersoonTijd025) ->  | AJ48: =IF(Data_BeeindigingsdatumTijd025="","",Data_BeeindigingsdatumTijd025) ->  | AM48: =IF(Data_LoonkostenTijd025="","",Data_LoonkostenTijd025) ->  | AO48: =IF(Data_PersoonAanUitTijd025=-1,"v","") ->  | AQ48: v | AV48: 0 | AW48: 0 | BA48: =IF(Data_NaamPersoonVastVrij025="","",Data_NaamPersoonVastVrij025) ->  | BD48: =IF(Data_BeeindigingsdatumVastVrij025="","",Data_BeeindigingsdatumVastVrij025) ->  | BG48: =IF(Data_LoonkostenVastVrij025="","",Data_LoonkostenVastVrij025) ->  | BI48: =IF(Data_PersoonAanUitVastVrij025=-1,"v","") ->  | BK48: v | BP48: 0 | BQ48: 0 | BS48: =IF(Data_NaamPersoonVastOntslag025="","",Data_NaamPersoonVastOntslag025) ->  | BV48: =IF(Data_BeeindigingsdatumVastOntslag025="","",Data_BeeindigingsdatumVastOntslag025) ->  | BY48: =IF(Data_LoonkostenVastOntslag025="","",Data_LoonkostenVastOntslag025) ->  | CA48: =IF(Data_PersoonAanUitVastOntslag025=-1,"v","") ->  | CC48: v | CH48: 0 | CI48: 0
H49: =IF(Data_NaamPersoonNatVerloop026="","",Data_NaamPersoonNatVerloop026) ->  | K49: =IF(Data_BeeindigingsdatumNatVerloop026="","",Data_BeeindigingsdatumNatVerloop026) ->  | N49: =IF(Data_LoonkostenNatVerloop026="","",Data_LoonkostenNatVerloop026) ->  | P49: v | R49: v | W49: 0 | AG49: =IF(Data_NaamPersoonTijd026="","",Data_NaamPersoonTijd026) ->  | AJ49: =IF(Data_BeeindigingsdatumTijd026="","",Data_BeeindigingsdatumTijd026) ->  | AM49: =IF(Data_LoonkostenTijd026="","",Data_LoonkostenTijd026) ->  | AO49: =IF(Data_PersoonAanUitTijd026=-1,"v","") ->  | AQ49: v | AV49: 0 | AW49: 0 | BA49: =IF(Data_NaamPersoonVastVrij026="","",Data_NaamPersoonVastVrij026) ->  | BD49: =IF(Data_BeeindigingsdatumVastVrij026="","",Data_BeeindigingsdatumVastVrij026) ->  | BG49: =IF(Data_LoonkostenVastVrij026="","",Data_LoonkostenVastVrij026) ->  | BI49: =IF(Data_PersoonAanUitVastVrij026=-1,"v","") ->  | BK49: v | BP49: 0 | BQ49: 0 | BS49: =IF(Data_NaamPersoonVastOntslag026="","",Data_NaamPersoonVastOntslag026) ->  | BV49: =IF(Data_BeeindigingsdatumVastOntslag026="","",Data_BeeindigingsdatumVastOntslag026) ->  | BY49: =IF(Data_LoonkostenVastOntslag026="","",Data_LoonkostenVastOntslag026) ->  | CA49: =IF(Data_PersoonAanUitVastOntslag026=-1,"v","") ->  | CC49: v | CH49: 0 | CI49: 0
H50: =IF(Data_NaamPersoonNatVerloop027="","",Data_NaamPersoonNatVerloop027) ->  | K50: =IF(Data_BeeindigingsdatumNatVerloop027="","",Data_BeeindigingsdatumNatVerloop027) ->  | N50: =IF(Data_LoonkostenNatVerloop027="","",Data_LoonkostenNatVerloop027) ->  | P50: v | R50: v | W50: 0 | AG50: =IF(Data_NaamPersoonTijd027="","",Data_NaamPersoonTijd027) ->  | AJ50: =IF(Data_BeeindigingsdatumTijd027="","",Data_BeeindigingsdatumTijd027) ->  | AM50: =IF(Data_LoonkostenTijd027="","",Data_LoonkostenTijd027) ->  | AO50: =IF(Data_PersoonAanUitTijd027=-1,"v","") ->  | AQ50: v | AV50: 0 | AW50: 0 | BA50: =IF(Data_NaamPersoonVastVrij027="","",Data_NaamPersoonVastVrij027) ->  | BD50: =IF(Data_BeeindigingsdatumVastVrij027="","",Data_BeeindigingsdatumVastVrij027) ->  | BG50: =IF(Data_LoonkostenVastVrij027="","",Data_LoonkostenVastVrij027) ->  | BI50: =IF(Data_PersoonAanUitVastVrij027=-1,"v","") ->  | BK50: v | BP50: 0 | BQ50: 0 | BS50: =IF(Data_NaamPersoonVastOntslag027="","",Data_NaamPersoonVastOntslag027) ->  | BV50: =IF(Data_BeeindigingsdatumVastOntslag027="","",Data_BeeindigingsdatumVastOntslag027) ->  | BY50: =IF(Data_LoonkostenVastOntslag027="","",Data_LoonkostenVastOntslag027) ->  | CA50: =IF(Data_PersoonAanUitVastOntslag027=-1,"v","") ->  | CC50: v | CH50: 0 | CI50: 0
H51: =IF(Data_NaamPersoonNatVerloop028="","",Data_NaamPersoonNatVerloop028) ->  | K51: =IF(Data_BeeindigingsdatumNatVerloop028="","",Data_BeeindigingsdatumNatVerloop028) ->  | N51: =IF(Data_LoonkostenNatVerloop028="","",Data_LoonkostenNatVerloop028) ->  | P51: v | R51: v | W51: 0 | AG51: =IF(Data_NaamPersoonTijd028="","",Data_NaamPersoonTijd028) ->  | AJ51: =IF(Data_BeeindigingsdatumTijd028="","",Data_BeeindigingsdatumTijd028) ->  | AM51: =IF(Data_LoonkostenTijd028="","",Data_LoonkostenTijd028) ->  | AO51: =IF(Data_PersoonAanUitTijd028=-1,"v","") ->  | AQ51: v | AV51: 0 | AW51: 0 | BA51: =IF(Data_NaamPersoonVastVrij028="","",Data_NaamPersoonVastVrij028) ->  | BD51: =IF(Data_BeeindigingsdatumVastVrij028="","",Data_BeeindigingsdatumVastVrij028) ->  | BG51: =IF(Data_LoonkostenVastVrij028="","",Data_LoonkostenVastVrij028) ->  | BI51: =IF(Data_PersoonAanUitVastVrij028=-1,"v","") ->  | BK51: v | BP51: 0 | BQ51: 0 | BS51: =IF(Data_NaamPersoonVastOntslag028="","",Data_NaamPersoonVastOntslag028) ->  | BV51: =IF(Data_BeeindigingsdatumVastOntslag028="","",Data_BeeindigingsdatumVastOntslag028) ->  | BY51: =IF(Data_LoonkostenVastOntslag028="","",Data_LoonkostenVastOntslag028) ->  | CA51: =IF(Data_PersoonAanUitVastOntslag028=-1,"v","") ->  | CC51: v | CH51: 0 | CI51: 0
H52: =IF(Data_NaamPersoonNatVerloop029="","",Data_NaamPersoonNatVerloop029) ->  | K52: =IF(Data_BeeindigingsdatumNatVerloop029="","",Data_BeeindigingsdatumNatVerloop029) ->  | N52: =IF(Data_LoonkostenNatVerloop029="","",Data_LoonkostenNatVerloop029) ->  | P52: v | R52: v | W52: 0 | AG52: =IF(Data_NaamPersoonTijd029="","",Data_NaamPersoonTijd029) ->  | AJ52: =IF(Data_BeeindigingsdatumTijd029="","",Data_BeeindigingsdatumTijd029) ->  | AM52: =IF(Data_LoonkostenTijd029="","",Data_LoonkostenTijd029) ->  | AO52: =IF(Data_PersoonAanUitTijd029=-1,"v","") ->  | AQ52: v | AV52: 0 | AW52: 0 | BA52: =IF(Data_NaamPersoonVastVrij029="","",Data_NaamPersoonVastVrij029) ->  | BD52: =IF(Data_BeeindigingsdatumVastVrij029="","",Data_BeeindigingsdatumVastVrij029) ->  | BG52: =IF(Data_LoonkostenVastVrij029="","",Data_LoonkostenVastVrij029) ->  | BI52: =IF(Data_PersoonAanUitVastVrij029=-1,"v","") ->  | BK52: v | BP52: 0 | BQ52: 0 | BS52: =IF(Data_NaamPersoonVastOntslag029="","",Data_NaamPersoonVastOntslag029) ->  | BV52: =IF(Data_BeeindigingsdatumVastOntslag029="","",Data_BeeindigingsdatumVastOntslag029) ->  | BY52: =IF(Data_LoonkostenVastOntslag029="","",Data_LoonkostenVastOntslag029) ->  | CA52: =IF(Data_PersoonAanUitVastOntslag029=-1,"v","") ->  | CC52: v | CH52: 0 | CI52: 0
H53: =IF(Data_NaamPersoonNatVerloop030="","",Data_NaamPersoonNatVerloop030) ->  | K53: =IF(Data_BeeindigingsdatumNatVerloop030="","",Data_BeeindigingsdatumNatVerloop030) ->  | N53: =IF(Data_LoonkostenNatVerloop030="","",Data_LoonkostenNatVerloop030) ->  | P53: v | R53: v | W53: 0 | AG53: =IF(Data_NaamPersoonTijd030="","",Data_NaamPersoonTijd030) ->  | AJ53: =IF(Data_BeeindigingsdatumTijd030="","",Data_BeeindigingsdatumTijd030) ->  | AM53: =IF(Data_LoonkostenTijd030="","",Data_LoonkostenTijd030) ->  | AO53: =IF(Data_PersoonAanUitTijd030=-1,"v","") ->  | AQ53: v | AV53: 0 | AW53: 0 | BA53: =IF(Data_NaamPersoonVastVrij030="","",Data_NaamPersoonVastVrij030) ->  | BD53: =IF(Data_BeeindigingsdatumVastVrij030="","",Data_BeeindigingsdatumVastVrij030) ->  | BG53: =IF(Data_LoonkostenVastVrij030="","",Data_LoonkostenVastVrij030) ->  | BI53: =IF(Data_PersoonAanUitVastVrij030=-1,"v","") ->  | BK53: v | BP53: 0 | BQ53: 0 | BS53: =IF(Data_NaamPersoonVastOntslag030="","",Data_NaamPersoonVastOntslag030) ->  | BV53: =IF(Data_BeeindigingsdatumVastOntslag030="","",Data_BeeindigingsdatumVastOntslag030) ->  | BY53: =IF(Data_LoonkostenVastOntslag030="","",Data_LoonkostenVastOntslag030) ->  | CA53: =IF(Data_PersoonAanUitVastOntslag030=-1,"v","") ->  | CC53: v | CH53: 0 | CI53: 0
H54: =IF(Data_NaamPersoonNatVerloop031="","",Data_NaamPersoonNatVerloop031) ->  | K54: =IF(Data_BeeindigingsdatumNatVerloop031="","",Data_BeeindigingsdatumNatVerloop031) ->  | N54: =IF(Data_LoonkostenNatVerloop031="","",Data_LoonkostenNatVerloop031) ->  | P54: v | R54: v | W54: 0 | AG54: =IF(Data_NaamPersoonTijd031="","",Data_NaamPersoonTijd031) ->  | AJ54: =IF(Data_BeeindigingsdatumTijd031="","",Data_BeeindigingsdatumTijd031) ->  | AM54: =IF(Data_LoonkostenTijd031="","",Data_LoonkostenTijd031) ->  | AO54: =IF(Data_PersoonAanUitTijd031=-1,"v","") ->  | AQ54: v | AV54: 0 | AW54: 0 | BA54: =IF(Data_NaamPersoonVastVrij031="","",Data_NaamPersoonVastVrij031) ->  | BD54: =IF(Data_BeeindigingsdatumVastVrij031="","",Data_BeeindigingsdatumVastVrij031) ->  | BG54: =IF(Data_LoonkostenVastVrij031="","",Data_LoonkostenVastVrij031) ->  | BI54: =IF(Data_PersoonAanUitVastVrij031=-1,"v","") ->  | BK54: v | BP54: 0 | BQ54: 0 | BS54: =IF(Data_NaamPersoonVastOntslag031="","",Data_NaamPersoonVastOntslag031) ->  | BV54: =IF(Data_BeeindigingsdatumVastOntslag031="","",Data_BeeindigingsdatumVastOntslag031) ->  | BY54: =IF(Data_LoonkostenVastOntslag031="","",Data_LoonkostenVastOntslag031) ->  | CA54: =IF(Data_PersoonAanUitVastOntslag031=-1,"v","") ->  | CC54: v | CH54: 0 | CI54: 0
H55: =IF(Data_NaamPersoonNatVerloop032="","",Data_NaamPersoonNatVerloop032) ->  | K55: =IF(Data_BeeindigingsdatumNatVerloop032="","",Data_BeeindigingsdatumNatVerloop032) ->  | N55: =IF(Data_LoonkostenNatVerloop032="","",Data_LoonkostenNatVerloop032) ->  | P55: v | R55: v | W55: 0 | AG55: =IF(Data_NaamPersoonTijd032="","",Data_NaamPersoonTijd032) ->  | AJ55: =IF(Data_BeeindigingsdatumTijd032="","",Data_BeeindigingsdatumTijd032) ->  | AM55: =IF(Data_LoonkostenTijd032="","",Data_LoonkostenTijd032) ->  | AO55: =IF(Data_PersoonAanUitTijd032=-1,"v","") ->  | AQ55: v | AV55: 0 | AW55: 0 | BA55: =IF(Data_NaamPersoonVastVrij032="","",Data_NaamPersoonVastVrij032) ->  | BD55: =IF(Data_BeeindigingsdatumVastVrij032="","",Data_BeeindigingsdatumVastVrij032) ->  | BG55: =IF(Data_LoonkostenVastVrij032="","",Data_LoonkostenVastVrij032) ->  | BI55: =IF(Data_PersoonAanUitVastVrij032=-1,"v","") ->  | BK55: v | BP55: 0 | BQ55: 0 | BS55: =IF(Data_NaamPersoonVastOntslag032="","",Data_NaamPersoonVastOntslag032) ->  | BV55: =IF(Data_BeeindigingsdatumVastOntslag032="","",Data_BeeindigingsdatumVastOntslag032) ->  | BY55: =IF(Data_LoonkostenVastOntslag032="","",Data_LoonkostenVastOntslag032) ->  | CA55: =IF(Data_PersoonAanUitVastOntslag032=-1,"v","") ->  | CC55: v | CH55: 0 | CI55: 0
H56: =IF(Data_NaamPersoonNatVerloop033="","",Data_NaamPersoonNatVerloop033) ->  | K56: =IF(Data_BeeindigingsdatumNatVerloop033="","",Data_BeeindigingsdatumNatVerloop033) ->  | N56: =IF(Data_LoonkostenNatVerloop033="","",Data_LoonkostenNatVerloop033) ->  | P56: v | R56: v | W56: 0 | AG56: =IF(Data_NaamPersoonTijd033="","",Data_NaamPersoonTijd033) ->  | AJ56: =IF(Data_BeeindigingsdatumTijd033="","",Data_BeeindigingsdatumTijd033) ->  | AM56: =IF(Data_LoonkostenTijd033="","",Data_LoonkostenTijd033) ->  | AO56: =IF(Data_PersoonAanUitTijd033=-1,"v","") ->  | AQ56: v | AV56: 0 | AW56: 0 | BA56: =IF(Data_NaamPersoonVastVrij033="","",Data_NaamPersoonVastVrij033) ->  | BD56: =IF(Data_BeeindigingsdatumVastVrij033="","",Data_BeeindigingsdatumVastVrij033) ->  | BG56: =IF(Data_LoonkostenVastVrij033="","",Data_LoonkostenVastVrij033) ->  | BI56: =IF(Data_PersoonAanUitVastVrij033=-1,"v","") ->  | BK56: v | BP56: 0 | BQ56: 0 | BS56: =IF(Data_NaamPersoonVastOntslag033="","",Data_NaamPersoonVastOntslag033) ->  | BV56: =IF(Data_BeeindigingsdatumVastOntslag033="","",Data_BeeindigingsdatumVastOntslag033) ->  | BY56: =IF(Data_LoonkostenVastOntslag033="","",Data_LoonkostenVastOntslag033) ->  | CA56: =IF(Data_PersoonAanUitVastOntslag033=-1,"v","") ->  | CC56: v | CH56: 0 | CI56: 0
H57: =IF(Data_NaamPersoonNatVerloop034="","",Data_NaamPersoonNatVerloop034) ->  | K57: =IF(Data_BeeindigingsdatumNatVerloop034="","",Data_BeeindigingsdatumNatVerloop034) ->  | N57: =IF(Data_LoonkostenNatVerloop034="","",Data_LoonkostenNatVerloop034) ->  | P57: v | R57: v | W57: 0 | AG57: =IF(Data_NaamPersoonTijd034="","",Data_NaamPersoonTijd034) ->  | AJ57: =IF(Data_BeeindigingsdatumTijd034="","",Data_BeeindigingsdatumTijd034) ->  | AM57: =IF(Data_LoonkostenTijd034="","",Data_LoonkostenTijd034) ->  | AO57: =IF(Data_PersoonAanUitTijd034=-1,"v","") ->  | AQ57: v | AV57: 0 | AW57: 0 | BA57: =IF(Data_NaamPersoonVastVrij034="","",Data_NaamPersoonVastVrij034) ->  | BD57: =IF(Data_BeeindigingsdatumVastVrij034="","",Data_BeeindigingsdatumVastVrij034) ->  | BG57: =IF(Data_LoonkostenVastVrij034="","",Data_LoonkostenVastVrij034) ->  | BI57: =IF(Data_PersoonAanUitVastVrij034=-1,"v","") ->  | BK57: v | BP57: 0 | BQ57: 0 | BS57: =IF(Data_NaamPersoonVastOntslag034="","",Data_NaamPersoonVastOntslag034) ->  | BV57: =IF(Data_BeeindigingsdatumVastOntslag034="","",Data_BeeindigingsdatumVastOntslag034) ->  | BY57: =IF(Data_LoonkostenVastOntslag034="","",Data_LoonkostenVastOntslag034) ->  | CA57: =IF(Data_PersoonAanUitVastOntslag034=-1,"v","") ->  | CC57: v | CH57: 0 | CI57: 0
H58: =IF(Data_NaamPersoonNatVerloop035="","",Data_NaamPersoonNatVerloop035) ->  | K58: =IF(Data_BeeindigingsdatumNatVerloop035="","",Data_BeeindigingsdatumNatVerloop035) ->  | N58: =IF(Data_LoonkostenNatVerloop035="","",Data_LoonkostenNatVerloop035) ->  | P58: v | R58: v | W58: 0 | AG58: =IF(Data_NaamPersoonTijd035="","",Data_NaamPersoonTijd035) ->  | AJ58: =IF(Data_BeeindigingsdatumTijd035="","",Data_BeeindigingsdatumTijd035) ->  | AM58: =IF(Data_LoonkostenTijd035="","",Data_LoonkostenTijd035) ->  | AO58: =IF(Data_PersoonAanUitTijd035=-1,"v","") ->  | AQ58: v | AV58: 0 | AW58: 0 | BA58: =IF(Data_NaamPersoonVastVrij035="","",Data_NaamPersoonVastVrij035) ->  | BD58: =IF(Data_BeeindigingsdatumVastVrij035="","",Data_BeeindigingsdatumVastVrij035) ->  | BG58: =IF(Data_LoonkostenVastVrij035="","",Data_LoonkostenVastVrij035) ->  | BI58: =IF(Data_PersoonAanUitVastVrij035=-1,"v","") ->  | BK58: v | BP58: 0 | BQ58: 0 | BS58: =IF(Data_NaamPersoonVastOntslag035="","",Data_NaamPersoonVastOntslag035) ->  | BV58: =IF(Data_BeeindigingsdatumVastOntslag035="","",Data_BeeindigingsdatumVastOntslag035) ->  | BY58: =IF(Data_LoonkostenVastOntslag035="","",Data_LoonkostenVastOntslag035) ->  | CA58: =IF(Data_PersoonAanUitVastOntslag035=-1,"v","") ->  | CC58: v | CH58: 0 | CI58: 0
H59: =IF(Data_NaamPersoonNatVerloop036="","",Data_NaamPersoonNatVerloop036) ->  | K59: =IF(Data_BeeindigingsdatumNatVerloop036="","",Data_BeeindigingsdatumNatVerloop036) ->  | N59: =IF(Data_LoonkostenNatVerloop036="","",Data_LoonkostenNatVerloop036) ->  | P59: v | R59: v | W59: 0 | AG59: =IF(Data_NaamPersoonTijd036="","",Data_NaamPersoonTijd036) ->  | AJ59: =IF(Data_BeeindigingsdatumTijd036="","",Data_BeeindigingsdatumTijd036) ->  | AM59: =IF(Data_LoonkostenTijd036="","",Data_LoonkostenTijd036) ->  | AO59: =IF(Data_PersoonAanUitTijd036=-1,"v","") ->  | AQ59: v | AV59: 0 | AW59: 0 | BA59: =IF(Data_NaamPersoonVastVrij036="","",Data_NaamPersoonVastVrij036) ->  | BD59: =IF(Data_BeeindigingsdatumVastVrij036="","",Data_BeeindigingsdatumVastVrij036) ->  | BG59: =IF(Data_LoonkostenVastVrij036="","",Data_LoonkostenVastVrij036) ->  | BI59: =IF(Data_PersoonAanUitVastVrij036=-1,"v","") ->  | BK59: v | BP59: 0 | BQ59: 0 | BS59: =IF(Data_NaamPersoonVastOntslag036="","",Data_NaamPersoonVastOntslag036) ->  | BV59: =IF(Data_BeeindigingsdatumVastOntslag036="","",Data_BeeindigingsdatumVastOntslag036) ->  | BY59: =IF(Data_LoonkostenVastOntslag036="","",Data_LoonkostenVastOntslag036) ->  | CA59: =IF(Data_PersoonAanUitVastOntslag036=-1,"v","") ->  | CC59: v | CH59: 0 | CI59: 0
H60: =IF(Data_NaamPersoonNatVerloop037="","",Data_NaamPersoonNatVerloop037) ->  | K60: =IF(Data_BeeindigingsdatumNatVerloop037="","",Data_BeeindigingsdatumNatVerloop037) ->  | N60: =IF(Data_LoonkostenNatVerloop037="","",Data_LoonkostenNatVerloop037) ->  | P60: v | R60: v | W60: 0 | AG60: =IF(Data_NaamPersoonTijd037="","",Data_NaamPersoonTijd037) ->  | AJ60: =IF(Data_BeeindigingsdatumTijd037="","",Data_BeeindigingsdatumTijd037) ->  | AM60: =IF(Data_LoonkostenTijd037="","",Data_LoonkostenTijd037) ->  | AO60: =IF(Data_PersoonAanUitTijd037=-1,"v","") ->  | AQ60: v | AV60: 0 | AW60: 0 | BA60: =IF(Data_NaamPersoonVastVrij037="","",Data_NaamPersoonVastVrij037) ->  | BD60: =IF(Data_BeeindigingsdatumVastVrij037="","",Data_BeeindigingsdatumVastVrij037) ->  | BG60: =IF(Data_LoonkostenVastVrij037="","",Data_LoonkostenVastVrij037) ->  | BI60: =IF(Data_PersoonAanUitVastVrij037=-1,"v","") ->  | BK60: v | BP60: 0 | BQ60: 0 | BS60: =IF(Data_NaamPersoonVastOntslag037="","",Data_NaamPersoonVastOntslag037) ->  | BV60: =IF(Data_BeeindigingsdatumVastOntslag037="","",Data_BeeindigingsdatumVastOntslag037) ->  | BY60: =IF(Data_LoonkostenVastOntslag037="","",Data_LoonkostenVastOntslag037) ->  | CA60: =IF(Data_PersoonAanUitVastOntslag037=-1,"v","") ->  | CC60: v | CH60: 0 | CI60: 0
H61: =IF(Data_NaamPersoonNatVerloop038="","",Data_NaamPersoonNatVerloop038) ->  | K61: =IF(Data_BeeindigingsdatumNatVerloop038="","",Data_BeeindigingsdatumNatVerloop038) ->  | N61: =IF(Data_LoonkostenNatVerloop038="","",Data_LoonkostenNatVerloop038) ->  | P61: v | R61: v | W61: 0 | AG61: =IF(Data_NaamPersoonTijd038="","",Data_NaamPersoonTijd038) ->  | AJ61: =IF(Data_BeeindigingsdatumTijd038="","",Data_BeeindigingsdatumTijd038) ->  | AM61: =IF(Data_LoonkostenTijd038="","",Data_LoonkostenTijd038) ->  | AO61: =IF(Data_PersoonAanUitTijd038=-1,"v","") ->  | AQ61: v | AV61: 0 | AW61: 0 | BA61: =IF(Data_NaamPersoonVastVrij038="","",Data_NaamPersoonVastVrij038) ->  | BD61: =IF(Data_BeeindigingsdatumVastVrij038="","",Data_BeeindigingsdatumVastVrij038) ->  | BG61: =IF(Data_LoonkostenVastVrij038="","",Data_LoonkostenVastVrij038) ->  | BI61: =IF(Data_PersoonAanUitVastVrij038=-1,"v","") ->  | BK61: v | BP61: 0 | BQ61: 0 | BS61: =IF(Data_NaamPersoonVastOntslag038="","",Data_NaamPersoonVastOntslag038) ->  | BV61: =IF(Data_BeeindigingsdatumVastOntslag038="","",Data_BeeindigingsdatumVastOntslag038) ->  | BY61: =IF(Data_LoonkostenVastOntslag038="","",Data_LoonkostenVastOntslag038) ->  | CA61: =IF(Data_PersoonAanUitVastOntslag038=-1,"v","") ->  | CC61: v | CH61: 0 | CI61: 0
H62: =IF(Data_NaamPersoonNatVerloop039="","",Data_NaamPersoonNatVerloop039) ->  | K62: =IF(Data_BeeindigingsdatumNatVerloop039="","",Data_BeeindigingsdatumNatVerloop039) ->  | N62: =IF(Data_LoonkostenNatVerloop039="","",Data_LoonkostenNatVerloop039) ->  | P62: v | R62: v | W62: 0 | AG62: =IF(Data_NaamPersoonTijd039="","",Data_NaamPersoonTijd039) ->  | AJ62: =IF(Data_BeeindigingsdatumTijd039="","",Data_BeeindigingsdatumTijd039) ->  | AM62: =IF(Data_LoonkostenTijd039="","",Data_LoonkostenTijd039) ->  | AO62: =IF(Data_PersoonAanUitTijd039=-1,"v","") ->  | AQ62: v | AV62: 0 | AW62: 0 | BA62: =IF(Data_NaamPersoonVastVrij039="","",Data_NaamPersoonVastVrij039) ->  | BD62: =IF(Data_BeeindigingsdatumVastVrij039="","",Data_BeeindigingsdatumVastVrij039) ->  | BG62: =IF(Data_LoonkostenVastVrij039="","",Data_LoonkostenVastVrij039) ->  | BI62: =IF(Data_PersoonAanUitVastVrij039=-1,"v","") ->  | BK62: v | BP62: 0 | BQ62: 0 | BS62: =IF(Data_NaamPersoonVastOntslag039="","",Data_NaamPersoonVastOntslag039) ->  | BV62: =IF(Data_BeeindigingsdatumVastOntslag039="","",Data_BeeindigingsdatumVastOntslag039) ->  | BY62: =IF(Data_LoonkostenVastOntslag039="","",Data_LoonkostenVastOntslag039) ->  | CA62: =IF(Data_PersoonAanUitVastOntslag039=-1,"v","") ->  | CC62: v | CH62: 0 | CI62: 0
H63: =IF(Data_NaamPersoonNatVerloop040="","",Data_NaamPersoonNatVerloop040) ->  | K63: =IF(Data_BeeindigingsdatumNatVerloop040="","",Data_BeeindigingsdatumNatVerloop040) ->  | N63: =IF(Data_LoonkostenNatVerloop040="","",Data_LoonkostenNatVerloop040) ->  | P63: v | R63: v | W63: 0 | AG63: =IF(Data_NaamPersoonTijd040="","",Data_NaamPersoonTijd040) ->  | AJ63: =IF(Data_BeeindigingsdatumTijd040="","",Data_BeeindigingsdatumTijd040) ->  | AM63: =IF(Data_LoonkostenTijd040="","",Data_LoonkostenTijd040) ->  | AO63: =IF(Data_PersoonAanUitTijd040=-1,"v","") ->  | AQ63: v | AV63: 0 | AW63: 0 | BA63: =IF(Data_NaamPersoonVastVrij040="","",Data_NaamPersoonVastVrij040) ->  | BD63: =IF(Data_BeeindigingsdatumVastVrij040="","",Data_BeeindigingsdatumVastVrij040) ->  | BG63: =IF(Data_LoonkostenVastVrij040="","",Data_LoonkostenVastVrij040) ->  | BI63: =IF(Data_PersoonAanUitVastVrij040=-1,"v","") ->  | BK63: v | BP63: 0 | BQ63: 0 | BS63: =IF(Data_NaamPersoonVastOntslag040="","",Data_NaamPersoonVastOntslag040) ->  | BV63: =IF(Data_BeeindigingsdatumVastOntslag040="","",Data_BeeindigingsdatumVastOntslag040) ->  | BY63: =IF(Data_LoonkostenVastOntslag040="","",Data_LoonkostenVastOntslag040) ->  | CA63: =IF(Data_PersoonAanUitVastOntslag040=-1,"v","") ->  | CC63: v | CH63: 0 | CI63: 0
H64: =IF(Data_NaamPersoonNatVerloop041="","",Data_NaamPersoonNatVerloop041) ->  | K64: =IF(Data_BeeindigingsdatumNatVerloop041="","",Data_BeeindigingsdatumNatVerloop041) ->  | N64: =IF(Data_LoonkostenNatVerloop041="","",Data_LoonkostenNatVerloop041) ->  | P64: v | R64: v | W64: 0 | AG64: =IF(Data_NaamPersoonTijd041="","",Data_NaamPersoonTijd041) ->  | AJ64: =IF(Data_BeeindigingsdatumTijd041="","",Data_BeeindigingsdatumTijd041) ->  | AM64: =IF(Data_LoonkostenTijd041="","",Data_LoonkostenTijd041) ->  | AO64: =IF(Data_PersoonAanUitTijd041=-1,"v","") ->  | AQ64: v | AV64: 0 | AW64: 0 | BA64: =IF(Data_NaamPersoonVastVrij041="","",Data_NaamPersoonVastVrij041) ->  | BD64: =IF(Data_BeeindigingsdatumVastVrij041="","",Data_BeeindigingsdatumVastVrij041) ->  | BG64: =IF(Data_LoonkostenVastVrij041="","",Data_LoonkostenVastVrij041) ->  | BI64: =IF(Data_PersoonAanUitVastVrij041=-1,"v","") ->  | BK64: v | BP64: 0 | BQ64: 0 | BS64: =IF(Data_NaamPersoonVastOntslag041="","",Data_NaamPersoonVastOntslag041) ->  | BV64: =IF(Data_BeeindigingsdatumVastOntslag041="","",Data_BeeindigingsdatumVastOntslag041) ->  | BY64: =IF(Data_LoonkostenVastOntslag041="","",Data_LoonkostenVastOntslag041) ->  | CA64: =IF(Data_PersoonAanUitVastOntslag041=-1,"v","") ->  | CC64: v | CH64: 0 | CI64: 0
H65: =IF(Data_NaamPersoonNatVerloop042="","",Data_NaamPersoonNatVerloop042) ->  | K65: =IF(Data_BeeindigingsdatumNatVerloop042="","",Data_BeeindigingsdatumNatVerloop042) ->  | N65: =IF(Data_LoonkostenNatVerloop042="","",Data_LoonkostenNatVerloop042) ->  | P65: v | R65: v | W65: 0 | AG65: =IF(Data_NaamPersoonTijd042="","",Data_NaamPersoonTijd042) ->  | AJ65: =IF(Data_BeeindigingsdatumTijd042="","",Data_BeeindigingsdatumTijd042) ->  | AM65: =IF(Data_LoonkostenTijd042="","",Data_LoonkostenTijd042) ->  | AO65: =IF(Data_PersoonAanUitTijd042=-1,"v","") ->  | AQ65: v | AV65: 0 | AW65: 0 | BA65: =IF(Data_NaamPersoonVastVrij042="","",Data_NaamPersoonVastVrij042) ->  | BD65: =IF(Data_BeeindigingsdatumVastVrij042="","",Data_BeeindigingsdatumVastVrij042) ->  | BG65: =IF(Data_LoonkostenVastVrij042="","",Data_LoonkostenVastVrij042) ->  | BI65: =IF(Data_PersoonAanUitVastVrij042=-1,"v","") ->  | BK65: v | BP65: 0 | BQ65: 0 | BS65: =IF(Data_NaamPersoonVastOntslag042="","",Data_NaamPersoonVastOntslag042) ->  | BV65: =IF(Data_BeeindigingsdatumVastOntslag042="","",Data_BeeindigingsdatumVastOntslag042) ->  | BY65: =IF(Data_LoonkostenVastOntslag042="","",Data_LoonkostenVastOntslag042) ->  | CA65: =IF(Data_PersoonAanUitVastOntslag042=-1,"v","") ->  | CC65: v | CH65: 0 | CI65: 0
H66: =IF(Data_NaamPersoonNatVerloop043="","",Data_NaamPersoonNatVerloop043) ->  | K66: =IF(Data_BeeindigingsdatumNatVerloop043="","",Data_BeeindigingsdatumNatVerloop043) ->  | N66: =IF(Data_LoonkostenNatVerloop043="","",Data_LoonkostenNatVerloop043) ->  | P66: v | R66: v | W66: 0 | AG66: =IF(Data_NaamPersoonTijd043="","",Data_NaamPersoonTijd043) ->  | AJ66: =IF(Data_BeeindigingsdatumTijd043="","",Data_BeeindigingsdatumTijd043) ->  | AM66: =IF(Data_LoonkostenTijd043="","",Data_LoonkostenTijd043) ->  | AO66: =IF(Data_PersoonAanUitTijd043=-1,"v","") ->  | AQ66: v | AV66: 0 | AW66: 0 | BA66: =IF(Data_NaamPersoonVastVrij043="","",Data_NaamPersoonVastVrij043) ->  | BD66: =IF(Data_BeeindigingsdatumVastVrij043="","",Data_BeeindigingsdatumVastVrij043) ->  | BG66: =IF(Data_LoonkostenVastVrij043="","",Data_LoonkostenVastVrij043) ->  | BI66: =IF(Data_PersoonAanUitVastVrij043=-1,"v","") ->  | BK66: v | BP66: 0 | BQ66: 0 | BS66: =IF(Data_NaamPersoonVastOntslag043="","",Data_NaamPersoonVastOntslag043) ->  | BV66: =IF(Data_BeeindigingsdatumVastOntslag043="","",Data_BeeindigingsdatumVastOntslag043) ->  | BY66: =IF(Data_LoonkostenVastOntslag043="","",Data_LoonkostenVastOntslag043) ->  | CA66: =IF(Data_PersoonAanUitVastOntslag043=-1,"v","") ->  | CC66: v | CH66: 0 | CI66: 0
H67: =IF(Data_NaamPersoonNatVerloop044="","",Data_NaamPersoonNatVerloop044) ->  | K67: =IF(Data_BeeindigingsdatumNatVerloop044="","",Data_BeeindigingsdatumNatVerloop044) ->  | N67: =IF(Data_LoonkostenNatVerloop044="","",Data_LoonkostenNatVerloop044) ->  | P67: v | R67: v | W67: 0 | AG67: =IF(Data_NaamPersoonTijd044="","",Data_NaamPersoonTijd044) ->  | AJ67: =IF(Data_BeeindigingsdatumTijd044="","",Data_BeeindigingsdatumTijd044) ->  | AM67: =IF(Data_LoonkostenTijd044="","",Data_LoonkostenTijd044) ->  | AO67: =IF(Data_PersoonAanUitTijd044=-1,"v","") ->  | AQ67: v | AV67: 0 | AW67: 0 | BA67: =IF(Data_NaamPersoonVastVrij044="","",Data_NaamPersoonVastVrij044) ->  | BD67: =IF(Data_BeeindigingsdatumVastVrij044="","",Data_BeeindigingsdatumVastVrij044) ->  | BG67: =IF(Data_LoonkostenVastVrij044="","",Data_LoonkostenVastVrij044) ->  | BI67: =IF(Data_PersoonAanUitVastVrij044=-1,"v","") ->  | BK67: v | BP67: 0 | BQ67: 0 | BS67: =IF(Data_NaamPersoonVastOntslag044="","",Data_NaamPersoonVastOntslag044) ->  | BV67: =IF(Data_BeeindigingsdatumVastOntslag044="","",Data_BeeindigingsdatumVastOntslag044) ->  | BY67: =IF(Data_LoonkostenVastOntslag044="","",Data_LoonkostenVastOntslag044) ->  | CA67: =IF(Data_PersoonAanUitVastOntslag044=-1,"v","") ->  | CC67: v | CH67: 0 | CI67: 0
H68: =IF(Data_NaamPersoonNatVerloop045="","",Data_NaamPersoonNatVerloop045) ->  | K68: =IF(Data_BeeindigingsdatumNatVerloop045="","",Data_BeeindigingsdatumNatVerloop045) ->  | N68: =IF(Data_LoonkostenNatVerloop045="","",Data_LoonkostenNatVerloop045) ->  | P68: v | R68: v | W68: 0 | AG68: =IF(Data_NaamPersoonTijd045="","",Data_NaamPersoonTijd045) ->  | AJ68: =IF(Data_BeeindigingsdatumTijd045="","",Data_BeeindigingsdatumTijd045) ->  | AM68: =IF(Data_LoonkostenTijd045="","",Data_LoonkostenTijd045) ->  | AO68: =IF(Data_PersoonAanUitTijd045=-1,"v","") ->  | AQ68: v | AV68: 0 | AW68: 0 | BA68: =IF(Data_NaamPersoonVastVrij045="","",Data_NaamPersoonVastVrij045) ->  | BD68: =IF(Data_BeeindigingsdatumVastVrij045="","",Data_BeeindigingsdatumVastVrij045) ->  | BG68: =IF(Data_LoonkostenVastVrij045="","",Data_LoonkostenVastVrij045) ->  | BI68: =IF(Data_PersoonAanUitVastVrij045=-1,"v","") ->  | BK68: v | BP68: 0 | BQ68: 0 | BS68: =IF(Data_NaamPersoonVastOntslag045="","",Data_NaamPersoonVastOntslag045) ->  | BV68: =IF(Data_BeeindigingsdatumVastOntslag045="","",Data_BeeindigingsdatumVastOntslag045) ->  | BY68: =IF(Data_LoonkostenVastOntslag045="","",Data_LoonkostenVastOntslag045) ->  | CA68: =IF(Data_PersoonAanUitVastOntslag045=-1,"v","") ->  | CC68: v | CH68: 0 | CI68: 0
H69: =IF(Data_NaamPersoonNatVerloop046="","",Data_NaamPersoonNatVerloop046) ->  | K69: =IF(Data_BeeindigingsdatumNatVerloop046="","",Data_BeeindigingsdatumNatVerloop046) ->  | N69: =IF(Data_LoonkostenNatVerloop046="","",Data_LoonkostenNatVerloop046) ->  | P69: v | R69: v | W69: 0 | AG69: =IF(Data_NaamPersoonTijd046="","",Data_NaamPersoonTijd046) ->  | AJ69: =IF(Data_BeeindigingsdatumTijd046="","",Data_BeeindigingsdatumTijd046) ->  | AM69: =IF(Data_LoonkostenTijd046="","",Data_LoonkostenTijd046) ->  | AO69: =IF(Data_PersoonAanUitTijd046=-1,"v","") ->  | AQ69: v | AV69: 0 | AW69: 0 | BA69: =IF(Data_NaamPersoonVastVrij046="","",Data_NaamPersoonVastVrij046) ->  | BD69: =IF(Data_BeeindigingsdatumVastVrij046="","",Data_BeeindigingsdatumVastVrij046) ->  | BG69: =IF(Data_LoonkostenVastVrij046="","",Data_LoonkostenVastVrij046) ->  | BI69: =IF(Data_PersoonAanUitVastVrij046=-1,"v","") ->  | BK69: v | BP69: 0 | BQ69: 0 | BS69: =IF(Data_NaamPersoonVastOntslag046="","",Data_NaamPersoonVastOntslag046) ->  | BV69: =IF(Data_BeeindigingsdatumVastOntslag046="","",Data_BeeindigingsdatumVastOntslag046) ->  | BY69: =IF(Data_LoonkostenVastOntslag046="","",Data_LoonkostenVastOntslag046) ->  | CA69: =IF(Data_PersoonAanUitVastOntslag046=-1,"v","") ->  | CC69: v | CH69: 0 | CI69: 0
H70: =IF(Data_NaamPersoonNatVerloop047="","",Data_NaamPersoonNatVerloop047) ->  | K70: =IF(Data_BeeindigingsdatumNatVerloop047="","",Data_BeeindigingsdatumNatVerloop047) ->  | N70: =IF(Data_LoonkostenNatVerloop047="","",Data_LoonkostenNatVerloop047) ->  | P70: v | R70: v | W70: 0 | AG70: =IF(Data_NaamPersoonTijd047="","",Data_NaamPersoonTijd047) ->  | AJ70: =IF(Data_BeeindigingsdatumTijd047="","",Data_BeeindigingsdatumTijd047) ->  | AM70: =IF(Data_LoonkostenTijd047="","",Data_LoonkostenTijd047) ->  | AO70: =IF(Data_PersoonAanUitTijd047=-1,"v","") ->  | AQ70: v | AV70: 0 | AW70: 0 | BA70: =IF(Data_NaamPersoonVastVrij047="","",Data_NaamPersoonVastVrij047) ->  | BD70: =IF(Data_BeeindigingsdatumVastVrij047="","",Data_BeeindigingsdatumVastVrij047) ->  | BG70: =IF(Data_LoonkostenVastVrij047="","",Data_LoonkostenVastVrij047) ->  | BI70: =IF(Data_PersoonAanUitVastVrij047=-1,"v","") ->  | BK70: v | BP70: 0 | BQ70: 0 | BS70: =IF(Data_NaamPersoonVastOntslag047="","",Data_NaamPersoonVastOntslag047) ->  | BV70: =IF(Data_BeeindigingsdatumVastOntslag047="","",Data_BeeindigingsdatumVastOntslag047) ->  | BY70: =IF(Data_LoonkostenVastOntslag047="","",Data_LoonkostenVastOntslag047) ->  | CA70: =IF(Data_PersoonAanUitVastOntslag047=-1,"v","") ->  | CC70: v | CH70: 0 | CI70: 0
H71: =IF(Data_NaamPersoonNatVerloop048="","",Data_NaamPersoonNatVerloop048) ->  | K71: =IF(Data_BeeindigingsdatumNatVerloop048="","",Data_BeeindigingsdatumNatVerloop048) ->  | N71: =IF(Data_LoonkostenNatVerloop048="","",Data_LoonkostenNatVerloop048) ->  | P71: v | R71: v | W71: 0 | AG71: =IF(Data_NaamPersoonTijd048="","",Data_NaamPersoonTijd048) ->  | AJ71: =IF(Data_BeeindigingsdatumTijd048="","",Data_BeeindigingsdatumTijd048) ->  | AM71: =IF(Data_LoonkostenTijd048="","",Data_LoonkostenTijd048) ->  | AO71: =IF(Data_PersoonAanUitTijd048=-1,"v","") ->  | AQ71: v | AV71: 0 | AW71: 0 | BA71: =IF(Data_NaamPersoonVastVrij048="","",Data_NaamPersoonVastVrij048) ->  | BD71: =IF(Data_BeeindigingsdatumVastVrij048="","",Data_BeeindigingsdatumVastVrij048) ->  | BG71: =IF(Data_LoonkostenVastVrij048="","",Data_LoonkostenVastVrij048) ->  | BI71: =IF(Data_PersoonAanUitVastVrij048=-1,"v","") ->  | BK71: v | BP71: 0 | BQ71: 0 | BS71: =IF(Data_NaamPersoonVastOntslag048="","",Data_NaamPersoonVastOntslag048) ->  | BV71: =IF(Data_BeeindigingsdatumVastOntslag048="","",Data_BeeindigingsdatumVastOntslag048) ->  | BY71: =IF(Data_LoonkostenVastOntslag048="","",Data_LoonkostenVastOntslag048) ->  | CA71: =IF(Data_PersoonAanUitVastOntslag048=-1,"v","") ->  | CC71: v | CH71: 0 | CI71: 0
H72: =IF(Data_NaamPersoonNatVerloop049="","",Data_NaamPersoonNatVerloop049) ->  | K72: =IF(Data_BeeindigingsdatumNatVerloop049="","",Data_BeeindigingsdatumNatVerloop049) ->  | N72: =IF(Data_LoonkostenNatVerloop049="","",Data_LoonkostenNatVerloop049) ->  | P72: v | R72: v | W72: 0 | AG72: =IF(Data_NaamPersoonTijd049="","",Data_NaamPersoonTijd049) ->  | AJ72: =IF(Data_BeeindigingsdatumTijd049="","",Data_BeeindigingsdatumTijd049) ->  | AM72: =IF(Data_LoonkostenTijd049="","",Data_LoonkostenTijd049) ->  | AO72: =IF(Data_PersoonAanUitTijd049=-1,"v","") ->  | AQ72: v | AV72: 0 | AW72: 0 | BA72: =IF(Data_NaamPersoonVastVrij049="","",Data_NaamPersoonVastVrij049) ->  | BD72: =IF(Data_BeeindigingsdatumVastVrij049="","",Data_BeeindigingsdatumVastVrij049) ->  | BG72: =IF(Data_LoonkostenVastVrij049="","",Data_LoonkostenVastVrij049) ->  | BI72: =IF(Data_PersoonAanUitVastVrij049=-1,"v","") ->  | BK72: v | BP72: 0 | BQ72: 0 | BS72: =IF(Data_NaamPersoonVastOntslag049="","",Data_NaamPersoonVastOntslag049) ->  | BV72: =IF(Data_BeeindigingsdatumVastOntslag049="","",Data_BeeindigingsdatumVastOntslag049) ->  | BY72: =IF(Data_LoonkostenVastOntslag049="","",Data_LoonkostenVastOntslag049) ->  | CA72: =IF(Data_PersoonAanUitVastOntslag049=-1,"v","") ->  | CC72: v | CH72: 0 | CI72: 0
H73: =IF(Data_NaamPersoonNatVerloop050="","",Data_NaamPersoonNatVerloop050) ->  | K73: =IF(Data_BeeindigingsdatumNatVerloop050="","",Data_BeeindigingsdatumNatVerloop050) ->  | N73: =IF(Data_LoonkostenNatVerloop050="","",Data_LoonkostenNatVerloop050) ->  | P73: v | R73: v | W73: 0 | AG73: =IF(Data_NaamPersoonTijd050="","",Data_NaamPersoonTijd050) ->  | AJ73: =IF(Data_BeeindigingsdatumTijd050="","",Data_BeeindigingsdatumTijd050) ->  | AM73: =IF(Data_LoonkostenTijd050="","",Data_LoonkostenTijd050) ->  | AO73: =IF(Data_PersoonAanUitTijd050=-1,"v","") ->  | AQ73: v | AV73: 0 | AW73: 0 | BA73: =IF(Data_NaamPersoonVastVrij050="","",Data_NaamPersoonVastVrij050) ->  | BD73: =IF(Data_BeeindigingsdatumVastVrij050="","",Data_BeeindigingsdatumVastVrij050) ->  | BG73: =IF(Data_LoonkostenVastVrij050="","",Data_LoonkostenVastVrij050) ->  | BI73: =IF(Data_PersoonAanUitVastVrij050=-1,"v","") ->  | BK73: v | BP73: 0 | BQ73: 0 | BS73: =IF(Data_NaamPersoonVastOntslag050="","",Data_NaamPersoonVastOntslag050) ->  | BV73: =IF(Data_BeeindigingsdatumVastOntslag050="","",Data_BeeindigingsdatumVastOntslag050) ->  | BY73: =IF(Data_LoonkostenVastOntslag050="","",Data_LoonkostenVastOntslag050) ->  | CA73: =IF(Data_PersoonAanUitVastOntslag050=-1,"v","") ->  | CC73: v | CH73: 0 | CI73: 0
H74: =IF(Data_NaamPersoonNatVerloop051="","",Data_NaamPersoonNatVerloop051) ->  | K74: =IF(Data_BeeindigingsdatumNatVerloop051="","",Data_BeeindigingsdatumNatVerloop051) ->  | N74: =IF(Data_LoonkostenNatVerloop051="","",Data_LoonkostenNatVerloop051) ->  | P74: v | R74: v | W74: 0 | AG74: =IF(Data_NaamPersoonTijd051="","",Data_NaamPersoonTijd051) ->  | AJ74: =IF(Data_BeeindigingsdatumTijd051="","",Data_BeeindigingsdatumTijd051) ->  | AM74: =IF(Data_LoonkostenTijd051="","",Data_LoonkostenTijd051) ->  | AO74: =IF(Data_PersoonAanUitTijd051=-1,"v","") ->  | AQ74: v | AV74: 0 | AW74: 0 | BA74: =IF(Data_NaamPersoonVastVrij051="","",Data_NaamPersoonVastVrij051) ->  | BD74: =IF(Data_BeeindigingsdatumVastVrij051="","",Data_BeeindigingsdatumVastVrij051) ->  | BG74: =IF(Data_LoonkostenVastVrij051="","",Data_LoonkostenVastVrij051) ->  | BI74: =IF(Data_PersoonAanUitVastVrij051=-1,"v","") ->  | BK74: v | BP74: 0 | BQ74: 0 | BS74: =IF(Data_NaamPersoonVastOntslag051="","",Data_NaamPersoonVastOntslag051) ->  | BV74: =IF(Data_BeeindigingsdatumVastOntslag051="","",Data_BeeindigingsdatumVastOntslag051) ->  | BY74: =IF(Data_LoonkostenVastOntslag051="","",Data_LoonkostenVastOntslag051) ->  | CA74: =IF(Data_PersoonAanUitVastOntslag051=-1,"v","") ->  | CC74: v | CH74: 0 | CI74: 0
H75: =IF(Data_NaamPersoonNatVerloop052="","",Data_NaamPersoonNatVerloop052) ->  | K75: =IF(Data_BeeindigingsdatumNatVerloop052="","",Data_BeeindigingsdatumNatVerloop052) ->  | N75: =IF(Data_LoonkostenNatVerloop052="","",Data_LoonkostenNatVerloop052) ->  | P75: v | R75: v | W75: 0 | AG75: =IF(Data_NaamPersoonTijd052="","",Data_NaamPersoonTijd052) ->  | AJ75: =IF(Data_BeeindigingsdatumTijd052="","",Data_BeeindigingsdatumTijd052) ->  | AM75: =IF(Data_LoonkostenTijd052="","",Data_LoonkostenTijd052) ->  | AO75: =IF(Data_PersoonAanUitTijd052=-1,"v","") ->  | AQ75: v | AV75: 0 | AW75: 0 | BA75: =IF(Data_NaamPersoonVastVrij052="","",Data_NaamPersoonVastVrij052) ->  | BD75: =IF(Data_BeeindigingsdatumVastVrij052="","",Data_BeeindigingsdatumVastVrij052) ->  | BG75: =IF(Data_LoonkostenVastVrij052="","",Data_LoonkostenVastVrij052) ->  | BI75: =IF(Data_PersoonAanUitVastVrij052=-1,"v","") ->  | BK75: v | BP75: 0 | BQ75: 0 | BS75: =IF(Data_NaamPersoonVastOntslag052="","",Data_NaamPersoonVastOntslag052) ->  | BV75: =IF(Data_BeeindigingsdatumVastOntslag052="","",Data_BeeindigingsdatumVastOntslag052) ->  | BY75: =IF(Data_LoonkostenVastOntslag052="","",Data_LoonkostenVastOntslag052) ->  | CA75: =IF(Data_PersoonAanUitVastOntslag052=-1,"v","") ->  | CC75: v | CH75: 0 | CI75: 0
H76: =IF(Data_NaamPersoonNatVerloop053="","",Data_NaamPersoonNatVerloop053) ->  | K76: =IF(Data_BeeindigingsdatumNatVerloop053="","",Data_BeeindigingsdatumNatVerloop053) ->  | N76: =IF(Data_LoonkostenNatVerloop053="","",Data_LoonkostenNatVerloop053) ->  | P76: v | R76: v | W76: 0 | AG76: =IF(Data_NaamPersoonTijd053="","",Data_NaamPersoonTijd053) ->  | AJ76: =IF(Data_BeeindigingsdatumTijd053="","",Data_BeeindigingsdatumTijd053) ->  | AM76: =IF(Data_LoonkostenTijd053="","",Data_LoonkostenTijd053) ->  | AO76: =IF(Data_PersoonAanUitTijd053=-1,"v","") ->  | AQ76: v | AV76: 0 | AW76: 0 | BA76: =IF(Data_NaamPersoonVastVrij053="","",Data_NaamPersoonVastVrij053) ->  | BD76: =IF(Data_BeeindigingsdatumVastVrij053="","",Data_BeeindigingsdatumVastVrij053) ->  | BG76: =IF(Data_LoonkostenVastVrij053="","",Data_LoonkostenVastVrij053) ->  | BI76: =IF(Data_PersoonAanUitVastVrij053=-1,"v","") ->  | BK76: v | BP76: 0 | BQ76: 0 | BS76: =IF(Data_NaamPersoonVastOntslag053="","",Data_NaamPersoonVastOntslag053) ->  | BV76: =IF(Data_BeeindigingsdatumVastOntslag053="","",Data_BeeindigingsdatumVastOntslag053) ->  | BY76: =IF(Data_LoonkostenVastOntslag053="","",Data_LoonkostenVastOntslag053) ->  | CA76: =IF(Data_PersoonAanUitVastOntslag053=-1,"v","") ->  | CC76: v | CH76: 0 | CI76: 0
H77: =IF(Data_NaamPersoonNatVerloop054="","",Data_NaamPersoonNatVerloop054) ->  | K77: =IF(Data_BeeindigingsdatumNatVerloop054="","",Data_BeeindigingsdatumNatVerloop054) ->  | N77: =IF(Data_LoonkostenNatVerloop054="","",Data_LoonkostenNatVerloop054) ->  | P77: v | R77: v | W77: 0 | AG77: =IF(Data_NaamPersoonTijd054="","",Data_NaamPersoonTijd054) ->  | AJ77: =IF(Data_BeeindigingsdatumTijd054="","",Data_BeeindigingsdatumTijd054) ->  | AM77: =IF(Data_LoonkostenTijd054="","",Data_LoonkostenTijd054) ->  | AO77: =IF(Data_PersoonAanUitTijd054=-1,"v","") ->  | AQ77: v | AV77: 0 | AW77: 0 | BA77: =IF(Data_NaamPersoonVastVrij054="","",Data_NaamPersoonVastVrij054) ->  | BD77: =IF(Data_BeeindigingsdatumVastVrij054="","",Data_BeeindigingsdatumVastVrij054) ->  | BG77: =IF(Data_LoonkostenVastVrij054="","",Data_LoonkostenVastVrij054) ->  | BI77: =IF(Data_PersoonAanUitVastVrij054=-1,"v","") ->  | BK77: v | BP77: 0 | BQ77: 0 | BS77: =IF(Data_NaamPersoonVastOntslag054="","",Data_NaamPersoonVastOntslag054) ->  | BV77: =IF(Data_BeeindigingsdatumVastOntslag054="","",Data_BeeindigingsdatumVastOntslag054) ->  | BY77: =IF(Data_LoonkostenVastOntslag054="","",Data_LoonkostenVastOntslag054) ->  | CA77: =IF(Data_PersoonAanUitVastOntslag054=-1,"v","") ->  | CC77: v | CH77: 0 | CI77: 0
H78: =IF(Data_NaamPersoonNatVerloop055="","",Data_NaamPersoonNatVerloop055) ->  | K78: =IF(Data_BeeindigingsdatumNatVerloop055="","",Data_BeeindigingsdatumNatVerloop055) ->  | N78: =IF(Data_LoonkostenNatVerloop055="","",Data_LoonkostenNatVerloop055) ->  | P78: v | R78: v | W78: 0 | AG78: =IF(Data_NaamPersoonTijd055="","",Data_NaamPersoonTijd055) ->  | AJ78: =IF(Data_BeeindigingsdatumTijd055="","",Data_BeeindigingsdatumTijd055) ->  | AM78: =IF(Data_LoonkostenTijd055="","",Data_LoonkostenTijd055) ->  | AO78: =IF(Data_PersoonAanUitTijd055=-1,"v","") ->  | AQ78: v | AV78: 0 | AW78: 0 | BA78: =IF(Data_NaamPersoonVastVrij055="","",Data_NaamPersoonVastVrij055) ->  | BD78: =IF(Data_BeeindigingsdatumVastVrij055="","",Data_BeeindigingsdatumVastVrij055) ->  | BG78: =IF(Data_LoonkostenVastVrij055="","",Data_LoonkostenVastVrij055) ->  | BI78: =IF(Data_PersoonAanUitVastVrij055=-1,"v","") ->  | BK78: v | BP78: 0 | BQ78: 0 | BS78: =IF(Data_NaamPersoonVastOntslag055="","",Data_NaamPersoonVastOntslag055) ->  | BV78: =IF(Data_BeeindigingsdatumVastOntslag055="","",Data_BeeindigingsdatumVastOntslag055) ->  | BY78: =IF(Data_LoonkostenVastOntslag055="","",Data_LoonkostenVastOntslag055) ->  | CA78: =IF(Data_PersoonAanUitVastOntslag055=-1,"v","") ->  | CC78: v | CH78: 0 | CI78: 0
H79: =IF(Data_NaamPersoonNatVerloop056="","",Data_NaamPersoonNatVerloop056) ->  | K79: =IF(Data_BeeindigingsdatumNatVerloop056="","",Data_BeeindigingsdatumNatVerloop056) ->  | N79: =IF(Data_LoonkostenNatVerloop056="","",Data_LoonkostenNatVerloop056) ->  | P79: v | R79: v | W79: 0 | AG79: =IF(Data_NaamPersoonTijd056="","",Data_NaamPersoonTijd056) ->  | AJ79: =IF(Data_BeeindigingsdatumTijd056="","",Data_BeeindigingsdatumTijd056) ->  | AM79: =IF(Data_LoonkostenTijd056="","",Data_LoonkostenTijd056) ->  | AO79: =IF(Data_PersoonAanUitTijd056=-1,"v","") ->  | AQ79: v | AV79: 0 | AW79: 0 | BA79: =IF(Data_NaamPersoonVastVrij056="","",Data_NaamPersoonVastVrij056) ->  | BD79: =IF(Data_BeeindigingsdatumVastVrij056="","",Data_BeeindigingsdatumVastVrij056) ->  | BG79: =IF(Data_LoonkostenVastVrij056="","",Data_LoonkostenVastVrij056) ->  | BI79: =IF(Data_PersoonAanUitVastVrij056=-1,"v","") ->  | BK79: v | BP79: 0 | BQ79: 0 | BS79: =IF(Data_NaamPersoonVastOntslag056="","",Data_NaamPersoonVastOntslag056) ->  | BV79: =IF(Data_BeeindigingsdatumVastOntslag056="","",Data_BeeindigingsdatumVastOntslag056) ->  | BY79: =IF(Data_LoonkostenVastOntslag056="","",Data_LoonkostenVastOntslag056) ->  | CA79: =IF(Data_PersoonAanUitVastOntslag056=-1,"v","") ->  | CC79: v | CH79: 0 | CI79: 0
H80: =IF(Data_NaamPersoonNatVerloop057="","",Data_NaamPersoonNatVerloop057) ->  | K80: =IF(Data_BeeindigingsdatumNatVerloop057="","",Data_BeeindigingsdatumNatVerloop057) ->  | N80: =IF(Data_LoonkostenNatVerloop057="","",Data_LoonkostenNatVerloop057) ->  | P80: v | R80: v | W80: 0 | AG80: =IF(Data_NaamPersoonTijd057="","",Data_NaamPersoonTijd057) ->  | AJ80: =IF(Data_BeeindigingsdatumTijd057="","",Data_BeeindigingsdatumTijd057) ->  | AM80: =IF(Data_LoonkostenTijd057="","",Data_LoonkostenTijd057) ->  | AO80: =IF(Data_PersoonAanUitTijd057=-1,"v","") ->  | AQ80: v | AV80: 0 | AW80: 0 | BA80: =IF(Data_NaamPersoonVastVrij057="","",Data_NaamPersoonVastVrij057) ->  | BD80: =IF(Data_BeeindigingsdatumVastVrij057="","",Data_BeeindigingsdatumVastVrij057) ->  | BG80: =IF(Data_LoonkostenVastVrij057="","",Data_LoonkostenVastVrij057) ->  | BI80: =IF(Data_PersoonAanUitVastVrij057=-1,"v","") ->  | BK80: v | BP80: 0 | BQ80: 0 | BS80: =IF(Data_NaamPersoonVastOntslag057="","",Data_NaamPersoonVastOntslag057) ->  | BV80: =IF(Data_BeeindigingsdatumVastOntslag057="","",Data_BeeindigingsdatumVastOntslag057) ->  | BY80: =IF(Data_LoonkostenVastOntslag057="","",Data_LoonkostenVastOntslag057) ->  | CA80: =IF(Data_PersoonAanUitVastOntslag057=-1,"v","") ->  | CC80: v | CH80: 0 | CI80: 0
H81: =IF(Data_NaamPersoonNatVerloop058="","",Data_NaamPersoonNatVerloop058) ->  | K81: =IF(Data_BeeindigingsdatumNatVerloop058="","",Data_BeeindigingsdatumNatVerloop058) ->  | N81: =IF(Data_LoonkostenNatVerloop058="","",Data_LoonkostenNatVerloop058) ->  | P81: v | R81: v | W81: 0 | AG81: =IF(Data_NaamPersoonTijd058="","",Data_NaamPersoonTijd058) ->  | AJ81: =IF(Data_BeeindigingsdatumTijd058="","",Data_BeeindigingsdatumTijd058) ->  | AM81: =IF(Data_LoonkostenTijd058="","",Data_LoonkostenTijd058) ->  | AO81: =IF(Data_PersoonAanUitTijd058=-1,"v","") ->  | AQ81: v | AV81: 0 | AW81: 0 | BA81: =IF(Data_NaamPersoonVastVrij058="","",Data_NaamPersoonVastVrij058) ->  | BD81: =IF(Data_BeeindigingsdatumVastVrij058="","",Data_BeeindigingsdatumVastVrij058) ->  | BG81: =IF(Data_LoonkostenVastVrij058="","",Data_LoonkostenVastVrij058) ->  | BI81: =IF(Data_PersoonAanUitVastVrij058=-1,"v","") ->  | BK81: v | BP81: 0 | BQ81: 0 | BS81: =IF(Data_NaamPersoonVastOntslag058="","",Data_NaamPersoonVastOntslag058) ->  | BV81: =IF(Data_BeeindigingsdatumVastOntslag058="","",Data_BeeindigingsdatumVastOntslag058) ->  | BY81: =IF(Data_LoonkostenVastOntslag058="","",Data_LoonkostenVastOntslag058) ->  | CA81: =IF(Data_PersoonAanUitVastOntslag058=-1,"v","") ->  | CC81: v | CH81: 0 | CI81: 0
H82: =IF(Data_NaamPersoonNatVerloop059="","",Data_NaamPersoonNatVerloop059) ->  | K82: =IF(Data_BeeindigingsdatumNatVerloop059="","",Data_BeeindigingsdatumNatVerloop059) ->  | N82: =IF(Data_LoonkostenNatVerloop059="","",Data_LoonkostenNatVerloop059) ->  | P82: v | R82: v | W82: 0 | AG82: =IF(Data_NaamPersoonTijd059="","",Data_NaamPersoonTijd059) ->  | AJ82: =IF(Data_BeeindigingsdatumTijd059="","",Data_BeeindigingsdatumTijd059) ->  | AM82: =IF(Data_LoonkostenTijd059="","",Data_LoonkostenTijd059) ->  | AO82: =IF(Data_PersoonAanUitTijd059=-1,"v","") ->  | AQ82: v | AV82: 0 | AW82: 0 | BA82: =IF(Data_NaamPersoonVastVrij059="","",Data_NaamPersoonVastVrij059) ->  | BD82: =IF(Data_BeeindigingsdatumVastVrij059="","",Data_BeeindigingsdatumVastVrij059) ->  | BG82: =IF(Data_LoonkostenVastVrij059="","",Data_LoonkostenVastVrij059) ->  | BI82: =IF(Data_PersoonAanUitVastVrij059=-1,"v","") ->  | BK82: v | BP82: 0 | BQ82: 0 | BS82: =IF(Data_NaamPersoonVastOntslag059="","",Data_NaamPersoonVastOntslag059) ->  | BV82: =IF(Data_BeeindigingsdatumVastOntslag059="","",Data_BeeindigingsdatumVastOntslag059) ->  | BY82: =IF(Data_LoonkostenVastOntslag059="","",Data_LoonkostenVastOntslag059) ->  | CA82: =IF(Data_PersoonAanUitVastOntslag059=-1,"v","") ->  | CC82: v | CH82: 0 | CI82: 0
H83: =IF(Data_NaamPersoonNatVerloop060="","",Data_NaamPersoonNatVerloop060) ->  | K83: =IF(Data_BeeindigingsdatumNatVerloop060="","",Data_BeeindigingsdatumNatVerloop060) ->  | N83: =IF(Data_LoonkostenNatVerloop060="","",Data_LoonkostenNatVerloop060) ->  | P83: v | R83: v | W83: 0 | AG83: =IF(Data_NaamPersoonTijd060="","",Data_NaamPersoonTijd060) ->  | AJ83: =IF(Data_BeeindigingsdatumTijd060="","",Data_BeeindigingsdatumTijd060) ->  | AM83: =IF(Data_LoonkostenTijd060="","",Data_LoonkostenTijd060) ->  | AO83: =IF(Data_PersoonAanUitTijd060=-1,"v","") ->  | AQ83: v | AV83: 0 | AW83: 0 | BA83: =IF(Data_NaamPersoonVastVrij060="","",Data_NaamPersoonVastVrij060) ->  | BD83: =IF(Data_BeeindigingsdatumVastVrij060="","",Data_BeeindigingsdatumVastVrij060) ->  | BG83: =IF(Data_LoonkostenVastVrij060="","",Data_LoonkostenVastVrij060) ->  | BI83: =IF(Data_PersoonAanUitVastVrij060=-1,"v","") ->  | BK83: v | BP83: 0 | BQ83: 0 | BS83: =IF(Data_NaamPersoonVastOntslag060="","",Data_NaamPersoonVastOntslag060) ->  | BV83: =IF(Data_BeeindigingsdatumVastOntslag060="","",Data_BeeindigingsdatumVastOntslag060) ->  | BY83: =IF(Data_LoonkostenVastOntslag060="","",Data_LoonkostenVastOntslag060) ->  | CA83: =IF(Data_PersoonAanUitVastOntslag060=-1,"v","") ->  | CC83: v | CH83: 0 | CI83: 0
H84: =IF(Data_NaamPersoonNatVerloop061="","",Data_NaamPersoonNatVerloop061) ->  | K84: =IF(Data_BeeindigingsdatumNatVerloop061="","",Data_BeeindigingsdatumNatVerloop061) ->  | N84: =IF(Data_LoonkostenNatVerloop061="","",Data_LoonkostenNatVerloop061) ->  | P84: v | R84: v | W84: 0 | AG84: =IF(Data_NaamPersoonTijd061="","",Data_NaamPersoonTijd061) ->  | AJ84: =IF(Data_BeeindigingsdatumTijd061="","",Data_BeeindigingsdatumTijd061) ->  | AM84: =IF(Data_LoonkostenTijd061="","",Data_LoonkostenTijd061) ->  | AO84: =IF(Data_PersoonAanUitTijd061=-1,"v","") ->  | AQ84: v | AV84: 0 | AW84: 0 | BA84: =IF(Data_NaamPersoonVastVrij061="","",Data_NaamPersoonVastVrij061) ->  | BD84: =IF(Data_BeeindigingsdatumVastVrij061="","",Data_BeeindigingsdatumVastVrij061) ->  | BG84: =IF(Data_LoonkostenVastVrij061="","",Data_LoonkostenVastVrij061) ->  | BI84: =IF(Data_PersoonAanUitVastVrij061=-1,"v","") ->  | BK84: v | BP84: 0 | BQ84: 0 | BS84: =IF(Data_NaamPersoonVastOntslag061="","",Data_NaamPersoonVastOntslag061) ->  | BV84: =IF(Data_BeeindigingsdatumVastOntslag061="","",Data_BeeindigingsdatumVastOntslag061) ->  | BY84: =IF(Data_LoonkostenVastOntslag061="","",Data_LoonkostenVastOntslag061) ->  | CA84: =IF(Data_PersoonAanUitVastOntslag061=-1,"v","") ->  | CC84: v | CH84: 0 | CI84: 0
H85: =IF(Data_NaamPersoonNatVerloop062="","",Data_NaamPersoonNatVerloop062) ->  | K85: =IF(Data_BeeindigingsdatumNatVerloop062="","",Data_BeeindigingsdatumNatVerloop062) ->  | N85: =IF(Data_LoonkostenNatVerloop062="","",Data_LoonkostenNatVerloop062) ->  | P85: v | R85: v | W85: 0 | AG85: =IF(Data_NaamPersoonTijd062="","",Data_NaamPersoonTijd062) ->  | AJ85: =IF(Data_BeeindigingsdatumTijd062="","",Data_BeeindigingsdatumTijd062) ->  | AM85: =IF(Data_LoonkostenTijd062="","",Data_LoonkostenTijd062) ->  | AO85: =IF(Data_PersoonAanUitTijd062=-1,"v","") ->  | AQ85: v | AV85: 0 | AW85: 0 | BA85: =IF(Data_NaamPersoonVastVrij062="","",Data_NaamPersoonVastVrij062) ->  | BD85: =IF(Data_BeeindigingsdatumVastVrij062="","",Data_BeeindigingsdatumVastVrij062) ->  | BG85: =IF(Data_LoonkostenVastVrij062="","",Data_LoonkostenVastVrij062) ->  | BI85: =IF(Data_PersoonAanUitVastVrij062=-1,"v","") ->  | BK85: v | BP85: 0 | BQ85: 0 | BS85: =IF(Data_NaamPersoonVastOntslag062="","",Data_NaamPersoonVastOntslag062) ->  | BV85: =IF(Data_BeeindigingsdatumVastOntslag062="","",Data_BeeindigingsdatumVastOntslag062) ->  | BY85: =IF(Data_LoonkostenVastOntslag062="","",Data_LoonkostenVastOntslag062) ->  | CA85: =IF(Data_PersoonAanUitVastOntslag062=-1,"v","") ->  | CC85: v | CH85: 0 | CI85: 0
H86: =IF(Data_NaamPersoonNatVerloop063="","",Data_NaamPersoonNatVerloop063) ->  | K86: =IF(Data_BeeindigingsdatumNatVerloop063="","",Data_BeeindigingsdatumNatVerloop063) ->  | N86: =IF(Data_LoonkostenNatVerloop063="","",Data_LoonkostenNatVerloop063) ->  | P86: v | R86: v | W86: 0 | AG86: =IF(Data_NaamPersoonTijd063="","",Data_NaamPersoonTijd063) ->  | AJ86: =IF(Data_BeeindigingsdatumTijd063="","",Data_BeeindigingsdatumTijd063) ->  | AM86: =IF(Data_LoonkostenTijd063="","",Data_LoonkostenTijd063) ->  | AO86: =IF(Data_PersoonAanUitTijd063=-1,"v","") ->  | AQ86: v | AV86: 0 | AW86: 0 | BA86: =IF(Data_NaamPersoonVastVrij063="","",Data_NaamPersoonVastVrij063) ->  | BD86: =IF(Data_BeeindigingsdatumVastVrij063="","",Data_BeeindigingsdatumVastVrij063) ->  | BG86: =IF(Data_LoonkostenVastVrij063="","",Data_LoonkostenVastVrij063) ->  | BI86: =IF(Data_PersoonAanUitVastVrij063=-1,"v","") ->  | BK86: v | BP86: 0 | BQ86: 0 | BS86: =IF(Data_NaamPersoonVastOntslag063="","",Data_NaamPersoonVastOntslag063) ->  | BV86: =IF(Data_BeeindigingsdatumVastOntslag063="","",Data_BeeindigingsdatumVastOntslag063) ->  | BY86: =IF(Data_LoonkostenVastOntslag063="","",Data_LoonkostenVastOntslag063) ->  | CA86: =IF(Data_PersoonAanUitVastOntslag063=-1,"v","") ->  | CC86: v | CH86: 0 | CI86: 0
H87: =IF(Data_NaamPersoonNatVerloop064="","",Data_NaamPersoonNatVerloop064) ->  | K87: =IF(Data_BeeindigingsdatumNatVerloop064="","",Data_BeeindigingsdatumNatVerloop064) ->  | N87: =IF(Data_LoonkostenNatVerloop064="","",Data_LoonkostenNatVerloop064) ->  | P87: v | R87: v | W87: 0 | AG87: =IF(Data_NaamPersoonTijd064="","",Data_NaamPersoonTijd064) ->  | AJ87: =IF(Data_BeeindigingsdatumTijd064="","",Data_BeeindigingsdatumTijd064) ->  | AM87: =IF(Data_LoonkostenTijd064="","",Data_LoonkostenTijd064) ->  | AO87: =IF(Data_PersoonAanUitTijd064=-1,"v","") ->  | AQ87: v | AV87: 0 | AW87: 0 | BA87: =IF(Data_NaamPersoonVastVrij064="","",Data_NaamPersoonVastVrij064) ->  | BD87: =IF(Data_BeeindigingsdatumVastVrij064="","",Data_BeeindigingsdatumVastVrij064) ->  | BG87: =IF(Data_LoonkostenVastVrij064="","",Data_LoonkostenVastVrij064) ->  | BI87: =IF(Data_PersoonAanUitVastVrij064=-1,"v","") ->  | BK87: v | BP87: 0 | BQ87: 0 | BS87: =IF(Data_NaamPersoonVastOntslag064="","",Data_NaamPersoonVastOntslag064) ->  | BV87: =IF(Data_BeeindigingsdatumVastOntslag064="","",Data_BeeindigingsdatumVastOntslag064) ->  | BY87: =IF(Data_LoonkostenVastOntslag064="","",Data_LoonkostenVastOntslag064) ->  | CA87: =IF(Data_PersoonAanUitVastOntslag064=-1,"v","") ->  | CC87: v | CH87: 0 | CI87: 0
H88: =IF(Data_NaamPersoonNatVerloop065="","",Data_NaamPersoonNatVerloop065) ->  | K88: =IF(Data_BeeindigingsdatumNatVerloop065="","",Data_BeeindigingsdatumNatVerloop065) ->  | N88: =IF(Data_LoonkostenNatVerloop065="","",Data_LoonkostenNatVerloop065) ->  | P88: v | R88: v | W88: =IF($AO88="v",M88,T88) -> 0 | AG88: =IF(Data_NaamPersoonTijd065="","",Data_NaamPersoonTijd065) ->  | AJ88: =IF(Data_BeeindigingsdatumTijd065="","",Data_BeeindigingsdatumTijd065) ->  | AM88: =IF(Data_LoonkostenTijd065="","",Data_LoonkostenTijd065) ->  | AO88: =IF(Data_PersoonAanUitTijd065=-1,"v","") ->  | AQ88: v | AV88: =IF($AO88="v",AL88,AS88) -> 0 | AW88: =IF(AND($AO88="v",$AQ88="v"),AM88,IF(AND($AO88="v",$AQ88<>"v"),AT88,0)) -> 0 | BA88: =IF(Data_NaamPersoonVastVrij065="","",Data_NaamPersoonVastVrij065) ->  | BD88: =IF(Data_BeeindigingsdatumVastVrij065="","",Data_BeeindigingsdatumVastVrij065) ->  | BG88: =IF(Data_LoonkostenVastVrij065="","",Data_LoonkostenVastVrij065) ->  | BI88: =IF(Data_PersoonAanUitVastVrij065=-1,"v","") ->  | BK88: v | BP88: =IF($BI88="v",BF88,BM88) -> 0 | BQ88: =IF(AND($BI88="v",$BK88="v"),BG88,IF(AND($BI88="v",$BK88<>"v"),BN88,0)) -> 0 | BS88: =IF(Data_NaamPersoonVastOntslag065="","",Data_NaamPersoonVastOntslag065) ->  | BV88: =IF(Data_BeeindigingsdatumVastOntslag065="","",Data_BeeindigingsdatumVastOntslag065) ->  | BY88: =IF(Data_LoonkostenVastOntslag065="","",Data_LoonkostenVastOntslag065) ->  | CA88: =IF(Data_PersoonAanUitVastOntslag065=-1,"v","") ->  | CC88: v | CH88: 0 | CI88: =IF(AND($CA88="v",$CC88="v"),BY88,IF(AND($CA88="v",$CC88<>"v"),CF87,0)) -> 0
H89: =IF(Data_NaamPersoonNatVerloop066="","",Data_NaamPersoonNatVerloop066) ->  | K89: =IF(Data_BeeindigingsdatumNatVerloop066="","",Data_BeeindigingsdatumNatVerloop066) ->  | N89: =IF(Data_LoonkostenNatVerloop066="","",Data_LoonkostenNatVerloop066) ->  | P89: v | R89: v | W89: 0 | X89: =IF(AND($P89="v",$R89="v"),N89,IF(AND($P89="v",$R89<>"v"),U89,0)) ->  | AG89: =IF(Data_NaamPersoonTijd066="","",Data_NaamPersoonTijd066) ->  | AJ89: =IF(Data_BeeindigingsdatumTijd066="","",Data_BeeindigingsdatumTijd066) ->  | AM89: =IF(Data_LoonkostenTijd066="","",Data_LoonkostenTijd066) ->  | AO89: =IF(Data_PersoonAanUitTijd066=-1,"v","") ->  | AQ89: v | AV89: 0 | AW89: 0 | BA89: =IF(Data_NaamPersoonVastVrij066="","",Data_NaamPersoonVastVrij066) ->  | BD89: =IF(Data_BeeindigingsdatumVastVrij066="","",Data_BeeindigingsdatumVastVrij066) ->  | BG89: =IF(Data_LoonkostenVastVrij066="","",Data_LoonkostenVastVrij066) ->  | BI89: =IF(Data_PersoonAanUitVastVrij066=-1,"v","") ->  | BK89: v | BP89: 0 | BQ89: 0 | BS89: =IF(Data_NaamPersoonVastOntslag066="","",Data_NaamPersoonVastOntslag066) ->  | BV89: =IF(Data_BeeindigingsdatumVastOntslag066="","",Data_BeeindigingsdatumVastOntslag066) ->  | BY89: =IF(Data_LoonkostenVastOntslag066="","",Data_LoonkostenVastOntslag066) ->  | CA89: =IF(Data_PersoonAanUitVastOntslag066=-1,"v","") ->  | CC89: v | CH89: =IF($CA89="v",BX89,CE89) -> 0 | CI89: 0
H90: =IF(Data_NaamPersoonNatVerloop067="","",Data_NaamPersoonNatVerloop067) ->  | K90: =IF(Data_BeeindigingsdatumNatVerloop067="","",Data_BeeindigingsdatumNatVerloop067) ->  | N90: =IF(Data_LoonkostenNatVerloop067="","",Data_LoonkostenNatVerloop067) ->  | P90: v | R90: v | W90: 0 | AG90: =IF(Data_NaamPersoonTijd067="","",Data_NaamPersoonTijd067) ->  | AJ90: =IF(Data_BeeindigingsdatumTijd067="","",Data_BeeindigingsdatumTijd067) ->  | AM90: =IF(Data_LoonkostenTijd067="","",Data_LoonkostenTijd067) ->  | AO90: =IF(Data_PersoonAanUitTijd067=-1,"v","") ->  | AQ90: v | AV90: 0 | AW90: 0 | BA90: =IF(Data_NaamPersoonVastVrij067="","",Data_NaamPersoonVastVrij067) ->  | BD90: =IF(Data_BeeindigingsdatumVastVrij067="","",Data_BeeindigingsdatumVastVrij067) ->  | BG90: =IF(Data_LoonkostenVastVrij067="","",Data_LoonkostenVastVrij067) ->  | BI90: =IF(Data_PersoonAanUitVastVrij067=-1,"v","") ->  | BK90: v | BP90: 0 | BQ90: 0 | BS90: =IF(Data_NaamPersoonVastOntslag067="","",Data_NaamPersoonVastOntslag067) ->  | BV90: =IF(Data_BeeindigingsdatumVastOntslag067="","",Data_BeeindigingsdatumVastOntslag067) ->  | BY90: =IF(Data_LoonkostenVastOntslag067="","",Data_LoonkostenVastOntslag067) ->  | CA90: =IF(Data_PersoonAanUitVastOntslag067=-1,"v","") ->  | CC90: v | CH90: 0 | CI90: 0
H91: =IF(Data_NaamPersoonNatVerloop068="","",Data_NaamPersoonNatVerloop068) ->  | K91: =IF(Data_BeeindigingsdatumNatVerloop068="","",Data_BeeindigingsdatumNatVerloop068) ->  | N91: =IF(Data_LoonkostenNatVerloop068="","",Data_LoonkostenNatVerloop068) ->  | P91: v | R91: v | W91: 0 | AG91: =IF(Data_NaamPersoonTijd068="","",Data_NaamPersoonTijd068) ->  | AJ91: =IF(Data_BeeindigingsdatumTijd068="","",Data_BeeindigingsdatumTijd068) ->  | AM91: =IF(Data_LoonkostenTijd068="","",Data_LoonkostenTijd068) ->  | AO91: =IF(Data_PersoonAanUitTijd068=-1,"v","") ->  | AQ91: v | AV91: 0 | AW91: 0 | BA91: =IF(Data_NaamPersoonVastVrij068="","",Data_NaamPersoonVastVrij068) ->  | BD91: =IF(Data_BeeindigingsdatumVastVrij068="","",Data_BeeindigingsdatumVastVrij068) ->  | BG91: =IF(Data_LoonkostenVastVrij068="","",Data_LoonkostenVastVrij068) ->  | BI91: =IF(Data_PersoonAanUitVastVrij068=-1,"v","") ->  | BK91: v | BP91: 0 | BQ91: 0 | BS91: =IF(Data_NaamPersoonVastOntslag068="","",Data_NaamPersoonVastOntslag068) ->  | BV91: =IF(Data_BeeindigingsdatumVastOntslag068="","",Data_BeeindigingsdatumVastOntslag068) ->  | BY91: =IF(Data_LoonkostenVastOntslag068="","",Data_LoonkostenVastOntslag068) ->  | CA91: =IF(Data_PersoonAanUitVastOntslag068=-1,"v","") ->  | CC91: v | CH91: 0 | CI91: 0
H92: =IF(Data_NaamPersoonNatVerloop069="","",Data_NaamPersoonNatVerloop069) ->  | K92: =IF(Data_BeeindigingsdatumNatVerloop069="","",Data_BeeindigingsdatumNatVerloop069) ->  | N92: =IF(Data_LoonkostenNatVerloop069="","",Data_LoonkostenNatVerloop069) ->  | P92: v | R92: v | W92: 0 | AG92: =IF(Data_NaamPersoonTijd069="","",Data_NaamPersoonTijd069) ->  | AJ92: =IF(Data_BeeindigingsdatumTijd069="","",Data_BeeindigingsdatumTijd069) ->  | AM92: =IF(Data_LoonkostenTijd069="","",Data_LoonkostenTijd069) ->  | AO92: =IF(Data_PersoonAanUitTijd069=-1,"v","") ->  | AQ92: v | AV92: 0 | AW92: 0 | BA92: =IF(Data_NaamPersoonVastVrij069="","",Data_NaamPersoonVastVrij069) ->  | BD92: =IF(Data_BeeindigingsdatumVastVrij069="","",Data_BeeindigingsdatumVastVrij069) ->  | BG92: =IF(Data_LoonkostenVastVrij069="","",Data_LoonkostenVastVrij069) ->  | BI92: =IF(Data_PersoonAanUitVastVrij069=-1,"v","") ->  | BK92: v | BP92: 0 | BQ92: 0 | BS92: =IF(Data_NaamPersoonVastOntslag069="","",Data_NaamPersoonVastOntslag069) ->  | BV92: =IF(Data_BeeindigingsdatumVastOntslag069="","",Data_BeeindigingsdatumVastOntslag069) ->  | BY92: =IF(Data_LoonkostenVastOntslag069="","",Data_LoonkostenVastOntslag069) ->  | CA92: =IF(Data_PersoonAanUitVastOntslag069=-1,"v","") ->  | CC92: v | CH92: 0 | CI92: 0
H93: =IF(Data_NaamPersoonNatVerloop070="","",Data_NaamPersoonNatVerloop070) ->  | K93: =IF(Data_BeeindigingsdatumNatVerloop070="","",Data_BeeindigingsdatumNatVerloop070) ->  | N93: =IF(Data_LoonkostenNatVerloop070="","",Data_LoonkostenNatVerloop070) ->  | P93: v | R93: v | W93: 0 | AG93: =IF(Data_NaamPersoonTijd070="","",Data_NaamPersoonTijd070) ->  | AJ93: =IF(Data_BeeindigingsdatumTijd070="","",Data_BeeindigingsdatumTijd070) ->  | AM93: =IF(Data_LoonkostenTijd070="","",Data_LoonkostenTijd070) ->  | AO93: =IF(Data_PersoonAanUitTijd070=-1,"v","") ->  | AQ93: v | AV93: 0 | AW93: 0 | BA93: =IF(Data_NaamPersoonVastVrij070="","",Data_NaamPersoonVastVrij070) ->  | BD93: =IF(Data_BeeindigingsdatumVastVrij070="","",Data_BeeindigingsdatumVastVrij070) ->  | BG93: =IF(Data_LoonkostenVastVrij070="","",Data_LoonkostenVastVrij070) ->  | BI93: =IF(Data_PersoonAanUitVastVrij070=-1,"v","") ->  | BK93: v | BP93: 0 | BQ93: 0 | BS93: =IF(Data_NaamPersoonVastOntslag070="","",Data_NaamPersoonVastOntslag070) ->  | BV93: =IF(Data_BeeindigingsdatumVastOntslag070="","",Data_BeeindigingsdatumVastOntslag070) ->  | BY93: =IF(Data_LoonkostenVastOntslag070="","",Data_LoonkostenVastOntslag070) ->  | CA93: =IF(Data_PersoonAanUitVastOntslag070=-1,"v","") ->  | CC93: v | CH93: 0 | CI93: 0
H94: =IF(Data_NaamPersoonNatVerloop071="","",Data_NaamPersoonNatVerloop071) ->  | K94: =IF(Data_BeeindigingsdatumNatVerloop071="","",Data_BeeindigingsdatumNatVerloop071) ->  | N94: =IF(Data_LoonkostenNatVerloop071="","",Data_LoonkostenNatVerloop071) ->  | P94: v | R94: v | W94: 0 | AG94: =IF(Data_NaamPersoonTijd071="","",Data_NaamPersoonTijd071) ->  | AJ94: =IF(Data_BeeindigingsdatumTijd071="","",Data_BeeindigingsdatumTijd071) ->  | AM94: =IF(Data_LoonkostenTijd071="","",Data_LoonkostenTijd071) ->  | AO94: =IF(Data_PersoonAanUitTijd071=-1,"v","") ->  | AQ94: v | AV94: 0 | AW94: 0 | BA94: =IF(Data_NaamPersoonVastVrij071="","",Data_NaamPersoonVastVrij071) ->  | BD94: =IF(Data_BeeindigingsdatumVastVrij071="","",Data_BeeindigingsdatumVastVrij071) ->  | BG94: =IF(Data_LoonkostenVastVrij071="","",Data_LoonkostenVastVrij071) ->  | BI94: =IF(Data_PersoonAanUitVastVrij071=-1,"v","") ->  | BK94: v | BP94: 0 | BQ94: 0 | BS94: =IF(Data_NaamPersoonVastOntslag071="","",Data_NaamPersoonVastOntslag071) ->  | BV94: =IF(Data_BeeindigingsdatumVastOntslag071="","",Data_BeeindigingsdatumVastOntslag071) ->  | BY94: =IF(Data_LoonkostenVastOntslag071="","",Data_LoonkostenVastOntslag071) ->  | CA94: =IF(Data_PersoonAanUitVastOntslag071=-1,"v","") ->  | CC94: v | CH94: 0 | CI94: 0
H95: =IF(Data_NaamPersoonNatVerloop072="","",Data_NaamPersoonNatVerloop072) ->  | K95: =IF(Data_BeeindigingsdatumNatVerloop072="","",Data_BeeindigingsdatumNatVerloop072) ->  | N95: =IF(Data_LoonkostenNatVerloop072="","",Data_LoonkostenNatVerloop072) ->  | P95: v | R95: v | W95: 0 | AG95: =IF(Data_NaamPersoonTijd072="","",Data_NaamPersoonTijd072) ->  | AJ95: =IF(Data_BeeindigingsdatumTijd072="","",Data_BeeindigingsdatumTijd072) ->  | AM95: =IF(Data_LoonkostenTijd072="","",Data_LoonkostenTijd072) ->  | AO95: =IF(Data_PersoonAanUitTijd072=-1,"v","") ->  | AQ95: v | AV95: 0 | AW95: 0 | BA95: =IF(Data_NaamPersoonVastVrij072="","",Data_NaamPersoonVastVrij072) ->  | BD95: =IF(Data_BeeindigingsdatumVastVrij072="","",Data_BeeindigingsdatumVastVrij072) ->  | BG95: =IF(Data_LoonkostenVastVrij072="","",Data_LoonkostenVastVrij072) ->  | BI95: =IF(Data_PersoonAanUitVastVrij072=-1,"v","") ->  | BK95: v | BP95: 0 | BQ95: 0 | BS95: =IF(Data_NaamPersoonVastOntslag072="","",Data_NaamPersoonVastOntslag072) ->  | BV95: =IF(Data_BeeindigingsdatumVastOntslag072="","",Data_BeeindigingsdatumVastOntslag072) ->  | BY95: =IF(Data_LoonkostenVastOntslag072="","",Data_LoonkostenVastOntslag072) ->  | CA95: =IF(Data_PersoonAanUitVastOntslag072=-1,"v","") ->  | CC95: v | CH95: 0 | CI95: 0
H96: =IF(Data_NaamPersoonNatVerloop073="","",Data_NaamPersoonNatVerloop073) ->  | K96: =IF(Data_BeeindigingsdatumNatVerloop073="","",Data_BeeindigingsdatumNatVerloop073) ->  | N96: =IF(Data_LoonkostenNatVerloop073="","",Data_LoonkostenNatVerloop073) ->  | P96: v | R96: v | W96: 0 | AG96: =IF(Data_NaamPersoonTijd073="","",Data_NaamPersoonTijd073) ->  | AJ96: =IF(Data_BeeindigingsdatumTijd073="","",Data_BeeindigingsdatumTijd073) ->  | AM96: =IF(Data_LoonkostenTijd073="","",Data_LoonkostenTijd073) ->  | AO96: =IF(Data_PersoonAanUitTijd073=-1,"v","") ->  | AQ96: v | AV96: 0 | AW96: 0 | BA96: =IF(Data_NaamPersoonVastVrij073="","",Data_NaamPersoonVastVrij073) ->  | BD96: =IF(Data_BeeindigingsdatumVastVrij073="","",Data_BeeindigingsdatumVastVrij073) ->  | BG96: =IF(Data_LoonkostenVastVrij073="","",Data_LoonkostenVastVrij073) ->  | BI96: =IF(Data_PersoonAanUitVastVrij073=-1,"v","") ->  | BK96: v | BP96: 0 | BQ96: 0 | BS96: =IF(Data_NaamPersoonVastOntslag073="","",Data_NaamPersoonVastOntslag073) ->  | BV96: =IF(Data_BeeindigingsdatumVastOntslag073="","",Data_BeeindigingsdatumVastOntslag073) ->  | BY96: =IF(Data_LoonkostenVastOntslag073="","",Data_LoonkostenVastOntslag073) ->  | CA96: =IF(Data_PersoonAanUitVastOntslag073=-1,"v","") ->  | CC96: v | CH96: 0 | CI96: 0
H97: =IF(Data_NaamPersoonNatVerloop074="","",Data_NaamPersoonNatVerloop074) ->  | K97: =IF(Data_BeeindigingsdatumNatVerloop074="","",Data_BeeindigingsdatumNatVerloop074) ->  | N97: =IF(Data_LoonkostenNatVerloop074="","",Data_LoonkostenNatVerloop074) ->  | P97: v | R97: v | W97: 0 | AG97: =IF(Data_NaamPersoonTijd074="","",Data_NaamPersoonTijd074) ->  | AJ97: =IF(Data_BeeindigingsdatumTijd074="","",Data_BeeindigingsdatumTijd074) ->  | AM97: =IF(Data_LoonkostenTijd074="","",Data_LoonkostenTijd074) ->  | AO97: =IF(Data_PersoonAanUitTijd074=-1,"v","") ->  | AQ97: v | AV97: 0 | AW97: 0 | BA97: =IF(Data_NaamPersoonVastVrij074="","",Data_NaamPersoonVastVrij074) ->  | BD97: =IF(Data_BeeindigingsdatumVastVrij074="","",Data_BeeindigingsdatumVastVrij074) ->  | BG97: =IF(Data_LoonkostenVastVrij074="","",Data_LoonkostenVastVrij074) ->  | BI97: =IF(Data_PersoonAanUitVastVrij074=-1,"v","") ->  | BK97: v | BP97: 0 | BQ97: 0 | BS97: =IF(Data_NaamPersoonVastOntslag074="","",Data_NaamPersoonVastOntslag074) ->  | BV97: =IF(Data_BeeindigingsdatumVastOntslag074="","",Data_BeeindigingsdatumVastOntslag074) ->  | BY97: =IF(Data_LoonkostenVastOntslag074="","",Data_LoonkostenVastOntslag074) ->  | CA97: =IF(Data_PersoonAanUitVastOntslag074=-1,"v","") ->  | CC97: v | CH97: 0 | CI97: 0
H98: =IF(Data_NaamPersoonNatVerloop075="","",Data_NaamPersoonNatVerloop075) ->  | K98: =IF(Data_BeeindigingsdatumNatVerloop075="","",Data_BeeindigingsdatumNatVerloop075) ->  | N98: =IF(Data_LoonkostenNatVerloop075="","",Data_LoonkostenNatVerloop075) ->  | P98: v | R98: v | W98: 0 | AG98: =IF(Data_NaamPersoonTijd075="","",Data_NaamPersoonTijd075) ->  | AJ98: =IF(Data_BeeindigingsdatumTijd075="","",Data_BeeindigingsdatumTijd075) ->  | AM98: =IF(Data_LoonkostenTijd075="","",Data_LoonkostenTijd075) ->  | AO98: =IF(Data_PersoonAanUitTijd075=-1,"v","") ->  | AQ98: v | AV98: 0 | AW98: 0 | BA98: =IF(Data_NaamPersoonVastVrij075="","",Data_NaamPersoonVastVrij075) ->  | BD98: =IF(Data_BeeindigingsdatumVastVrij075="","",Data_BeeindigingsdatumVastVrij075) ->  | BG98: =IF(Data_LoonkostenVastVrij075="","",Data_LoonkostenVastVrij075) ->  | BI98: =IF(Data_PersoonAanUitVastVrij075=-1,"v","") ->  | BK98: v | BP98: 0 | BQ98: 0 | BS98: =IF(Data_NaamPersoonVastOntslag075="","",Data_NaamPersoonVastOntslag075) ->  | BV98: =IF(Data_BeeindigingsdatumVastOntslag075="","",Data_BeeindigingsdatumVastOntslag075) ->  | BY98: =IF(Data_LoonkostenVastOntslag075="","",Data_LoonkostenVastOntslag075) ->  | CA98: =IF(Data_PersoonAanUitVastOntslag075=-1,"v","") ->  | CC98: v | CH98: 0 | CI98: 0
H99: =IF(Data_NaamPersoonNatVerloop076="","",Data_NaamPersoonNatVerloop076) ->  | K99: =IF(Data_BeeindigingsdatumNatVerloop076="","",Data_BeeindigingsdatumNatVerloop076) ->  | N99: =IF(Data_LoonkostenNatVerloop076="","",Data_LoonkostenNatVerloop076) ->  | P99: v | R99: v | W99: 0 | AG99: =IF(Data_NaamPersoonTijd076="","",Data_NaamPersoonTijd076) ->  | AJ99: =IF(Data_BeeindigingsdatumTijd076="","",Data_BeeindigingsdatumTijd076) ->  | AM99: =IF(Data_LoonkostenTijd076="","",Data_LoonkostenTijd076) ->  | AO99: =IF(Data_PersoonAanUitTijd076=-1,"v","") ->  | AQ99: v | AV99: 0 | AW99: 0 | BA99: =IF(Data_NaamPersoonVastVrij076="","",Data_NaamPersoonVastVrij076) ->  | BD99: =IF(Data_BeeindigingsdatumVastVrij076="","",Data_BeeindigingsdatumVastVrij076) ->  | BG99: =IF(Data_LoonkostenVastVrij076="","",Data_LoonkostenVastVrij076) ->  | BI99: =IF(Data_PersoonAanUitVastVrij076=-1,"v","") ->  | BK99: v | BP99: 0 | BQ99: 0 | BS99: =IF(Data_NaamPersoonVastOntslag076="","",Data_NaamPersoonVastOntslag076) ->  | BV99: =IF(Data_BeeindigingsdatumVastOntslag076="","",Data_BeeindigingsdatumVastOntslag076) ->  | BY99: =IF(Data_LoonkostenVastOntslag076="","",Data_LoonkostenVastOntslag076) ->  | CA99: =IF(Data_PersoonAanUitVastOntslag076=-1,"v","") ->  | CC99: v | CH99: 0 | CI99: 0
H100: =IF(Data_NaamPersoonNatVerloop077="","",Data_NaamPersoonNatVerloop077) ->  | K100: =IF(Data_BeeindigingsdatumNatVerloop077="","",Data_BeeindigingsdatumNatVerloop077) ->  | N100: =IF(Data_LoonkostenNatVerloop077="","",Data_LoonkostenNatVerloop077) ->  | P100: v | R100: v | W100: 0 | AG100: =IF(Data_NaamPersoonTijd077="","",Data_NaamPersoonTijd077) ->  | AJ100: =IF(Data_BeeindigingsdatumTijd077="","",Data_BeeindigingsdatumTijd077) ->  | AM100: =IF(Data_LoonkostenTijd077="","",Data_LoonkostenTijd077) ->  | AO100: =IF(Data_PersoonAanUitTijd077=-1,"v","") ->  | AQ100: v | AV100: 0 | AW100: 0 | BA100: =IF(Data_NaamPersoonVastVrij077="","",Data_NaamPersoonVastVrij077) ->  | BD100: =IF(Data_BeeindigingsdatumVastVrij077="","",Data_BeeindigingsdatumVastVrij077) ->  | BG100: =IF(Data_LoonkostenVastVrij077="","",Data_LoonkostenVastVrij077) ->  | BI100: =IF(Data_PersoonAanUitVastVrij077=-1,"v","") ->  | BK100: v | BP100: 0 | BQ100: 0 | BS100: =IF(Data_NaamPersoonVastOntslag077="","",Data_NaamPersoonVastOntslag077) ->  | BV100: =IF(Data_BeeindigingsdatumVastOntslag077="","",Data_BeeindigingsdatumVastOntslag077) ->  | BY100: =IF(Data_LoonkostenVastOntslag077="","",Data_LoonkostenVastOntslag077) ->  | CA100: =IF(Data_PersoonAanUitVastOntslag077=-1,"v","") ->  | CC100: v | CH100: 0 | CI100: 0
H101: =IF(Data_NaamPersoonNatVerloop078="","",Data_NaamPersoonNatVerloop078) ->  | K101: =IF(Data_BeeindigingsdatumNatVerloop078="","",Data_BeeindigingsdatumNatVerloop078) ->  | N101: =IF(Data_LoonkostenNatVerloop078="","",Data_LoonkostenNatVerloop078) ->  | P101: v | R101: v | W101: 0 | AG101: =IF(Data_NaamPersoonTijd078="","",Data_NaamPersoonTijd078) ->  | AJ101: =IF(Data_BeeindigingsdatumTijd078="","",Data_BeeindigingsdatumTijd078) ->  | AM101: =IF(Data_LoonkostenTijd078="","",Data_LoonkostenTijd078) ->  | AO101: =IF(Data_PersoonAanUitTijd078=-1,"v","") ->  | AQ101: v | AV101: 0 | AW101: 0 | BA101: =IF(Data_NaamPersoonVastVrij078="","",Data_NaamPersoonVastVrij078) ->  | BD101: =IF(Data_BeeindigingsdatumVastVrij078="","",Data_BeeindigingsdatumVastVrij078) ->  | BG101: =IF(Data_LoonkostenVastVrij078="","",Data_LoonkostenVastVrij078) ->  | BI101: =IF(Data_PersoonAanUitVastVrij078=-1,"v","") ->  | BK101: v | BP101: 0 | BQ101: 0 | BS101: =IF(Data_NaamPersoonVastOntslag078="","",Data_NaamPersoonVastOntslag078) ->  | BV101: =IF(Data_BeeindigingsdatumVastOntslag078="","",Data_BeeindigingsdatumVastOntslag078) ->  | BY101: =IF(Data_LoonkostenVastOntslag078="","",Data_LoonkostenVastOntslag078) ->  | CA101: =IF(Data_PersoonAanUitVastOntslag078=-1,"v","") ->  | CC101: v | CH101: 0 | CI101: 0
H102: =IF(Data_NaamPersoonNatVerloop079="","",Data_NaamPersoonNatVerloop079) ->  | K102: =IF(Data_BeeindigingsdatumNatVerloop079="","",Data_BeeindigingsdatumNatVerloop079) ->  | N102: =IF(Data_LoonkostenNatVerloop079="","",Data_LoonkostenNatVerloop079) ->  | P102: v | R102: v | W102: 0 | AG102: =IF(Data_NaamPersoonTijd079="","",Data_NaamPersoonTijd079) ->  | AJ102: =IF(Data_BeeindigingsdatumTijd079="","",Data_BeeindigingsdatumTijd079) ->  | AM102: =IF(Data_LoonkostenTijd079="","",Data_LoonkostenTijd079) ->  | AO102: =IF(Data_PersoonAanUitTijd079=-1,"v","") ->  | AQ102: v | AV102: 0 | AW102: 0 | BA102: =IF(Data_NaamPersoonVastVrij079="","",Data_NaamPersoonVastVrij079) ->  | BD102: =IF(Data_BeeindigingsdatumVastVrij079="","",Data_BeeindigingsdatumVastVrij079) ->  | BG102: =IF(Data_LoonkostenVastVrij079="","",Data_LoonkostenVastVrij079) ->  | BI102: =IF(Data_PersoonAanUitVastVrij079=-1,"v","") ->  | BK102: v | BP102: 0 | BQ102: 0 | BS102: =IF(Data_NaamPersoonVastOntslag079="","",Data_NaamPersoonVastOntslag079) ->  | BV102: =IF(Data_BeeindigingsdatumVastOntslag079="","",Data_BeeindigingsdatumVastOntslag079) ->  | BY102: =IF(Data_LoonkostenVastOntslag079="","",Data_LoonkostenVastOntslag079) ->  | CA102: =IF(Data_PersoonAanUitVastOntslag079=-1,"v","") ->  | CC102: v | CH102: 0 | CI102: 0
H103: =IF(Data_NaamPersoonNatVerloop080="","",Data_NaamPersoonNatVerloop080) ->  | K103: =IF(Data_BeeindigingsdatumNatVerloop080="","",Data_BeeindigingsdatumNatVerloop080) ->  | N103: =IF(Data_LoonkostenNatVerloop080="","",Data_LoonkostenNatVerloop080) ->  | P103: v | R103: v | W103: 0 | AG103: =IF(Data_NaamPersoonTijd080="","",Data_NaamPersoonTijd080) ->  | AJ103: =IF(Data_BeeindigingsdatumTijd080="","",Data_BeeindigingsdatumTijd080) ->  | AM103: =IF(Data_LoonkostenTijd080="","",Data_LoonkostenTijd080) ->  | AO103: =IF(Data_PersoonAanUitTijd080=-1,"v","") ->  | AQ103: v | AV103: 0 | AW103: 0 | BA103: =IF(Data_NaamPersoonVastVrij080="","",Data_NaamPersoonVastVrij080) ->  | BD103: =IF(Data_BeeindigingsdatumVastVrij080="","",Data_BeeindigingsdatumVastVrij080) ->  | BG103: =IF(Data_LoonkostenVastVrij080="","",Data_LoonkostenVastVrij080) ->  | BI103: =IF(Data_PersoonAanUitVastVrij080=-1,"v","") ->  | BK103: v | BP103: 0 | BQ103: 0 | BS103: =IF(Data_NaamPersoonVastOntslag080="","",Data_NaamPersoonVastOntslag080) ->  | BV103: =IF(Data_BeeindigingsdatumVastOntslag080="","",Data_BeeindigingsdatumVastOntslag080) ->  | BY103: =IF(Data_LoonkostenVastOntslag080="","",Data_LoonkostenVastOntslag080) ->  | CA103: =IF(Data_PersoonAanUitVastOntslag080=-1,"v","") ->  | CC103: v | CH103: 0 | CI103: 0
H104: =IF(Data_NaamPersoonNatVerloop081="","",Data_NaamPersoonNatVerloop081) ->  | K104: =IF(Data_BeeindigingsdatumNatVerloop081="","",Data_BeeindigingsdatumNatVerloop081) ->  | N104: =IF(Data_LoonkostenNatVerloop081="","",Data_LoonkostenNatVerloop081) ->  | P104: v | R104: v | W104: 0 | AG104: =IF(Data_NaamPersoonTijd081="","",Data_NaamPersoonTijd081) ->  | AJ104: =IF(Data_BeeindigingsdatumTijd081="","",Data_BeeindigingsdatumTijd081) ->  | AM104: =IF(Data_LoonkostenTijd081="","",Data_LoonkostenTijd081) ->  | AO104: =IF(Data_PersoonAanUitTijd081=-1,"v","") ->  | AQ104: v | AV104: 0 | AW104: 0 | BA104: =IF(Data_NaamPersoonVastVrij081="","",Data_NaamPersoonVastVrij081) ->  | BD104: =IF(Data_BeeindigingsdatumVastVrij081="","",Data_BeeindigingsdatumVastVrij081) ->  | BG104: =IF(Data_LoonkostenVastVrij081="","",Data_LoonkostenVastVrij081) ->  | BI104: =IF(Data_PersoonAanUitVastVrij081=-1,"v","") ->  | BK104: v | BP104: 0 | BQ104: 0 | BS104: =IF(Data_NaamPersoonVastOntslag081="","",Data_NaamPersoonVastOntslag081) ->  | BV104: =IF(Data_BeeindigingsdatumVastOntslag081="","",Data_BeeindigingsdatumVastOntslag081) ->  | BY104: =IF(Data_LoonkostenVastOntslag081="","",Data_LoonkostenVastOntslag081) ->  | CA104: =IF(Data_PersoonAanUitVastOntslag081=-1,"v","") ->  | CC104: v | CH104: 0 | CI104: 0
H105: =IF(Data_NaamPersoonNatVerloop082="","",Data_NaamPersoonNatVerloop082) ->  | K105: =IF(Data_BeeindigingsdatumNatVerloop082="","",Data_BeeindigingsdatumNatVerloop082) ->  | N105: =IF(Data_LoonkostenNatVerloop082="","",Data_LoonkostenNatVerloop082) ->  | P105: v | R105: v | W105: 0 | AG105: =IF(Data_NaamPersoonTijd082="","",Data_NaamPersoonTijd082) ->  | AJ105: =IF(Data_BeeindigingsdatumTijd082="","",Data_BeeindigingsdatumTijd082) ->  | AM105: =IF(Data_LoonkostenTijd082="","",Data_LoonkostenTijd082) ->  | AO105: =IF(Data_PersoonAanUitTijd082=-1,"v","") ->  | AQ105: v | AV105: 0 | AW105: 0 | BA105: =IF(Data_NaamPersoonVastVrij082="","",Data_NaamPersoonVastVrij082) ->  | BD105: =IF(Data_BeeindigingsdatumVastVrij082="","",Data_BeeindigingsdatumVastVrij082) ->  | BG105: =IF(Data_LoonkostenVastVrij082="","",Data_LoonkostenVastVrij082) ->  | BI105: =IF(Data_PersoonAanUitVastVrij082=-1,"v","") ->  | BK105: v | BP105: 0 | BQ105: 0 | BS105: =IF(Data_NaamPersoonVastOntslag082="","",Data_NaamPersoonVastOntslag082) ->  | BV105: =IF(Data_BeeindigingsdatumVastOntslag082="","",Data_BeeindigingsdatumVastOntslag082) ->  | BY105: =IF(Data_LoonkostenVastOntslag082="","",Data_LoonkostenVastOntslag082) ->  | CA105: =IF(Data_PersoonAanUitVastOntslag082=-1,"v","") ->  | CC105: v | CH105: 0 | CI105: 0
H106: =IF(Data_NaamPersoonNatVerloop083="","",Data_NaamPersoonNatVerloop083) ->  | K106: =IF(Data_BeeindigingsdatumNatVerloop083="","",Data_BeeindigingsdatumNatVerloop083) ->  | N106: =IF(Data_LoonkostenNatVerloop083="","",Data_LoonkostenNatVerloop083) ->  | P106: v | R106: v | W106: 0 | AG106: =IF(Data_NaamPersoonTijd083="","",Data_NaamPersoonTijd083) ->  | AJ106: =IF(Data_BeeindigingsdatumTijd083="","",Data_BeeindigingsdatumTijd083) ->  | AM106: =IF(Data_LoonkostenTijd083="","",Data_LoonkostenTijd083) ->  | AO106: =IF(Data_PersoonAanUitTijd083=-1,"v","") ->  | AQ106: v | AV106: 0 | AW106: 0 | BA106: =IF(Data_NaamPersoonVastVrij083="","",Data_NaamPersoonVastVrij083) ->  | BD106: =IF(Data_BeeindigingsdatumVastVrij083="","",Data_BeeindigingsdatumVastVrij083) ->  | BG106: =IF(Data_LoonkostenVastVrij083="","",Data_LoonkostenVastVrij083) ->  | BI106: =IF(Data_PersoonAanUitVastVrij083=-1,"v","") ->  | BK106: v | BP106: 0 | BQ106: 0 | BS106: =IF(Data_NaamPersoonVastOntslag083="","",Data_NaamPersoonVastOntslag083) ->  | BV106: =IF(Data_BeeindigingsdatumVastOntslag083="","",Data_BeeindigingsdatumVastOntslag083) ->  | BY106: =IF(Data_LoonkostenVastOntslag083="","",Data_LoonkostenVastOntslag083) ->  | CA106: =IF(Data_PersoonAanUitVastOntslag083=-1,"v","") ->  | CC106: v | CH106: 0 | CI106: 0
H107: =IF(Data_NaamPersoonNatVerloop084="","",Data_NaamPersoonNatVerloop084) ->  | K107: =IF(Data_BeeindigingsdatumNatVerloop084="","",Data_BeeindigingsdatumNatVerloop084) ->  | N107: =IF(Data_LoonkostenNatVerloop084="","",Data_LoonkostenNatVerloop084) ->  | P107: v | R107: v | W107: 0 | AG107: =IF(Data_NaamPersoonTijd084="","",Data_NaamPersoonTijd084) ->  | AJ107: =IF(Data_BeeindigingsdatumTijd084="","",Data_BeeindigingsdatumTijd084) ->  | AM107: =IF(Data_LoonkostenTijd084="","",Data_LoonkostenTijd084) ->  | AO107: =IF(Data_PersoonAanUitTijd084=-1,"v","") ->  | AQ107: v | AV107: 0 | AW107: 0 | BA107: =IF(Data_NaamPersoonVastVrij084="","",Data_NaamPersoonVastVrij084) ->  | BD107: =IF(Data_BeeindigingsdatumVastVrij084="","",Data_BeeindigingsdatumVastVrij084) ->  | BG107: =IF(Data_LoonkostenVastVrij084="","",Data_LoonkostenVastVrij084) ->  | BI107: =IF(Data_PersoonAanUitVastVrij084=-1,"v","") ->  | BK107: v | BP107: 0 | BQ107: 0 | BS107: =IF(Data_NaamPersoonVastOntslag084="","",Data_NaamPersoonVastOntslag084) ->  | BV107: =IF(Data_BeeindigingsdatumVastOntslag084="","",Data_BeeindigingsdatumVastOntslag084) ->  | BY107: =IF(Data_LoonkostenVastOntslag084="","",Data_LoonkostenVastOntslag084) ->  | CA107: =IF(Data_PersoonAanUitVastOntslag084=-1,"v","") ->  | CC107: v | CH107: 0 | CI107: 0
H108: =IF(Data_NaamPersoonNatVerloop085="","",Data_NaamPersoonNatVerloop085) ->  | K108: =IF(Data_BeeindigingsdatumNatVerloop085="","",Data_BeeindigingsdatumNatVerloop085) ->  | N108: =IF(Data_LoonkostenNatVerloop085="","",Data_LoonkostenNatVerloop085) ->  | P108: v | R108: v | W108: 0 | AG108: =IF(Data_NaamPersoonTijd085="","",Data_NaamPersoonTijd085) ->  | AJ108: =IF(Data_BeeindigingsdatumTijd085="","",Data_BeeindigingsdatumTijd085) ->  | AM108: =IF(Data_LoonkostenTijd085="","",Data_LoonkostenTijd085) ->  | AO108: =IF(Data_PersoonAanUitTijd085=-1,"v","") ->  | AQ108: v | AV108: 0 | AW108: 0 | BA108: =IF(Data_NaamPersoonVastVrij085="","",Data_NaamPersoonVastVrij085) ->  | BD108: =IF(Data_BeeindigingsdatumVastVrij085="","",Data_BeeindigingsdatumVastVrij085) ->  | BG108: =IF(Data_LoonkostenVastVrij085="","",Data_LoonkostenVastVrij085) ->  | BI108: =IF(Data_PersoonAanUitVastVrij085=-1,"v","") ->  | BK108: v | BP108: 0 | BQ108: 0 | BS108: =IF(Data_NaamPersoonVastOntslag085="","",Data_NaamPersoonVastOntslag085) ->  | BV108: =IF(Data_BeeindigingsdatumVastOntslag085="","",Data_BeeindigingsdatumVastOntslag085) ->  | BY108: =IF(Data_LoonkostenVastOntslag085="","",Data_LoonkostenVastOntslag085) ->  | CA108: =IF(Data_PersoonAanUitVastOntslag085=-1,"v","") ->  | CC108: v | CH108: 0 | CI108: 0
H109: =IF(Data_NaamPersoonNatVerloop086="","",Data_NaamPersoonNatVerloop086) ->  | K109: =IF(Data_BeeindigingsdatumNatVerloop086="","",Data_BeeindigingsdatumNatVerloop086) ->  | N109: =IF(Data_LoonkostenNatVerloop086="","",Data_LoonkostenNatVerloop086) ->  | P109: v | R109: v | W109: 0 | AG109: =IF(Data_NaamPersoonTijd086="","",Data_NaamPersoonTijd086) ->  | AJ109: =IF(Data_BeeindigingsdatumTijd086="","",Data_BeeindigingsdatumTijd086) ->  | AM109: =IF(Data_LoonkostenTijd086="","",Data_LoonkostenTijd086) ->  | AO109: =IF(Data_PersoonAanUitTijd086=-1,"v","") ->  | AQ109: v | AV109: 0 | AW109: 0 | BA109: =IF(Data_NaamPersoonVastVrij086="","",Data_NaamPersoonVastVrij086) ->  | BD109: =IF(Data_BeeindigingsdatumVastVrij086="","",Data_BeeindigingsdatumVastVrij086) ->  | BG109: =IF(Data_LoonkostenVastVrij086="","",Data_LoonkostenVastVrij086) ->  | BI109: =IF(Data_PersoonAanUitVastVrij086=-1,"v","") ->  | BK109: v | BP109: 0 | BQ109: 0 | BS109: =IF(Data_NaamPersoonVastOntslag086="","",Data_NaamPersoonVastOntslag086) ->  | BV109: =IF(Data_BeeindigingsdatumVastOntslag086="","",Data_BeeindigingsdatumVastOntslag086) ->  | BY109: =IF(Data_LoonkostenVastOntslag086="","",Data_LoonkostenVastOntslag086) ->  | CA109: =IF(Data_PersoonAanUitVastOntslag086=-1,"v","") ->  | CC109: v | CH109: 0 | CI109: 0
H110: =IF(Data_NaamPersoonNatVerloop087="","",Data_NaamPersoonNatVerloop087) ->  | K110: =IF(Data_BeeindigingsdatumNatVerloop087="","",Data_BeeindigingsdatumNatVerloop087) ->  | N110: =IF(Data_LoonkostenNatVerloop087="","",Data_LoonkostenNatVerloop087) ->  | P110: v | R110: v | W110: 0 | AG110: =IF(Data_NaamPersoonTijd087="","",Data_NaamPersoonTijd087) ->  | AJ110: =IF(Data_BeeindigingsdatumTijd087="","",Data_BeeindigingsdatumTijd087) ->  | AM110: =IF(Data_LoonkostenTijd087="","",Data_LoonkostenTijd087) ->  | AO110: =IF(Data_PersoonAanUitTijd087=-1,"v","") ->  | AQ110: v | AV110: 0 | AW110: 0 | BA110: =IF(Data_NaamPersoonVastVrij087="","",Data_NaamPersoonVastVrij087) ->  | BD110: =IF(Data_BeeindigingsdatumVastVrij087="","",Data_BeeindigingsdatumVastVrij087) ->  | BG110: =IF(Data_LoonkostenVastVrij087="","",Data_LoonkostenVastVrij087) ->  | BI110: =IF(Data_PersoonAanUitVastVrij087=-1,"v","") ->  | BK110: v | BP110: 0 | BQ110: 0 | BS110: =IF(Data_NaamPersoonVastOntslag087="","",Data_NaamPersoonVastOntslag087) ->  | BV110: =IF(Data_BeeindigingsdatumVastOntslag087="","",Data_BeeindigingsdatumVastOntslag087) ->  | BY110: =IF(Data_LoonkostenVastOntslag087="","",Data_LoonkostenVastOntslag087) ->  | CA110: =IF(Data_PersoonAanUitVastOntslag087=-1,"v","") ->  | CC110: v | CH110: 0 | CI110: 0
H111: =IF(Data_NaamPersoonNatVerloop088="","",Data_NaamPersoonNatVerloop088) ->  | K111: =IF(Data_BeeindigingsdatumNatVerloop088="","",Data_BeeindigingsdatumNatVerloop088) ->  | N111: =IF(Data_LoonkostenNatVerloop088="","",Data_LoonkostenNatVerloop088) ->  | P111: v | R111: v | W111: 0 | AG111: =IF(Data_NaamPersoonTijd088="","",Data_NaamPersoonTijd088) ->  | AJ111: =IF(Data_BeeindigingsdatumTijd088="","",Data_BeeindigingsdatumTijd088) ->  | AM111: =IF(Data_LoonkostenTijd088="","",Data_LoonkostenTijd088) ->  | AO111: =IF(Data_PersoonAanUitTijd088=-1,"v","") ->  | AQ111: v | AV111: 0 | AW111: 0 | BA111: =IF(Data_NaamPersoonVastVrij088="","",Data_NaamPersoonVastVrij088) ->  | BD111: =IF(Data_BeeindigingsdatumVastVrij088="","",Data_BeeindigingsdatumVastVrij088) ->  | BG111: =IF(Data_LoonkostenVastVrij088="","",Data_LoonkostenVastVrij088) ->  | BI111: =IF(Data_PersoonAanUitVastVrij088=-1,"v","") ->  | BK111: v | BP111: 0 | BQ111: 0 | BS111: =IF(Data_NaamPersoonVastOntslag088="","",Data_NaamPersoonVastOntslag088) ->  | BV111: =IF(Data_BeeindigingsdatumVastOntslag088="","",Data_BeeindigingsdatumVastOntslag088) ->  | BY111: =IF(Data_LoonkostenVastOntslag088="","",Data_LoonkostenVastOntslag088) ->  | CA111: =IF(Data_PersoonAanUitVastOntslag088=-1,"v","") ->  | CC111: v | CH111: 0 | CI111: 0
H112: =IF(Data_NaamPersoonNatVerloop089="","",Data_NaamPersoonNatVerloop089) ->  | K112: =IF(Data_BeeindigingsdatumNatVerloop089="","",Data_BeeindigingsdatumNatVerloop089) ->  | N112: =IF(Data_LoonkostenNatVerloop089="","",Data_LoonkostenNatVerloop089) ->  | P112: v | R112: v | W112: 0 | AG112: =IF(Data_NaamPersoonTijd089="","",Data_NaamPersoonTijd089) ->  | AJ112: =IF(Data_BeeindigingsdatumTijd089="","",Data_BeeindigingsdatumTijd089) ->  | AM112: =IF(Data_LoonkostenTijd089="","",Data_LoonkostenTijd089) ->  | AO112: =IF(Data_PersoonAanUitTijd089=-1,"v","") ->  | AQ112: v | AV112: 0 | AW112: 0 | BA112: =IF(Data_NaamPersoonVastVrij089="","",Data_NaamPersoonVastVrij089) ->  | BD112: =IF(Data_BeeindigingsdatumVastVrij089="","",Data_BeeindigingsdatumVastVrij089) ->  | BG112: =IF(Data_LoonkostenVastVrij089="","",Data_LoonkostenVastVrij089) ->  | BI112: =IF(Data_PersoonAanUitVastVrij089=-1,"v","") ->  | BK112: v | BP112: 0 | BQ112: 0 | BS112: =IF(Data_NaamPersoonVastOntslag089="","",Data_NaamPersoonVastOntslag089) ->  | BV112: =IF(Data_BeeindigingsdatumVastOntslag089="","",Data_BeeindigingsdatumVastOntslag089) ->  | BY112: =IF(Data_LoonkostenVastOntslag089="","",Data_LoonkostenVastOntslag089) ->  | CA112: =IF(Data_PersoonAanUitVastOntslag089=-1,"v","") ->  | CC112: v | CH112: 0 | CI112: 0
H113: =IF(Data_NaamPersoonNatVerloop090="","",Data_NaamPersoonNatVerloop090) ->  | K113: =IF(Data_BeeindigingsdatumNatVerloop090="","",Data_BeeindigingsdatumNatVerloop090) ->  | N113: =IF(Data_LoonkostenNatVerloop090="","",Data_LoonkostenNatVerloop090) ->  | P113: v | R113: v | W113: 0 | AG113: =IF(Data_NaamPersoonTijd090="","",Data_NaamPersoonTijd090) ->  | AJ113: =IF(Data_BeeindigingsdatumTijd090="","",Data_BeeindigingsdatumTijd090) ->  | AM113: =IF(Data_LoonkostenTijd090="","",Data_LoonkostenTijd090) ->  | AO113: =IF(Data_PersoonAanUitTijd090=-1,"v","") ->  | AQ113: v | AV113: 0 | AW113: 0 | BA113: =IF(Data_NaamPersoonVastVrij090="","",Data_NaamPersoonVastVrij090) ->  | BD113: =IF(Data_BeeindigingsdatumVastVrij090="","",Data_BeeindigingsdatumVastVrij090) ->  | BG113: =IF(Data_LoonkostenVastVrij090="","",Data_LoonkostenVastVrij090) ->  | BI113: =IF(Data_PersoonAanUitVastVrij090=-1,"v","") ->  | BK113: v | BP113: 0 | BQ113: 0 | BS113: =IF(Data_NaamPersoonVastOntslag090="","",Data_NaamPersoonVastOntslag090) ->  | BV113: =IF(Data_BeeindigingsdatumVastOntslag090="","",Data_BeeindigingsdatumVastOntslag090) ->  | BY113: =IF(Data_LoonkostenVastOntslag090="","",Data_LoonkostenVastOntslag090) ->  | CA113: =IF(Data_PersoonAanUitVastOntslag090=-1,"v","") ->  | CC113: v | CH113: 0 | CI113: 0
H114: =IF(Data_NaamPersoonNatVerloop091="","",Data_NaamPersoonNatVerloop091) ->  | K114: =IF(Data_BeeindigingsdatumNatVerloop091="","",Data_BeeindigingsdatumNatVerloop091) ->  | N114: =IF(Data_LoonkostenNatVerloop091="","",Data_LoonkostenNatVerloop091) ->  | P114: v | R114: v | W114: 0 | AG114: =IF(Data_NaamPersoonTijd091="","",Data_NaamPersoonTijd091) ->  | AJ114: =IF(Data_BeeindigingsdatumTijd091="","",Data_BeeindigingsdatumTijd091) ->  | AM114: =IF(Data_LoonkostenTijd091="","",Data_LoonkostenTijd091) ->  | AO114: =IF(Data_PersoonAanUitTijd091=-1,"v","") ->  | AQ114: v | AV114: 0 | AW114: 0 | BA114: =IF(Data_NaamPersoonVastVrij091="","",Data_NaamPersoonVastVrij091) ->  | BD114: =IF(Data_BeeindigingsdatumVastVrij091="","",Data_BeeindigingsdatumVastVrij091) ->  | BG114: =IF(Data_LoonkostenVastVrij091="","",Data_LoonkostenVastVrij091) ->  | BI114: =IF(Data_PersoonAanUitVastVrij091=-1,"v","") ->  | BK114: v | BP114: 0 | BQ114: 0 | BS114: =IF(Data_NaamPersoonVastOntslag091="","",Data_NaamPersoonVastOntslag091) ->  | BV114: =IF(Data_BeeindigingsdatumVastOntslag091="","",Data_BeeindigingsdatumVastOntslag091) ->  | BY114: =IF(Data_LoonkostenVastOntslag091="","",Data_LoonkostenVastOntslag091) ->  | CA114: =IF(Data_PersoonAanUitVastOntslag091=-1,"v","") ->  | CC114: v | CH114: 0 | CI114: 0
H115: =IF(Data_NaamPersoonNatVerloop092="","",Data_NaamPersoonNatVerloop092) ->  | K115: =IF(Data_BeeindigingsdatumNatVerloop092="","",Data_BeeindigingsdatumNatVerloop092) ->  | N115: =IF(Data_LoonkostenNatVerloop092="","",Data_LoonkostenNatVerloop092) ->  | P115: v | R115: v | W115: 0 | AG115: =IF(Data_NaamPersoonTijd092="","",Data_NaamPersoonTijd092) ->  | AJ115: =IF(Data_BeeindigingsdatumTijd092="","",Data_BeeindigingsdatumTijd092) ->  | AM115: =IF(Data_LoonkostenTijd092="","",Data_LoonkostenTijd092) ->  | AO115: =IF(Data_PersoonAanUitTijd092=-1,"v","") ->  | AQ115: v | AV115: 0 | AW115: 0 | BA115: =IF(Data_NaamPersoonVastVrij092="","",Data_NaamPersoonVastVrij092) ->  | BD115: =IF(Data_BeeindigingsdatumVastVrij092="","",Data_BeeindigingsdatumVastVrij092) ->  | BG115: =IF(Data_LoonkostenVastVrij092="","",Data_LoonkostenVastVrij092) ->  | BI115: =IF(Data_PersoonAanUitVastVrij092=-1,"v","") ->  | BK115: v | BP115: 0 | BQ115: 0 | BS115: =IF(Data_NaamPersoonVastOntslag092="","",Data_NaamPersoonVastOntslag092) ->  | BV115: =IF(Data_BeeindigingsdatumVastOntslag092="","",Data_BeeindigingsdatumVastOntslag092) ->  | BY115: =IF(Data_LoonkostenVastOntslag092="","",Data_LoonkostenVastOntslag092) ->  | CA115: =IF(Data_PersoonAanUitVastOntslag092=-1,"v","") ->  | CC115: v | CH115: 0 | CI115: 0
H116: =IF(Data_NaamPersoonNatVerloop093="","",Data_NaamPersoonNatVerloop093) ->  | K116: =IF(Data_BeeindigingsdatumNatVerloop093="","",Data_BeeindigingsdatumNatVerloop093) ->  | N116: =IF(Data_LoonkostenNatVerloop093="","",Data_LoonkostenNatVerloop093) ->  | P116: v | R116: v | W116: 0 | AG116: =IF(Data_NaamPersoonTijd093="","",Data_NaamPersoonTijd093) ->  | AJ116: =IF(Data_BeeindigingsdatumTijd093="","",Data_BeeindigingsdatumTijd093) ->  | AM116: =IF(Data_LoonkostenTijd093="","",Data_LoonkostenTijd093) ->  | AO116: =IF(Data_PersoonAanUitTijd093=-1,"v","") ->  | AQ116: v | AV116: 0 | AW116: 0 | BA116: =IF(Data_NaamPersoonVastVrij093="","",Data_NaamPersoonVastVrij093) ->  | BD116: =IF(Data_BeeindigingsdatumVastVrij093="","",Data_BeeindigingsdatumVastVrij093) ->  | BG116: =IF(Data_LoonkostenVastVrij093="","",Data_LoonkostenVastVrij093) ->  | BI116: =IF(Data_PersoonAanUitVastVrij093=-1,"v","") ->  | BK116: v | BP116: 0 | BQ116: 0 | BS116: =IF(Data_NaamPersoonVastOntslag093="","",Data_NaamPersoonVastOntslag093) ->  | BV116: =IF(Data_BeeindigingsdatumVastOntslag093="","",Data_BeeindigingsdatumVastOntslag093) ->  | BY116: =IF(Data_LoonkostenVastOntslag093="","",Data_LoonkostenVastOntslag093) ->  | CA116: =IF(Data_PersoonAanUitVastOntslag093=-1,"v","") ->  | CC116: v | CH116: 0 | CI116: 0
H117: =IF(Data_NaamPersoonNatVerloop094="","",Data_NaamPersoonNatVerloop094) ->  | K117: =IF(Data_BeeindigingsdatumNatVerloop094="","",Data_BeeindigingsdatumNatVerloop094) ->  | N117: =IF(Data_LoonkostenNatVerloop094="","",Data_LoonkostenNatVerloop094) ->  | P117: v | R117: v | W117: 0 | AG117: =IF(Data_NaamPersoonTijd094="","",Data_NaamPersoonTijd094) ->  | AJ117: =IF(Data_BeeindigingsdatumTijd094="","",Data_BeeindigingsdatumTijd094) ->  | AM117: =IF(Data_LoonkostenTijd094="","",Data_LoonkostenTijd094) ->  | AO117: =IF(Data_PersoonAanUitTijd094=-1,"v","") ->  | AQ117: v | AV117: 0 | AW117: 0 | BA117: =IF(Data_NaamPersoonVastVrij094="","",Data_NaamPersoonVastVrij094) ->  | BD117: =IF(Data_BeeindigingsdatumVastVrij094="","",Data_BeeindigingsdatumVastVrij094) ->  | BG117: =IF(Data_LoonkostenVastVrij094="","",Data_LoonkostenVastVrij094) ->  | BI117: =IF(Data_PersoonAanUitVastVrij094=-1,"v","") ->  | BK117: v | BP117: 0 | BQ117: 0 | BS117: =IF(Data_NaamPersoonVastOntslag094="","",Data_NaamPersoonVastOntslag094) ->  | BV117: =IF(Data_BeeindigingsdatumVastOntslag094="","",Data_BeeindigingsdatumVastOntslag094) ->  | BY117: =IF(Data_LoonkostenVastOntslag094="","",Data_LoonkostenVastOntslag094) ->  | CA117: =IF(Data_PersoonAanUitVastOntslag094=-1,"v","") ->  | CC117: v | CH117: 0 | CI117: 0
H118: =IF(Data_NaamPersoonNatVerloop095="","",Data_NaamPersoonNatVerloop095) ->  | K118: =IF(Data_BeeindigingsdatumNatVerloop095="","",Data_BeeindigingsdatumNatVerloop095) ->  | N118: =IF(Data_LoonkostenNatVerloop095="","",Data_LoonkostenNatVerloop095) ->  | P118: v | R118: v | W118: 0 | AG118: =IF(Data_NaamPersoonTijd095="","",Data_NaamPersoonTijd095) ->  | AJ118: =IF(Data_BeeindigingsdatumTijd095="","",Data_BeeindigingsdatumTijd095) ->  | AM118: =IF(Data_LoonkostenTijd095="","",Data_LoonkostenTijd095) ->  | AO118: =IF(Data_PersoonAanUitTijd095=-1,"v","") ->  | AQ118: v | AV118: 0 | AW118: 0 | BA118: =IF(Data_NaamPersoonVastVrij095="","",Data_NaamPersoonVastVrij095) ->  | BD118: =IF(Data_BeeindigingsdatumVastVrij095="","",Data_BeeindigingsdatumVastVrij095) ->  | BG118: =IF(Data_LoonkostenVastVrij095="","",Data_LoonkostenVastVrij095) ->  | BI118: =IF(Data_PersoonAanUitVastVrij095=-1,"v","") ->  | BK118: v | BP118: 0 | BQ118: 0 | BS118: =IF(Data_NaamPersoonVastOntslag095="","",Data_NaamPersoonVastOntslag095) ->  | BV118: =IF(Data_BeeindigingsdatumVastOntslag095="","",Data_BeeindigingsdatumVastOntslag095) ->  | BY118: =IF(Data_LoonkostenVastOntslag095="","",Data_LoonkostenVastOntslag095) ->  | CA118: =IF(Data_PersoonAanUitVastOntslag095=-1,"v","") ->  | CC118: v | CH118: 0 | CI118: 0
H119: =IF(Data_NaamPersoonNatVerloop096="","",Data_NaamPersoonNatVerloop096) ->  | K119: =IF(Data_BeeindigingsdatumNatVerloop096="","",Data_BeeindigingsdatumNatVerloop096) ->  | N119: =IF(Data_LoonkostenNatVerloop096="","",Data_LoonkostenNatVerloop096) ->  | P119: v | R119: v | W119: 0 | AG119: =IF(Data_NaamPersoonTijd096="","",Data_NaamPersoonTijd096) ->  | AJ119: =IF(Data_BeeindigingsdatumTijd096="","",Data_BeeindigingsdatumTijd096) ->  | AM119: =IF(Data_LoonkostenTijd096="","",Data_LoonkostenTijd096) ->  | AO119: =IF(Data_PersoonAanUitTijd096=-1,"v","") ->  | AQ119: v | AV119: 0 | AW119: 0 | BA119: =IF(Data_NaamPersoonVastVrij096="","",Data_NaamPersoonVastVrij096) ->  | BD119: =IF(Data_BeeindigingsdatumVastVrij096="","",Data_BeeindigingsdatumVastVrij096) ->  | BG119: =IF(Data_LoonkostenVastVrij096="","",Data_LoonkostenVastVrij096) ->  | BI119: =IF(Data_PersoonAanUitVastVrij096=-1,"v","") ->  | BK119: v | BP119: 0 | BQ119: 0 | BS119: =IF(Data_NaamPersoonVastOntslag096="","",Data_NaamPersoonVastOntslag096) ->  | BV119: =IF(Data_BeeindigingsdatumVastOntslag096="","",Data_BeeindigingsdatumVastOntslag096) ->  | BY119: =IF(Data_LoonkostenVastOntslag096="","",Data_LoonkostenVastOntslag096) ->  | CA119: =IF(Data_PersoonAanUitVastOntslag096=-1,"v","") ->  | CC119: v | CH119: 0 | CI119: 0
H120: =IF(Data_NaamPersoonNatVerloop097="","",Data_NaamPersoonNatVerloop097) ->  | K120: =IF(Data_BeeindigingsdatumNatVerloop097="","",Data_BeeindigingsdatumNatVerloop097) ->  | N120: =IF(Data_LoonkostenNatVerloop097="","",Data_LoonkostenNatVerloop097) ->  | P120: v | R120: v | W120: 0 | AG120: =IF(Data_NaamPersoonTijd097="","",Data_NaamPersoonTijd097) ->  | AJ120: =IF(Data_BeeindigingsdatumTijd097="","",Data_BeeindigingsdatumTijd097) ->  | AM120: =IF(Data_LoonkostenTijd097="","",Data_LoonkostenTijd097) ->  | AO120: =IF(Data_PersoonAanUitTijd097=-1,"v","") ->  | AQ120: v | AV120: 0 | AW120: 0 | BA120: =IF(Data_NaamPersoonVastVrij097="","",Data_NaamPersoonVastVrij097) ->  | BD120: =IF(Data_BeeindigingsdatumVastVrij097="","",Data_BeeindigingsdatumVastVrij097) ->  | BG120: =IF(Data_LoonkostenVastVrij097="","",Data_LoonkostenVastVrij097) ->  | BI120: =IF(Data_PersoonAanUitVastVrij097=-1,"v","") ->  | BK120: v | BP120: 0 | BQ120: 0 | BS120: =IF(Data_NaamPersoonVastOntslag097="","",Data_NaamPersoonVastOntslag097) ->  | BV120: =IF(Data_BeeindigingsdatumVastOntslag097="","",Data_BeeindigingsdatumVastOntslag097) ->  | BY120: =IF(Data_LoonkostenVastOntslag097="","",Data_LoonkostenVastOntslag097) ->  | CA120: =IF(Data_PersoonAanUitVastOntslag097=-1,"v","") ->  | CC120: v | CH120: 0 | CI120: 0
H121: =IF(Data_NaamPersoonNatVerloop098="","",Data_NaamPersoonNatVerloop098) ->  | K121: =IF(Data_BeeindigingsdatumNatVerloop098="","",Data_BeeindigingsdatumNatVerloop098) ->  | N121: =IF(Data_LoonkostenNatVerloop098="","",Data_LoonkostenNatVerloop098) ->  | P121: v | R121: v | W121: 0 | AG121: =IF(Data_NaamPersoonTijd098="","",Data_NaamPersoonTijd098) ->  | AJ121: =IF(Data_BeeindigingsdatumTijd098="","",Data_BeeindigingsdatumTijd098) ->  | AM121: =IF(Data_LoonkostenTijd098="","",Data_LoonkostenTijd098) ->  | AO121: =IF(Data_PersoonAanUitTijd098=-1,"v","") ->  | AQ121: v | AV121: 0 | AW121: 0 | BA121: =IF(Data_NaamPersoonVastVrij098="","",Data_NaamPersoonVastVrij098) ->  | BD121: =IF(Data_BeeindigingsdatumVastVrij098="","",Data_BeeindigingsdatumVastVrij098) ->  | BG121: =IF(Data_LoonkostenVastVrij098="","",Data_LoonkostenVastVrij098) ->  | BI121: =IF(Data_PersoonAanUitVastVrij098=-1,"v","") ->  | BK121: v | BP121: 0 | BQ121: 0 | BS121: =IF(Data_NaamPersoonVastOntslag098="","",Data_NaamPersoonVastOntslag098) ->  | BV121: =IF(Data_BeeindigingsdatumVastOntslag098="","",Data_BeeindigingsdatumVastOntslag098) ->  | BY121: =IF(Data_LoonkostenVastOntslag098="","",Data_LoonkostenVastOntslag098) ->  | CA121: =IF(Data_PersoonAanUitVastOntslag098=-1,"v","") ->  | CC121: v | CH121: 0 | CI121: 0
H122: =IF(Data_NaamPersoonNatVerloop099="","",Data_NaamPersoonNatVerloop099) ->  | K122: =IF(Data_BeeindigingsdatumNatVerloop099="","",Data_BeeindigingsdatumNatVerloop099) ->  | N122: =IF(Data_LoonkostenNatVerloop099="","",Data_LoonkostenNatVerloop099) ->  | P122: v | R122: v | W122: 0 | AG122: =IF(Data_NaamPersoonTijd099="","",Data_NaamPersoonTijd099) ->  | AJ122: =IF(Data_BeeindigingsdatumTijd099="","",Data_BeeindigingsdatumTijd099) ->  | AM122: =IF(Data_LoonkostenTijd099="","",Data_LoonkostenTijd099) ->  | AO122: =IF(Data_PersoonAanUitTijd099=-1,"v","") ->  | AQ122: v | AV122: 0 | AW122: 0 | BA122: =IF(Data_NaamPersoonVastVrij099="","",Data_NaamPersoonVastVrij099) ->  | BD122: =IF(Data_BeeindigingsdatumVastVrij099="","",Data_BeeindigingsdatumVastVrij099) ->  | BG122: =IF(Data_LoonkostenVastVrij099="","",Data_LoonkostenVastVrij099) ->  | BI122: =IF(Data_PersoonAanUitVastVrij099=-1,"v","") ->  | BK122: v | BP122: 0 | BQ122: 0 | BS122: =IF(Data_NaamPersoonVastOntslag099="","",Data_NaamPersoonVastOntslag099) ->  | BV122: =IF(Data_BeeindigingsdatumVastOntslag099="","",Data_BeeindigingsdatumVastOntslag099) ->  | BY122: =IF(Data_LoonkostenVastOntslag099="","",Data_LoonkostenVastOntslag099) ->  | CA122: =IF(Data_PersoonAanUitVastOntslag099=-1,"v","") ->  | CC122: v | CH122: 0 | CI122: 0
H123: =IF(Data_NaamPersoonNatVerloop100="","",Data_NaamPersoonNatVerloop100) ->  | K123: =IF(Data_BeeindigingsdatumNatVerloop100="","",Data_BeeindigingsdatumNatVerloop100) ->  | N123: =IF(Data_LoonkostenNatVerloop100="","",Data_LoonkostenNatVerloop100) ->  | P123: v | R123: v | W123: 0 | AG123: =IF(Data_NaamPersoonTijd100="","",Data_NaamPersoonTijd100) ->  | AJ123: =IF(Data_BeeindigingsdatumTijd100="","",Data_BeeindigingsdatumTijd100) ->  | AM123: =IF(Data_LoonkostenTijd100="","",Data_LoonkostenTijd100) ->  | AO123: =IF(Data_PersoonAanUitTijd100=-1,"v","") ->  | AQ123: v | AV123: 0 | AW123: 0 | BA123: =IF(Data_NaamPersoonVastVrij100="","",Data_NaamPersoonVastVrij100) ->  | BD123: =IF(Data_BeeindigingsdatumVastVrij100="","",Data_BeeindigingsdatumVastVrij100) ->  | BG123: =IF(Data_LoonkostenVastVrij100="","",Data_LoonkostenVastVrij100) ->  | BI123: =IF(Data_PersoonAanUitVastVrij100=-1,"v","") ->  | BK123: v | BP123: 0 | BQ123: 0 | BS123: =IF(Data_NaamPersoonVastOntslag100="","",Data_NaamPersoonVastOntslag100) ->  | BV123: =IF(Data_BeeindigingsdatumVastOntslag100="","",Data_BeeindigingsdatumVastOntslag100) ->  | BY123: =IF(Data_LoonkostenVastOntslag100="","",Data_LoonkostenVastOntslag100) ->  | CA123: =IF(Data_PersoonAanUitVastOntslag100=-1,"v","") ->  | CC123: v | CH123: 0 | CI123: 0
H124: =IF(Data_NaamPersoonNatVerloop101="","",Data_NaamPersoonNatVerloop101) ->  | K124: =IF(Data_BeeindigingsdatumNatVerloop101="","",Data_BeeindigingsdatumNatVerloop101) ->  | N124: =IF(Data_LoonkostenNatVerloop101="","",Data_LoonkostenNatVerloop101) ->  | P124: v | R124: v | W124: 0 | AG124: =IF(Data_NaamPersoonTijd101="","",Data_NaamPersoonTijd101) ->  | AJ124: =IF(Data_BeeindigingsdatumTijd101="","",Data_BeeindigingsdatumTijd101) ->  | AM124: =IF(Data_LoonkostenTijd101="","",Data_LoonkostenTijd101) ->  | AO124: =IF(Data_PersoonAanUitTijd101=-1,"v","") ->  | AQ124: v | AV124: 0 | AW124: 0 | BA124: =IF(Data_NaamPersoonVastVrij101="","",Data_NaamPersoonVastVrij101) ->  | BD124: =IF(Data_BeeindigingsdatumVastVrij101="","",Data_BeeindigingsdatumVastVrij101) ->  | BG124: =IF(Data_LoonkostenVastVrij101="","",Data_LoonkostenVastVrij101) ->  | BI124: =IF(Data_PersoonAanUitVastVrij101=-1,"v","") ->  | BK124: v | BP124: 0 | BQ124: 0 | BS124: =IF(Data_NaamPersoonVastOntslag101="","",Data_NaamPersoonVastOntslag101) ->  | BV124: =IF(Data_BeeindigingsdatumVastOntslag101="","",Data_BeeindigingsdatumVastOntslag101) ->  | BY124: =IF(Data_LoonkostenVastOntslag101="","",Data_LoonkostenVastOntslag101) ->  | CA124: =IF(Data_PersoonAanUitVastOntslag101=-1,"v","") ->  | CC124: v | CH124: 0 | CI124: 0
H125: =IF(Data_NaamPersoonNatVerloop102="","",Data_NaamPersoonNatVerloop102) ->  | K125: =IF(Data_BeeindigingsdatumNatVerloop102="","",Data_BeeindigingsdatumNatVerloop102) ->  | N125: =IF(Data_LoonkostenNatVerloop102="","",Data_LoonkostenNatVerloop102) ->  | P125: v | R125: v | W125: 0 | AG125: =IF(Data_NaamPersoonTijd102="","",Data_NaamPersoonTijd102) ->  | AJ125: =IF(Data_BeeindigingsdatumTijd102="","",Data_BeeindigingsdatumTijd102) ->  | AM125: =IF(Data_LoonkostenTijd102="","",Data_LoonkostenTijd102) ->  | AO125: =IF(Data_PersoonAanUitTijd102=-1,"v","") ->  | AQ125: v | AV125: 0 | AW125: 0 | BA125: =IF(Data_NaamPersoonVastVrij102="","",Data_NaamPersoonVastVrij102) ->  | BD125: =IF(Data_BeeindigingsdatumVastVrij102="","",Data_BeeindigingsdatumVastVrij102) ->  | BG125: =IF(Data_LoonkostenVastVrij102="","",Data_LoonkostenVastVrij102) ->  | BI125: =IF(Data_PersoonAanUitVastVrij102=-1,"v","") ->  | BK125: v | BP125: 0 | BQ125: 0 | BS125: =IF(Data_NaamPersoonVastOntslag102="","",Data_NaamPersoonVastOntslag102) ->  | BV125: =IF(Data_BeeindigingsdatumVastOntslag102="","",Data_BeeindigingsdatumVastOntslag102) ->  | BY125: =IF(Data_LoonkostenVastOntslag102="","",Data_LoonkostenVastOntslag102) ->  | CA125: =IF(Data_PersoonAanUitVastOntslag102=-1,"v","") ->  | CC125: v | CH125: 0 | CI125: 0
H126: =IF(Data_NaamPersoonNatVerloop103="","",Data_NaamPersoonNatVerloop103) ->  | K126: =IF(Data_BeeindigingsdatumNatVerloop103="","",Data_BeeindigingsdatumNatVerloop103) ->  | N126: =IF(Data_LoonkostenNatVerloop103="","",Data_LoonkostenNatVerloop103) ->  | P126: v | R126: v | W126: 0 | AG126: =IF(Data_NaamPersoonTijd103="","",Data_NaamPersoonTijd103) ->  | AJ126: =IF(Data_BeeindigingsdatumTijd103="","",Data_BeeindigingsdatumTijd103) ->  | AM126: =IF(Data_LoonkostenTijd103="","",Data_LoonkostenTijd103) ->  | AO126: =IF(Data_PersoonAanUitTijd103=-1,"v","") ->  | AQ126: v | AV126: 0 | AW126: 0 | BA126: =IF(Data_NaamPersoonVastVrij103="","",Data_NaamPersoonVastVrij103) ->  | BD126: =IF(Data_BeeindigingsdatumVastVrij103="","",Data_BeeindigingsdatumVastVrij103) ->  | BG126: =IF(Data_LoonkostenVastVrij103="","",Data_LoonkostenVastVrij103) ->  | BI126: =IF(Data_PersoonAanUitVastVrij103=-1,"v","") ->  | BK126: v | BP126: 0 | BQ126: 0 | BS126: =IF(Data_NaamPersoonVastOntslag103="","",Data_NaamPersoonVastOntslag103) ->  | BV126: =IF(Data_BeeindigingsdatumVastOntslag103="","",Data_BeeindigingsdatumVastOntslag103) ->  | BY126: =IF(Data_LoonkostenVastOntslag103="","",Data_LoonkostenVastOntslag103) ->  | CA126: =IF(Data_PersoonAanUitVastOntslag103=-1,"v","") ->  | CC126: v | CH126: 0 | CI126: 0
H127: =IF(Data_NaamPersoonNatVerloop104="","",Data_NaamPersoonNatVerloop104) ->  | K127: =IF(Data_BeeindigingsdatumNatVerloop104="","",Data_BeeindigingsdatumNatVerloop104) ->  | N127: =IF(Data_LoonkostenNatVerloop104="","",Data_LoonkostenNatVerloop104) ->  | P127: v | R127: v | W127: 0 | AG127: =IF(Data_NaamPersoonTijd104="","",Data_NaamPersoonTijd104) ->  | AJ127: =IF(Data_BeeindigingsdatumTijd104="","",Data_BeeindigingsdatumTijd104) ->  | AM127: =IF(Data_LoonkostenTijd104="","",Data_LoonkostenTijd104) ->  | AO127: =IF(Data_PersoonAanUitTijd104=-1,"v","") ->  | AQ127: v | AV127: 0 | AW127: 0 | BA127: =IF(Data_NaamPersoonVastVrij104="","",Data_NaamPersoonVastVrij104) ->  | BD127: =IF(Data_BeeindigingsdatumVastVrij104="","",Data_BeeindigingsdatumVastVrij104) ->  | BG127: =IF(Data_LoonkostenVastVrij104="","",Data_LoonkostenVastVrij104) ->  | BI127: =IF(Data_PersoonAanUitVastVrij104=-1,"v","") ->  | BK127: v | BP127: 0 | BQ127: 0 | BS127: =IF(Data_NaamPersoonVastOntslag104="","",Data_NaamPersoonVastOntslag104) ->  | BV127: =IF(Data_BeeindigingsdatumVastOntslag104="","",Data_BeeindigingsdatumVastOntslag104) ->  | BY127: =IF(Data_LoonkostenVastOntslag104="","",Data_LoonkostenVastOntslag104) ->  | CA127: =IF(Data_PersoonAanUitVastOntslag104=-1,"v","") ->  | CC127: v | CH127: 0 | CI127: 0
H128: =IF(Data_NaamPersoonNatVerloop105="","",Data_NaamPersoonNatVerloop105) ->  | K128: =IF(Data_BeeindigingsdatumNatVerloop105="","",Data_BeeindigingsdatumNatVerloop105) ->  | N128: =IF(Data_LoonkostenNatVerloop105="","",Data_LoonkostenNatVerloop105) ->  | P128: v | R128: v | W128: 0 | AG128: =IF(Data_NaamPersoonTijd105="","",Data_NaamPersoonTijd105) ->  | AJ128: =IF(Data_BeeindigingsdatumTijd105="","",Data_BeeindigingsdatumTijd105) ->  | AM128: =IF(Data_LoonkostenTijd105="","",Data_LoonkostenTijd105) ->  | AO128: =IF(Data_PersoonAanUitTijd105=-1,"v","") ->  | AQ128: v | AV128: 0 | AW128: 0 | BA128: =IF(Data_NaamPersoonVastVrij105="","",Data_NaamPersoonVastVrij105) ->  | BD128: =IF(Data_BeeindigingsdatumVastVrij105="","",Data_BeeindigingsdatumVastVrij105) ->  | BG128: =IF(Data_LoonkostenVastVrij105="","",Data_LoonkostenVastVrij105) ->  | BI128: =IF(Data_PersoonAanUitVastVrij105=-1,"v","") ->  | BK128: v | BP128: 0 | BQ128: 0 | BS128: =IF(Data_NaamPersoonVastOntslag105="","",Data_NaamPersoonVastOntslag105) ->  | BV128: =IF(Data_BeeindigingsdatumVastOntslag105="","",Data_BeeindigingsdatumVastOntslag105) ->  | BY128: =IF(Data_LoonkostenVastOntslag105="","",Data_LoonkostenVastOntslag105) ->  | CA128: =IF(Data_PersoonAanUitVastOntslag105=-1,"v","") ->  | CC128: v | CH128: 0 | CI128: 0
H129: =IF(Data_NaamPersoonNatVerloop106="","",Data_NaamPersoonNatVerloop106) ->  | K129: =IF(Data_BeeindigingsdatumNatVerloop106="","",Data_BeeindigingsdatumNatVerloop106) ->  | N129: =IF(Data_LoonkostenNatVerloop106="","",Data_LoonkostenNatVerloop106) ->  | P129: v | R129: v | W129: 0 | AG129: =IF(Data_NaamPersoonTijd106="","",Data_NaamPersoonTijd106) ->  | AJ129: =IF(Data_BeeindigingsdatumTijd106="","",Data_BeeindigingsdatumTijd106) ->  | AM129: =IF(Data_LoonkostenTijd106="","",Data_LoonkostenTijd106) ->  | AO129: =IF(Data_PersoonAanUitTijd106=-1,"v","") ->  | AQ129: v | AV129: 0 | AW129: 0 | BA129: =IF(Data_NaamPersoonVastVrij106="","",Data_NaamPersoonVastVrij106) ->  | BD129: =IF(Data_BeeindigingsdatumVastVrij106="","",Data_BeeindigingsdatumVastVrij106) ->  | BG129: =IF(Data_LoonkostenVastVrij106="","",Data_LoonkostenVastVrij106) ->  | BI129: =IF(Data_PersoonAanUitVastVrij106=-1,"v","") ->  | BK129: v | BP129: 0 | BQ129: 0 | BS129: =IF(Data_NaamPersoonVastOntslag106="","",Data_NaamPersoonVastOntslag106) ->  | BV129: =IF(Data_BeeindigingsdatumVastOntslag106="","",Data_BeeindigingsdatumVastOntslag106) ->  | BY129: =IF(Data_LoonkostenVastOntslag106="","",Data_LoonkostenVastOntslag106) ->  | CA129: =IF(Data_PersoonAanUitVastOntslag106=-1,"v","") ->  | CC129: v | CH129: 0 | CI129: 0
H130: =IF(Data_NaamPersoonNatVerloop107="","",Data_NaamPersoonNatVerloop107) ->  | K130: =IF(Data_BeeindigingsdatumNatVerloop107="","",Data_BeeindigingsdatumNatVerloop107) ->  | N130: =IF(Data_LoonkostenNatVerloop107="","",Data_LoonkostenNatVerloop107) ->  | P130: v | R130: v | W130: 0 | AG130: =IF(Data_NaamPersoonTijd107="","",Data_NaamPersoonTijd107) ->  | AJ130: =IF(Data_BeeindigingsdatumTijd107="","",Data_BeeindigingsdatumTijd107) ->  | AM130: =IF(Data_LoonkostenTijd107="","",Data_LoonkostenTijd107) ->  | AO130: =IF(Data_PersoonAanUitTijd107=-1,"v","") ->  | AQ130: v | AV130: 0 | AW130: 0 | BA130: =IF(Data_NaamPersoonVastVrij107="","",Data_NaamPersoonVastVrij107) ->  | BD130: =IF(Data_BeeindigingsdatumVastVrij107="","",Data_BeeindigingsdatumVastVrij107) ->  | BG130: =IF(Data_LoonkostenVastVrij107="","",Data_LoonkostenVastVrij107) ->  | BI130: =IF(Data_PersoonAanUitVastVrij107=-1,"v","") ->  | BK130: v | BP130: 0 | BQ130: 0 | BS130: =IF(Data_NaamPersoonVastOntslag107="","",Data_NaamPersoonVastOntslag107) ->  | BV130: =IF(Data_BeeindigingsdatumVastOntslag107="","",Data_BeeindigingsdatumVastOntslag107) ->  | BY130: =IF(Data_LoonkostenVastOntslag107="","",Data_LoonkostenVastOntslag107) ->  | CA130: =IF(Data_PersoonAanUitVastOntslag107=-1,"v","") ->  | CC130: v | CH130: 0 | CI130: 0
H131: =IF(Data_NaamPersoonNatVerloop108="","",Data_NaamPersoonNatVerloop108) ->  | K131: =IF(Data_BeeindigingsdatumNatVerloop108="","",Data_BeeindigingsdatumNatVerloop108) ->  | N131: =IF(Data_LoonkostenNatVerloop108="","",Data_LoonkostenNatVerloop108) ->  | P131: v | R131: v | W131: 0 | AG131: =IF(Data_NaamPersoonTijd108="","",Data_NaamPersoonTijd108) ->  | AJ131: =IF(Data_BeeindigingsdatumTijd108="","",Data_BeeindigingsdatumTijd108) ->  | AM131: =IF(Data_LoonkostenTijd108="","",Data_LoonkostenTijd108) ->  | AO131: =IF(Data_PersoonAanUitTijd108=-1,"v","") ->  | AQ131: v | AV131: 0 | AW131: 0 | BA131: =IF(Data_NaamPersoonVastVrij108="","",Data_NaamPersoonVastVrij108) ->  | BD131: =IF(Data_BeeindigingsdatumVastVrij108="","",Data_BeeindigingsdatumVastVrij108) ->  | BG131: =IF(Data_LoonkostenVastVrij108="","",Data_LoonkostenVastVrij108) ->  | BI131: =IF(Data_PersoonAanUitVastVrij108=-1,"v","") ->  | BK131: v | BP131: 0 | BQ131: 0 | BS131: =IF(Data_NaamPersoonVastOntslag108="","",Data_NaamPersoonVastOntslag108) ->  | BV131: =IF(Data_BeeindigingsdatumVastOntslag108="","",Data_BeeindigingsdatumVastOntslag108) ->  | BY131: =IF(Data_LoonkostenVastOntslag108="","",Data_LoonkostenVastOntslag108) ->  | CA131: =IF(Data_PersoonAanUitVastOntslag108=-1,"v","") ->  | CC131: v | CH131: 0 | CI131: 0
H132: =IF(Data_NaamPersoonNatVerloop109="","",Data_NaamPersoonNatVerloop109) ->  | K132: =IF(Data_BeeindigingsdatumNatVerloop109="","",Data_BeeindigingsdatumNatVerloop109) ->  | N132: =IF(Data_LoonkostenNatVerloop109="","",Data_LoonkostenNatVerloop109) ->  | P132: v | R132: v | W132: 0 | AG132: =IF(Data_NaamPersoonTijd109="","",Data_NaamPersoonTijd109) ->  | AJ132: =IF(Data_BeeindigingsdatumTijd109="","",Data_BeeindigingsdatumTijd109) ->  | AM132: =IF(Data_LoonkostenTijd109="","",Data_LoonkostenTijd109) ->  | AO132: =IF(Data_PersoonAanUitTijd109=-1,"v","") ->  | AQ132: v | AV132: 0 | AW132: 0 | BA132: =IF(Data_NaamPersoonVastVrij109="","",Data_NaamPersoonVastVrij109) ->  | BD132: =IF(Data_BeeindigingsdatumVastVrij109="","",Data_BeeindigingsdatumVastVrij109) ->  | BG132: =IF(Data_LoonkostenVastVrij109="","",Data_LoonkostenVastVrij109) ->  | BI132: =IF(Data_PersoonAanUitVastVrij109=-1,"v","") ->  | BK132: v | BP132: 0 | BQ132: 0 | BS132: =IF(Data_NaamPersoonVastOntslag109="","",Data_NaamPersoonVastOntslag109) ->  | BV132: =IF(Data_BeeindigingsdatumVastOntslag109="","",Data_BeeindigingsdatumVastOntslag109) ->  | BY132: =IF(Data_LoonkostenVastOntslag109="","",Data_LoonkostenVastOntslag109) ->  | CA132: =IF(Data_PersoonAanUitVastOntslag109=-1,"v","") ->  | CC132: v | CH132: 0 | CI132: 0
H133: =IF(Data_NaamPersoonNatVerloop110="","",Data_NaamPersoonNatVerloop110) ->  | K133: =IF(Data_BeeindigingsdatumNatVerloop110="","",Data_BeeindigingsdatumNatVerloop110) ->  | N133: =IF(Data_LoonkostenNatVerloop110="","",Data_LoonkostenNatVerloop110) ->  | P133: v | R133: v | W133: 0 | AG133: =IF(Data_NaamPersoonTijd110="","",Data_NaamPersoonTijd110) ->  | AJ133: =IF(Data_BeeindigingsdatumTijd110="","",Data_BeeindigingsdatumTijd110) ->  | AM133: =IF(Data_LoonkostenTijd110="","",Data_LoonkostenTijd110) ->  | AO133: =IF(Data_PersoonAanUitTijd110=-1,"v","") ->  | AQ133: v | AV133: 0 | AW133: 0 | BA133: =IF(Data_NaamPersoonVastVrij110="","",Data_NaamPersoonVastVrij110) ->  | BD133: =IF(Data_BeeindigingsdatumVastVrij110="","",Data_BeeindigingsdatumVastVrij110) ->  | BG133: =IF(Data_LoonkostenVastVrij110="","",Data_LoonkostenVastVrij110) ->  | BI133: =IF(Data_PersoonAanUitVastVrij110=-1,"v","") ->  | BK133: v | BP133: 0 | BQ133: 0 | BS133: =IF(Data_NaamPersoonVastOntslag110="","",Data_NaamPersoonVastOntslag110) ->  | BV133: =IF(Data_BeeindigingsdatumVastOntslag110="","",Data_BeeindigingsdatumVastOntslag110) ->  | BY133: =IF(Data_LoonkostenVastOntslag110="","",Data_LoonkostenVastOntslag110) ->  | CA133: =IF(Data_PersoonAanUitVastOntslag110=-1,"v","") ->  | CC133: v | CH133: 0 | CI133: 0
H134: =IF(Data_NaamPersoonNatVerloop111="","",Data_NaamPersoonNatVerloop111) ->  | K134: =IF(Data_BeeindigingsdatumNatVerloop111="","",Data_BeeindigingsdatumNatVerloop111) ->  | N134: =IF(Data_LoonkostenNatVerloop111="","",Data_LoonkostenNatVerloop111) ->  | P134: v | R134: v | W134: 0 | AG134: =IF(Data_NaamPersoonTijd111="","",Data_NaamPersoonTijd111) ->  | AJ134: =IF(Data_BeeindigingsdatumTijd111="","",Data_BeeindigingsdatumTijd111) ->  | AM134: =IF(Data_LoonkostenTijd111="","",Data_LoonkostenTijd111) ->  | AO134: =IF(Data_PersoonAanUitTijd111=-1,"v","") ->  | AQ134: v | AV134: 0 | AW134: 0 | BA134: =IF(Data_NaamPersoonVastVrij111="","",Data_NaamPersoonVastVrij111) ->  | BD134: =IF(Data_BeeindigingsdatumVastVrij111="","",Data_BeeindigingsdatumVastVrij111) ->  | BG134: =IF(Data_LoonkostenVastVrij111="","",Data_LoonkostenVastVrij111) ->  | BI134: =IF(Data_PersoonAanUitVastVrij111=-1,"v","") ->  | BK134: v | BP134: 0 | BQ134: 0 | BS134: =IF(Data_NaamPersoonVastOntslag111="","",Data_NaamPersoonVastOntslag111) ->  | BV134: =IF(Data_BeeindigingsdatumVastOntslag111="","",Data_BeeindigingsdatumVastOntslag111) ->  | BY134: =IF(Data_LoonkostenVastOntslag111="","",Data_LoonkostenVastOntslag111) ->  | CA134: =IF(Data_PersoonAanUitVastOntslag111=-1,"v","") ->  | CC134: v | CH134: 0 | CI134: 0
H135: =IF(Data_NaamPersoonNatVerloop112="","",Data_NaamPersoonNatVerloop112) ->  | K135: =IF(Data_BeeindigingsdatumNatVerloop112="","",Data_BeeindigingsdatumNatVerloop112) ->  | N135: =IF(Data_LoonkostenNatVerloop112="","",Data_LoonkostenNatVerloop112) ->  | P135: v | R135: v | W135: 0 | AG135: =IF(Data_NaamPersoonTijd112="","",Data_NaamPersoonTijd112) ->  | AJ135: =IF(Data_BeeindigingsdatumTijd112="","",Data_BeeindigingsdatumTijd112) ->  | AM135: =IF(Data_LoonkostenTijd112="","",Data_LoonkostenTijd112) ->  | AO135: =IF(Data_PersoonAanUitTijd112=-1,"v","") ->  | AQ135: v | AV135: 0 | AW135: 0 | BA135: =IF(Data_NaamPersoonVastVrij112="","",Data_NaamPersoonVastVrij112) ->  | BD135: =IF(Data_BeeindigingsdatumVastVrij112="","",Data_BeeindigingsdatumVastVrij112) ->  | BG135: =IF(Data_LoonkostenVastVrij112="","",Data_LoonkostenVastVrij112) ->  | BI135: =IF(Data_PersoonAanUitVastVrij112=-1,"v","") ->  | BK135: v | BP135: 0 | BQ135: 0 | BS135: =IF(Data_NaamPersoonVastOntslag112="","",Data_NaamPersoonVastOntslag112) ->  | BV135: =IF(Data_BeeindigingsdatumVastOntslag112="","",Data_BeeindigingsdatumVastOntslag112) ->  | BY135: =IF(Data_LoonkostenVastOntslag112="","",Data_LoonkostenVastOntslag112) ->  | CA135: =IF(Data_PersoonAanUitVastOntslag112=-1,"v","") ->  | CC135: v | CH135: 0 | CI135: 0
H136: =IF(Data_NaamPersoonNatVerloop113="","",Data_NaamPersoonNatVerloop113) ->  | K136: =IF(Data_BeeindigingsdatumNatVerloop113="","",Data_BeeindigingsdatumNatVerloop113) ->  | N136: =IF(Data_LoonkostenNatVerloop113="","",Data_LoonkostenNatVerloop113) ->  | P136: v | R136: v | W136: 0 | AG136: =IF(Data_NaamPersoonTijd113="","",Data_NaamPersoonTijd113) ->  | AJ136: =IF(Data_BeeindigingsdatumTijd113="","",Data_BeeindigingsdatumTijd113) ->  | AM136: =IF(Data_LoonkostenTijd113="","",Data_LoonkostenTijd113) ->  | AO136: =IF(Data_PersoonAanUitTijd113=-1,"v","") ->  | AQ136: v | AV136: 0 | AW136: 0 | BA136: =IF(Data_NaamPersoonVastVrij113="","",Data_NaamPersoonVastVrij113) ->  | BD136: =IF(Data_BeeindigingsdatumVastVrij113="","",Data_BeeindigingsdatumVastVrij113) ->  | BG136: =IF(Data_LoonkostenVastVrij113="","",Data_LoonkostenVastVrij113) ->  | BI136: =IF(Data_PersoonAanUitVastVrij113=-1,"v","") ->  | BK136: v | BP136: 0 | BQ136: 0 | BS136: =IF(Data_NaamPersoonVastOntslag113="","",Data_NaamPersoonVastOntslag113) ->  | BV136: =IF(Data_BeeindigingsdatumVastOntslag113="","",Data_BeeindigingsdatumVastOntslag113) ->  | BY136: =IF(Data_LoonkostenVastOntslag113="","",Data_LoonkostenVastOntslag113) ->  | CA136: =IF(Data_PersoonAanUitVastOntslag113=-1,"v","") ->  | CC136: v | CH136: 0 | CI136: 0
H137: =IF(Data_NaamPersoonNatVerloop114="","",Data_NaamPersoonNatVerloop114) ->  | K137: =IF(Data_BeeindigingsdatumNatVerloop114="","",Data_BeeindigingsdatumNatVerloop114) ->  | N137: =IF(Data_LoonkostenNatVerloop114="","",Data_LoonkostenNatVerloop114) ->  | P137: v | R137: v | W137: 0 | AG137: =IF(Data_NaamPersoonTijd114="","",Data_NaamPersoonTijd114) ->  | AJ137: =IF(Data_BeeindigingsdatumTijd114="","",Data_BeeindigingsdatumTijd114) ->  | AM137: =IF(Data_LoonkostenTijd114="","",Data_LoonkostenTijd114) ->  | AO137: =IF(Data_PersoonAanUitTijd114=-1,"v","") ->  | AQ137: v | AV137: 0 | AW137: 0 | BA137: =IF(Data_NaamPersoonVastVrij114="","",Data_NaamPersoonVastVrij114) ->  | BD137: =IF(Data_BeeindigingsdatumVastVrij114="","",Data_BeeindigingsdatumVastVrij114) ->  | BG137: =IF(Data_LoonkostenVastVrij114="","",Data_LoonkostenVastVrij114) ->  | BI137: =IF(Data_PersoonAanUitVastVrij114=-1,"v","") ->  | BK137: v | BP137: 0 | BQ137: 0 | BS137: =IF(Data_NaamPersoonVastOntslag114="","",Data_NaamPersoonVastOntslag114) ->  | BV137: =IF(Data_BeeindigingsdatumVastOntslag114="","",Data_BeeindigingsdatumVastOntslag114) ->  | BY137: =IF(Data_LoonkostenVastOntslag114="","",Data_LoonkostenVastOntslag114) ->  | CA137: =IF(Data_PersoonAanUitVastOntslag114=-1,"v","") ->  | CC137: v | CH137: 0 | CI137: 0
H138: =IF(Data_NaamPersoonNatVerloop115="","",Data_NaamPersoonNatVerloop115) ->  | K138: =IF(Data_BeeindigingsdatumNatVerloop115="","",Data_BeeindigingsdatumNatVerloop115) ->  | N138: =IF(Data_LoonkostenNatVerloop115="","",Data_LoonkostenNatVerloop115) ->  | P138: v | R138: v | W138: 0 | AG138: =IF(Data_NaamPersoonTijd115="","",Data_NaamPersoonTijd115) ->  | AJ138: =IF(Data_BeeindigingsdatumTijd115="","",Data_BeeindigingsdatumTijd115) ->  | AM138: =IF(Data_LoonkostenTijd115="","",Data_LoonkostenTijd115) ->  | AO138: =IF(Data_PersoonAanUitTijd115=-1,"v","") ->  | AQ138: v | AV138: 0 | AW138: 0 | BA138: =IF(Data_NaamPersoonVastVrij115="","",Data_NaamPersoonVastVrij115) ->  | BD138: =IF(Data_BeeindigingsdatumVastVrij115="","",Data_BeeindigingsdatumVastVrij115) ->  | BG138: =IF(Data_LoonkostenVastVrij115="","",Data_LoonkostenVastVrij115) ->  | BI138: =IF(Data_PersoonAanUitVastVrij115=-1,"v","") ->  | BK138: v | BP138: 0 | BQ138: 0 | BS138: =IF(Data_NaamPersoonVastOntslag115="","",Data_NaamPersoonVastOntslag115) ->  | BV138: =IF(Data_BeeindigingsdatumVastOntslag115="","",Data_BeeindigingsdatumVastOntslag115) ->  | BY138: =IF(Data_LoonkostenVastOntslag115="","",Data_LoonkostenVastOntslag115) ->  | CA138: =IF(Data_PersoonAanUitVastOntslag115=-1,"v","") ->  | CC138: v | CH138: 0 | CI138: 0
H139: =IF(Data_NaamPersoonNatVerloop116="","",Data_NaamPersoonNatVerloop116) ->  | K139: =IF(Data_BeeindigingsdatumNatVerloop116="","",Data_BeeindigingsdatumNatVerloop116) ->  | N139: =IF(Data_LoonkostenNatVerloop116="","",Data_LoonkostenNatVerloop116) ->  | P139: v | R139: v | W139: 0 | AG139: =IF(Data_NaamPersoonTijd116="","",Data_NaamPersoonTijd116) ->  | AJ139: =IF(Data_BeeindigingsdatumTijd116="","",Data_BeeindigingsdatumTijd116) ->  | AM139: =IF(Data_LoonkostenTijd116="","",Data_LoonkostenTijd116) ->  | AO139: =IF(Data_PersoonAanUitTijd116=-1,"v","") ->  | AQ139: v | AV139: 0 | AW139: 0 | BA139: =IF(Data_NaamPersoonVastVrij116="","",Data_NaamPersoonVastVrij116) ->  | BD139: =IF(Data_BeeindigingsdatumVastVrij116="","",Data_BeeindigingsdatumVastVrij116) ->  | BG139: =IF(Data_LoonkostenVastVrij116="","",Data_LoonkostenVastVrij116) ->  | BI139: =IF(Data_PersoonAanUitVastVrij116=-1,"v","") ->  | BK139: v | BP139: 0 | BQ139: 0 | BS139: =IF(Data_NaamPersoonVastOntslag116="","",Data_NaamPersoonVastOntslag116) ->  | BV139: =IF(Data_BeeindigingsdatumVastOntslag116="","",Data_BeeindigingsdatumVastOntslag116) ->  | BY139: =IF(Data_LoonkostenVastOntslag116="","",Data_LoonkostenVastOntslag116) ->  | CA139: =IF(Data_PersoonAanUitVastOntslag116=-1,"v","") ->  | CC139: v | CH139: 0 | CI139: 0
H140: =IF(Data_NaamPersoonNatVerloop117="","",Data_NaamPersoonNatVerloop117) ->  | K140: =IF(Data_BeeindigingsdatumNatVerloop117="","",Data_BeeindigingsdatumNatVerloop117) ->  | N140: =IF(Data_LoonkostenNatVerloop117="","",Data_LoonkostenNatVerloop117) ->  | P140: v | R140: v | W140: 0 | AG140: =IF(Data_NaamPersoonTijd117="","",Data_NaamPersoonTijd117) ->  | AJ140: =IF(Data_BeeindigingsdatumTijd117="","",Data_BeeindigingsdatumTijd117) ->  | AM140: =IF(Data_LoonkostenTijd117="","",Data_LoonkostenTijd117) ->  | AO140: =IF(Data_PersoonAanUitTijd117=-1,"v","") ->  | AQ140: v | AV140: 0 | AW140: 0 | BA140: =IF(Data_NaamPersoonVastVrij117="","",Data_NaamPersoonVastVrij117) ->  | BD140: =IF(Data_BeeindigingsdatumVastVrij117="","",Data_BeeindigingsdatumVastVrij117) ->  | BG140: =IF(Data_LoonkostenVastVrij117="","",Data_LoonkostenVastVrij117) ->  | BI140: =IF(Data_PersoonAanUitVastVrij117=-1,"v","") ->  | BK140: v | BP140: 0 | BQ140: 0 | BS140: =IF(Data_NaamPersoonVastOntslag117="","",Data_NaamPersoonVastOntslag117) ->  | BV140: =IF(Data_BeeindigingsdatumVastOntslag117="","",Data_BeeindigingsdatumVastOntslag117) ->  | BY140: =IF(Data_LoonkostenVastOntslag117="","",Data_LoonkostenVastOntslag117) ->  | CA140: =IF(Data_PersoonAanUitVastOntslag117=-1,"v","") ->  | CC140: v | CH140: 0 | CI140: 0
H141: =IF(Data_NaamPersoonNatVerloop118="","",Data_NaamPersoonNatVerloop118) ->  | K141: =IF(Data_BeeindigingsdatumNatVerloop118="","",Data_BeeindigingsdatumNatVerloop118) ->  | N141: =IF(Data_LoonkostenNatVerloop118="","",Data_LoonkostenNatVerloop118) ->  | P141: v | R141: v | W141: 0 | AG141: =IF(Data_NaamPersoonTijd118="","",Data_NaamPersoonTijd118) ->  | AJ141: =IF(Data_BeeindigingsdatumTijd118="","",Data_BeeindigingsdatumTijd118) ->  | AM141: =IF(Data_LoonkostenTijd118="","",Data_LoonkostenTijd118) ->  | AO141: =IF(Data_PersoonAanUitTijd118=-1,"v","") ->  | AQ141: v | AV141: 0 | AW141: 0 | BA141: =IF(Data_NaamPersoonVastVrij118="","",Data_NaamPersoonVastVrij118) ->  | BD141: =IF(Data_BeeindigingsdatumVastVrij118="","",Data_BeeindigingsdatumVastVrij118) ->  | BG141: =IF(Data_LoonkostenVastVrij118="","",Data_LoonkostenVastVrij118) ->  | BI141: =IF(Data_PersoonAanUitVastVrij118=-1,"v","") ->  | BK141: v | BP141: 0 | BQ141: 0 | BS141: =IF(Data_NaamPersoonVastOntslag118="","",Data_NaamPersoonVastOntslag118) ->  | BV141: =IF(Data_BeeindigingsdatumVastOntslag118="","",Data_BeeindigingsdatumVastOntslag118) ->  | BY141: =IF(Data_LoonkostenVastOntslag118="","",Data_LoonkostenVastOntslag118) ->  | CA141: =IF(Data_PersoonAanUitVastOntslag118=-1,"v","") ->  | CC141: v | CH141: 0 | CI141: 0
H142: =IF(Data_NaamPersoonNatVerloop119="","",Data_NaamPersoonNatVerloop119) ->  | K142: =IF(Data_BeeindigingsdatumNatVerloop119="","",Data_BeeindigingsdatumNatVerloop119) ->  | N142: =IF(Data_LoonkostenNatVerloop119="","",Data_LoonkostenNatVerloop119) ->  | P142: v | R142: v | W142: 0 | AG142: =IF(Data_NaamPersoonTijd119="","",Data_NaamPersoonTijd119) ->  | AJ142: =IF(Data_BeeindigingsdatumTijd119="","",Data_BeeindigingsdatumTijd119) ->  | AM142: =IF(Data_LoonkostenTijd119="","",Data_LoonkostenTijd119) ->  | AO142: =IF(Data_PersoonAanUitTijd119=-1,"v","") ->  | AQ142: v | AV142: 0 | AW142: 0 | BA142: =IF(Data_NaamPersoonVastVrij119="","",Data_NaamPersoonVastVrij119) ->  | BD142: =IF(Data_BeeindigingsdatumVastVrij119="","",Data_BeeindigingsdatumVastVrij119) ->  | BG142: =IF(Data_LoonkostenVastVrij119="","",Data_LoonkostenVastVrij119) ->  | BI142: =IF(Data_PersoonAanUitVastVrij119=-1,"v","") ->  | BK142: v | BP142: 0 | BQ142: 0 | BS142: =IF(Data_NaamPersoonVastOntslag119="","",Data_NaamPersoonVastOntslag119) ->  | BV142: =IF(Data_BeeindigingsdatumVastOntslag119="","",Data_BeeindigingsdatumVastOntslag119) ->  | BY142: =IF(Data_LoonkostenVastOntslag119="","",Data_LoonkostenVastOntslag119) ->  | CA142: =IF(Data_PersoonAanUitVastOntslag119=-1,"v","") ->  | CC142: v | CH142: 0 | CI142: 0
H143: =IF(Data_NaamPersoonNatVerloop120="","",Data_NaamPersoonNatVerloop120) ->  | K143: =IF(Data_BeeindigingsdatumNatVerloop120="","",Data_BeeindigingsdatumNatVerloop120) ->  | N143: =IF(Data_LoonkostenNatVerloop120="","",Data_LoonkostenNatVerloop120) ->  | P143: v | R143: v | W143: 0 | AG143: =IF(Data_NaamPersoonTijd120="","",Data_NaamPersoonTijd120) ->  | AJ143: =IF(Data_BeeindigingsdatumTijd120="","",Data_BeeindigingsdatumTijd120) ->  | AM143: =IF(Data_LoonkostenTijd120="","",Data_LoonkostenTijd120) ->  | AO143: =IF(Data_PersoonAanUitTijd120=-1,"v","") ->  | AQ143: v | AV143: 0 | AW143: 0 | BA143: =IF(Data_NaamPersoonVastVrij120="","",Data_NaamPersoonVastVrij120) ->  | BD143: =IF(Data_BeeindigingsdatumVastVrij120="","",Data_BeeindigingsdatumVastVrij120) ->  | BG143: =IF(Data_LoonkostenVastVrij120="","",Data_LoonkostenVastVrij120) ->  | BI143: =IF(Data_PersoonAanUitVastVrij120=-1,"v","") ->  | BK143: v | BP143: 0 | BQ143: 0 | BS143: =IF(Data_NaamPersoonVastOntslag120="","",Data_NaamPersoonVastOntslag120) ->  | BV143: =IF(Data_BeeindigingsdatumVastOntslag120="","",Data_BeeindigingsdatumVastOntslag120) ->  | BY143: =IF(Data_LoonkostenVastOntslag120="","",Data_LoonkostenVastOntslag120) ->  | CA143: =IF(Data_PersoonAanUitVastOntslag120=-1,"v","") ->  | CC143: v | CH143: 0 | CI143: 0
H144: =IF(Data_NaamPersoonNatVerloop121="","",Data_NaamPersoonNatVerloop121) ->  | K144: =IF(Data_BeeindigingsdatumNatVerloop121="","",Data_BeeindigingsdatumNatVerloop121) ->  | N144: =IF(Data_LoonkostenNatVerloop121="","",Data_LoonkostenNatVerloop121) ->  | P144: v | R144: v | W144: 0 | AG144: =IF(Data_NaamPersoonTijd121="","",Data_NaamPersoonTijd121) ->  | AJ144: =IF(Data_BeeindigingsdatumTijd121="","",Data_BeeindigingsdatumTijd121) ->  | AM144: =IF(Data_LoonkostenTijd121="","",Data_LoonkostenTijd121) ->  | AO144: =IF(Data_PersoonAanUitTijd121=-1,"v","") ->  | AQ144: v | AV144: 0 | AW144: 0 | BA144: =IF(Data_NaamPersoonVastVrij121="","",Data_NaamPersoonVastVrij121) ->  | BD144: =IF(Data_BeeindigingsdatumVastVrij121="","",Data_BeeindigingsdatumVastVrij121) ->  | BG144: =IF(Data_LoonkostenVastVrij121="","",Data_LoonkostenVastVrij121) ->  | BI144: =IF(Data_PersoonAanUitVastVrij121=-1,"v","") ->  | BK144: v | BP144: 0 | BQ144: 0 | BS144: =IF(Data_NaamPersoonVastOntslag121="","",Data_NaamPersoonVastOntslag121) ->  | BV144: =IF(Data_BeeindigingsdatumVastOntslag121="","",Data_BeeindigingsdatumVastOntslag121) ->  | BY144: =IF(Data_LoonkostenVastOntslag121="","",Data_LoonkostenVastOntslag121) ->  | CA144: =IF(Data_PersoonAanUitVastOntslag121=-1,"v","") ->  | CC144: v | CH144: 0 | CI144: 0
H145: =IF(Data_NaamPersoonNatVerloop122="","",Data_NaamPersoonNatVerloop122) ->  | K145: =IF(Data_BeeindigingsdatumNatVerloop122="","",Data_BeeindigingsdatumNatVerloop122) ->  | N145: =IF(Data_LoonkostenNatVerloop122="","",Data_LoonkostenNatVerloop122) ->  | P145: v | R145: v | W145: 0 | AG145: =IF(Data_NaamPersoonTijd122="","",Data_NaamPersoonTijd122) ->  | AJ145: =IF(Data_BeeindigingsdatumTijd122="","",Data_BeeindigingsdatumTijd122) ->  | AM145: =IF(Data_LoonkostenTijd122="","",Data_LoonkostenTijd122) ->  | AO145: =IF(Data_PersoonAanUitTijd122=-1,"v","") ->  | AQ145: v | AV145: 0 | AW145: 0 | BA145: =IF(Data_NaamPersoonVastVrij122="","",Data_NaamPersoonVastVrij122) ->  | BD145: =IF(Data_BeeindigingsdatumVastVrij122="","",Data_BeeindigingsdatumVastVrij122) ->  | BG145: =IF(Data_LoonkostenVastVrij122="","",Data_LoonkostenVastVrij122) ->  | BI145: =IF(Data_PersoonAanUitVastVrij122=-1,"v","") ->  | BK145: v | BP145: 0 | BQ145: 0 | BS145: =IF(Data_NaamPersoonVastOntslag122="","",Data_NaamPersoonVastOntslag122) ->  | BV145: =IF(Data_BeeindigingsdatumVastOntslag122="","",Data_BeeindigingsdatumVastOntslag122) ->  | BY145: =IF(Data_LoonkostenVastOntslag122="","",Data_LoonkostenVastOntslag122) ->  | CA145: =IF(Data_PersoonAanUitVastOntslag122=-1,"v","") ->  | CC145: v | CH145: 0 | CI145: 0
H146: =IF(Data_NaamPersoonNatVerloop123="","",Data_NaamPersoonNatVerloop123) ->  | K146: =IF(Data_BeeindigingsdatumNatVerloop123="","",Data_BeeindigingsdatumNatVerloop123) ->  | N146: =IF(Data_LoonkostenNatVerloop123="","",Data_LoonkostenNatVerloop123) ->  | P146: v | R146: v | W146: 0 | AG146: =IF(Data_NaamPersoonTijd123="","",Data_NaamPersoonTijd123) ->  | AJ146: =IF(Data_BeeindigingsdatumTijd123="","",Data_BeeindigingsdatumTijd123) ->  | AM146: =IF(Data_LoonkostenTijd123="","",Data_LoonkostenTijd123) ->  | AO146: =IF(Data_PersoonAanUitTijd123=-1,"v","") ->  | AQ146: v | AV146: 0 | AW146: 0 | BA146: =IF(Data_NaamPersoonVastVrij123="","",Data_NaamPersoonVastVrij123) ->  | BD146: =IF(Data_BeeindigingsdatumVastVrij123="","",Data_BeeindigingsdatumVastVrij123) ->  | BG146: =IF(Data_LoonkostenVastVrij123="","",Data_LoonkostenVastVrij123) ->  | BI146: =IF(Data_PersoonAanUitVastVrij123=-1,"v","") ->  | BK146: v | BP146: 0 | BQ146: 0 | BS146: =IF(Data_NaamPersoonVastOntslag123="","",Data_NaamPersoonVastOntslag123) ->  | BV146: =IF(Data_BeeindigingsdatumVastOntslag123="","",Data_BeeindigingsdatumVastOntslag123) ->  | BY146: =IF(Data_LoonkostenVastOntslag123="","",Data_LoonkostenVastOntslag123) ->  | CA146: =IF(Data_PersoonAanUitVastOntslag123=-1,"v","") ->  | CC146: v | CH146: 0 | CI146: 0
H147: =IF(Data_NaamPersoonNatVerloop124="","",Data_NaamPersoonNatVerloop124) ->  | K147: =IF(Data_BeeindigingsdatumNatVerloop124="","",Data_BeeindigingsdatumNatVerloop124) ->  | N147: =IF(Data_LoonkostenNatVerloop124="","",Data_LoonkostenNatVerloop124) ->  | P147: v | R147: v | W147: 0 | AG147: =IF(Data_NaamPersoonTijd124="","",Data_NaamPersoonTijd124) ->  | AJ147: =IF(Data_BeeindigingsdatumTijd124="","",Data_BeeindigingsdatumTijd124) ->  | AM147: =IF(Data_LoonkostenTijd124="","",Data_LoonkostenTijd124) ->  | AO147: =IF(Data_PersoonAanUitTijd124=-1,"v","") ->  | AQ147: v | AV147: 0 | AW147: 0 | BA147: =IF(Data_NaamPersoonVastVrij124="","",Data_NaamPersoonVastVrij124) ->  | BD147: =IF(Data_BeeindigingsdatumVastVrij124="","",Data_BeeindigingsdatumVastVrij124) ->  | BG147: =IF(Data_LoonkostenVastVrij124="","",Data_LoonkostenVastVrij124) ->  | BI147: =IF(Data_PersoonAanUitVastVrij124=-1,"v","") ->  | BK147: v | BP147: 0 | BQ147: 0 | BS147: =IF(Data_NaamPersoonVastOntslag124="","",Data_NaamPersoonVastOntslag124) ->  | BV147: =IF(Data_BeeindigingsdatumVastOntslag124="","",Data_BeeindigingsdatumVastOntslag124) ->  | BY147: =IF(Data_LoonkostenVastOntslag124="","",Data_LoonkostenVastOntslag124) ->  | CA147: =IF(Data_PersoonAanUitVastOntslag124=-1,"v","") ->  | CC147: v | CH147: 0 | CI147: 0
H148: =IF(Data_NaamPersoonNatVerloop125="","",Data_NaamPersoonNatVerloop125) ->  | K148: =IF(Data_BeeindigingsdatumNatVerloop125="","",Data_BeeindigingsdatumNatVerloop125) ->  | N148: =IF(Data_LoonkostenNatVerloop125="","",Data_LoonkostenNatVerloop125) ->  | P148: v | R148: v | W148: 0 | AG148: =IF(Data_NaamPersoonTijd125="","",Data_NaamPersoonTijd125) ->  | AJ148: =IF(Data_BeeindigingsdatumTijd125="","",Data_BeeindigingsdatumTijd125) ->  | AM148: =IF(Data_LoonkostenTijd125="","",Data_LoonkostenTijd125) ->  | AO148: =IF(Data_PersoonAanUitTijd125=-1,"v","") ->  | AQ148: v | AV148: 0 | AW148: 0 | BA148: =IF(Data_NaamPersoonVastVrij125="","",Data_NaamPersoonVastVrij125) ->  | BD148: =IF(Data_BeeindigingsdatumVastVrij125="","",Data_BeeindigingsdatumVastVrij125) ->  | BG148: =IF(Data_LoonkostenVastVrij125="","",Data_LoonkostenVastVrij125) ->  | BI148: =IF(Data_PersoonAanUitVastVrij125=-1,"v","") ->  | BK148: v | BP148: 0 | BQ148: 0 | BS148: =IF(Data_NaamPersoonVastOntslag125="","",Data_NaamPersoonVastOntslag125) ->  | BV148: =IF(Data_BeeindigingsdatumVastOntslag125="","",Data_BeeindigingsdatumVastOntslag125) ->  | BY148: =IF(Data_LoonkostenVastOntslag125="","",Data_LoonkostenVastOntslag125) ->  | CA148: =IF(Data_PersoonAanUitVastOntslag125=-1,"v","") ->  | CC148: v | CH148: 0 | CI148: 0
H149: =IF(Data_NaamPersoonNatVerloop126="","",Data_NaamPersoonNatVerloop126) ->  | K149: =IF(Data_BeeindigingsdatumNatVerloop126="","",Data_BeeindigingsdatumNatVerloop126) ->  | N149: =IF(Data_LoonkostenNatVerloop126="","",Data_LoonkostenNatVerloop126) ->  | P149: v | R149: v | W149: 0 | AG149: =IF(Data_NaamPersoonTijd126="","",Data_NaamPersoonTijd126) ->  | AJ149: =IF(Data_BeeindigingsdatumTijd126="","",Data_BeeindigingsdatumTijd126) ->  | AM149: =IF(Data_LoonkostenTijd126="","",Data_LoonkostenTijd126) ->  | AO149: =IF(Data_PersoonAanUitTijd126=-1,"v","") ->  | AQ149: v | AV149: 0 | AW149: 0 | BA149: =IF(Data_NaamPersoonVastVrij126="","",Data_NaamPersoonVastVrij126) ->  | BD149: =IF(Data_BeeindigingsdatumVastVrij126="","",Data_BeeindigingsdatumVastVrij126) ->  | BG149: =IF(Data_LoonkostenVastVrij126="","",Data_LoonkostenVastVrij126) ->  | BI149: =IF(Data_PersoonAanUitVastVrij126=-1,"v","") ->  | BK149: v | BP149: 0 | BQ149: 0 | BS149: =IF(Data_NaamPersoonVastOntslag126="","",Data_NaamPersoonVastOntslag126) ->  | BV149: =IF(Data_BeeindigingsdatumVastOntslag126="","",Data_BeeindigingsdatumVastOntslag126) ->  | BY149: =IF(Data_LoonkostenVastOntslag126="","",Data_LoonkostenVastOntslag126) ->  | CA149: =IF(Data_PersoonAanUitVastOntslag126=-1,"v","") ->  | CC149: v | CH149: 0 | CI149: 0
H150: =IF(Data_NaamPersoonNatVerloop127="","",Data_NaamPersoonNatVerloop127) ->  | K150: =IF(Data_BeeindigingsdatumNatVerloop127="","",Data_BeeindigingsdatumNatVerloop127) ->  | N150: =IF(Data_LoonkostenNatVerloop127="","",Data_LoonkostenNatVerloop127) ->  | P150: v | R150: v | W150: 0 | AG150: =IF(Data_NaamPersoonTijd127="","",Data_NaamPersoonTijd127) ->  | AJ150: =IF(Data_BeeindigingsdatumTijd127="","",Data_BeeindigingsdatumTijd127) ->  | AM150: =IF(Data_LoonkostenTijd127="","",Data_LoonkostenTijd127) ->  | AO150: =IF(Data_PersoonAanUitTijd127=-1,"v","") ->  | AQ150: v | AV150: 0 | AW150: 0 | BA150: =IF(Data_NaamPersoonVastVrij127="","",Data_NaamPersoonVastVrij127) ->  | BD150: =IF(Data_BeeindigingsdatumVastVrij127="","",Data_BeeindigingsdatumVastVrij127) ->  | BG150: =IF(Data_LoonkostenVastVrij127="","",Data_LoonkostenVastVrij127) ->  | BI150: =IF(Data_PersoonAanUitVastVrij127=-1,"v","") ->  | BK150: v | BP150: 0 | BQ150: 0 | BS150: =IF(Data_NaamPersoonVastOntslag127="","",Data_NaamPersoonVastOntslag127) ->  | BV150: =IF(Data_BeeindigingsdatumVastOntslag127="","",Data_BeeindigingsdatumVastOntslag127) ->  | BY150: =IF(Data_LoonkostenVastOntslag127="","",Data_LoonkostenVastOntslag127) ->  | CA150: =IF(Data_PersoonAanUitVastOntslag127=-1,"v","") ->  | CC150: v | CH150: 0 | CI150: 0
H151: =IF(Data_NaamPersoonNatVerloop128="","",Data_NaamPersoonNatVerloop128) ->  | K151: =IF(Data_BeeindigingsdatumNatVerloop128="","",Data_BeeindigingsdatumNatVerloop128) ->  | N151: =IF(Data_LoonkostenNatVerloop128="","",Data_LoonkostenNatVerloop128) ->  | P151: v | R151: v | W151: 0 | AG151: =IF(Data_NaamPersoonTijd128="","",Data_NaamPersoonTijd128) ->  | AJ151: =IF(Data_BeeindigingsdatumTijd128="","",Data_BeeindigingsdatumTijd128) ->  | AM151: =IF(Data_LoonkostenTijd128="","",Data_LoonkostenTijd128) ->  | AO151: =IF(Data_PersoonAanUitTijd128=-1,"v","") ->  | AQ151: v | AV151: 0 | AW151: 0 | BA151: =IF(Data_NaamPersoonVastVrij128="","",Data_NaamPersoonVastVrij128) ->  | BD151: =IF(Data_BeeindigingsdatumVastVrij128="","",Data_BeeindigingsdatumVastVrij128) ->  | BG151: =IF(Data_LoonkostenVastVrij128="","",Data_LoonkostenVastVrij128) ->  | BI151: =IF(Data_PersoonAanUitVastVrij128=-1,"v","") ->  | BK151: v | BP151: 0 | BQ151: 0 | BS151: =IF(Data_NaamPersoonVastOntslag128="","",Data_NaamPersoonVastOntslag128) ->  | BV151: =IF(Data_BeeindigingsdatumVastOntslag128="","",Data_BeeindigingsdatumVastOntslag128) ->  | BY151: =IF(Data_LoonkostenVastOntslag128="","",Data_LoonkostenVastOntslag128) ->  | CA151: =IF(Data_PersoonAanUitVastOntslag128=-1,"v","") ->  | CC151: v | CH151: 0 | CI151: 0
H152: =IF(Data_NaamPersoonNatVerloop129="","",Data_NaamPersoonNatVerloop129) ->  | K152: =IF(Data_BeeindigingsdatumNatVerloop129="","",Data_BeeindigingsdatumNatVerloop129) ->  | N152: =IF(Data_LoonkostenNatVerloop129="","",Data_LoonkostenNatVerloop129) ->  | P152: v | R152: v | W152: =IF($AO152="v",M152,T152) -> 0 | AG152: =IF(Data_NaamPersoonTijd129="","",Data_NaamPersoonTijd129) ->  | AJ152: =IF(Data_BeeindigingsdatumTijd129="","",Data_BeeindigingsdatumTijd129) ->  | AM152: =IF(Data_LoonkostenTijd129="","",Data_LoonkostenTijd129) ->  | AO152: =IF(Data_PersoonAanUitTijd129=-1,"v","") ->  | AQ152: v | AV152: =IF($AO152="v",AL152,AS152) -> 0 | AW152: =IF(AND($AO152="v",$AQ152="v"),AM152,IF(AND($AO152="v",$AQ152<>"v"),AT152,0)) -> 0 | BA152: =IF(Data_NaamPersoonVastVrij129="","",Data_NaamPersoonVastVrij129) ->  | BD152: =IF(Data_BeeindigingsdatumVastVrij129="","",Data_BeeindigingsdatumVastVrij129) ->  | BG152: =IF(Data_LoonkostenVastVrij129="","",Data_LoonkostenVastVrij129) ->  | BI152: =IF(Data_PersoonAanUitVastVrij129=-1,"v","") ->  | BK152: v | BP152: =IF($BI152="v",BF152,BM152) -> 0 | BQ152: =IF(AND($BI152="v",$BK152="v"),BG152,IF(AND($BI152="v",$BK152<>"v"),BN152,0)) -> 0 | BS152: =IF(Data_NaamPersoonVastOntslag129="","",Data_NaamPersoonVastOntslag129) ->  | BV152: =IF(Data_BeeindigingsdatumVastOntslag129="","",Data_BeeindigingsdatumVastOntslag129) ->  | BY152: =IF(Data_LoonkostenVastOntslag129="","",Data_LoonkostenVastOntslag129) ->  | CA152: =IF(Data_PersoonAanUitVastOntslag129=-1,"v","") ->  | CC152: v | CH152: 0 | CI152: =IF(AND($CA152="v",$CC152="v"),BY152,IF(AND($CA152="v",$CC152<>"v"),CF151,0)) -> 0
H153: =IF(Data_NaamPersoonNatVerloop130="","",Data_NaamPersoonNatVerloop130) ->  | K153: =IF(Data_BeeindigingsdatumNatVerloop130="","",Data_BeeindigingsdatumNatVerloop130) ->  | N153: =IF(Data_LoonkostenNatVerloop130="","",Data_LoonkostenNatVerloop130) ->  | P153: v | R153: v | W153: 0 | X153: =IF(AND($P153="v",$R153="v"),N153,IF(AND($P153="v",$R153<>"v"),U153,0)) ->  | AG153: =IF(Data_NaamPersoonTijd130="","",Data_NaamPersoonTijd130) ->  | AJ153: =IF(Data_BeeindigingsdatumTijd130="","",Data_BeeindigingsdatumTijd130) ->  | AM153: =IF(Data_LoonkostenTijd130="","",Data_LoonkostenTijd130) ->  | AO153: =IF(Data_PersoonAanUitTijd130=-1,"v","") ->  | AQ153: v | AV153: 0 | AW153: 0 | BA153: =IF(Data_NaamPersoonVastVrij130="","",Data_NaamPersoonVastVrij130) ->  | BD153: =IF(Data_BeeindigingsdatumVastVrij130="","",Data_BeeindigingsdatumVastVrij130) ->  | BG153: =IF(Data_LoonkostenVastVrij130="","",Data_LoonkostenVastVrij130) ->  | BI153: =IF(Data_PersoonAanUitVastVrij130=-1,"v","") ->  | BK153: v | BP153: 0 | BQ153: 0 | BS153: =IF(Data_NaamPersoonVastOntslag130="","",Data_NaamPersoonVastOntslag130) ->  | BV153: =IF(Data_BeeindigingsdatumVastOntslag130="","",Data_BeeindigingsdatumVastOntslag130) ->  | BY153: =IF(Data_LoonkostenVastOntslag130="","",Data_LoonkostenVastOntslag130) ->  | CA153: =IF(Data_PersoonAanUitVastOntslag130=-1,"v","") ->  | CC153: v | CH153: =IF($CA153="v",BX153,CE153) -> 0 | CI153: 0
H154: =IF(Data_NaamPersoonNatVerloop131="","",Data_NaamPersoonNatVerloop131) ->  | K154: =IF(Data_BeeindigingsdatumNatVerloop131="","",Data_BeeindigingsdatumNatVerloop131) ->  | N154: =IF(Data_LoonkostenNatVerloop131="","",Data_LoonkostenNatVerloop131) ->  | P154: v | R154: v | W154: 0 | AG154: =IF(Data_NaamPersoonTijd131="","",Data_NaamPersoonTijd131) ->  | AJ154: =IF(Data_BeeindigingsdatumTijd131="","",Data_BeeindigingsdatumTijd131) ->  | AM154: =IF(Data_LoonkostenTijd131="","",Data_LoonkostenTijd131) ->  | AO154: =IF(Data_PersoonAanUitTijd131=-1,"v","") ->  | AQ154: v | AV154: 0 | AW154: 0 | BA154: =IF(Data_NaamPersoonVastVrij131="","",Data_NaamPersoonVastVrij131) ->  | BD154: =IF(Data_BeeindigingsdatumVastVrij131="","",Data_BeeindigingsdatumVastVrij131) ->  | BG154: =IF(Data_LoonkostenVastVrij131="","",Data_LoonkostenVastVrij131) ->  | BI154: =IF(Data_PersoonAanUitVastVrij131=-1,"v","") ->  | BK154: v | BP154: 0 | BQ154: 0 | BS154: =IF(Data_NaamPersoonVastOntslag131="","",Data_NaamPersoonVastOntslag131) ->  | BV154: =IF(Data_BeeindigingsdatumVastOntslag131="","",Data_BeeindigingsdatumVastOntslag131) ->  | BY154: =IF(Data_LoonkostenVastOntslag131="","",Data_LoonkostenVastOntslag131) ->  | CA154: =IF(Data_PersoonAanUitVastOntslag131=-1,"v","") ->  | CC154: v | CH154: 0 | CI154: 0
H155: =IF(Data_NaamPersoonNatVerloop132="","",Data_NaamPersoonNatVerloop132) ->  | K155: =IF(Data_BeeindigingsdatumNatVerloop132="","",Data_BeeindigingsdatumNatVerloop132) ->  | N155: =IF(Data_LoonkostenNatVerloop132="","",Data_LoonkostenNatVerloop132) ->  | P155: v | R155: v | W155: 0 | AG155: =IF(Data_NaamPersoonTijd132="","",Data_NaamPersoonTijd132) ->  | AJ155: =IF(Data_BeeindigingsdatumTijd132="","",Data_BeeindigingsdatumTijd132) ->  | AM155: =IF(Data_LoonkostenTijd132="","",Data_LoonkostenTijd132) ->  | AO155: =IF(Data_PersoonAanUitTijd132=-1,"v","") ->  | AQ155: v | AV155: 0 | AW155: 0 | BA155: =IF(Data_NaamPersoonVastVrij132="","",Data_NaamPersoonVastVrij132) ->  | BD155: =IF(Data_BeeindigingsdatumVastVrij132="","",Data_BeeindigingsdatumVastVrij132) ->  | BG155: =IF(Data_LoonkostenVastVrij132="","",Data_LoonkostenVastVrij132) ->  | BI155: =IF(Data_PersoonAanUitVastVrij132=-1,"v","") ->  | BK155: v | BP155: 0 | BQ155: 0 | BS155: =IF(Data_NaamPersoonVastOntslag132="","",Data_NaamPersoonVastOntslag132) ->  | BV155: =IF(Data_BeeindigingsdatumVastOntslag132="","",Data_BeeindigingsdatumVastOntslag132) ->  | BY155: =IF(Data_LoonkostenVastOntslag132="","",Data_LoonkostenVastOntslag132) ->  | CA155: =IF(Data_PersoonAanUitVastOntslag132=-1,"v","") ->  | CC155: v | CH155: 0 | CI155: 0
H156: =IF(Data_NaamPersoonNatVerloop133="","",Data_NaamPersoonNatVerloop133) ->  | K156: =IF(Data_BeeindigingsdatumNatVerloop133="","",Data_BeeindigingsdatumNatVerloop133) ->  | N156: =IF(Data_LoonkostenNatVerloop133="","",Data_LoonkostenNatVerloop133) ->  | P156: v | R156: v | W156: 0 | AG156: =IF(Data_NaamPersoonTijd133="","",Data_NaamPersoonTijd133) ->  | AJ156: =IF(Data_BeeindigingsdatumTijd133="","",Data_BeeindigingsdatumTijd133) ->  | AM156: =IF(Data_LoonkostenTijd133="","",Data_LoonkostenTijd133) ->  | AO156: =IF(Data_PersoonAanUitTijd133=-1,"v","") ->  | AQ156: v | AV156: 0 | AW156: 0 | BA156: =IF(Data_NaamPersoonVastVrij133="","",Data_NaamPersoonVastVrij133) ->  | BD156: =IF(Data_BeeindigingsdatumVastVrij133="","",Data_BeeindigingsdatumVastVrij133) ->  | BG156: =IF(Data_LoonkostenVastVrij133="","",Data_LoonkostenVastVrij133) ->  | BI156: =IF(Data_PersoonAanUitVastVrij133=-1,"v","") ->  | BK156: v | BP156: 0 | BQ156: 0 | BS156: =IF(Data_NaamPersoonVastOntslag133="","",Data_NaamPersoonVastOntslag133) ->  | BV156: =IF(Data_BeeindigingsdatumVastOntslag133="","",Data_BeeindigingsdatumVastOntslag133) ->  | BY156: =IF(Data_LoonkostenVastOntslag133="","",Data_LoonkostenVastOntslag133) ->  | CA156: =IF(Data_PersoonAanUitVastOntslag133=-1,"v","") ->  | CC156: v | CH156: 0 | CI156: 0
H157: =IF(Data_NaamPersoonNatVerloop134="","",Data_NaamPersoonNatVerloop134) ->  | K157: =IF(Data_BeeindigingsdatumNatVerloop134="","",Data_BeeindigingsdatumNatVerloop134) ->  | N157: =IF(Data_LoonkostenNatVerloop134="","",Data_LoonkostenNatVerloop134) ->  | P157: v | R157: v | W157: 0 | AG157: =IF(Data_NaamPersoonTijd134="","",Data_NaamPersoonTijd134) ->  | AJ157: =IF(Data_BeeindigingsdatumTijd134="","",Data_BeeindigingsdatumTijd134) ->  | AM157: =IF(Data_LoonkostenTijd134="","",Data_LoonkostenTijd134) ->  | AO157: =IF(Data_PersoonAanUitTijd134=-1,"v","") ->  | AQ157: v | AV157: 0 | AW157: 0 | BA157: =IF(Data_NaamPersoonVastVrij134="","",Data_NaamPersoonVastVrij134) ->  | BD157: =IF(Data_BeeindigingsdatumVastVrij134="","",Data_BeeindigingsdatumVastVrij134) ->  | BG157: =IF(Data_LoonkostenVastVrij134="","",Data_LoonkostenVastVrij134) ->  | BI157: =IF(Data_PersoonAanUitVastVrij134=-1,"v","") ->  | BK157: v | BP157: 0 | BQ157: 0 | BS157: =IF(Data_NaamPersoonVastOntslag134="","",Data_NaamPersoonVastOntslag134) ->  | BV157: =IF(Data_BeeindigingsdatumVastOntslag134="","",Data_BeeindigingsdatumVastOntslag134) ->  | BY157: =IF(Data_LoonkostenVastOntslag134="","",Data_LoonkostenVastOntslag134) ->  | CA157: =IF(Data_PersoonAanUitVastOntslag134=-1,"v","") ->  | CC157: v | CH157: 0 | CI157: 0
H158: =IF(Data_NaamPersoonNatVerloop135="","",Data_NaamPersoonNatVerloop135) ->  | K158: =IF(Data_BeeindigingsdatumNatVerloop135="","",Data_BeeindigingsdatumNatVerloop135) ->  | N158: =IF(Data_LoonkostenNatVerloop135="","",Data_LoonkostenNatVerloop135) ->  | P158: v | R158: v | W158: 0 | AG158: =IF(Data_NaamPersoonTijd135="","",Data_NaamPersoonTijd135) ->  | AJ158: =IF(Data_BeeindigingsdatumTijd135="","",Data_BeeindigingsdatumTijd135) ->  | AM158: =IF(Data_LoonkostenTijd135="","",Data_LoonkostenTijd135) ->  | AO158: =IF(Data_PersoonAanUitTijd135=-1,"v","") ->  | AQ158: v | AV158: 0 | AW158: 0 | BA158: =IF(Data_NaamPersoonVastVrij135="","",Data_NaamPersoonVastVrij135) ->  | BD158: =IF(Data_BeeindigingsdatumVastVrij135="","",Data_BeeindigingsdatumVastVrij135) ->  | BG158: =IF(Data_LoonkostenVastVrij135="","",Data_LoonkostenVastVrij135) ->  | BI158: =IF(Data_PersoonAanUitVastVrij135=-1,"v","") ->  | BK158: v | BP158: 0 | BQ158: 0 | BS158: =IF(Data_NaamPersoonVastOntslag135="","",Data_NaamPersoonVastOntslag135) ->  | BV158: =IF(Data_BeeindigingsdatumVastOntslag135="","",Data_BeeindigingsdatumVastOntslag135) ->  | BY158: =IF(Data_LoonkostenVastOntslag135="","",Data_LoonkostenVastOntslag135) ->  | CA158: =IF(Data_PersoonAanUitVastOntslag135=-1,"v","") ->  | CC158: v | CH158: 0 | CI158: 0
H159: =IF(Data_NaamPersoonNatVerloop136="","",Data_NaamPersoonNatVerloop136) ->  | K159: =IF(Data_BeeindigingsdatumNatVerloop136="","",Data_BeeindigingsdatumNatVerloop136) ->  | N159: =IF(Data_LoonkostenNatVerloop136="","",Data_LoonkostenNatVerloop136) ->  | P159: v | R159: v | W159: 0 | AG159: =IF(Data_NaamPersoonTijd136="","",Data_NaamPersoonTijd136) ->  | AJ159: =IF(Data_BeeindigingsdatumTijd136="","",Data_BeeindigingsdatumTijd136) ->  | AM159: =IF(Data_LoonkostenTijd136="","",Data_LoonkostenTijd136) ->  | AO159: =IF(Data_PersoonAanUitTijd136=-1,"v","") ->  | AQ159: v | AV159: 0 | AW159: 0 | BA159: =IF(Data_NaamPersoonVastVrij136="","",Data_NaamPersoonVastVrij136) ->  | BD159: =IF(Data_BeeindigingsdatumVastVrij136="","",Data_BeeindigingsdatumVastVrij136) ->  | BG159: =IF(Data_LoonkostenVastVrij136="","",Data_LoonkostenVastVrij136) ->  | BI159: =IF(Data_PersoonAanUitVastVrij136=-1,"v","") ->  | BK159: v | BP159: 0 | BQ159: 0 | BS159: =IF(Data_NaamPersoonVastOntslag136="","",Data_NaamPersoonVastOntslag136) ->  | BV159: =IF(Data_BeeindigingsdatumVastOntslag136="","",Data_BeeindigingsdatumVastOntslag136) ->  | BY159: =IF(Data_LoonkostenVastOntslag136="","",Data_LoonkostenVastOntslag136) ->  | CA159: =IF(Data_PersoonAanUitVastOntslag136=-1,"v","") ->  | CC159: v | CH159: 0 | CI159: 0
H160: =IF(Data_NaamPersoonNatVerloop137="","",Data_NaamPersoonNatVerloop137) ->  | K160: =IF(Data_BeeindigingsdatumNatVerloop137="","",Data_BeeindigingsdatumNatVerloop137) ->  | N160: =IF(Data_LoonkostenNatVerloop137="","",Data_LoonkostenNatVerloop137) ->  | P160: v | R160: v | W160: 0 | AG160: =IF(Data_NaamPersoonTijd137="","",Data_NaamPersoonTijd137) ->  | AJ160: =IF(Data_BeeindigingsdatumTijd137="","",Data_BeeindigingsdatumTijd137) ->  | AM160: =IF(Data_LoonkostenTijd137="","",Data_LoonkostenTijd137) ->  | AO160: =IF(Data_PersoonAanUitTijd137=-1,"v","") ->  | AQ160: v | AV160: 0 | AW160: 0 | BA160: =IF(Data_NaamPersoonVastVrij137="","",Data_NaamPersoonVastVrij137) ->  | BD160: =IF(Data_BeeindigingsdatumVastVrij137="","",Data_BeeindigingsdatumVastVrij137) ->  | BG160: =IF(Data_LoonkostenVastVrij137="","",Data_LoonkostenVastVrij137) ->  | BI160: =IF(Data_PersoonAanUitVastVrij137=-1,"v","") ->  | BK160: v | BP160: 0 | BQ160: 0 | BS160: =IF(Data_NaamPersoonVastOntslag137="","",Data_NaamPersoonVastOntslag137) ->  | BV160: =IF(Data_BeeindigingsdatumVastOntslag137="","",Data_BeeindigingsdatumVastOntslag137) ->  | BY160: =IF(Data_LoonkostenVastOntslag137="","",Data_LoonkostenVastOntslag137) ->  | CA160: =IF(Data_PersoonAanUitVastOntslag137=-1,"v","") ->  | CC160: v | CH160: 0 | CI160: 0
H161: =IF(Data_NaamPersoonNatVerloop138="","",Data_NaamPersoonNatVerloop138) ->  | K161: =IF(Data_BeeindigingsdatumNatVerloop138="","",Data_BeeindigingsdatumNatVerloop138) ->  | N161: =IF(Data_LoonkostenNatVerloop138="","",Data_LoonkostenNatVerloop138) ->  | P161: v | R161: v | W161: 0 | AG161: =IF(Data_NaamPersoonTijd138="","",Data_NaamPersoonTijd138) ->  | AJ161: =IF(Data_BeeindigingsdatumTijd138="","",Data_BeeindigingsdatumTijd138) ->  | AM161: =IF(Data_LoonkostenTijd138="","",Data_LoonkostenTijd138) ->  | AO161: =IF(Data_PersoonAanUitTijd138=-1,"v","") ->  | AQ161: v | AV161: 0 | AW161: 0 | BA161: =IF(Data_NaamPersoonVastVrij138="","",Data_NaamPersoonVastVrij138) ->  | BD161: =IF(Data_BeeindigingsdatumVastVrij138="","",Data_BeeindigingsdatumVastVrij138) ->  | BG161: =IF(Data_LoonkostenVastVrij138="","",Data_LoonkostenVastVrij138) ->  | BI161: =IF(Data_PersoonAanUitVastVrij138=-1,"v","") ->  | BK161: v | BP161: 0 | BQ161: 0 | BS161: =IF(Data_NaamPersoonVastOntslag138="","",Data_NaamPersoonVastOntslag138) ->  | BV161: =IF(Data_BeeindigingsdatumVastOntslag138="","",Data_BeeindigingsdatumVastOntslag138) ->  | BY161: =IF(Data_LoonkostenVastOntslag138="","",Data_LoonkostenVastOntslag138) ->  | CA161: =IF(Data_PersoonAanUitVastOntslag138=-1,"v","") ->  | CC161: v | CH161: 0 | CI161: 0
H162: =IF(Data_NaamPersoonNatVerloop139="","",Data_NaamPersoonNatVerloop139) ->  | K162: =IF(Data_BeeindigingsdatumNatVerloop139="","",Data_BeeindigingsdatumNatVerloop139) ->  | N162: =IF(Data_LoonkostenNatVerloop139="","",Data_LoonkostenNatVerloop139) ->  | P162: v | R162: v | W162: 0 | AG162: =IF(Data_NaamPersoonTijd139="","",Data_NaamPersoonTijd139) ->  | AJ162: =IF(Data_BeeindigingsdatumTijd139="","",Data_BeeindigingsdatumTijd139) ->  | AM162: =IF(Data_LoonkostenTijd139="","",Data_LoonkostenTijd139) ->  | AO162: =IF(Data_PersoonAanUitTijd139=-1,"v","") ->  | AQ162: v | AV162: 0 | AW162: 0 | BA162: =IF(Data_NaamPersoonVastVrij139="","",Data_NaamPersoonVastVrij139) ->  | BD162: =IF(Data_BeeindigingsdatumVastVrij139="","",Data_BeeindigingsdatumVastVrij139) ->  | BG162: =IF(Data_LoonkostenVastVrij139="","",Data_LoonkostenVastVrij139) ->  | BI162: =IF(Data_PersoonAanUitVastVrij139=-1,"v","") ->  | BK162: v | BP162: 0 | BQ162: 0 | BS162: =IF(Data_NaamPersoonVastOntslag139="","",Data_NaamPersoonVastOntslag139) ->  | BV162: =IF(Data_BeeindigingsdatumVastOntslag139="","",Data_BeeindigingsdatumVastOntslag139) ->  | BY162: =IF(Data_LoonkostenVastOntslag139="","",Data_LoonkostenVastOntslag139) ->  | CA162: =IF(Data_PersoonAanUitVastOntslag139=-1,"v","") ->  | CC162: v | CH162: 0 | CI162: 0
H163: =IF(Data_NaamPersoonNatVerloop140="","",Data_NaamPersoonNatVerloop140) ->  | K163: =IF(Data_BeeindigingsdatumNatVerloop140="","",Data_BeeindigingsdatumNatVerloop140) ->  | N163: =IF(Data_LoonkostenNatVerloop140="","",Data_LoonkostenNatVerloop140) ->  | P163: v | R163: v | W163: 0 | AG163: =IF(Data_NaamPersoonTijd140="","",Data_NaamPersoonTijd140) ->  | AJ163: =IF(Data_BeeindigingsdatumTijd140="","",Data_BeeindigingsdatumTijd140) ->  | AM163: =IF(Data_LoonkostenTijd140="","",Data_LoonkostenTijd140) ->  | AO163: =IF(Data_PersoonAanUitTijd140=-1,"v","") ->  | AQ163: v | AV163: 0 | AW163: 0 | BA163: =IF(Data_NaamPersoonVastVrij140="","",Data_NaamPersoonVastVrij140) ->  | BD163: =IF(Data_BeeindigingsdatumVastVrij140="","",Data_BeeindigingsdatumVastVrij140) ->  | BG163: =IF(Data_LoonkostenVastVrij140="","",Data_LoonkostenVastVrij140) ->  | BI163: =IF(Data_PersoonAanUitVastVrij140=-1,"v","") ->  | BK163: v | BP163: 0 | BQ163: 0 | BS163: =IF(Data_NaamPersoonVastOntslag140="","",Data_NaamPersoonVastOntslag140) ->  | BV163: =IF(Data_BeeindigingsdatumVastOntslag140="","",Data_BeeindigingsdatumVastOntslag140) ->  | BY163: =IF(Data_LoonkostenVastOntslag140="","",Data_LoonkostenVastOntslag140) ->  | CA163: =IF(Data_PersoonAanUitVastOntslag140=-1,"v","") ->  | CC163: v | CH163: 0 | CI163: 0
H164: =IF(Data_NaamPersoonNatVerloop141="","",Data_NaamPersoonNatVerloop141) ->  | K164: =IF(Data_BeeindigingsdatumNatVerloop141="","",Data_BeeindigingsdatumNatVerloop141) ->  | N164: =IF(Data_LoonkostenNatVerloop141="","",Data_LoonkostenNatVerloop141) ->  | P164: v | R164: v | W164: 0 | AG164: =IF(Data_NaamPersoonTijd141="","",Data_NaamPersoonTijd141) ->  | AJ164: =IF(Data_BeeindigingsdatumTijd141="","",Data_BeeindigingsdatumTijd141) ->  | AM164: =IF(Data_LoonkostenTijd141="","",Data_LoonkostenTijd141) ->  | AO164: =IF(Data_PersoonAanUitTijd141=-1,"v","") ->  | AQ164: v | AV164: 0 | AW164: 0 | BA164: =IF(Data_NaamPersoonVastVrij141="","",Data_NaamPersoonVastVrij141) ->  | BD164: =IF(Data_BeeindigingsdatumVastVrij141="","",Data_BeeindigingsdatumVastVrij141) ->  | BG164: =IF(Data_LoonkostenVastVrij141="","",Data_LoonkostenVastVrij141) ->  | BI164: =IF(Data_PersoonAanUitVastVrij141=-1,"v","") ->  | BK164: v | BP164: 0 | BQ164: 0 | BS164: =IF(Data_NaamPersoonVastOntslag141="","",Data_NaamPersoonVastOntslag141) ->  | BV164: =IF(Data_BeeindigingsdatumVastOntslag141="","",Data_BeeindigingsdatumVastOntslag141) ->  | BY164: =IF(Data_LoonkostenVastOntslag141="","",Data_LoonkostenVastOntslag141) ->  | CA164: =IF(Data_PersoonAanUitVastOntslag141=-1,"v","") ->  | CC164: v | CH164: 0 | CI164: 0
H165: =IF(Data_NaamPersoonNatVerloop142="","",Data_NaamPersoonNatVerloop142) ->  | K165: =IF(Data_BeeindigingsdatumNatVerloop142="","",Data_BeeindigingsdatumNatVerloop142) ->  | N165: =IF(Data_LoonkostenNatVerloop142="","",Data_LoonkostenNatVerloop142) ->  | P165: v | R165: v | W165: 0 | AG165: =IF(Data_NaamPersoonTijd142="","",Data_NaamPersoonTijd142) ->  | AJ165: =IF(Data_BeeindigingsdatumTijd142="","",Data_BeeindigingsdatumTijd142) ->  | AM165: =IF(Data_LoonkostenTijd142="","",Data_LoonkostenTijd142) ->  | AO165: =IF(Data_PersoonAanUitTijd142=-1,"v","") ->  | AQ165: v | AV165: 0 | AW165: 0 | BA165: =IF(Data_NaamPersoonVastVrij142="","",Data_NaamPersoonVastVrij142) ->  | BD165: =IF(Data_BeeindigingsdatumVastVrij142="","",Data_BeeindigingsdatumVastVrij142) ->  | BG165: =IF(Data_LoonkostenVastVrij142="","",Data_LoonkostenVastVrij142) ->  | BI165: =IF(Data_PersoonAanUitVastVrij142=-1,"v","") ->  | BK165: v | BP165: 0 | BQ165: 0 | BS165: =IF(Data_NaamPersoonVastOntslag142="","",Data_NaamPersoonVastOntslag142) ->  | BV165: =IF(Data_BeeindigingsdatumVastOntslag142="","",Data_BeeindigingsdatumVastOntslag142) ->  | BY165: =IF(Data_LoonkostenVastOntslag142="","",Data_LoonkostenVastOntslag142) ->  | CA165: =IF(Data_PersoonAanUitVastOntslag142=-1,"v","") ->  | CC165: v | CH165: 0 | CI165: 0
H166: =IF(Data_NaamPersoonNatVerloop143="","",Data_NaamPersoonNatVerloop143) ->  | K166: =IF(Data_BeeindigingsdatumNatVerloop143="","",Data_BeeindigingsdatumNatVerloop143) ->  | N166: =IF(Data_LoonkostenNatVerloop143="","",Data_LoonkostenNatVerloop143) ->  | P166: v | R166: v | W166: 0 | AG166: =IF(Data_NaamPersoonTijd143="","",Data_NaamPersoonTijd143) ->  | AJ166: =IF(Data_BeeindigingsdatumTijd143="","",Data_BeeindigingsdatumTijd143) ->  | AM166: =IF(Data_LoonkostenTijd143="","",Data_LoonkostenTijd143) ->  | AO166: =IF(Data_PersoonAanUitTijd143=-1,"v","") ->  | AQ166: v | AV166: 0 | AW166: 0 | BA166: =IF(Data_NaamPersoonVastVrij143="","",Data_NaamPersoonVastVrij143) ->  | BD166: =IF(Data_BeeindigingsdatumVastVrij143="","",Data_BeeindigingsdatumVastVrij143) ->  | BG166: =IF(Data_LoonkostenVastVrij143="","",Data_LoonkostenVastVrij143) ->  | BI166: =IF(Data_PersoonAanUitVastVrij143=-1,"v","") ->  | BK166: v | BP166: 0 | BQ166: 0 | BS166: =IF(Data_NaamPersoonVastOntslag143="","",Data_NaamPersoonVastOntslag143) ->  | BV166: =IF(Data_BeeindigingsdatumVastOntslag143="","",Data_BeeindigingsdatumVastOntslag143) ->  | BY166: =IF(Data_LoonkostenVastOntslag143="","",Data_LoonkostenVastOntslag143) ->  | CA166: =IF(Data_PersoonAanUitVastOntslag143=-1,"v","") ->  | CC166: v | CH166: 0 | CI166: 0
H167: =IF(Data_NaamPersoonNatVerloop144="","",Data_NaamPersoonNatVerloop144) ->  | K167: =IF(Data_BeeindigingsdatumNatVerloop144="","",Data_BeeindigingsdatumNatVerloop144) ->  | N167: =IF(Data_LoonkostenNatVerloop144="","",Data_LoonkostenNatVerloop144) ->  | P167: v | R167: v | W167: 0 | AG167: =IF(Data_NaamPersoonTijd144="","",Data_NaamPersoonTijd144) ->  | AJ167: =IF(Data_BeeindigingsdatumTijd144="","",Data_BeeindigingsdatumTijd144) ->  | AM167: =IF(Data_LoonkostenTijd144="","",Data_LoonkostenTijd144) ->  | AO167: =IF(Data_PersoonAanUitTijd144=-1,"v","") ->  | AQ167: v | AV167: 0 | AW167: 0 | BA167: =IF(Data_NaamPersoonVastVrij144="","",Data_NaamPersoonVastVrij144) ->  | BD167: =IF(Data_BeeindigingsdatumVastVrij144="","",Data_BeeindigingsdatumVastVrij144) ->  | BG167: =IF(Data_LoonkostenVastVrij144="","",Data_LoonkostenVastVrij144) ->  | BI167: =IF(Data_PersoonAanUitVastVrij144=-1,"v","") ->  | BK167: v | BP167: 0 | BQ167: 0 | BS167: =IF(Data_NaamPersoonVastOntslag144="","",Data_NaamPersoonVastOntslag144) ->  | BV167: =IF(Data_BeeindigingsdatumVastOntslag144="","",Data_BeeindigingsdatumVastOntslag144) ->  | BY167: =IF(Data_LoonkostenVastOntslag144="","",Data_LoonkostenVastOntslag144) ->  | CA167: =IF(Data_PersoonAanUitVastOntslag144=-1,"v","") ->  | CC167: v | CH167: 0 | CI167: 0
H168: =IF(Data_NaamPersoonNatVerloop145="","",Data_NaamPersoonNatVerloop145) ->  | K168: =IF(Data_BeeindigingsdatumNatVerloop145="","",Data_BeeindigingsdatumNatVerloop145) ->  | N168: =IF(Data_LoonkostenNatVerloop145="","",Data_LoonkostenNatVerloop145) ->  | P168: v | R168: v | W168: 0 | AG168: =IF(Data_NaamPersoonTijd145="","",Data_NaamPersoonTijd145) ->  | AJ168: =IF(Data_BeeindigingsdatumTijd145="","",Data_BeeindigingsdatumTijd145) ->  | AM168: =IF(Data_LoonkostenTijd145="","",Data_LoonkostenTijd145) ->  | AO168: =IF(Data_PersoonAanUitTijd145=-1,"v","") ->  | AQ168: v | AV168: 0 | AW168: 0 | BA168: =IF(Data_NaamPersoonVastVrij145="","",Data_NaamPersoonVastVrij145) ->  | BD168: =IF(Data_BeeindigingsdatumVastVrij145="","",Data_BeeindigingsdatumVastVrij145) ->  | BG168: =IF(Data_LoonkostenVastVrij145="","",Data_LoonkostenVastVrij145) ->  | BI168: =IF(Data_PersoonAanUitVastVrij145=-1,"v","") ->  | BK168: v | BP168: 0 | BQ168: 0 | BS168: =IF(Data_NaamPersoonVastOntslag145="","",Data_NaamPersoonVastOntslag145) ->  | BV168: =IF(Data_BeeindigingsdatumVastOntslag145="","",Data_BeeindigingsdatumVastOntslag145) ->  | BY168: =IF(Data_LoonkostenVastOntslag145="","",Data_LoonkostenVastOntslag145) ->  | CA168: =IF(Data_PersoonAanUitVastOntslag145=-1,"v","") ->  | CC168: v | CH168: 0 | CI168: 0
H169: =IF(Data_NaamPersoonNatVerloop146="","",Data_NaamPersoonNatVerloop146) ->  | K169: =IF(Data_BeeindigingsdatumNatVerloop146="","",Data_BeeindigingsdatumNatVerloop146) ->  | N169: =IF(Data_LoonkostenNatVerloop146="","",Data_LoonkostenNatVerloop146) ->  | P169: v | R169: v | W169: 0 | AG169: =IF(Data_NaamPersoonTijd146="","",Data_NaamPersoonTijd146) ->  | AJ169: =IF(Data_BeeindigingsdatumTijd146="","",Data_BeeindigingsdatumTijd146) ->  | AM169: =IF(Data_LoonkostenTijd146="","",Data_LoonkostenTijd146) ->  | AO169: =IF(Data_PersoonAanUitTijd146=-1,"v","") ->  | AQ169: v | AV169: 0 | AW169: 0 | BA169: =IF(Data_NaamPersoonVastVrij146="","",Data_NaamPersoonVastVrij146) ->  | BD169: =IF(Data_BeeindigingsdatumVastVrij146="","",Data_BeeindigingsdatumVastVrij146) ->  | BG169: =IF(Data_LoonkostenVastVrij146="","",Data_LoonkostenVastVrij146) ->  | BI169: =IF(Data_PersoonAanUitVastVrij146=-1,"v","") ->  | BK169: v | BP169: 0 | BQ169: 0 | BS169: =IF(Data_NaamPersoonVastOntslag146="","",Data_NaamPersoonVastOntslag146) ->  | BV169: =IF(Data_BeeindigingsdatumVastOntslag146="","",Data_BeeindigingsdatumVastOntslag146) ->  | BY169: =IF(Data_LoonkostenVastOntslag146="","",Data_LoonkostenVastOntslag146) ->  | CA169: =IF(Data_PersoonAanUitVastOntslag146=-1,"v","") ->  | CC169: v | CH169: 0 | CI169: 0
H170: =IF(Data_NaamPersoonNatVerloop147="","",Data_NaamPersoonNatVerloop147) ->  | K170: =IF(Data_BeeindigingsdatumNatVerloop147="","",Data_BeeindigingsdatumNatVerloop147) ->  | N170: =IF(Data_LoonkostenNatVerloop147="","",Data_LoonkostenNatVerloop147) ->  | P170: v | R170: v | W170: 0 | AG170: =IF(Data_NaamPersoonTijd147="","",Data_NaamPersoonTijd147) ->  | AJ170: =IF(Data_BeeindigingsdatumTijd147="","",Data_BeeindigingsdatumTijd147) ->  | AM170: =IF(Data_LoonkostenTijd147="","",Data_LoonkostenTijd147) ->  | AO170: =IF(Data_PersoonAanUitTijd147=-1,"v","") ->  | AQ170: v | AV170: 0 | AW170: 0 | BA170: =IF(Data_NaamPersoonVastVrij147="","",Data_NaamPersoonVastVrij147) ->  | BD170: =IF(Data_BeeindigingsdatumVastVrij147="","",Data_BeeindigingsdatumVastVrij147) ->  | BG170: =IF(Data_LoonkostenVastVrij147="","",Data_LoonkostenVastVrij147) ->  | BI170: =IF(Data_PersoonAanUitVastVrij147=-1,"v","") ->  | BK170: v | BP170: 0 | BQ170: 0 | BS170: =IF(Data_NaamPersoonVastOntslag147="","",Data_NaamPersoonVastOntslag147) ->  | BV170: =IF(Data_BeeindigingsdatumVastOntslag147="","",Data_BeeindigingsdatumVastOntslag147) ->  | BY170: =IF(Data_LoonkostenVastOntslag147="","",Data_LoonkostenVastOntslag147) ->  | CA170: =IF(Data_PersoonAanUitVastOntslag147=-1,"v","") ->  | CC170: v | CH170: 0 | CI170: 0
H171: =IF(Data_NaamPersoonNatVerloop148="","",Data_NaamPersoonNatVerloop148) ->  | K171: =IF(Data_BeeindigingsdatumNatVerloop148="","",Data_BeeindigingsdatumNatVerloop148) ->  | N171: =IF(Data_LoonkostenNatVerloop148="","",Data_LoonkostenNatVerloop148) ->  | P171: v | R171: v | W171: 0 | AG171: =IF(Data_NaamPersoonTijd148="","",Data_NaamPersoonTijd148) ->  | AJ171: =IF(Data_BeeindigingsdatumTijd148="","",Data_BeeindigingsdatumTijd148) ->  | AM171: =IF(Data_LoonkostenTijd148="","",Data_LoonkostenTijd148) ->  | AO171: =IF(Data_PersoonAanUitTijd148=-1,"v","") ->  | AQ171: v | AV171: 0 | AW171: 0 | BA171: =IF(Data_NaamPersoonVastVrij148="","",Data_NaamPersoonVastVrij148) ->  | BD171: =IF(Data_BeeindigingsdatumVastVrij148="","",Data_BeeindigingsdatumVastVrij148) ->  | BG171: =IF(Data_LoonkostenVastVrij148="","",Data_LoonkostenVastVrij148) ->  | BI171: =IF(Data_PersoonAanUitVastVrij148=-1,"v","") ->  | BK171: v | BP171: 0 | BQ171: 0 | BS171: =IF(Data_NaamPersoonVastOntslag148="","",Data_NaamPersoonVastOntslag148) ->  | BV171: =IF(Data_BeeindigingsdatumVastOntslag148="","",Data_BeeindigingsdatumVastOntslag148) ->  | BY171: =IF(Data_LoonkostenVastOntslag148="","",Data_LoonkostenVastOntslag148) ->  | CA171: =IF(Data_PersoonAanUitVastOntslag148=-1,"v","") ->  | CC171: v | CH171: 0 | CI171: 0
H172: =IF(Data_NaamPersoonNatVerloop149="","",Data_NaamPersoonNatVerloop149) ->  | K172: =IF(Data_BeeindigingsdatumNatVerloop149="","",Data_BeeindigingsdatumNatVerloop149) ->  | N172: =IF(Data_LoonkostenNatVerloop149="","",Data_LoonkostenNatVerloop149) ->  | P172: v | R172: v | W172: 0 | AG172: =IF(Data_NaamPersoonTijd149="","",Data_NaamPersoonTijd149) ->  | AJ172: =IF(Data_BeeindigingsdatumTijd149="","",Data_BeeindigingsdatumTijd149) ->  | AM172: =IF(Data_LoonkostenTijd149="","",Data_LoonkostenTijd149) ->  | AO172: =IF(Data_PersoonAanUitTijd149=-1,"v","") ->  | AQ172: v | AV172: 0 | AW172: 0 | BA172: =IF(Data_NaamPersoonVastVrij149="","",Data_NaamPersoonVastVrij149) ->  | BD172: =IF(Data_BeeindigingsdatumVastVrij149="","",Data_BeeindigingsdatumVastVrij149) ->  | BG172: =IF(Data_LoonkostenVastVrij149="","",Data_LoonkostenVastVrij149) ->  | BI172: =IF(Data_PersoonAanUitVastVrij149=-1,"v","") ->  | BK172: v | BP172: 0 | BQ172: 0 | BS172: =IF(Data_NaamPersoonVastOntslag149="","",Data_NaamPersoonVastOntslag149) ->  | BV172: =IF(Data_BeeindigingsdatumVastOntslag149="","",Data_BeeindigingsdatumVastOntslag149) ->  | BY172: =IF(Data_LoonkostenVastOntslag149="","",Data_LoonkostenVastOntslag149) ->  | CA172: =IF(Data_PersoonAanUitVastOntslag149=-1,"v","") ->  | CC172: v | CH172: 0 | CI172: 0
H173: =IF(Data_NaamPersoonNatVerloop150="","",Data_NaamPersoonNatVerloop150) ->  | K173: =IF(Data_BeeindigingsdatumNatVerloop150="","",Data_BeeindigingsdatumNatVerloop150) ->  | N173: =IF(Data_LoonkostenNatVerloop150="","",Data_LoonkostenNatVerloop150) ->  | P173: v | R173: v | W173: 0 | AG173: =IF(Data_NaamPersoonTijd150="","",Data_NaamPersoonTijd150) ->  | AJ173: =IF(Data_BeeindigingsdatumTijd150="","",Data_BeeindigingsdatumTijd150) ->  | AM173: =IF(Data_LoonkostenTijd150="","",Data_LoonkostenTijd150) ->  | AO173: =IF(Data_PersoonAanUitTijd150=-1,"v","") ->  | AQ173: v | AV173: 0 | AW173: 0 | BA173: =IF(Data_NaamPersoonVastVrij150="","",Data_NaamPersoonVastVrij150) ->  | BD173: =IF(Data_BeeindigingsdatumVastVrij150="","",Data_BeeindigingsdatumVastVrij150) ->  | BG173: =IF(Data_LoonkostenVastVrij150="","",Data_LoonkostenVastVrij150) ->  | BI173: =IF(Data_PersoonAanUitVastVrij150=-1,"v","") ->  | BK173: v | BP173: 0 | BQ173: 0 | BS173: =IF(Data_NaamPersoonVastOntslag150="","",Data_NaamPersoonVastOntslag150) ->  | BV173: =IF(Data_BeeindigingsdatumVastOntslag150="","",Data_BeeindigingsdatumVastOntslag150) ->  | BY173: =IF(Data_LoonkostenVastOntslag150="","",Data_LoonkostenVastOntslag150) ->  | CA173: =IF(Data_PersoonAanUitVastOntslag150=-1,"v","") ->  | CC173: v | CH173: 0 | CI173: 0
H174: =IF(Data_NaamPersoonNatVerloop151="","",Data_NaamPersoonNatVerloop151) ->  | K174: =IF(Data_BeeindigingsdatumNatVerloop151="","",Data_BeeindigingsdatumNatVerloop151) ->  | N174: =IF(Data_LoonkostenNatVerloop151="","",Data_LoonkostenNatVerloop151) ->  | P174: v | R174: v | W174: 0 | AG174: =IF(Data_NaamPersoonTijd151="","",Data_NaamPersoonTijd151) ->  | AJ174: =IF(Data_BeeindigingsdatumTijd151="","",Data_BeeindigingsdatumTijd151) ->  | AM174: =IF(Data_LoonkostenTijd151="","",Data_LoonkostenTijd151) ->  | AO174: =IF(Data_PersoonAanUitTijd151=-1,"v","") ->  | AQ174: v | AV174: 0 | AW174: 0 | BA174: =IF(Data_NaamPersoonVastVrij151="","",Data_NaamPersoonVastVrij151) ->  | BD174: =IF(Data_BeeindigingsdatumVastVrij151="","",Data_BeeindigingsdatumVastVrij151) ->  | BG174: =IF(Data_LoonkostenVastVrij151="","",Data_LoonkostenVastVrij151) ->  | BI174: =IF(Data_PersoonAanUitVastVrij151=-1,"v","") ->  | BK174: v | BP174: 0 | BQ174: 0 | BS174: =IF(Data_NaamPersoonVastOntslag151="","",Data_NaamPersoonVastOntslag151) ->  | BV174: =IF(Data_BeeindigingsdatumVastOntslag151="","",Data_BeeindigingsdatumVastOntslag151) ->  | BY174: =IF(Data_LoonkostenVastOntslag151="","",Data_LoonkostenVastOntslag151) ->  | CA174: =IF(Data_PersoonAanUitVastOntslag151=-1,"v","") ->  | CC174: v | CH174: 0 | CI174: 0
H175: =IF(Data_NaamPersoonNatVerloop152="","",Data_NaamPersoonNatVerloop152) ->  | K175: =IF(Data_BeeindigingsdatumNatVerloop152="","",Data_BeeindigingsdatumNatVerloop152) ->  | N175: =IF(Data_LoonkostenNatVerloop152="","",Data_LoonkostenNatVerloop152) ->  | P175: v | R175: v | W175: 0 | AG175: =IF(Data_NaamPersoonTijd152="","",Data_NaamPersoonTijd152) ->  | AJ175: =IF(Data_BeeindigingsdatumTijd152="","",Data_BeeindigingsdatumTijd152) ->  | AM175: =IF(Data_LoonkostenTijd152="","",Data_LoonkostenTijd152) ->  | AO175: =IF(Data_PersoonAanUitTijd152=-1,"v","") ->  | AQ175: v | AV175: 0 | AW175: 0 | BA175: =IF(Data_NaamPersoonVastVrij152="","",Data_NaamPersoonVastVrij152) ->  | BD175: =IF(Data_BeeindigingsdatumVastVrij152="","",Data_BeeindigingsdatumVastVrij152) ->  | BG175: =IF(Data_LoonkostenVastVrij152="","",Data_LoonkostenVastVrij152) ->  | BI175: =IF(Data_PersoonAanUitVastVrij152=-1,"v","") ->  | BK175: v | BP175: 0 | BQ175: 0 | BS175: =IF(Data_NaamPersoonVastOntslag152="","",Data_NaamPersoonVastOntslag152) ->  | BV175: =IF(Data_BeeindigingsdatumVastOntslag152="","",Data_BeeindigingsdatumVastOntslag152) ->  | BY175: =IF(Data_LoonkostenVastOntslag152="","",Data_LoonkostenVastOntslag152) ->  | CA175: =IF(Data_PersoonAanUitVastOntslag152=-1,"v","") ->  | CC175: v | CH175: 0 | CI175: 0
H176: =IF(Data_NaamPersoonNatVerloop153="","",Data_NaamPersoonNatVerloop153) ->  | K176: =IF(Data_BeeindigingsdatumNatVerloop153="","",Data_BeeindigingsdatumNatVerloop153) ->  | N176: =IF(Data_LoonkostenNatVerloop153="","",Data_LoonkostenNatVerloop153) ->  | P176: v | R176: v | W176: 0 | AG176: =IF(Data_NaamPersoonTijd153="","",Data_NaamPersoonTijd153) ->  | AJ176: =IF(Data_BeeindigingsdatumTijd153="","",Data_BeeindigingsdatumTijd153) ->  | AM176: =IF(Data_LoonkostenTijd153="","",Data_LoonkostenTijd153) ->  | AO176: =IF(Data_PersoonAanUitTijd153=-1,"v","") ->  | AQ176: v | AV176: 0 | AW176: 0 | BA176: =IF(Data_NaamPersoonVastVrij153="","",Data_NaamPersoonVastVrij153) ->  | BD176: =IF(Data_BeeindigingsdatumVastVrij153="","",Data_BeeindigingsdatumVastVrij153) ->  | BG176: =IF(Data_LoonkostenVastVrij153="","",Data_LoonkostenVastVrij153) ->  | BI176: =IF(Data_PersoonAanUitVastVrij153=-1,"v","") ->  | BK176: v | BP176: 0 | BQ176: 0 | BS176: =IF(Data_NaamPersoonVastOntslag153="","",Data_NaamPersoonVastOntslag153) ->  | BV176: =IF(Data_BeeindigingsdatumVastOntslag153="","",Data_BeeindigingsdatumVastOntslag153) ->  | BY176: =IF(Data_LoonkostenVastOntslag153="","",Data_LoonkostenVastOntslag153) ->  | CA176: =IF(Data_PersoonAanUitVastOntslag153=-1,"v","") ->  | CC176: v | CH176: 0 | CI176: 0
H177: =IF(Data_NaamPersoonNatVerloop154="","",Data_NaamPersoonNatVerloop154) ->  | K177: =IF(Data_BeeindigingsdatumNatVerloop154="","",Data_BeeindigingsdatumNatVerloop154) ->  | N177: =IF(Data_LoonkostenNatVerloop154="","",Data_LoonkostenNatVerloop154) ->  | P177: v | R177: v | W177: 0 | AG177: =IF(Data_NaamPersoonTijd154="","",Data_NaamPersoonTijd154) ->  | AJ177: =IF(Data_BeeindigingsdatumTijd154="","",Data_BeeindigingsdatumTijd154) ->  | AM177: =IF(Data_LoonkostenTijd154="","",Data_LoonkostenTijd154) ->  | AO177: =IF(Data_PersoonAanUitTijd154=-1,"v","") ->  | AQ177: v | AV177: 0 | AW177: 0 | BA177: =IF(Data_NaamPersoonVastVrij154="","",Data_NaamPersoonVastVrij154) ->  | BD177: =IF(Data_BeeindigingsdatumVastVrij154="","",Data_BeeindigingsdatumVastVrij154) ->  | BG177: =IF(Data_LoonkostenVastVrij154="","",Data_LoonkostenVastVrij154) ->  | BI177: =IF(Data_PersoonAanUitVastVrij154=-1,"v","") ->  | BK177: v | BP177: 0 | BQ177: 0 | BS177: =IF(Data_NaamPersoonVastOntslag154="","",Data_NaamPersoonVastOntslag154) ->  | BV177: =IF(Data_BeeindigingsdatumVastOntslag154="","",Data_BeeindigingsdatumVastOntslag154) ->  | BY177: =IF(Data_LoonkostenVastOntslag154="","",Data_LoonkostenVastOntslag154) ->  | CA177: =IF(Data_PersoonAanUitVastOntslag154=-1,"v","") ->  | CC177: v | CH177: 0 | CI177: 0
H178: =IF(Data_NaamPersoonNatVerloop155="","",Data_NaamPersoonNatVerloop155) ->  | K178: =IF(Data_BeeindigingsdatumNatVerloop155="","",Data_BeeindigingsdatumNatVerloop155) ->  | N178: =IF(Data_LoonkostenNatVerloop155="","",Data_LoonkostenNatVerloop155) ->  | P178: v | R178: v | W178: 0 | AG178: =IF(Data_NaamPersoonTijd155="","",Data_NaamPersoonTijd155) ->  | AJ178: =IF(Data_BeeindigingsdatumTijd155="","",Data_BeeindigingsdatumTijd155) ->  | AM178: =IF(Data_LoonkostenTijd155="","",Data_LoonkostenTijd155) ->  | AO178: =IF(Data_PersoonAanUitTijd155=-1,"v","") ->  | AQ178: v | AV178: 0 | AW178: 0 | BA178: =IF(Data_NaamPersoonVastVrij155="","",Data_NaamPersoonVastVrij155) ->  | BD178: =IF(Data_BeeindigingsdatumVastVrij155="","",Data_BeeindigingsdatumVastVrij155) ->  | BG178: =IF(Data_LoonkostenVastVrij155="","",Data_LoonkostenVastVrij155) ->  | BI178: =IF(Data_PersoonAanUitVastVrij155=-1,"v","") ->  | BK178: v | BP178: 0 | BQ178: 0 | BS178: =IF(Data_NaamPersoonVastOntslag155="","",Data_NaamPersoonVastOntslag155) ->  | BV178: =IF(Data_BeeindigingsdatumVastOntslag155="","",Data_BeeindigingsdatumVastOntslag155) ->  | BY178: =IF(Data_LoonkostenVastOntslag155="","",Data_LoonkostenVastOntslag155) ->  | CA178: =IF(Data_PersoonAanUitVastOntslag155=-1,"v","") ->  | CC178: v | CH178: 0 | CI178: 0
H179: =IF(Data_NaamPersoonNatVerloop156="","",Data_NaamPersoonNatVerloop156) ->  | K179: =IF(Data_BeeindigingsdatumNatVerloop156="","",Data_BeeindigingsdatumNatVerloop156) ->  | N179: =IF(Data_LoonkostenNatVerloop156="","",Data_LoonkostenNatVerloop156) ->  | P179: v | R179: v | W179: 0 | AG179: =IF(Data_NaamPersoonTijd156="","",Data_NaamPersoonTijd156) ->  | AJ179: =IF(Data_BeeindigingsdatumTijd156="","",Data_BeeindigingsdatumTijd156) ->  | AM179: =IF(Data_LoonkostenTijd156="","",Data_LoonkostenTijd156) ->  | AO179: =IF(Data_PersoonAanUitTijd156=-1,"v","") ->  | AQ179: v | AV179: 0 | AW179: 0 | BA179: =IF(Data_NaamPersoonVastVrij156="","",Data_NaamPersoonVastVrij156) ->  | BD179: =IF(Data_BeeindigingsdatumVastVrij156="","",Data_BeeindigingsdatumVastVrij156) ->  | BG179: =IF(Data_LoonkostenVastVrij156="","",Data_LoonkostenVastVrij156) ->  | BI179: =IF(Data_PersoonAanUitVastVrij156=-1,"v","") ->  | BK179: v | BP179: 0 | BQ179: 0 | BS179: =IF(Data_NaamPersoonVastOntslag156="","",Data_NaamPersoonVastOntslag156) ->  | BV179: =IF(Data_BeeindigingsdatumVastOntslag156="","",Data_BeeindigingsdatumVastOntslag156) ->  | BY179: =IF(Data_LoonkostenVastOntslag156="","",Data_LoonkostenVastOntslag156) ->  | CA179: =IF(Data_PersoonAanUitVastOntslag156=-1,"v","") ->  | CC179: v | CH179: 0 | CI179: 0
H180: =IF(Data_NaamPersoonNatVerloop157="","",Data_NaamPersoonNatVerloop157) ->  | K180: =IF(Data_BeeindigingsdatumNatVerloop157="","",Data_BeeindigingsdatumNatVerloop157) ->  | N180: =IF(Data_LoonkostenNatVerloop157="","",Data_LoonkostenNatVerloop157) ->  | P180: v | R180: v | W180: 0 | AG180: =IF(Data_NaamPersoonTijd157="","",Data_NaamPersoonTijd157) ->  | AJ180: =IF(Data_BeeindigingsdatumTijd157="","",Data_BeeindigingsdatumTijd157) ->  | AM180: =IF(Data_LoonkostenTijd157="","",Data_LoonkostenTijd157) ->  | AO180: =IF(Data_PersoonAanUitTijd157=-1,"v","") ->  | AQ180: v | AV180: 0 | AW180: 0 | BA180: =IF(Data_NaamPersoonVastVrij157="","",Data_NaamPersoonVastVrij157) ->  | BD180: =IF(Data_BeeindigingsdatumVastVrij157="","",Data_BeeindigingsdatumVastVrij157) ->  | BG180: =IF(Data_LoonkostenVastVrij157="","",Data_LoonkostenVastVrij157) ->  | BI180: =IF(Data_PersoonAanUitVastVrij157=-1,"v","") ->  | BK180: v | BP180: 0 | BQ180: 0 | BS180: =IF(Data_NaamPersoonVastOntslag157="","",Data_NaamPersoonVastOntslag157) ->  | BV180: =IF(Data_BeeindigingsdatumVastOntslag157="","",Data_BeeindigingsdatumVastOntslag157) ->  | BY180: =IF(Data_LoonkostenVastOntslag157="","",Data_LoonkostenVastOntslag157) ->  | CA180: =IF(Data_PersoonAanUitVastOntslag157=-1,"v","") ->  | CC180: v | CH180: 0 | CI180: 0
H181: =IF(Data_NaamPersoonNatVerloop158="","",Data_NaamPersoonNatVerloop158) ->  | K181: =IF(Data_BeeindigingsdatumNatVerloop158="","",Data_BeeindigingsdatumNatVerloop158) ->  | N181: =IF(Data_LoonkostenNatVerloop158="","",Data_LoonkostenNatVerloop158) ->  | P181: v | R181: v | W181: 0 | AG181: =IF(Data_NaamPersoonTijd158="","",Data_NaamPersoonTijd158) ->  | AJ181: =IF(Data_BeeindigingsdatumTijd158="","",Data_BeeindigingsdatumTijd158) ->  | AM181: =IF(Data_LoonkostenTijd158="","",Data_LoonkostenTijd158) ->  | AO181: =IF(Data_PersoonAanUitTijd158=-1,"v","") ->  | AQ181: v | AV181: 0 | AW181: 0 | BA181: =IF(Data_NaamPersoonVastVrij158="","",Data_NaamPersoonVastVrij158) ->  | BD181: =IF(Data_BeeindigingsdatumVastVrij158="","",Data_BeeindigingsdatumVastVrij158) ->  | BG181: =IF(Data_LoonkostenVastVrij158="","",Data_LoonkostenVastVrij158) ->  | BI181: =IF(Data_PersoonAanUitVastVrij158=-1,"v","") ->  | BK181: v | BP181: 0 | BQ181: 0 | BS181: =IF(Data_NaamPersoonVastOntslag158="","",Data_NaamPersoonVastOntslag158) ->  | BV181: =IF(Data_BeeindigingsdatumVastOntslag158="","",Data_BeeindigingsdatumVastOntslag158) ->  | BY181: =IF(Data_LoonkostenVastOntslag158="","",Data_LoonkostenVastOntslag158) ->  | CA181: =IF(Data_PersoonAanUitVastOntslag158=-1,"v","") ->  | CC181: v | CH181: 0 | CI181: 0
H182: =IF(Data_NaamPersoonNatVerloop159="","",Data_NaamPersoonNatVerloop159) ->  | K182: =IF(Data_BeeindigingsdatumNatVerloop159="","",Data_BeeindigingsdatumNatVerloop159) ->  | N182: =IF(Data_LoonkostenNatVerloop159="","",Data_LoonkostenNatVerloop159) ->  | P182: v | R182: v | W182: 0 | AG182: =IF(Data_NaamPersoonTijd159="","",Data_NaamPersoonTijd159) ->  | AJ182: =IF(Data_BeeindigingsdatumTijd159="","",Data_BeeindigingsdatumTijd159) ->  | AM182: =IF(Data_LoonkostenTijd159="","",Data_LoonkostenTijd159) ->  | AO182: =IF(Data_PersoonAanUitTijd159=-1,"v","") ->  | AQ182: v | AV182: 0 | AW182: 0 | BA182: =IF(Data_NaamPersoonVastVrij159="","",Data_NaamPersoonVastVrij159) ->  | BD182: =IF(Data_BeeindigingsdatumVastVrij159="","",Data_BeeindigingsdatumVastVrij159) ->  | BG182: =IF(Data_LoonkostenVastVrij159="","",Data_LoonkostenVastVrij159) ->  | BI182: =IF(Data_PersoonAanUitVastVrij159=-1,"v","") ->  | BK182: v | BP182: 0 | BQ182: 0 | BS182: =IF(Data_NaamPersoonVastOntslag159="","",Data_NaamPersoonVastOntslag159) ->  | BV182: =IF(Data_BeeindigingsdatumVastOntslag159="","",Data_BeeindigingsdatumVastOntslag159) ->  | BY182: =IF(Data_LoonkostenVastOntslag159="","",Data_LoonkostenVastOntslag159) ->  | CA182: =IF(Data_PersoonAanUitVastOntslag159=-1,"v","") ->  | CC182: v | CH182: 0 | CI182: 0
